Workbook

Sheet Index
A1: 2019/20 Budget
A2: Benefit rate assumptions by employee group
A4: Benefit Cost Matrix
A5: Global Assumptions
A6: MUFA Faculty Fund 20 & 45
A7: MUFA Faculty Fund 30
A8: TMG Fund 20 & 45
A9: TMG Fund 30
A10: Staff Unifor Unit 1 Fund 20 & 45
A11: Staff Unifor Unit 1 Fund 30
A12: Interim
A13: Parking Unifor Unit 3
A14: Security Unifor Unit 4
A15: MUFA Librarians Fund 20 & 45
A16: MUFA Librarians Fund 30
A17: MUALA
A18: Clinical Faculty
A19: Clinical Fellows
A20: Clinical Scholars
A21: Teaching Assistants CUPE Unit 1
A22: Sessional Faculty CUPE Unit 2
A23: Sessional Music Faculty CUPE Unit 2
A24: Post-Doctoral Fellows CUPE Unit 3
A25: Post-Doctoral Fellows Non-Union
A26: Hospitality SEIU
A27: Machinists SEIU
A28: Operating Engineers IUOE
A29: Operations & Maintenance BUC
A30: Operations & Maintenance Casual
A31: Senior Academic Officers Fund 20 & 45
A32: Senior Academic Officers Fund 30
A33: Senior Administrative Officers Fund 20 & 45
A34: Senior Administrative Officers Fund 30
A35: Research Associate Academic Fund 20 & 45
A36: Research Associate Academic Fund 30
A37: Conversational Assistants
A38: Academic Converted

Sheet Benefit Cost Matrix
A1: Budget Employer Benefit Cost Matrix by Employee Group | G1: Participation rate weighting factor is applied to groups with both pension and group RRSP
A2: 2019/20 Budget
C3: CPP | D3: EI | E3: EHT | F3: WSIB | G3: Pension | H3: Group RRSP | I3: Major Medical | J3: Dental | K3: Life Insurance | L3: Travel Insurance | M3: MUFA Daycare Surcharge | N3: Social Justice / PEL Fund | O3: Benefits Surcharge | P3: PRB Surcharge | Q3: WSIB NEER Surcharge | R3: Salary Continuance
C4: % of (annual salary - $3,500) to a maximum of YMPE: | D4: % of annual salary x employer factor to a maximum of: | E4: % of annual salary | F4: % of annual salary to a maximum of: | G4: YMPE: | H4: ITA maximum: | I4: Family/Single weighted for enrolment | J4: Family/Single weighted for enrolment | K4: % of annual salary | L4: Flat rate | M4: % of annual salary | N4: Hours worked | O4: % of annual salary | P4: % of annual salary | Q4: % of annual salary | R4: % of annual salary
C5: FY19 $55,900 | D5: FY19 $51,700 | F5: FY19 $90,300 | G5: FY19 $55,900 | H5: FY19 $163,992 (Unifor1 $204,990) | I5: FY19 F$2,386 S $1,072 | J5: FY19 F $1,530 S $656 | K5: FY19-22 0.124416%
C6: FY20 $56,500 | D6: FY20 $52,100 | F6: FY20 $92,100 | G6: FY20 $56,500 | H6: FY20 $165,800 (Unifor1 $207,200) | I6: FY20 F$2,458 S $1,104 | J6: FY20 F $1,576 S $676
C7: FY21 $57,100 | D7: FY21 $52,500 | F7: FY21 $93,900 | G7: FY21 $57,100 | H7: FY21 $167,600 (Unifor1 $209,400) | I7: FY21 F $2,632 S $1,137 | J7: FY21 F $1,623 S $696
C8: FY22 $57,700 | D8: FY22 $52,900 | F8: FY22 $95,700 | G8: FY22 $57,700 | H8: FY22 $169,400 (Unifor1 $211,600) | I8: FY22 F $2,608 S $1,171 | J8: FY22 F $1,672 S $717
A9: MUFA Faculty | B9: MFF | C9: FY19 5.15% FY20 5.35% FY21 5.55% FY22 5.75% | D9: 1.66% x 1.183 | E9: 1.95% | F9: 0.36% | G9: 7% to YMPE + 10% to ITA maximum to June 30 2018 8% to YMPE + 11% to ITA maximum effective July 1 2018 FY19-22 x 175% | H9: N/A | I9: 100% employer | J9: 100% employer | K9: 1.75 x percentage of annual salary to a maximum of $100,000 | L9: $260.40/year | M9: 0.43% | N9: N/A | O9: FY19 3.5% FY20 4.5% FY21 4.5% FY22 4.75% | P9: 0.25% | Q9: FY19 0.015% FY20-22 .005% | R9: N/A
A10: The Management Group | B10: TMG | C10: FY19 5.15% FY20 5.35% FY21 5.55% FY22 5.75% | D10: 1.66% x 1.183 | E10: 1.95% | F10: 0.36% | G10: 7% to YMPE + 10% to ITA maximum to July 31 2018 8% to YMPE + 11% to ITA maximum effective Aug 1 2018 FY19-22 x 175% | H10: 3.5% to YMPE + 7% to 2x YMPE + 10.5% to ITA Maximum | I10: 100% employer | J10: 100% employer | K10: 1.75 x percentage of annual salary to a maximum of $100,000 | L10: N/A | M10: N/A | N10: N/A | O10: FY19 3.5% FY20 4.5% FY21 4.5% FY22 4.75% | P10: 0.25% | Q10: FY19 0.015% FY20-22 .005% | R10: FY19 0.8% FY20 1.0% FY21 1.1% FY22 1.2%
A11: Staff Unifor Unit 1 | B11: UF1 | C11: FY19 5.15% FY20 5.35% FY21 5.55% FY22 5.75% | D11: 1.66% x 1.183 | E11: 1.95% | F11: 0.36% | G11: FY19-22 8.646% to YMPE + 11.646% to ITA max if hired < 5/1/2010 7.646% to YMPE + 10.646% to ITA max if hired > 5/1/2010 FY19-22 175% | H11: N/A | I11: 100% employer | J11: 100% employer | K11: 1.75 x percentage of annual salary to a maximum of $100,000 | L11: N/A | M11: N/A | N11: $0.04/hour | O11: FY19 3.5% FY20 4.5% FY21 4.5% FY22 4.75% | P11: 0.25% | Q11: FY19 0.015% FY20-22 .005% | R11: FY19 0.8% FY20 1.0% FY21 1.1% FY22 1.2%
A12: Interim | B12: ESA | C12: FY19 5.15% FY20 5.35% FY21 5.55% FY22 5.75% | D12: 1.66% x 1.4 | E12: 1.95% | F12: 0.36% | G12: N/A | H12: N/A | I12: N/A | J12: N/A | K12: N/A | L12: N/A | M12: N/A | N12: N/A | O12: N/A | P12: N/A | Q12: FY19 0.015% FY20-22 .005% | R12: N/A
A13: Parking Unifor Unit 3 | B13: UF3 | C13: FY19 5.15% FY20 5.35% FY21 5.55% FY22 5.75% | D13: 1.66% x 1.183 | E13: 1.95% | F13: 0.36% | G13: FY19-22 7% to YMPE + 10% to ITA max FY19-22 x 340% Full-time only | H13: 3.5% to YMPE + 5% to ITA maximum | I13: 100% employer Full-time only | J13: 100% employer Full-time only | K13: 1.75 x percentage of annual salary to a maximum of $100,000 | L13: N/A | M13: N/A | N13: $0.04/hour | O13: FY19 3.5% FY20 4.5% FY21 4.5% FY22 4.75% | P13: 0.25% | Q13: FY19 0.015% FY20-22 .005% | R13: N/A
A14: Security Unifor Unit 4 | B14: UF4 | C14: FY19 5.15% FY20 5.35% FY21 5.55% FY22 5.75% | D14: 1.66% x 1.274 | E14: 1.95% | F14: 0.36% | G14: FY19-22 7% to YMPE + 10% to ITA max FY19-22 x 340% Full-time only | H14: 3.5% to YMPE + 7% to ITA maximum Full-time only | I14: 100% employer Full-time only | J14: 100% employer Full-time only | K14: 1 x percentage of annual salary to a maximum of $100,000 | L14: N/A | M14: N/A | N14: $0.04/hour | O14: FY19 3.5% FY20 4.5% FY21 4.5% FY22 4.75% Full-time only | P14: 0.25% Full-time only | Q14: FY19 0.015% FY20-22 .005% | R14: N/A
A15: MUFA Librarians | B15: MFL | C15: FY19 5.15% FY20 5.35% FY21 5.55% FY22 5.75% | D15: 1.66% x 1.183 | E15: 1.95% | F15: 0.36% | G15: 7% to YMPE + 10% to ITA maximum to June 30 2018 8% to YMPE + 11% to ITA maximum effective July 1 2018 FY19-22 175% | H15: N/A | I15: 100% employer | J15: 100% employer | K15: 1.75 x percentage of annual salary to a maximum of $100,000 | L15: $260.40/year | M15: 0.43% | N15: N/A | O15: FY19 3.5% FY20 4.5% FY21 4.5% FY22 4.75% | P15: 0.25% | Q15: FY19 0.015% FY20-22 .005% | R15: N/A
A16: MUALA | B16: MUL | C16: FY19 5.15% FY20 5.35% FY21 5.55% FY22 5.75% | D16: 1.66% x 1.183 | E16: 1.95% | F16: 0.36% | G16: 7% to YMPE + 10% to ITA maximum FY19-22 175% | H16: 3.5% to YMPE + 7% to 2x YMPE + 10.5% to ITA Maximum | I16: 100% employer | J16: 100% employer | K16: 1.75 x percentage of annual salary to a maximum of $100,000 | L16: $260.40/year | M16: N/A | N16: N/A | O16: FY19 3.5% FY20 4.5% FY21 4.5% FY22 4.75% | P16: 0.25% | Q16: FY19 0.015% FY20-22 .005% | R16: N/A
A17: Clinical Faculty | B17: CFA | C17: FY19 5.15% FY20 5.35% FY21 5.55% FY22 5.75% | D17: 1.66% x 1.183 | E17: 1.95% | F17: 0.36% | G17: 7% to YMPE + 10% to ITA maximum to July 31 2018 8% to YMPE + 11% to ITA maximum effective Aug 1 2018 FY19-22 x 175% Grandparented employees only | H17: N/A | I17: 100% employer | J17: 100% employer | K17: 1.75 x percentage of annual salary to a maximum of $100,000 | L17: $260.40/year | M17: N/A | N17: N/A | O17: FY19 3.5% FY20 4.5% FY21 4.5% FY22 4.75% | P17: 0.25% | Q17: FY19 0.015% FY20-22 .005% | R17: N/A
A18: Clinical Fellows | B18: CLF | C18: FY19 5.15% FY20 5.35% FY21 5.55% FY22 5.75% | D18: 1.66% x 1.4 | E18: 1.95% | F18: 0.36% | G18: N/A | H18: N/A | I18: 100% employer | J18: Optional - employee paid | K18: 1.75 x percentage of annual salary to a maximum of $100,000 | L18: N/A | M18: N/A | N18: N/A | O18: N/A | P18: N/A | Q18: FY19 0.015% FY20-22 .005% | R18: N/A
A19: Clinical Scholars | B19: CLS | C19: FY19 5.15% FY20 5.35% FY21 5.55% FY22 5.75% | D19: 1.66% x 1.183 | E19: 1.95% | F19: 0.36% | G19: N/A | H19: N/A | I19: 100% employer | J19: Optional - employee paid | K19: 1.75 x percentage of annual salary to a maximum of $100,000 | L19: N/A | M19: N/A | N19: N/A | O19: FY19 3.5% FY20 4.5% FY21 4.5% FY22 4.75% | P19: 0.25% | Q19: FY19 0.015% FY20-22 .005% | R19: FY19 0.8% FY20 1.0% FY21 1.1% FY22 1.2%
A20: Teaching Assistants CUPE Unit 1 | B20: CP1 | C20: FY19 5.15% FY20 5.35% FY21 5.55% FY22 5.75% | D20: 1.66% x 1.4 | E20: 1.95% | F20: 0.36% | G20: N/A | H20: N/A | I20: N/A | J20: $28.44/month for eligible employes | K20: N/A | L20: N/A | M20: N/A | N20: N/A | O20: N/A | P20: N/A | Q20: FY19 0.015% FY20-22 .005% | R20: N/A
A21: Sessional Faculty CUPE Unit 2 | B21: CP2 | C21: FY19 5.15% FY20 5.35% FY21 5.55% FY22 5.75% | D21: 1.66% x 1.4 | E21: 1.95% | F21: 0.36% | G21: N/A | H21: N/A | I21: N/A | J21: N/A | K21: N/A | L21: N/A | M21: N/A | N21: N/A | O21: N/A | P21: N/A | Q21: FY19 0.015% FY20-22 .005% | R21: N/A
A22: Sessional Music Faculty CUPE Unit 2 | B22: CPM | C22: FY19 5.15% FY20 5.35% FY21 5.55% FY22 5.75% | D22: 1.66% x 1.4 | E22: 1.95% | F22: 0.36% | G22: N/A | H22: N/A | I22: N/A | J22: N/A | K22: N/A | L22: N/A | M22: N/A | N22: N/A | O22: N/A | P22: N/A | Q22: FY19 0.015% FY20-22 .005% | R22: N/A
A23: Post-Doctoral Fellows CUPE Unit 3 | B23: CP3 | C23: FY19 5.15% FY20 5.35% FY21 5.55% FY22 5.75% | D23: 1.66% x 1.4 | E23: 1.95% | F23: 0.36% | G23: N/A | H23: N/A | I23: 100% employer | J23: $30/month for eligible employes | K23: 1.75 x percentage of annual salary to a maximum of $100,000 | L23: N/A | M23: N/A | N23: N/A | O23: N/A | P23: N/A | Q23: FY19 0.015% FY20-22 .005% | R23: N/A
A24: Post-Doctoral Fellows Non-Union | B24: PDF | C24: FY19 5.15% FY20 5.35% FY21 5.55% FY22 5.75% | D24: 1.66% x 1.4 | E24: 1.95% | F24: 0.36% | G24: N/A | H24: N/A | I24: 100% employer | J24: Optional - employee paid | K24: 1.75 x percentage of annual salary to a maximum of $100,000 | L24: N/A | M24: N/A | N24: N/A | O24: N/A | P24: N/A | Q24: FY19 0.015% FY20-22 .005% | R24: N/A
A25: Hospitality SEIU | B25: HSP | C25: FY19 5.15% FY20 5.35% FY21 5.55% FY22 5.75% | D25: 1.66% x 1.274 | E25: 1.95% | F25: 0.36% | G25: FY19 7% to YMPE + 10% to ITA max FY20-22 8% to YMPE + 11% to ITA max FY19-22 x 340% Full-time only | H25: 3.5% to YMPE + 5% to ITA maximum Full-time only | I25: Co-Pay 75% employer | J25: Co-Pay 75% employer | K25: 1 x percentage of annual salary to a maximum of $100,000 | L25: N/A | M25: N/A | N25: $0.02/hour | O25: FY19 3.5% FY20 4.5% FY21 4.5% FY22 4.75% | P25: 0.25% Full-time only | Q25: FY18 0.15% FY19-21 0.05% | R25: N/A
A26: Machinists SEIU | B26: MCH | C26: FY19 5.15% FY20 5.35% FY21 5.55% FY22 5.75% | D26: 1.66% x 1.274 | E26: 1.95% | F26: 0.36% | G26: FY19-22 7% to YMPE + 10% to ITA max FY19-22 x 340% | H26: 3.5% to YMPE + 5% to ITA maximum | I26: 100% employer | J26: 100% employer | K26: 1 x percentage of annual salary to a maximum of $100,000 | L26: N/A | M26: N/A | N26: $0.02/hour | O26: FY19 3.5% FY20 4.5% FY21 4.5% FY22 4.75% | P26: 0.25% | Q26: FY18 0.15% FY19-21 0.05% | R26: N/A
A27: Operating Engineers IUOE | B27: OPE | C27: FY19 5.15% FY20 5.35% FY21 5.55% FY22 5.75% | D27: 1.66% x 1.274 | E27: 1.95% | F27: 0.36% | G27: FY19-22 7% to YMPE + 10% to ITA max FY19-22 x 340% | H27: 3.5% to YMPE + 5% to ITA maximum | I27: 100% employer | J27: 100% employer | K27: 1 x percentage of annual salary to a maximum of $100,000 | L27: N/A | M27: N/A | N27: N/A | O27: FY19 3.5% FY20 4.5% FY21 4.5% FY22 4.75% | P27: 0.25% | Q27: FY18 0.15% FY19-21 0.05% | R27: N/A
A28: Operations & Maintenance BUC | B28: OPM | C28: FY19 5.15% FY20 5.35% FY21 5.55% FY22 5.75% | D28: 1.66% x 1.274 | E28: 1.95% | F28: 0.36% | G28: FY19-22 7% to YMPE + 10% to ITA max FY19-22 x 340% Eligible employees only | H28: 3.5% to YMPE + 5% to ITA maximum | I28: 100% employer for eligible employees, grandparented co-pay 75% employer | J28: 100% employer for eligible employees, grandparented co-pay 75% employer | K28: 1 x percentage of annual salary to a maximum of $100,000 | L28: N/A | M28: N/A | N28: N/A | O28: FY19 3.5% FY20 4.5% FY21 4.5% FY22 4.75% | P28: 0.25% | Q28: FY18 0.15% FY19-21 0.05% | R28: N/A
A29: Operations & Maintenance Casual | B29: OMC | C29: FY19 5.15% FY20 5.35% FY21 5.55% FY22 5.75% | D29: 1.66% x 1.4 | E29: 1.95% | F29: 0.36% | G29: N/A | H29: N/A | I29: N/A | J29: N/A | K29: N/A | L29: N/A | M29: N/A | N29: N/A | O29: N/A | P29: N/A | Q29: FY18 0.15% FY19-21 0.05% | R29: N/A
A30: Senior Academic Officers | B30: SAA | C30: FY19 5.15% FY20 5.35% FY21 5.55% FY22 5.75% | D30: 1.66% x 1.183 | E30: 1.95% | F30: 0.36% | G30: 7% to YMPE + 10% to ITA maximum to July 31 2018 8% to YMPE + 11% to ITA maximum effective Aug 1 2018 FY19-22 x 175% | H30: N/A | I30: 100% employer | J30: 100% employer | K30: 1.75 x percentage of annual salary to a maximum of $500,000 | L30: $260.40/year | M30: N/A | N30: N/A | O30: FY19 3.5% FY20 4.5% FY21 4.5% FY22 4.75% | P30: 0.25% | Q30: FY19 0.015% FY20-22 .005% | R30: N/A
A31: Senior Adminstrative Officers | B31: SAO | C31: FY19 5.15% FY20 5.35% FY21 5.55% FY22 5.75% | D31: 1.66% x 1.183 | E31: 1.95% | F31: 0.36% | G31: 7% to YMPE + 10% to ITA maximum to July 31 2018 8% to YMPE + 11% to ITA maximum effective Aug 1 2018 FY19-22 x 175% | H31: 3.5% to YMPE + 7% to 2x YMPE + 10.5% to ITA Maximum | I31: 100% employer | J31: 100% employer | K31: 1.75 x percentage of annual salary to a maximum of $500,000 | L31: N/A | M31: N/A | N31: N/A | O31: FY19 3.5% FY20 4.5% FY21 4.5% FY22 4.75% | P31: 0.25% | Q31: FY19 0.015% FY20-22 .005% | R31: FY19 0.8% FY20 1.0% FY21 1.1% FY22 1.2%
A32: Research Associate Academic | B32: RAA | C32: FY19 5.15% FY20 5.35% FY21 5.55% FY22 5.75% | D32: 1.66% x 1.183 | E32: 1.95% | F32: 0.36% | G32: N/A | H32: For employees > 1 year 3.5% to YMPE + 7% to 2x YMPE + 10.5% to ITA Maximum | I32: 100% employer | J32: 100% employer | K32: 1.75 x percentage of annual salary to a maximum of $100,000 | L32: N/A | M32: N/A | N32: N/A | O32: FY19 3.5% FY20 4.5% FY21 4.5% FY22 4.75% | P32: 0.25% | Q32: FY19 0.015% FY20-22 .005% | R32: FY19 0.8% FY20 1.0% FY21 1.1% FY22 1.2%
A33: Conversational Assistants | B33: CVA | C33: FY19 5.15% FY20 5.35% FY21 5.55% FY22 5.75% | D33: 1.66% x 1.4 | E33: 1.95% | F33: 0.36% | G33: N/A | H33: N/A | I33: 100% employer | J33: N/A | K33: For employees > 1 year 1.75 x percentage of annual salary to a maximum of $100,000 | L33: N/A | M33: N/A | N33: N/A | O33: N/A | P33: N/A | Q33: FY19 0.015% FY20-22 .005% | R33: N/A
A34: Academic Converted | B34: ZAC | C34: FY19 5.15% FY20 5.35% FY21 5.55% FY22 5.75% | D34: 1.66% x 1.4 | E34: 1.95% | F34: 0.36% | G34: N/A | H34: N/A | I34: N/A | J34: N/A | K34: N/A | L34: N/A | M34: N/A | N34: N/A | O34: N/A | P34: N/A | Q34: FY19 0.015% FY20-22 .005% | R34: N/A

Sheet Global Assumptions
A1: 2019/20 Budget
A2: Global Assumptions
B4: FY18 8 Month Review | C4: FY19 Projection | D4: FY20 Budget | E4: FY21 Plan | F4: FY22 Plan
A6: Statutory deductions
A7: Yearly maximum pensionable earnings (YMPE) | B7: $55,300 | C7: $55,900 | D7: =ROUND(C7/B7*C7,-2) -> $56,500 | E7: =ROUND(D7/C7*D7,-2) -> $57,100 | F7: =ROUND(E7/D7*E7,-2) -> $57,700
A8: Yearly maximum pensionable earnings 2 (YMPE2) | B8: =B7 -> $55,300 | C8: =C7 -> $55,900 | D8: =D7 -> $56,500 | E8: =E7 -> $57,100 | F8: =F7 -> $57,700
A9: CPP annual exemption | B9: $3,500 | C9: $3,500 | D9: $3,500 | E9: $3,500 | F9: $3,500
A10: CPP rate on YMPE | B10: 4.95% | C10: 5.15% | D10: 5.35% | E10: 5.55% | F10: 5.75%
A11: CPP rate on YMPE2 | B11: 4.00% | C11: 4.00% | D11: 4.00% | E11: 4.00% | F11: 4.00%
A12: EI maximum insurable earnings | B12: $51,300 | C12: $51,700 | D12: =ROUND(C12/B12*C12,-2) -> $52,100 | E12: =ROUND(D12/C12*D12,-2) -> $52,500 | F12: =ROUND(E12/D12*E12,-2) -> $52,900
A13: EI employee contribution rate | B13: 1.63% | C13: 1.66% | D13: 1.66% | E13: 1.66% | F13: 1.66%
A14: EHT rate | B14: 1.95% | C14: 1.95% | D14: 1.95% | E14: 1.95% | F14: 1.95%
A15: WSIB rate | B15: 0.36% | C15: 0.36% | D15: 0.36% | E15: 0.36% | F15: 0.36%
A16: WSIB maximum insurable earnings | B16: $88,500 | C16: $90,300 | D16: =ROUND(C16/B16*C16,-2) -> $92,100 | E16: =ROUND(D16/C16*D16,-2) -> $93,900 | F16: =ROUND(E16/D16*E16,-2) -> $95,700
A17: ITA maximum pension contribution (except Unifor1) | B17: $162,312 | C17: $163,992 | D17: =ROUND(C17*D7/C7,-2) -> $165,800 | E17: =ROUND(D17*E7/D7,-2) -> $167,600 | F17: $169,400
A18: ITA maximum pension contribution (Unifor1) | B18: $202,890 | C18: $204,990 | D18: =ROUND(C18*D7/C7,-2) -> $207,200 | E18: =ROUND(D18*E7/D7,-2) -> $209,400 | F18: $211,600
A20: Insurance premiums
A21: Health (family) including 8% tax | B21: =2386*1.08 -> $2,577 | C21: =2386*1.08 -> $2,577 | D21: =2458*1.08 -> $2,655 | E21: =D21*1.03 -> $2,734 | F21: =E21*1.03 -> $2,816
A22: Health (single) including 8% tax | B22: =1072*1.08 -> $1,158 | C22: =1072*1.08 -> $1,158 | D22: =1104*1.08 -> $1,192 | E22: =D22*1.03 -> $1,228 | F22: $1,265
A23: Dental (family) including 8% tax | B23: =1530*1.08 -> $1,652 | C23: =1530*1.08 -> $1,652 | D23: =1576*1.08 -> $1,702 | E23: =D23*1.03 -> $1,753 | F23: $1,806
A24: Dental (single) including 8% tax | B24: =656*1.08 -> $708 | C24: =656*1.08 -> $708 | D24: =676*1.08 -> $730 | E24: =D24*1.03 -> $752 | F24: $775
A25: Monthly life insurance rate/$1,000 excluding 8% tax | B25: $0.107 | C25: $0.096 | D25: $0.096 | E25: =+D25 -> $0.096 | F25: =+E25 -> $0.096
A26: Travel insurance including 8% tax | B26: =10.85*24*1.08 -> $281 | C26: =10.85*24*1.08 -> $281 | D26: =10.85*24*1.08 -> $281 | E26: $281 | F26: $281
A27: CUPE 1 TA dental for eligible employees | B27: =28.44*12 -> $341 | C27: =321*1.08 -> $347 | D27: =321*1.08 -> $347 | E27: $347 | F27: $347
A28: CUPE 3 PDF dental for eligible employees | B28: =30*12 -> $360 | C28: =30*12 -> $360 | D28: =30*12 -> $360 | E28: $360 | F28: $360

Sheet MFF 20 & 45
A1: MUFA Faculty (MFF)
A2: Fund 20 & 45
C3: Employee group assumptions | D3: Employer EI rate: | H3: 1.183
D4: Health & Dental participation: | G4: Family | H4: =797/916 -> 87%
G5: Single | H5: =1-H4 -> 13%
D6: Life insurance coverage (x earnings): | H6: 1.75
D7: Life insurance maximum insured earnings: | H7: 100,000
D8: Employer pension contributions:
D9: Pension contribution to YMPE | E9: Pension contribution to ITA max | F9: ITA max | G9: Employer contribution rate | M9: Benefits Surcharge | N9: PRB Surcharge | O9: WSIB NEER Surcharge | P9: Salary Continuance | Q9: MUFA Daycare surcharge
C10: =+'Global Assumptions'!C4 -> FY19 Projection | D10: =0.07*2/12+0.08*10/12 -> 7.83% | E10: =0.1*2/12+0.11*10/12 -> 10.83% | F10: =+'Global Assumptions'!$C$17 -> 163,992 | G10: 175% | M10: 3.50% | N10: 0.25% | O10: 0.015% | P10: 0.00% | Q10: 0.00%
C11: =+'Global Assumptions'!D4 -> FY20 Budget | D11: 8.00% | E11: 11.00% | F11: =+'Global Assumptions'!$D$17 -> 165,800 | G11: 175% | M11: 4.50% | N11: 0.25% | O11: 0.005% | P11: 0.00% | Q11: 0.43%
C12: =+'Global Assumptions'!E4 -> FY21 Plan | D12: 8.00% | E12: 11.00% | F12: =+'Global Assumptions'!$E$17 -> 167,600 | G12: 175% | M12: 4.50% | N12: 0.25% | O12: 0.005% | P12: 0.00% | Q12: 0.43%
C13: =+'Global Assumptions'!F4 -> FY22 Plan | D13: 8.00% | E13: 11.00% | F13: =+'Global Assumptions'!$F$17 -> 169,400 | G13: 175% | M13: 4.75% | N13: 0.25% | O13: 0.005% | P13: 0.00% | Q13: 0.43%
A14: Back to Index
A15: Annual Salary | B15: Rate | C15: Total Cost | D15: CPP | E15: EI | F15: EHT | G15: WSIB | H15: Pension | I15: Major Medical | J15: Dental | K15: Life Insurance | L15: Travel Insurance | M15: Benefits Surcharge | N15: PRB Surcharge | O15: WSIB NEER Surcharge | P15: Salary Continuance | Q15: MUFA Daycare surcharge
A16: =+'Global Assumptions'!C4 -> FY19 Projection
A17: 20,000 | B17: =+C17/A17 -> 47.25% | C17: =SUM(D17:Q17) -> 9,449 | D17: =IF((A17+K17)<'Global Assumptions'!$C$7,((A17+K17)-'Global Assumptions'!$C$9)*'Global Assumptions'!$C$10,(('Global Assumptions'!$C$7-'Global Assumptions'!$C$9)*'Global Assumptions'!$C$10)+IF((A17+K17)<'Global Assumptions'!$C$8,((A17+K17)-'Global Assumptions'!$C$7)*'Global Assumptions'!$C$11,('Global Assumptions'!$C$8-'Global Assumptions'!$C$7)*'Global Assumptions'!$C$11)) -> 852 | E17: =IF(A17<'Global Assumptions'!$C$12,A17*'Global Assumptions'!$C$13*$H$3,'Global Assumptions'!$C$12*'Global Assumptions'!$C$13*$H$3) -> 393 | F17: =(A17+K17)*'Global Assumptions'!$C$14 -> 391 | G17: =IF(A17<'Global Assumptions'!$C$16,A17*'Global Assumptions'!$C$15,'Global Assumptions'!$C$16*'Global Assumptions'!$C$15) -> 72 | H17: =IF(A17<'Global Assumptions'!$C$7,A17*$D$10,IF(A17<$F$10,(A17-'Global Assumptions'!$C$7)*$E$10+'Global Assumptions'!$C$7*$D$10,($F$10-'Global Assumptions'!$C$7)*$E$10+'Global Assumptions'!$C$7*$D$10))*$G$10 -> 2,742 | I17: =+'Global Assumptions'!$C$21*$H$4+'Global Assumptions'!$C$22*$H$5 -> 2,393 | J17: =+'Global Assumptions'!$C$23*$H$4+'Global Assumptions'!$C$24*$H$5 -> 1,530 | K17: =IF(A17<$H$7,A17*'Global Assumptions'!$C$25/1000*$H$6*1.08*12,$H$7*'Global Assumptions'!$C$25/1000*$H$6*1.08*12) -> 44 | L17: ='Global Assumptions'!$C$26 -> 281 | M17: =+$A17*M$10 -> 700 | N17: 50 | O17: 3 | P17: 0 | Q17: 0
A18: 25,000 | B18: 43.22% | C18: =SUM(D18:Q18) -> 10,806 | D18: =IF((A18+K18)<'Global Assumptions'!$C$7,((A18+K18)-'Global Assumptions'!$C$9)*'Global Assumptions'!$C$10,(('Global Assumptions'!$C$7-'Global Assumptions'!$C$9)*'Global Assumptions'!$C$10)+IF((A18+K18)<'Global Assumptions'!$C$8,((A18+K18)-'Global Assumptions'!$C$7)*'Global Assumptions'!$C$11,('Global Assumptions'!$C$8-'Global Assumptions'!$C$7)*'Global Assumptions'!$C$11)) -> 1,110 | E18: =IF(A18<'Global Assumptions'!$C$12,A18*'Global Assumptions'!$C$13*$H$3,'Global Assumptions'!$C$12*'Global Assumptions'!$C$13*$H$3) -> 491 | F18: =(A18+K18)*'Global Assumptions'!$C$14 -> 489 | G18: =IF(A18<'Global Assumptions'!$C$16,A18*'Global Assumptions'!$C$15,'Global Assumptions'!$C$16*'Global Assumptions'!$C$15) -> 90 | H18: =IF(A18<'Global Assumptions'!$C$7,A18*$D$10,IF(A18<$F$10,(A18-'Global Assumptions'!$C$7)*$E$10+'Global Assumptions'!$C$7*$D$10,($F$10-'Global Assumptions'!$C$7)*$E$10+'Global Assumptions'!$C$7*$D$10))*$G$10 -> 3,427 | I18: =+'Global Assumptions'!$C$21*$H$4+'Global Assumptions'!$C$22*$H$5 -> 2,393 | J18: =+'Global Assumptions'!$C$23*$H$4+'Global Assumptions'!$C$24*$H$5 -> 1,530 | K18: =IF(A18<$H$7,A18*'Global Assumptions'!$C$25/1000*$H$6*1.08*12,$H$7*'Global Assumptions'!$C$25/1000*$H$6*1.08*12) -> 54 | L18: ='Global Assumptions'!$C$26 -> 281 | M18: 875 | N18: 63 | O18: 4 | P18: 0 | Q18: 0
A19: 30,000 | B19: 40.54% | C19: 12,162 | D19: =IF((A19+K19)<'Global Assumptions'!$C$7,((A19+K19)-'Global Assumptions'!$C$9)*'Global Assumptions'!$C$10,(('Global Assumptions'!$C$7-'Global Assumptions'!$C$9)*'Global Assumptions'!$C$10)+IF((A19+K19)<'Global Assumptions'!$C$8,((A19+K19)-'Global Assumptions'!$C$7)*'Global Assumptions'!$C$11,('Global Assumptions'!$C$8-'Global Assumptions'!$C$7)*'Global Assumptions'!$C$11)) -> 1,368 | E19: =IF(A19<'Global Assumptions'!$C$12,A19*'Global Assumptions'!$C$13*$H$3,'Global Assumptions'!$C$12*'Global Assumptions'!$C$13*$H$3) -> 589 | F19: =(A19+K19)*'Global Assumptions'!$C$14 -> 586 | G19: =IF(A19<'Global Assumptions'!$C$16,A19*'Global Assumptions'!$C$15,'Global Assumptions'!$C$16*'Global Assumptions'!$C$15) -> 108 | H19: =IF(A19<'Global Assumptions'!$C$7,A19*$D$10,IF(A19<$F$10,(A19-'Global Assumptions'!$C$7)*$E$10+'Global Assumptions'!$C$7*$D$10,($F$10-'Global Assumptions'!$C$7)*$E$10+'Global Assumptions'!$C$7*$D$10))*$G$10 -> 4,113 | I19: =+'Global Assumptions'!$C$21*$H$4+'Global Assumptions'!$C$22*$H$5 -> 2,393 | J19: =+'Global Assumptions'!$C$23*$H$4+'Global Assumptions'!$C$24*$H$5 -> 1,530 | K19: =IF(A19<$H$7,A19*'Global Assumptions'!$C$25/1000*$H$6*1.08*12,$H$7*'Global Assumptions'!$C$25/1000*$H$6*1.08*12) -> 65 | L19: ='Global Assumptions'!$C$26 -> 281 | M19: 1,050 | N19: 75 | O19: 5 | P19: 0 | Q19: 0
A20: 35,000 | B20: 38.63% | C20: 13,519 | D20: =IF((A20+K20)<'Global Assumptions'!$C$7,((A20+K20)-'Global Assumptions'!$C$9)*'Global Assumptions'!$C$10,(('Global Assumptions'!$C$7-'Global Assumptions'!$C$9)*'Global Assumptions'!$C$10)+IF((A20+K20)<'Global Assumptions'!$C$8,((A20+K20)-'Global Assumptions'!$C$7)*'Global Assumptions'!$C$11,('Global Assumptions'!$C$8-'Global Assumptions'!$C$7)*'Global Assumptions'!$C$11)) -> 1,626 | E20: =IF(A20<'Global Assumptions'!$C$12,A20*'Global Assumptions'!$C$13*$H$3,'Global Assumptions'!$C$12*'Global Assumptions'!$C$13*$H$3) -> 687 | F20: =(A20+K20)*'Global Assumptions'!$C$14 -> 684 | G20: =IF(A20<'Global Assumptions'!$C$16,A20*'Global Assumptions'!$C$15,'Global Assumptions'!$C$16*'Global Assumptions'!$C$15) -> 126 | H20: =IF(A20<'Global Assumptions'!$C$7,A20*$D$10,IF(A20<$F$10,(A20-'Global Assumptions'!$C$7)*$E$10+'Global Assumptions'!$C$7*$D$10,($F$10-'Global Assumptions'!$C$7)*$E$10+'Global Assumptions'!$C$7*$D$10))*$G$10 -> 4,798 | I20: =+'Global Assumptions'!$C$21*$H$4+'Global Assumptions'!$C$22*$H$5 -> 2,393 | J20: =+'Global Assumptions'!$C$23*$H$4+'Global Assumptions'!$C$24*$H$5 -> 1,530 | K20: =IF(A20<$H$7,A20*'Global Assumptions'!$C$25/1000*$H$6*1.08*12,$H$7*'Global Assumptions'!$C$25/1000*$H$6*1.08*12) -> 76 | L20: ='Global Assumptions'!$C$26 -> 281 | M20: 1,225 | N20: 88 | O20: 5 | P20: 0 | Q20: 0
A21: 40,000 | B21: 37.19% | C21: 14,875 | D21: =IF((A21+K21)<'Global Assumptions'!$C$7,((A21+K21)-'Global Assumptions'!$C$9)*'Global Assumptions'!$C$10,(('Global Assumptions'!$C$7-'Global Assumptions'!$C$9)*'Global Assumptions'!$C$10)+IF((A21+K21)<'Global Assumptions'!$C$8,((A21+K21)-'Global Assumptions'!$C$7)*'Global Assumptions'!$C$11,('Global Assumptions'!$C$8-'Global Assumptions'!$C$7)*'Global Assumptions'!$C$11)) -> 1,884 | E21: =IF(A21<'Global Assumptions'!$C$12,A21*'Global Assumptions'!$C$13*$H$3,'Global Assumptions'!$C$12*'Global Assumptions'!$C$13*$H$3) -> 786 | F21: =(A21+K21)*'Global Assumptions'!$C$14 -> 782 | G21: =IF(A21<'Global Assumptions'!$C$16,A21*'Global Assumptions'!$C$15,'Global Assumptions'!$C$16*'Global Assumptions'!$C$15) -> 144 | H21: =IF(A21<'Global Assumptions'!$C$7,A21*$D$10,IF(A21<$F$10,(A21-'Global Assumptions'!$C$7)*$E$10+'Global Assumptions'!$C$7*$D$10,($F$10-'Global Assumptions'!$C$7)*$E$10+'Global Assumptions'!$C$7*$D$10))*$G$10 -> 5,483 | I21: =+'Global Assumptions'!$C$21*$H$4+'Global Assumptions'!$C$22*$H$5 -> 2,393 | J21: =+'Global Assumptions'!$C$23*$H$4+'Global Assumptions'!$C$24*$H$5 -> 1,530 | K21: =IF(A21<$H$7,A21*'Global Assumptions'!$C$25/1000*$H$6*1.08*12,$H$7*'Global Assumptions'!$C$25/1000*$H$6*1.08*12) -> 87 | L21: ='Global Assumptions'!$C$26 -> 281 | M21: 1,400 | N21: 100 | O21: 6 | P21: 0 | Q21: 0
A22: 45,000 | B22: 36.07% | C22: 16,232 | D22: =IF((A22+K22)<'Global Assumptions'!$C$7,((A22+K22)-'Global Assumptions'!$C$9)*'Global Assumptions'!$C$10,(('Global Assumptions'!$C$7-'Global Assumptions'!$C$9)*'Global Assumptions'!$C$10)+IF((A22+K22)<'Global Assumptions'!$C$8,((A22+K22)-'Global Assumptions'!$C$7)*'Global Assumptions'!$C$11,('Global Assumptions'!$C$8-'Global Assumptions'!$C$7)*'Global Assumptions'!$C$11)) -> 2,142 | E22: =IF(A22<'Global Assumptions'!$C$12,A22*'Global Assumptions'!$C$13*$H$3,'Global Assumptions'!$C$12*'Global Assumptions'!$C$13*$H$3) -> 884 | F22: =(A22+K22)*'Global Assumptions'!$C$14 -> 879 | G22: =IF(A22<'Global Assumptions'!$C$16,A22*'Global Assumptions'!$C$15,'Global Assumptions'!$C$16*'Global Assumptions'!$C$15) -> 162 | H22: =IF(A22<'Global Assumptions'!$C$7,A22*$D$10,IF(A22<$F$10,(A22-'Global Assumptions'!$C$7)*$E$10+'Global Assumptions'!$C$7*$D$10,($F$10-'Global Assumptions'!$C$7)*$E$10+'Global Assumptions'!$C$7*$D$10))*$G$10 -> 6,169 | I22: =+'Global Assumptions'!$C$21*$H$4+'Global Assumptions'!$C$22*$H$5 -> 2,393 | J22: =+'Global Assumptions'!$C$23*$H$4+'Global Assumptions'!$C$24*$H$5 -> 1,530 | K22: =IF(A22<$H$7,A22*'Global Assumptions'!$C$25/1000*$H$6*1.08*12,$H$7*'Global Assumptions'!$C$25/1000*$H$6*1.08*12) -> 98 | L22: ='Global Assumptions'!$C$26 -> 281 | M22: 1,575 | N22: 113 | O22: 7 | P22: 0 | Q22: 0
A23: 50,000 | B23: 35.18% | C23: 17,588 | D23: =IF((A23+K23)<'Global Assumptions'!$C$7,((A23+K23)-'Global Assumptions'!$C$9)*'Global Assumptions'!$C$10,(('Global Assumptions'!$C$7-'Global Assumptions'!$C$9)*'Global Assumptions'!$C$10)+IF((A23+K23)<'Global Assumptions'!$C$8,((A23+K23)-'Global Assumptions'!$C$7)*'Global Assumptions'!$C$11,('Global Assumptions'!$C$8-'Global Assumptions'!$C$7)*'Global Assumptions'!$C$11)) -> 2,400 | E23: =IF(A23<'Global Assumptions'!$C$12,A23*'Global Assumptions'!$C$13*$H$3,'Global Assumptions'!$C$12*'Global Assumptions'!$C$13*$H$3) -> 982 | F23: =(A23+K23)*'Global Assumptions'!$C$14 -> 977 | G23: =IF(A23<'Global Assumptions'!$C$16,A23*'Global Assumptions'!$C$15,'Global Assumptions'!$C$16*'Global Assumptions'!$C$15) -> 180 | H23: =IF(A23<'Global Assumptions'!$C$7,A23*$D$10,IF(A23<$F$10,(A23-'Global Assumptions'!$C$7)*$E$10+'Global Assumptions'!$C$7*$D$10,($F$10-'Global Assumptions'!$C$7)*$E$10+'Global Assumptions'!$C$7*$D$10))*$G$10 -> 6,854 | I23: =+'Global Assumptions'!$C$21*$H$4+'Global Assumptions'!$C$22*$H$5 -> 2,393 | J23: =+'Global Assumptions'!$C$23*$H$4+'Global Assumptions'!$C$24*$H$5 -> 1,530 | K23: =IF(A23<$H$7,A23*'Global Assumptions'!$C$25/1000*$H$6*1.08*12,$H$7*'Global Assumptions'!$C$25/1000*$H$6*1.08*12) -> 109 | L23: ='Global Assumptions'!$C$26 -> 281 | M23: 1,750 | N23: 125 | O23: 8 | P23: 0 | Q23: 0
A24: 55,000 | B24: 34.33% | C24: 18,880 | D24: =IF((A24+K24)<'Global Assumptions'!$C$7,((A24+K24)-'Global Assumptions'!$C$9)*'Global Assumptions'!$C$10,(('Global Assumptions'!$C$7-'Global Assumptions'!$C$9)*'Global Assumptions'!$C$10)+IF((A24+K24)<'Global Assumptions'!$C$8,((A24+K24)-'Global Assumptions'!$C$7)*'Global Assumptions'!$C$11,('Global Assumptions'!$C$8-'Global Assumptions'!$C$7)*'Global Assumptions'!$C$11)) -> 2,658 | E24: =IF(A24<'Global Assumptions'!$C$12,A24*'Global Assumptions'!$C$13*$H$3,'Global Assumptions'!$C$12*'Global Assumptions'!$C$13*$H$3) -> 1,015 | F24: =(A24+K24)*'Global Assumptions'!$C$14 -> 1,075 | G24: =IF(A24<'Global Assumptions'!$C$16,A24*'Global Assumptions'!$C$15,'Global Assumptions'!$C$16*'Global Assumptions'!$C$15) -> 198 | H24: =IF(A24<'Global Assumptions'!$C$7,A24*$D$10,IF(A24<$F$10,(A24-'Global Assumptions'!$C$7)*$E$10+'Global Assumptions'!$C$7*$D$10,($F$10-'Global Assumptions'!$C$7)*$E$10+'Global Assumptions'!$C$7*$D$10))*$G$10 -> 7,540 | I24: =+'Global Assumptions'!$C$21*$H$4+'Global Assumptions'!$C$22*$H$5 -> 2,393 | J24: =+'Global Assumptions'!$C$23*$H$4+'Global Assumptions'!$C$24*$H$5 -> 1,530 | K24: =IF(A24<$H$7,A24*'Global Assumptions'!$C$25/1000*$H$6*1.08*12,$H$7*'Global Assumptions'!$C$25/1000*$H$6*1.08*12) -> 120 | L24: ='Global Assumptions'!$C$26 -> 281 | M24: 1,925 | N24: 138 | O24: 8 | P24: 0 | Q24: 0
A25: 60,000 | B25: 33.56% | C25: 20,136 | D25: =IF((A25+K25)<'Global Assumptions'!$C$7,((A25+K25)-'Global Assumptions'!$C$9)*'Global Assumptions'!$C$10,(('Global Assumptions'!$C$7-'Global Assumptions'!$C$9)*'Global Assumptions'!$C$10)+IF((A25+K25)<'Global Assumptions'!$C$8,((A25+K25)-'Global Assumptions'!$C$7)*'Global Assumptions'!$C$11,('Global Assumptions'!$C$8-'Global Assumptions'!$C$7)*'Global Assumptions'!$C$11)) -> 2,699 | E25: =IF(A25<'Global Assumptions'!$C$12,A25*'Global Assumptions'!$C$13*$H$3,'Global Assumptions'!$C$12*'Global Assumptions'!$C$13*$H$3) -> 1,015 | F25: =(A25+K25)*'Global Assumptions'!$C$14 -> 1,173 | G25: =IF(A25<'Global Assumptions'!$C$16,A25*'Global Assumptions'!$C$15,'Global Assumptions'!$C$16*'Global Assumptions'!$C$15) -> 216 | H25: =IF(A25<'Global Assumptions'!$C$7,A25*$D$10,IF(A25<$F$10,(A25-'Global Assumptions'!$C$7)*$E$10+'Global Assumptions'!$C$7*$D$10,($F$10-'Global Assumptions'!$C$7)*$E$10+'Global Assumptions'!$C$7*$D$10))*$G$10 -> 8,440 | I25: =+'Global Assumptions'!$C$21*$H$4+'Global Assumptions'!$C$22*$H$5 -> 2,393 | J25: =+'Global Assumptions'!$C$23*$H$4+'Global Assumptions'!$C$24*$H$5 -> 1,530 | K25: =IF(A25<$H$7,A25*'Global Assumptions'!$C$25/1000*$H$6*1.08*12,$H$7*'Global Assumptions'!$C$25/1000*$H$6*1.08*12) -> 131 | L25: ='Global Assumptions'!$C$26 -> 281 | M25: 2,100 | N25: 150 | O25: 9 | P25: 0 | Q25: 0
A26: 65,000 | B26: 32.92% | C26: 21,399 | D26: =IF((A26+K26)<'Global Assumptions'!$C$7,((A26+K26)-'Global Assumptions'!$C$9)*'Global Assumptions'!$C$10,(('Global Assumptions'!$C$7-'Global Assumptions'!$C$9)*'Global Assumptions'!$C$10)+IF((A26+K26)<'Global Assumptions'!$C$8,((A26+K26)-'Global Assumptions'!$C$7)*'Global Assumptions'!$C$11,('Global Assumptions'!$C$8-'Global Assumptions'!$C$7)*'Global Assumptions'!$C$11)) -> 2,699 | E26: =IF(A26<'Global Assumptions'!$C$12,A26*'Global Assumptions'!$C$13*$H$3,'Global Assumptions'!$C$12*'Global Assumptions'!$C$13*$H$3) -> 1,015 | F26: =(A26+K26)*'Global Assumptions'!$C$14 -> 1,270 | G26: =IF(A26<'Global Assumptions'!$C$16,A26*'Global Assumptions'!$C$15,'Global Assumptions'!$C$16*'Global Assumptions'!$C$15) -> 234 | H26: =IF(A26<'Global Assumptions'!$C$7,A26*$D$10,IF(A26<$F$10,(A26-'Global Assumptions'!$C$7)*$E$10+'Global Assumptions'!$C$7*$D$10,($F$10-'Global Assumptions'!$C$7)*$E$10+'Global Assumptions'!$C$7*$D$10))*$G$10 -> 9,388 | I26: =+'Global Assumptions'!$C$21*$H$4+'Global Assumptions'!$C$22*$H$5 -> 2,393 | J26: =+'Global Assumptions'!$C$23*$H$4+'Global Assumptions'!$C$24*$H$5 -> 1,530 | K26: =IF(A26<$H$7,A26*'Global Assumptions'!$C$25/1000*$H$6*1.08*12,$H$7*'Global Assumptions'!$C$25/1000*$H$6*1.08*12) -> 142 | L26: ='Global Assumptions'!$C$26 -> 281 | M26: 2,275 | N26: 163 | O26: 10 | P26: 0 | Q26: 0
A27: 70,000 | B27: 32.37% | C27: 22,661 | D27: =IF((A27+K27)<'Global Assumptions'!$C$7,((A27+K27)-'Global Assumptions'!$C$9)*'Global Assumptions'!$C$10,(('Global Assumptions'!$C$7-'Global Assumptions'!$C$9)*'Global Assumptions'!$C$10)+IF((A27+K27)<'Global Assumptions'!$C$8,((A27+K27)-'Global Assumptions'!$C$7)*'Global Assumptions'!$C$11,('Global Assumptions'!$C$8-'Global Assumptions'!$C$7)*'Global Assumptions'!$C$11)) -> 2,699 | E27: =IF(A27<'Global Assumptions'!$C$12,A27*'Global Assumptions'!$C$13*$H$3,'Global Assumptions'!$C$12*'Global Assumptions'!$C$13*$H$3) -> 1,015 | F27: =(A27+K27)*'Global Assumptions'!$C$14 -> 1,368 | G27: =IF(A27<'Global Assumptions'!$C$16,A27*'Global Assumptions'!$C$15,'Global Assumptions'!$C$16*'Global Assumptions'!$C$15) -> 252 | H27: =IF(A27<'Global Assumptions'!$C$7,A27*$D$10,IF(A27<$F$10,(A27-'Global Assumptions'!$C$7)*$E$10+'Global Assumptions'!$C$7*$D$10,($F$10-'Global Assumptions'!$C$7)*$E$10+'Global Assumptions'!$C$7*$D$10))*$G$10 -> 10,336 | I27: =+'Global Assumptions'!$C$21*$H$4+'Global Assumptions'!$C$22*$H$5 -> 2,393 | J27: =+'Global Assumptions'!$C$23*$H$4+'Global Assumptions'!$C$24*$H$5 -> 1,530 | K27: =IF(A27<$H$7,A27*'Global Assumptions'!$C$25/1000*$H$6*1.08*12,$H$7*'Global Assumptions'!$C$25/1000*$H$6*1.08*12) -> 152 | L27: ='Global Assumptions'!$C$26 -> 281 | M27: 2,450 | N27: 175 | O27: 11 | P27: 0 | Q27: 0
A28: 75,000 | B28: 31.90% | C28: 23,924 | D28: =IF((A28+K28)<'Global Assumptions'!$C$7,((A28+K28)-'Global Assumptions'!$C$9)*'Global Assumptions'!$C$10,(('Global Assumptions'!$C$7-'Global Assumptions'!$C$9)*'Global Assumptions'!$C$10)+IF((A28+K28)<'Global Assumptions'!$C$8,((A28+K28)-'Global Assumptions'!$C$7)*'Global Assumptions'!$C$11,('Global Assumptions'!$C$8-'Global Assumptions'!$C$7)*'Global Assumptions'!$C$11)) -> 2,699 | E28: =IF(A28<'Global Assumptions'!$C$12,A28*'Global Assumptions'!$C$13*$H$3,'Global Assumptions'!$C$12*'Global Assumptions'!$C$13*$H$3) -> 1,015 | F28: =(A28+K28)*'Global Assumptions'!$C$14 -> 1,466 | G28: =IF(A28<'Global Assumptions'!$C$16,A28*'Global Assumptions'!$C$15,'Global Assumptions'!$C$16*'Global Assumptions'!$C$15) -> 270 | H28: =IF(A28<'Global Assumptions'!$C$7,A28*$D$10,IF(A28<$F$10,(A28-'Global Assumptions'!$C$7)*$E$10+'Global Assumptions'!$C$7*$D$10,($F$10-'Global Assumptions'!$C$7)*$E$10+'Global Assumptions'!$C$7*$D$10))*$G$10 -> 11,284 | I28: =+'Global Assumptions'!$C$21*$H$4+'Global Assumptions'!$C$22*$H$5 -> 2,393 | J28: =+'Global Assumptions'!$C$23*$H$4+'Global Assumptions'!$C$24*$H$5 -> 1,530 | K28: =IF(A28<$H$7,A28*'Global Assumptions'!$C$25/1000*$H$6*1.08*12,$H$7*'Global Assumptions'!$C$25/1000*$H$6*1.08*12) -> 163 | L28: ='Global Assumptions'!$C$26 -> 281 | M28: 2,625 | N28: 188 | O28: 11 | P28: 0 | Q28: 0
A29: 80,000 | B29: 31.48% | C29: 25,187 | D29: =IF((A29+K29)<'Global Assumptions'!$C$7,((A29+K29)-'Global Assumptions'!$C$9)*'Global Assumptions'!$C$10,(('Global Assumptions'!$C$7-'Global Assumptions'!$C$9)*'Global Assumptions'!$C$10)+IF((A29+K29)<'Global Assumptions'!$C$8,((A29+K29)-'Global Assumptions'!$C$7)*'Global Assumptions'!$C$11,('Global Assumptions'!$C$8-'Global Assumptions'!$C$7)*'Global Assumptions'!$C$11)) -> 2,699 | E29: =IF(A29<'Global Assumptions'!$C$12,A29*'Global Assumptions'!$C$13*$H$3,'Global Assumptions'!$C$12*'Global Assumptions'!$C$13*$H$3) -> 1,015 | F29: =(A29+K29)*'Global Assumptions'!$C$14 -> 1,563 | G29: =IF(A29<'Global Assumptions'!$C$16,A29*'Global Assumptions'!$C$15,'Global Assumptions'!$C$16*'Global Assumptions'!$C$15) -> 288 | H29: =IF(A29<'Global Assumptions'!$C$7,A29*$D$10,IF(A29<$F$10,(A29-'Global Assumptions'!$C$7)*$E$10+'Global Assumptions'!$C$7*$D$10,($F$10-'Global Assumptions'!$C$7)*$E$10+'Global Assumptions'!$C$7*$D$10))*$G$10 -> 12,232 | I29: =+'Global Assumptions'!$C$21*$H$4+'Global Assumptions'!$C$22*$H$5 -> 2,393 | J29: =+'Global Assumptions'!$C$23*$H$4+'Global Assumptions'!$C$24*$H$5 -> 1,530 | K29: =IF(A29<$H$7,A29*'Global Assumptions'!$C$25/1000*$H$6*1.08*12,$H$7*'Global Assumptions'!$C$25/1000*$H$6*1.08*12) -> 174 | L29: ='Global Assumptions'!$C$26 -> 281 | M29: 2,800 | N29: 200 | O29: 12 | P29: 0 | Q29: 0
A30: 85,000 | B30: 31.12% | C30: 26,450 | D30: =IF((A30+K30)<'Global Assumptions'!$C$7,((A30+K30)-'Global Assumptions'!$C$9)*'Global Assumptions'!$C$10,(('Global Assumptions'!$C$7-'Global Assumptions'!$C$9)*'Global Assumptions'!$C$10)+IF((A30+K30)<'Global Assumptions'!$C$8,((A30+K30)-'Global Assumptions'!$C$7)*'Global Assumptions'!$C$11,('Global Assumptions'!$C$8-'Global Assumptions'!$C$7)*'Global Assumptions'!$C$11)) -> 2,699 | E30: =IF(A30<'Global Assumptions'!$C$12,A30*'Global Assumptions'!$C$13*$H$3,'Global Assumptions'!$C$12*'Global Assumptions'!$C$13*$H$3) -> 1,015 | F30: =(A30+K30)*'Global Assumptions'!$C$14 -> 1,661 | G30: =IF(A30<'Global Assumptions'!$C$16,A30*'Global Assumptions'!$C$15,'Global Assumptions'!$C$16*'Global Assumptions'!$C$15) -> 306 | H30: =IF(A30<'Global Assumptions'!$C$7,A30*$D$10,IF(A30<$F$10,(A30-'Global Assumptions'!$C$7)*$E$10+'Global Assumptions'!$C$7*$D$10,($F$10-'Global Assumptions'!$C$7)*$E$10+'Global Assumptions'!$C$7*$D$10))*$G$10 -> 13,180 | I30: =+'Global Assumptions'!$C$21*$H$4+'Global Assumptions'!$C$22*$H$5 -> 2,393 | J30: =+'Global Assumptions'!$C$23*$H$4+'Global Assumptions'!$C$24*$H$5 -> 1,530 | K30: =IF(A30<$H$7,A30*'Global Assumptions'!$C$25/1000*$H$6*1.08*12,$H$7*'Global Assumptions'!$C$25/1000*$H$6*1.08*12) -> 185 | L30: ='Global Assumptions'!$C$26 -> 281 | M30: 2,975 | N30: 213 | O30: 13 | P30: 0 | Q30: 0
A31: 90,000 | B31: 30.79% | C31: 27,712 | D31: =IF((A31+K31)<'Global Assumptions'!$C$7,((A31+K31)-'Global Assumptions'!$C$9)*'Global Assumptions'!$C$10,(('Global Assumptions'!$C$7-'Global Assumptions'!$C$9)*'Global Assumptions'!$C$10)+IF((A31+K31)<'Global Assumptions'!$C$8,((A31+K31)-'Global Assumptions'!$C$7)*'Global Assumptions'!$C$11,('Global Assumptions'!$C$8-'Global Assumptions'!$C$7)*'Global Assumptions'!$C$11)) -> 2,699 | E31: =IF(A31<'Global Assumptions'!$C$12,A31*'Global Assumptions'!$C$13*$H$3,'Global Assumptions'!$C$12*'Global Assumptions'!$C$13*$H$3) -> 1,015 | F31: =(A31+K31)*'Global Assumptions'!$C$14 -> 1,759 | G31: =IF(A31<'Global Assumptions'!$C$16,A31*'Global Assumptions'!$C$15,'Global Assumptions'!$C$16*'Global Assumptions'!$C$15) -> 324 | H31: =IF(A31<'Global Assumptions'!$C$7,A31*$D$10,IF(A31<$F$10,(A31-'Global Assumptions'!$C$7)*$E$10+'Global Assumptions'!$C$7*$D$10,($F$10-'Global Assumptions'!$C$7)*$E$10+'Global Assumptions'!$C$7*$D$10))*$G$10 -> 14,128 | I31: =+'Global Assumptions'!$C$21*$H$4+'Global Assumptions'!$C$22*$H$5 -> 2,393 | J31: =+'Global Assumptions'!$C$23*$H$4+'Global Assumptions'!$C$24*$H$5 -> 1,530 | K31: =IF(A31<$H$7,A31*'Global Assumptions'!$C$25/1000*$H$6*1.08*12,$H$7*'Global Assumptions'!$C$25/1000*$H$6*1.08*12) -> 196 | L31: ='Global Assumptions'!$C$26 -> 281 | M31: 3,150 | N31: 225 | O31: 14 | P31: 0 | Q31: 0
A32: 95,000 | B32: 30.48% | C32: 28,958 | D32: =IF((A32+K32)<'Global Assumptions'!$C$7,((A32+K32)-'Global Assumptions'!$C$9)*'Global Assumptions'!$C$10,(('Global Assumptions'!$C$7-'Global Assumptions'!$C$9)*'Global Assumptions'!$C$10)+IF((A32+K32)<'Global Assumptions'!$C$8,((A32+K32)-'Global Assumptions'!$C$7)*'Global Assumptions'!$C$11,('Global Assumptions'!$C$8-'Global Assumptions'!$C$7)*'Global Assumptions'!$C$11)) -> 2,699 | E32: =IF(A32<'Global Assumptions'!$C$12,A32*'Global Assumptions'!$C$13*$H$3,'Global Assumptions'!$C$12*'Global Assumptions'!$C$13*$H$3) -> 1,015 | F32: =(A32+K32)*'Global Assumptions'!$C$14 -> 1,857 | G32: =IF(A32<'Global Assumptions'!$C$16,A32*'Global Assumptions'!$C$15,'Global Assumptions'!$C$16*'Global Assumptions'!$C$15) -> 325 | H32: =IF(A32<'Global Assumptions'!$C$7,A32*$D$10,IF(A32<$F$10,(A32-'Global Assumptions'!$C$7)*$E$10+'Global Assumptions'!$C$7*$D$10,($F$10-'Global Assumptions'!$C$7)*$E$10+'Global Assumptions'!$C$7*$D$10))*$G$10 -> 15,076 | I32: =+'Global Assumptions'!$C$21*$H$4+'Global Assumptions'!$C$22*$H$5 -> 2,393 | J32: =+'Global Assumptions'!$C$23*$H$4+'Global Assumptions'!$C$24*$H$5 -> 1,530 | K32: =IF(A32<$H$7,A32*'Global Assumptions'!$C$25/1000*$H$6*1.08*12,$H$7*'Global Assumptions'!$C$25/1000*$H$6*1.08*12) -> 207 | L32: ='Global Assumptions'!$C$26 -> 281 | M32: 3,325 | N32: 238 | O32: 14 | P32: 0 | Q32: 0
A33: 100,000 | B33: 30.20% | C33: 30,203 | D33: =IF((A33+K33)<'Global Assumptions'!$C$7,((A33+K33)-'Global Assumptions'!$C$9)*'Global Assumptions'!$C$10,(('Global Assumptions'!$C$7-'Global Assumptions'!$C$9)*'Global Assumptions'!$C$10)+IF((A33+K33)<'Global Assumptions'!$C$8,((A33+K33)-'Global Assumptions'!$C$7)*'Global Assumptions'!$C$11,('Global Assumptions'!$C$8-'Global Assumptions'!$C$7)*'Global Assumptions'!$C$11)) -> 2,699 | E33: =IF(A33<'Global Assumptions'!$C$12,A33*'Global Assumptions'!$C$13*$H$3,'Global Assumptions'!$C$12*'Global Assumptions'!$C$13*$H$3) -> 1,015 | F33: =(A33+K33)*'Global Assumptions'!$C$14 -> 1,954 | G33: =IF(A33<'Global Assumptions'!$C$16,A33*'Global Assumptions'!$C$15,'Global Assumptions'!$C$16*'Global Assumptions'!$C$15) -> 325 | H33: =IF(A33<'Global Assumptions'!$C$7,A33*$D$10,IF(A33<$F$10,(A33-'Global Assumptions'!$C$7)*$E$10+'Global Assumptions'!$C$7*$D$10,($F$10-'Global Assumptions'!$C$7)*$E$10+'Global Assumptions'!$C$7*$D$10))*$G$10 -> 16,024 | I33: =+'Global Assumptions'!$C$21*$H$4+'Global Assumptions'!$C$22*$H$5 -> 2,393 | J33: =+'Global Assumptions'!$C$23*$H$4+'Global Assumptions'!$C$24*$H$5 -> 1,530 | K33: =IF(A33<$H$7,A33*'Global Assumptions'!$C$25/1000*$H$6*1.08*12,$H$7*'Global Assumptions'!$C$25/1000*$H$6*1.08*12) -> 218 | L33: ='Global Assumptions'!$C$26 -> 281 | M33: 3,500 | N33: 250 | O33: 15 | P33: 0 | Q33: 0
A34: 105,000 | B34: 29.94% | C34: 31,437 | D34: =IF((A34+K34)<'Global Assumptions'!$C$7,((A34+K34)-'Global Assumptions'!$C$9)*'Global Assumptions'!$C$10,(('Global Assumptions'!$C$7-'Global Assumptions'!$C$9)*'Global Assumptions'!$C$10)+IF((A34+K34)<'Global Assumptions'!$C$8,((A34+K34)-'Global Assumptions'!$C$7)*'Global Assumptions'!$C$11,('Global Assumptions'!$C$8-'Global Assumptions'!$C$7)*'Global Assumptions'!$C$11)) -> 2,699 | E34: =IF(A34<'Global Assumptions'!$C$12,A34*'Global Assumptions'!$C$13*$H$3,'Global Assumptions'!$C$12*'Global Assumptions'!$C$13*$H$3) -> 1,015 | F34: =(A34+K34)*'Global Assumptions'!$C$14 -> 2,052 | G34: =IF(A34<'Global Assumptions'!$C$16,A34*'Global Assumptions'!$C$15,'Global Assumptions'!$C$16*'Global Assumptions'!$C$15) -> 325 | H34: =IF(A34<'Global Assumptions'!$C$7,A34*$D$10,IF(A34<$F$10,(A34-'Global Assumptions'!$C$7)*$E$10+'Global Assumptions'!$C$7*$D$10,($F$10-'Global Assumptions'!$C$7)*$E$10+'Global Assumptions'!$C$7*$D$10))*$G$10 -> 16,972 | I34: =+'Global Assumptions'!$C$21*$H$4+'Global Assumptions'!$C$22*$H$5 -> 2,393 | J34: =+'Global Assumptions'!$C$23*$H$4+'Global Assumptions'!$C$24*$H$5 -> 1,530 | K34: =IF(A34<$H$7,A34*'Global Assumptions'!$C$25/1000*$H$6*1.08*12,$H$7*'Global Assumptions'!$C$25/1000*$H$6*1.08*12) -> 218 | L34: ='Global Assumptions'!$C$26 -> 281 | M34: 3,675 | N34: 263 | O34: 16 | P34: 0 | Q34: 0
A35: 110,000 | B35: 29.70% | C35: 32,670 | D35: =IF((A35+K35)<'Global Assumptions'!$C$7,((A35+K35)-'Global Assumptions'!$C$9)*'Global Assumptions'!$C$10,(('Global Assumptions'!$C$7-'Global Assumptions'!$C$9)*'Global Assumptions'!$C$10)+IF((A35+K35)<'Global Assumptions'!$C$8,((A35+K35)-'Global Assumptions'!$C$7)*'Global Assumptions'!$C$11,('Global Assumptions'!$C$8-'Global Assumptions'!$C$7)*'Global Assumptions'!$C$11)) -> 2,699 | E35: =IF(A35<'Global Assumptions'!$C$12,A35*'Global Assumptions'!$C$13*$H$3,'Global Assumptions'!$C$12*'Global Assumptions'!$C$13*$H$3) -> 1,015 | F35: =(A35+K35)*'Global Assumptions'!$C$14 -> 2,149 | G35: =IF(A35<'Global Assumptions'!$C$16,A35*'Global Assumptions'!$C$15,'Global Assumptions'!$C$16*'Global Assumptions'!$C$15) -> 325 | H35: =IF(A35<'Global Assumptions'!$C$7,A35*$D$10,IF(A35<$F$10,(A35-'Global Assumptions'!$C$7)*$E$10+'Global Assumptions'!$C$7*$D$10,($F$10-'Global Assumptions'!$C$7)*$E$10+'Global Assumptions'!$C$7*$D$10))*$G$10 -> 17,919 | I35: =+'Global Assumptions'!$C$21*$H$4+'Global Assumptions'!$C$22*$H$5 -> 2,393 | J35: =+'Global Assumptions'!$C$23*$H$4+'Global Assumptions'!$C$24*$H$5 -> 1,530 | K35: =IF(A35<$H$7,A35*'Global Assumptions'!$C$25/1000*$H$6*1.08*12,$H$7*'Global Assumptions'!$C$25/1000*$H$6*1.08*12) -> 218 | L35: ='Global Assumptions'!$C$26 -> 281 | M35: 3,850 | N35: 275 | O35: 17 | P35: 0 | Q35: 0
A36: 115,000 | B36: 29.48% | C36: 33,904 | D36: =IF((A36+K36)<'Global Assumptions'!$C$7,((A36+K36)-'Global Assumptions'!$C$9)*'Global Assumptions'!$C$10,(('Global Assumptions'!$C$7-'Global Assumptions'!$C$9)*'Global Assumptions'!$C$10)+IF((A36+K36)<'Global Assumptions'!$C$8,((A36+K36)-'Global Assumptions'!$C$7)*'Global Assumptions'!$C$11,('Global Assumptions'!$C$8-'Global Assumptions'!$C$7)*'Global Assumptions'!$C$11)) -> 2,699 | E36: =IF(A36<'Global Assumptions'!$C$12,A36*'Global Assumptions'!$C$13*$H$3,'Global Assumptions'!$C$12*'Global Assumptions'!$C$13*$H$3) -> 1,015 | F36: =(A36+K36)*'Global Assumptions'!$C$14 -> 2,247 | G36: =IF(A36<'Global Assumptions'!$C$16,A36*'Global Assumptions'!$C$15,'Global Assumptions'!$C$16*'Global Assumptions'!$C$15) -> 325 | H36: =IF(A36<'Global Assumptions'!$C$7,A36*$D$10,IF(A36<$F$10,(A36-'Global Assumptions'!$C$7)*$E$10+'Global Assumptions'!$C$7*$D$10,($F$10-'Global Assumptions'!$C$7)*$E$10+'Global Assumptions'!$C$7*$D$10))*$G$10 -> 18,867 | I36: =+'Global Assumptions'!$C$21*$H$4+'Global Assumptions'!$C$22*$H$5 -> 2,393 | J36: =+'Global Assumptions'!$C$23*$H$4+'Global Assumptions'!$C$24*$H$5 -> 1,530 | K36: =IF(A36<$H$7,A36*'Global Assumptions'!$C$25/1000*$H$6*1.08*12,$H$7*'Global Assumptions'!$C$25/1000*$H$6*1.08*12) -> 218 | L36: ='Global Assumptions'!$C$26 -> 281 | M36: 4,025 | N36: 288 | O36: 17 | P36: 0 | Q36: 0
A37: 120,000 | B37: 29.28% | C37: 35,138 | D37: =IF((A37+K37)<'Global Assumptions'!$C$7,((A37+K37)-'Global Assumptions'!$C$9)*'Global Assumptions'!$C$10,(('Global Assumptions'!$C$7-'Global Assumptions'!$C$9)*'Global Assumptions'!$C$10)+IF((A37+K37)<'Global Assumptions'!$C$8,((A37+K37)-'Global Assumptions'!$C$7)*'Global Assumptions'!$C$11,('Global Assumptions'!$C$8-'Global Assumptions'!$C$7)*'Global Assumptions'!$C$11)) -> 2,699 | E37: =IF(A37<'Global Assumptions'!$C$12,A37*'Global Assumptions'!$C$13*$H$3,'Global Assumptions'!$C$12*'Global Assumptions'!$C$13*$H$3) -> 1,015 | F37: =(A37+K37)*'Global Assumptions'!$C$14 -> 2,344 | G37: =IF(A37<'Global Assumptions'!$C$16,A37*'Global Assumptions'!$C$15,'Global Assumptions'!$C$16*'Global Assumptions'!$C$15) -> 325 | H37: =IF(A37<'Global Assumptions'!$C$7,A37*$D$10,IF(A37<$F$10,(A37-'Global Assumptions'!$C$7)*$E$10+'Global Assumptions'!$C$7*$D$10,($F$10-'Global Assumptions'!$C$7)*$E$10+'Global Assumptions'!$C$7*$D$10))*$G$10 -> 19,815 | I37: =+'Global Assumptions'!$C$21*$H$4+'Global Assumptions'!$C$22*$H$5 -> 2,393 | J37: =+'Global Assumptions'!$C$23*$H$4+'Global Assumptions'!$C$24*$H$5 -> 1,530 | K37: =IF(A37<$H$7,A37*'Global Assumptions'!$C$25/1000*$H$6*1.08*12,$H$7*'Global Assumptions'!$C$25/1000*$H$6*1.08*12) -> 218 | L37: ='Global Assumptions'!$C$26 -> 281 | M37: =+$A37*M$10 -> 4,200 | N37: 300 | O37: 18 | P37: 0 | Q37: 0
A38: 125,000 | B38: 29.10% | C38: 36,371 | D38: =IF((A38+K38)<'Global Assumptions'!$C$7,((A38+K38)-'Global Assumptions'!$C$9)*'Global Assumptions'!$C$10,(('Global Assumptions'!$C$7-'Global Assumptions'!$C$9)*'Global Assumptions'!$C$10)+IF((A38+K38)<'Global Assumptions'!$C$8,((A38+K38)-'Global Assumptions'!$C$7)*'Global Assumptions'!$C$11,('Global Assumptions'!$C$8-'Global Assumptions'!$C$7)*'Global Assumptions'!$C$11)) -> 2,699 | E38: =IF(A38<'Global Assumptions'!$C$12,A38*'Global Assumptions'!$C$13*$H$3,'Global Assumptions'!$C$12*'Global Assumptions'!$C$13*$H$3) -> 1,015 | F38: =(A38+K38)*'Global Assumptions'!$C$14 -> 2,442 | G38: =IF(A38<'Global Assumptions'!$C$16,A38*'Global Assumptions'!$C$15,'Global Assumptions'!$C$16*'Global Assumptions'!$C$15) -> 325 | H38: =IF(A38<'Global Assumptions'!$C$7,A38*$D$10,IF(A38<$F$10,(A38-'Global Assumptions'!$C$7)*$E$10+'Global Assumptions'!$C$7*$D$10,($F$10-'Global Assumptions'!$C$7)*$E$10+'Global Assumptions'!$C$7*$D$10))*$G$10 -> 20,763 | I38: =+'Global Assumptions'!$C$21*$H$4+'Global Assumptions'!$C$22*$H$5 -> 2,393 | J38: =+'Global Assumptions'!$C$23*$H$4+'Global Assumptions'!$C$24*$H$5 -> 1,530 | K38: =IF(A38<$H$7,A38*'Global Assumptions'!$C$25/1000*$H$6*1.08*12,$H$7*'Global Assumptions'!$C$25/1000*$H$6*1.08*12) -> 218 | L38: ='Global Assumptions'!$C$26 -> 281 | M38: 4,375 | N38: 313 | O38: 19 | P38: 0 | Q38: 0
A39: 130,000 | B39: 28.93% | C39: 37,605 | D39: =IF((A39+K39)<'Global Assumptions'!$C$7,((A39+K39)-'Global Assumptions'!$C$9)*'Global Assumptions'!$C$10,(('Global Assumptions'!$C$7-'Global Assumptions'!$C$9)*'Global Assumptions'!$C$10)+IF((A39+K39)<'Global Assumptions'!$C$8,((A39+K39)-'Global Assumptions'!$C$7)*'Global Assumptions'!$C$11,('Global Assumptions'!$C$8-'Global Assumptions'!$C$7)*'Global Assumptions'!$C$11)) -> 2,699 | E39: =IF(A39<'Global Assumptions'!$C$12,A39*'Global Assumptions'!$C$13*$H$3,'Global Assumptions'!$C$12*'Global Assumptions'!$C$13*$H$3) -> 1,015 | F39: =(A39+K39)*'Global Assumptions'!$C$14 -> 2,539 | G39: =IF(A39<'Global Assumptions'!$C$16,A39*'Global Assumptions'!$C$15,'Global Assumptions'!$C$16*'Global Assumptions'!$C$15) -> 325 | H39: =IF(A39<'Global Assumptions'!$C$7,A39*$D$10,IF(A39<$F$10,(A39-'Global Assumptions'!$C$7)*$E$10+'Global Assumptions'!$C$7*$D$10,($F$10-'Global Assumptions'!$C$7)*$E$10+'Global Assumptions'!$C$7*$D$10))*$G$10 -> 21,711 | I39: =+'Global Assumptions'!$C$21*$H$4+'Global Assumptions'!$C$22*$H$5 -> 2,393 | J39: =+'Global Assumptions'!$C$23*$H$4+'Global Assumptions'!$C$24*$H$5 -> 1,530 | K39: =IF(A39<$H$7,A39*'Global Assumptions'!$C$25/1000*$H$6*1.08*12,$H$7*'Global Assumptions'!$C$25/1000*$H$6*1.08*12) -> 218 | L39: ='Global Assumptions'!$C$26 -> 281 | M39: 4,550 | N39: 325 | O39: 20 | P39: 0 | Q39: 0
A40: 135,000 | B40: 28.77% | C40: 38,839 | D40: =IF((A40+K40)<'Global Assumptions'!$C$7,((A40+K40)-'Global Assumptions'!$C$9)*'Global Assumptions'!$C$10,(('Global Assumptions'!$C$7-'Global Assumptions'!$C$9)*'Global Assumptions'!$C$10)+IF((A40+K40)<'Global Assumptions'!$C$8,((A40+K40)-'Global Assumptions'!$C$7)*'Global Assumptions'!$C$11,('Global Assumptions'!$C$8-'Global Assumptions'!$C$7)*'Global Assumptions'!$C$11)) -> 2,699 | E40: =IF(A40<'Global Assumptions'!$C$12,A40*'Global Assumptions'!$C$13*$H$3,'Global Assumptions'!$C$12*'Global Assumptions'!$C$13*$H$3) -> 1,015 | F40: =(A40+K40)*'Global Assumptions'!$C$14 -> 2,637 | G40: =IF(A40<'Global Assumptions'!$C$16,A40*'Global Assumptions'!$C$15,'Global Assumptions'!$C$16*'Global Assumptions'!$C$15) -> 325 | H40: =IF(A40<'Global Assumptions'!$C$7,A40*$D$10,IF(A40<$F$10,(A40-'Global Assumptions'!$C$7)*$E$10+'Global Assumptions'!$C$7*$D$10,($F$10-'Global Assumptions'!$C$7)*$E$10+'Global Assumptions'!$C$7*$D$10))*$G$10 -> 22,659 | I40: =+'Global Assumptions'!$C$21*$H$4+'Global Assumptions'!$C$22*$H$5 -> 2,393 | J40: =+'Global Assumptions'!$C$23*$H$4+'Global Assumptions'!$C$24*$H$5 -> 1,530 | K40: =IF(A40<$H$7,A40*'Global Assumptions'!$C$25/1000*$H$6*1.08*12,$H$7*'Global Assumptions'!$C$25/1000*$H$6*1.08*12) -> 218 | L40: ='Global Assumptions'!$C$26 -> 281 | M40: 4,725 | N40: 338 | O40: 20 | P40: 0 | Q40: 0
A41: 140,000 | B41: 28.62% | C41: 40,072 | D41: =IF((A41+K41)<'Global Assumptions'!$C$7,((A41+K41)-'Global Assumptions'!$C$9)*'Global Assumptions'!$C$10,(('Global Assumptions'!$C$7-'Global Assumptions'!$C$9)*'Global Assumptions'!$C$10)+IF((A41+K41)<'Global Assumptions'!$C$8,((A41+K41)-'Global Assumptions'!$C$7)*'Global Assumptions'!$C$11,('Global Assumptions'!$C$8-'Global Assumptions'!$C$7)*'Global Assumptions'!$C$11)) -> 2,699 | E41: =IF(A41<'Global Assumptions'!$C$12,A41*'Global Assumptions'!$C$13*$H$3,'Global Assumptions'!$C$12*'Global Assumptions'!$C$13*$H$3) -> 1,015 | F41: =(A41+K41)*'Global Assumptions'!$C$14 -> 2,734 | G41: =IF(A41<'Global Assumptions'!$C$16,A41*'Global Assumptions'!$C$15,'Global Assumptions'!$C$16*'Global Assumptions'!$C$15) -> 325 | H41: =IF(A41<'Global Assumptions'!$C$7,A41*$D$10,IF(A41<$F$10,(A41-'Global Assumptions'!$C$7)*$E$10+'Global Assumptions'!$C$7*$D$10,($F$10-'Global Assumptions'!$C$7)*$E$10+'Global Assumptions'!$C$7*$D$10))*$G$10 -> 23,607 | I41: =+'Global Assumptions'!$C$21*$H$4+'Global Assumptions'!$C$22*$H$5 -> 2,393 | J41: =+'Global Assumptions'!$C$23*$H$4+'Global Assumptions'!$C$24*$H$5 -> 1,530 | K41: =IF(A41<$H$7,A41*'Global Assumptions'!$C$25/1000*$H$6*1.08*12,$H$7*'Global Assumptions'!$C$25/1000*$H$6*1.08*12) -> 218 | L41: ='Global Assumptions'!$C$26 -> 281 | M41: 4,900 | N41: 350 | O41: 21 | P41: 0 | Q41: 0
A42: 145,000 | B42: 28.49% | C42: 41,306 | D42: =IF((A42+K42)<'Global Assumptions'!$C$7,((A42+K42)-'Global Assumptions'!$C$9)*'Global Assumptions'!$C$10,(('Global Assumptions'!$C$7-'Global Assumptions'!$C$9)*'Global Assumptions'!$C$10)+IF((A42+K42)<'Global Assumptions'!$C$8,((A42+K42)-'Global Assumptions'!$C$7)*'Global Assumptions'!$C$11,('Global Assumptions'!$C$8-'Global Assumptions'!$C$7)*'Global Assumptions'!$C$11)) -> 2,699 | E42: =IF(A42<'Global Assumptions'!$C$12,A42*'Global Assumptions'!$C$13*$H$3,'Global Assumptions'!$C$12*'Global Assumptions'!$C$13*$H$3) -> 1,015 | F42: =(A42+K42)*'Global Assumptions'!$C$14 -> 2,832 | G42: =IF(A42<'Global Assumptions'!$C$16,A42*'Global Assumptions'!$C$15,'Global Assumptions'!$C$16*'Global Assumptions'!$C$15) -> 325 | H42: =IF(A42<'Global Assumptions'!$C$7,A42*$D$10,IF(A42<$F$10,(A42-'Global Assumptions'!$C$7)*$E$10+'Global Assumptions'!$C$7*$D$10,($F$10-'Global Assumptions'!$C$7)*$E$10+'Global Assumptions'!$C$7*$D$10))*$G$10 -> 24,555 | I42: =+'Global Assumptions'!$C$21*$H$4+'Global Assumptions'!$C$22*$H$5 -> 2,393 | J42: =+'Global Assumptions'!$C$23*$H$4+'Global Assumptions'!$C$24*$H$5 -> 1,530 | K42: =IF(A42<$H$7,A42*'Global Assumptions'!$C$25/1000*$H$6*1.08*12,$H$7*'Global Assumptions'!$C$25/1000*$H$6*1.08*12) -> 218 | L42: ='Global Assumptions'!$C$26 -> 281 | M42: 5,075 | N42: 363 | O42: 22 | P42: 0 | Q42: 0
A43: 150,000 | B43: 28.36% | C43: 42,540 | D43: =IF((A43+K43)<'Global Assumptions'!$C$7,((A43+K43)-'Global Assumptions'!$C$9)*'Global Assumptions'!$C$10,(('Global Assumptions'!$C$7-'Global Assumptions'!$C$9)*'Global Assumptions'!$C$10)+IF((A43+K43)<'Global Assumptions'!$C$8,((A43+K43)-'Global Assumptions'!$C$7)*'Global Assumptions'!$C$11,('Global Assumptions'!$C$8-'Global Assumptions'!$C$7)*'Global Assumptions'!$C$11)) -> 2,699 | E43: =IF(A43<'Global Assumptions'!$C$12,A43*'Global Assumptions'!$C$13*$H$3,'Global Assumptions'!$C$12*'Global Assumptions'!$C$13*$H$3) -> 1,015 | F43: =(A43+K43)*'Global Assumptions'!$C$14 -> 2,929 | G43: =IF(A43<'Global Assumptions'!$C$16,A43*'Global Assumptions'!$C$15,'Global Assumptions'!$C$16*'Global Assumptions'!$C$15) -> 325 | H43: =IF(A43<'Global Assumptions'!$C$7,A43*$D$10,IF(A43<$F$10,(A43-'Global Assumptions'!$C$7)*$E$10+'Global Assumptions'!$C$7*$D$10,($F$10-'Global Assumptions'!$C$7)*$E$10+'Global Assumptions'!$C$7*$D$10))*$G$10 -> 25,503 | I43: =+'Global Assumptions'!$C$21*$H$4+'Global Assumptions'!$C$22*$H$5 -> 2,393 | J43: =+'Global Assumptions'!$C$23*$H$4+'Global Assumptions'!$C$24*$H$5 -> 1,530 | K43: =IF(A43<$H$7,A43*'Global Assumptions'!$C$25/1000*$H$6*1.08*12,$H$7*'Global Assumptions'!$C$25/1000*$H$6*1.08*12) -> 218 | L43: ='Global Assumptions'!$C$26 -> 281 | M43: 5,250 | N43: 375 | O43: 23 | P43: 0 | Q43: 0
A44: 155,000 | B44: 28.24% | C44: 43,773 | D44: =IF((A44+K44)<'Global Assumptions'!$C$7,((A44+K44)-'Global Assumptions'!$C$9)*'Global Assumptions'!$C$10,(('Global Assumptions'!$C$7-'Global Assumptions'!$C$9)*'Global Assumptions'!$C$10)+IF((A44+K44)<'Global Assumptions'!$C$8,((A44+K44)-'Global Assumptions'!$C$7)*'Global Assumptions'!$C$11,('Global Assumptions'!$C$8-'Global Assumptions'!$C$7)*'Global Assumptions'!$C$11)) -> 2,699 | E44: =IF(A44<'Global Assumptions'!$C$12,A44*'Global Assumptions'!$C$13*$H$3,'Global Assumptions'!$C$12*'Global Assumptions'!$C$13*$H$3) -> 1,015 | F44: =(A44+K44)*'Global Assumptions'!$C$14 -> 3,027 | G44: =IF(A44<'Global Assumptions'!$C$16,A44*'Global Assumptions'!$C$15,'Global Assumptions'!$C$16*'Global Assumptions'!$C$15) -> 325 | H44: =IF(A44<'Global Assumptions'!$C$7,A44*$D$10,IF(A44<$F$10,(A44-'Global Assumptions'!$C$7)*$E$10+'Global Assumptions'!$C$7*$D$10,($F$10-'Global Assumptions'!$C$7)*$E$10+'Global Assumptions'!$C$7*$D$10))*$G$10 -> 26,451 | I44: =+'Global Assumptions'!$C$21*$H$4+'Global Assumptions'!$C$22*$H$5 -> 2,393 | J44: =+'Global Assumptions'!$C$23*$H$4+'Global Assumptions'!$C$24*$H$5 -> 1,530 | K44: =IF(A44<$H$7,A44*'Global Assumptions'!$C$25/1000*$H$6*1.08*12,$H$7*'Global Assumptions'!$C$25/1000*$H$6*1.08*12) -> 218 | L44: ='Global Assumptions'!$C$26 -> 281 | M44: 5,425 | N44: 388 | O44: 23 | P44: 0 | Q44: 0
A45: 160,000 | B45: 28.13% | C45: 45,007 | D45: =IF((A45+K45)<'Global Assumptions'!$C$7,((A45+K45)-'Global Assumptions'!$C$9)*'Global Assumptions'!$C$10,(('Global Assumptions'!$C$7-'Global Assumptions'!$C$9)*'Global Assumptions'!$C$10)+IF((A45+K45)<'Global Assumptions'!$C$8,((A45+K45)-'Global Assumptions'!$C$7)*'Global Assumptions'!$C$11,('Global Assumptions'!$C$8-'Global Assumptions'!$C$7)*'Global Assumptions'!$C$11)) -> 2,699 | E45: =IF(A45<'Global Assumptions'!$C$12,A45*'Global Assumptions'!$C$13*$H$3,'Global Assumptions'!$C$12*'Global Assumptions'!$C$13*$H$3) -> 1,015 | F45: =(A45+K45)*'Global Assumptions'!$C$14 -> 3,124 | G45: =IF(A45<'Global Assumptions'!$C$16,A45*'Global Assumptions'!$C$15,'Global Assumptions'!$C$16*'Global Assumptions'!$C$15) -> 325 | H45: =IF(A45<'Global Assumptions'!$C$7,A45*$D$10,IF(A45<$F$10,(A45-'Global Assumptions'!$C$7)*$E$10+'Global Assumptions'!$C$7*$D$10,($F$10-'Global Assumptions'!$C$7)*$E$10+'Global Assumptions'!$C$7*$D$10))*$G$10 -> 27,399 | I45: =+'Global Assumptions'!$C$21*$H$4+'Global Assumptions'!$C$22*$H$5 -> 2,393 | J45: =+'Global Assumptions'!$C$23*$H$4+'Global Assumptions'!$C$24*$H$5 -> 1,530 | K45: =IF(A45<$H$7,A45*'Global Assumptions'!$C$25/1000*$H$6*1.08*12,$H$7*'Global Assumptions'!$C$25/1000*$H$6*1.08*12) -> 218 | L45: ='Global Assumptions'!$C$26 -> 281 | M45: 5,600 | N45: 400 | O45: 24 | P45: 0 | Q45: 0
A46: 165,000 | B46: 27.91% | C46: 46,050 | D46: =IF((A46+K46)<'Global Assumptions'!$C$7,((A46+K46)-'Global Assumptions'!$C$9)*'Global Assumptions'!$C$10,(('Global Assumptions'!$C$7-'Global Assumptions'!$C$9)*'Global Assumptions'!$C$10)+IF((A46+K46)<'Global Assumptions'!$C$8,((A46+K46)-'Global Assumptions'!$C$7)*'Global Assumptions'!$C$11,('Global Assumptions'!$C$8-'Global Assumptions'!$C$7)*'Global Assumptions'!$C$11)) -> 2,699 | E46: =IF(A46<'Global Assumptions'!$C$12,A46*'Global Assumptions'!$C$13*$H$3,'Global Assumptions'!$C$12*'Global Assumptions'!$C$13*$H$3) -> 1,015 | F46: =(A46+K46)*'Global Assumptions'!$C$14 -> 3,222 | G46: =IF(A46<'Global Assumptions'!$C$16,A46*'Global Assumptions'!$C$15,'Global Assumptions'!$C$16*'Global Assumptions'!$C$15) -> 325 | H46: =IF(A46<'Global Assumptions'!$C$7,A46*$D$10,IF(A46<$F$10,(A46-'Global Assumptions'!$C$7)*$E$10+'Global Assumptions'!$C$7*$D$10,($F$10-'Global Assumptions'!$C$7)*$E$10+'Global Assumptions'!$C$7*$D$10))*$G$10 -> 28,155 | I46: =+'Global Assumptions'!$C$21*$H$4+'Global Assumptions'!$C$22*$H$5 -> 2,393 | J46: =+'Global Assumptions'!$C$23*$H$4+'Global Assumptions'!$C$24*$H$5 -> 1,530 | K46: =IF(A46<$H$7,A46*'Global Assumptions'!$C$25/1000*$H$6*1.08*12,$H$7*'Global Assumptions'!$C$25/1000*$H$6*1.08*12) -> 218 | L46: ='Global Assumptions'!$C$26 -> 281 | M46: 5,775 | N46: 413 | O46: 25 | P46: 0 | Q46: 0
A47: 170,000 | B47: 27.26% | C47: 46,335 | D47: =IF((A47+K47)<'Global Assumptions'!$C$7,((A47+K47)-'Global Assumptions'!$C$9)*'Global Assumptions'!$C$10,(('Global Assumptions'!$C$7-'Global Assumptions'!$C$9)*'Global Assumptions'!$C$10)+IF((A47+K47)<'Global Assumptions'!$C$8,((A47+K47)-'Global Assumptions'!$C$7)*'Global Assumptions'!$C$11,('Global Assumptions'!$C$8-'Global Assumptions'!$C$7)*'Global Assumptions'!$C$11)) -> 2,699 | E47: =IF(A47<'Global Assumptions'!$C$12,A47*'Global Assumptions'!$C$13*$H$3,'Global Assumptions'!$C$12*'Global Assumptions'!$C$13*$H$3) -> 1,015 | F47: =(A47+K47)*'Global Assumptions'!$C$14 -> 3,319 | G47: =IF(A47<'Global Assumptions'!$C$16,A47*'Global Assumptions'!$C$15,'Global Assumptions'!$C$16*'Global Assumptions'!$C$15) -> 325 | H47: =IF(A47<'Global Assumptions'!$C$7,A47*$D$10,IF(A47<$F$10,(A47-'Global Assumptions'!$C$7)*$E$10+'Global Assumptions'!$C$7*$D$10,($F$10-'Global Assumptions'!$C$7)*$E$10+'Global Assumptions'!$C$7*$D$10))*$G$10 -> 28,155 | I47: =+'Global Assumptions'!$C$21*$H$4+'Global Assumptions'!$C$22*$H$5 -> 2,393 | J47: =+'Global Assumptions'!$C$23*$H$4+'Global Assumptions'!$C$24*$H$5 -> 1,530 | K47: =IF(A47<$H$7,A47*'Global Assumptions'!$C$25/1000*$H$6*1.08*12,$H$7*'Global Assumptions'!$C$25/1000*$H$6*1.08*12) -> 218 | L47: ='Global Assumptions'!$C$26 -> 281 | M47: 5,950 | N47: 425 | O47: 26 | P47: 0 | Q47: 0
A48: 175,000 | B48: 26.64% | C48: 46,621 | D48: =IF((A48+K48)<'Global Assumptions'!$C$7,((A48+K48)-'Global Assumptions'!$C$9)*'Global Assumptions'!$C$10,(('Global Assumptions'!$C$7-'Global Assumptions'!$C$9)*'Global Assumptions'!$C$10)+IF((A48+K48)<'Global Assumptions'!$C$8,((A48+K48)-'Global Assumptions'!$C$7)*'Global Assumptions'!$C$11,('Global Assumptions'!$C$8-'Global Assumptions'!$C$7)*'Global Assumptions'!$C$11)) -> 2,699 | E48: =IF(A48<'Global Assumptions'!$C$12,A48*'Global Assumptions'!$C$13*$H$3,'Global Assumptions'!$C$12*'Global Assumptions'!$C$13*$H$3) -> 1,015 | F48: =(A48+K48)*'Global Assumptions'!$C$14 -> 3,417 | G48: =IF(A48<'Global Assumptions'!$C$16,A48*'Global Assumptions'!$C$15,'Global Assumptions'!$C$16*'Global Assumptions'!$C$15) -> 325 | H48: =IF(A48<'Global Assumptions'!$C$7,A48*$D$10,IF(A48<$F$10,(A48-'Global Assumptions'!$C$7)*$E$10+'Global Assumptions'!$C$7*$D$10,($F$10-'Global Assumptions'!$C$7)*$E$10+'Global Assumptions'!$C$7*$D$10))*$G$10 -> 28,155 | I48: =+'Global Assumptions'!$C$21*$H$4+'Global Assumptions'!$C$22*$H$5 -> 2,393 | J48: =+'Global Assumptions'!$C$23*$H$4+'Global Assumptions'!$C$24*$H$5 -> 1,530 | K48: =IF(A48<$H$7,A48*'Global Assumptions'!$C$25/1000*$H$6*1.08*12,$H$7*'Global Assumptions'!$C$25/1000*$H$6*1.08*12) -> 218 | L48: ='Global Assumptions'!$C$26 -> 281 | M48: 6,125 | N48: 438 | O48: 26 | P48: 0 | Q48: 0
A49: 180,000 | B49: 26.06% | C49: 46,907 | D49: =IF((A49+K49)<'Global Assumptions'!$C$7,((A49+K49)-'Global Assumptions'!$C$9)*'Global Assumptions'!$C$10,(('Global Assumptions'!$C$7-'Global Assumptions'!$C$9)*'Global Assumptions'!$C$10)+IF((A49+K49)<'Global Assumptions'!$C$8,((A49+K49)-'Global Assumptions'!$C$7)*'Global Assumptions'!$C$11,('Global Assumptions'!$C$8-'Global Assumptions'!$C$7)*'Global Assumptions'!$C$11)) -> 2,699 | E49: =IF(A49<'Global Assumptions'!$C$12,A49*'Global Assumptions'!$C$13*$H$3,'Global Assumptions'!$C$12*'Global Assumptions'!$C$13*$H$3) -> 1,015 | F49: =(A49+K49)*'Global Assumptions'!$C$14 -> 3,514 | G49: =IF(A49<'Global Assumptions'!$C$16,A49*'Global Assumptions'!$C$15,'Global Assumptions'!$C$16*'Global Assumptions'!$C$15) -> 325 | H49: =IF(A49<'Global Assumptions'!$C$7,A49*$D$10,IF(A49<$F$10,(A49-'Global Assumptions'!$C$7)*$E$10+'Global Assumptions'!$C$7*$D$10,($F$10-'Global Assumptions'!$C$7)*$E$10+'Global Assumptions'!$C$7*$D$10))*$G$10 -> 28,155 | I49: =+'Global Assumptions'!$C$21*$H$4+'Global Assumptions'!$C$22*$H$5 -> 2,393 | J49: =+'Global Assumptions'!$C$23*$H$4+'Global Assumptions'!$C$24*$H$5 -> 1,530 | K49: =IF(A49<$H$7,A49*'Global Assumptions'!$C$25/1000*$H$6*1.08*12,$H$7*'Global Assumptions'!$C$25/1000*$H$6*1.08*12) -> 218 | L49: ='Global Assumptions'!$C$26 -> 281 | M49: 6,300 | N49: 450 | O49: 27 | P49: 0 | Q49: 0
A50: 185,000 | B50: 25.51% | C50: 47,193 | D50: =IF((A50+K50)<'Global Assumptions'!$C$7,((A50+K50)-'Global Assumptions'!$C$9)*'Global Assumptions'!$C$10,(('Global Assumptions'!$C$7-'Global Assumptions'!$C$9)*'Global Assumptions'!$C$10)+IF((A50+K50)<'Global Assumptions'!$C$8,((A50+K50)-'Global Assumptions'!$C$7)*'Global Assumptions'!$C$11,('Global Assumptions'!$C$8-'Global Assumptions'!$C$7)*'Global Assumptions'!$C$11)) -> 2,699 | E50: =IF(A50<'Global Assumptions'!$C$12,A50*'Global Assumptions'!$C$13*$H$3,'Global Assumptions'!$C$12*'Global Assumptions'!$C$13*$H$3) -> 1,015 | F50: =(A50+K50)*'Global Assumptions'!$C$14 -> 3,612 | G50: =IF(A50<'Global Assumptions'!$C$16,A50*'Global Assumptions'!$C$15,'Global Assumptions'!$C$16*'Global Assumptions'!$C$15) -> 325 | H50: =IF(A50<'Global Assumptions'!$C$7,A50*$D$10,IF(A50<$F$10,(A50-'Global Assumptions'!$C$7)*$E$10+'Global Assumptions'!$C$7*$D$10,($F$10-'Global Assumptions'!$C$7)*$E$10+'Global Assumptions'!$C$7*$D$10))*$G$10 -> 28,155 | I50: =+'Global Assumptions'!$C$21*$H$4+'Global Assumptions'!$C$22*$H$5 -> 2,393 | J50: =+'Global Assumptions'!$C$23*$H$4+'Global Assumptions'!$C$24*$H$5 -> 1,530 | K50: =IF(A50<$H$7,A50*'Global Assumptions'!$C$25/1000*$H$6*1.08*12,$H$7*'Global Assumptions'!$C$25/1000*$H$6*1.08*12) -> 218 | L50: ='Global Assumptions'!$C$26 -> 281 | M50: 6,475 | N50: 463 | O50: 28 | P50: 0 | Q50: 0
A51: 190,000 | B51: 24.99% | C51: 47,478 | D51: =IF((A51+K51)<'Global Assumptions'!$C$7,((A51+K51)-'Global Assumptions'!$C$9)*'Global Assumptions'!$C$10,(('Global Assumptions'!$C$7-'Global Assumptions'!$C$9)*'Global Assumptions'!$C$10)+IF((A51+K51)<'Global Assumptions'!$C$8,((A51+K51)-'Global Assumptions'!$C$7)*'Global Assumptions'!$C$11,('Global Assumptions'!$C$8-'Global Assumptions'!$C$7)*'Global Assumptions'!$C$11)) -> 2,699 | E51: =IF(A51<'Global Assumptions'!$C$12,A51*'Global Assumptions'!$C$13*$H$3,'Global Assumptions'!$C$12*'Global Assumptions'!$C$13*$H$3) -> 1,015 | F51: =(A51+K51)*'Global Assumptions'!$C$14 -> 3,709 | G51: =IF(A51<'Global Assumptions'!$C$16,A51*'Global Assumptions'!$C$15,'Global Assumptions'!$C$16*'Global Assumptions'!$C$15) -> 325 | H51: =IF(A51<'Global Assumptions'!$C$7,A51*$D$10,IF(A51<$F$10,(A51-'Global Assumptions'!$C$7)*$E$10+'Global Assumptions'!$C$7*$D$10,($F$10-'Global Assumptions'!$C$7)*$E$10+'Global Assumptions'!$C$7*$D$10))*$G$10 -> 28,155 | I51: =+'Global Assumptions'!$C$21*$H$4+'Global Assumptions'!$C$22*$H$5 -> 2,393 | J51: =+'Global Assumptions'!$C$23*$H$4+'Global Assumptions'!$C$24*$H$5 -> 1,530 | K51: =IF(A51<$H$7,A51*'Global Assumptions'!$C$25/1000*$H$6*1.08*12,$H$7*'Global Assumptions'!$C$25/1000*$H$6*1.08*12) -> 218 | L51: ='Global Assumptions'!$C$26 -> 281 | M51: 6,650 | N51: 475 | O51: 29 | P51: 0 | Q51: 0
A52: 195,000 | B52: 24.49% | C52: 47,764 | D52: =IF((A52+K52)<'Global Assumptions'!$C$7,((A52+K52)-'Global Assumptions'!$C$9)*'Global Assumptions'!$C$10,(('Global Assumptions'!$C$7-'Global Assumptions'!$C$9)*'Global Assumptions'!$C$10)+IF((A52+K52)<'Global Assumptions'!$C$8,((A52+K52)-'Global Assumptions'!$C$7)*'Global Assumptions'!$C$11,('Global Assumptions'!$C$8-'Global Assumptions'!$C$7)*'Global Assumptions'!$C$11)) -> 2,699 | E52: =IF(A52<'Global Assumptions'!$C$12,A52*'Global Assumptions'!$C$13*$H$3,'Global Assumptions'!$C$12*'Global Assumptions'!$C$13*$H$3) -> 1,015 | F52: =(A52+K52)*'Global Assumptions'!$C$14 -> 3,807 | G52: =IF(A52<'Global Assumptions'!$C$16,A52*'Global Assumptions'!$C$15,'Global Assumptions'!$C$16*'Global Assumptions'!$C$15) -> 325 | H52: =IF(A52<'Global Assumptions'!$C$7,A52*$D$10,IF(A52<$F$10,(A52-'Global Assumptions'!$C$7)*$E$10+'Global Assumptions'!$C$7*$D$10,($F$10-'Global Assumptions'!$C$7)*$E$10+'Global Assumptions'!$C$7*$D$10))*$G$10 -> 28,155 | I52: =+'Global Assumptions'!$C$21*$H$4+'Global Assumptions'!$C$22*$H$5 -> 2,393 | J52: =+'Global Assumptions'!$C$23*$H$4+'Global Assumptions'!$C$24*$H$5 -> 1,530 | K52: =IF(A52<$H$7,A52*'Global Assumptions'!$C$25/1000*$H$6*1.08*12,$H$7*'Global Assumptions'!$C$25/1000*$H$6*1.08*12) -> 218 | L52: ='Global Assumptions'!$C$26 -> 281 | M52: 6,825 | N52: 488 | O52: 29 | P52: 0 | Q52: 0
A53: 200,000 | B53: 24.02% | C53: 48,050 | D53: =IF((A53+K53)<'Global Assumptions'!$C$7,((A53+K53)-'Global Assumptions'!$C$9)*'Global Assumptions'!$C$10,(('Global Assumptions'!$C$7-'Global Assumptions'!$C$9)*'Global Assumptions'!$C$10)+IF((A53+K53)<'Global Assumptions'!$C$8,((A53+K53)-'Global Assumptions'!$C$7)*'Global Assumptions'!$C$11,('Global Assumptions'!$C$8-'Global Assumptions'!$C$7)*'Global Assumptions'!$C$11)) -> 2,699 | E53: =IF(A53<'Global Assumptions'!$C$12,A53*'Global Assumptions'!$C$13*$H$3,'Global Assumptions'!$C$12*'Global Assumptions'!$C$13*$H$3) -> 1,015 | F53: =(A53+K53)*'Global Assumptions'!$C$14 -> 3,904 | G53: =IF(A53<'Global Assumptions'!$C$16,A53*'Global Assumptions'!$C$15,'Global Assumptions'!$C$16*'Global Assumptions'!$C$15) -> 325 | H53: =IF(A53<'Global Assumptions'!$C$7,A53*$D$10,IF(A53<$F$10,(A53-'Global Assumptions'!$C$7)*$E$10+'Global Assumptions'!$C$7*$D$10,($F$10-'Global Assumptions'!$C$7)*$E$10+'Global Assumptions'!$C$7*$D$10))*$G$10 -> 28,155 | I53: =+'Global Assumptions'!$C$21*$H$4+'Global Assumptions'!$C$22*$H$5 -> 2,393 | J53: =+'Global Assumptions'!$C$23*$H$4+'Global Assumptions'!$C$24*$H$5 -> 1,530 | K53: =IF(A53<$H$7,A53*'Global Assumptions'!$C$25/1000*$H$6*1.08*12,$H$7*'Global Assumptions'!$C$25/1000*$H$6*1.08*12) -> 218 | L53: ='Global Assumptions'!$C$26 -> 281 | M53: 7,000 | N53: 500 | O53: 30 | P53: 0 | Q53: 0
A55: =+'Global Assumptions'!D4 -> FY20 Budget
A56: 20,000 | B56: =+C56/A56 -> 49.71% | C56: =SUM(D56:Q56) -> 9,943 | D56: =IF((A56+K56)<'Global Assumptions'!$D$7,((A56+K56)-'Global Assumptions'!$D$9)*'Global Assumptions'!$D$10,(('Global Assumptions'!$D$7-'Global Assumptions'!$D$9)*'Global Assumptions'!$D$10)+IF((A56+K56)<'Global Assumptions'!$D$8,((A56+K56)-'Global Assumptions'!$D$7)*'Global Assumptions'!$D$11,('Global Assumptions'!$D$8-'Global Assumptions'!$D$7)*'Global Assumptions'!$D$11)) -> 885 | E56: =IF(A56<'Global Assumptions'!$D$12,A56*'Global Assumptions'!$D$13*$H$3,'Global Assumptions'!$D$12*'Global Assumptions'!$D$13*$H$3) -> 393 | F56: =(A56+K56)*'Global Assumptions'!$D$14 -> 391 | G56: =IF(A56<'Global Assumptions'!$D$16,A56*'Global Assumptions'!$D$15,'Global Assumptions'!$D$16*'Global Assumptions'!$D$15) -> 72 | H56: =IF(A56<'Global Assumptions'!$D$7,A56*$D$11,IF(A56<$F$11,(A56-'Global Assumptions'!$D$7)*$E$11+'Global Assumptions'!$D$7*$D$11,($F$11-'Global Assumptions'!$D$7)*$E$11+'Global Assumptions'!$D$7*$D$11))*$G$11 -> 2,800 | I56: =+'Global Assumptions'!$D$21*$H$4+'Global Assumptions'!$D$22*$H$5 -> 2,465 | J56: =+'Global Assumptions'!$D$23*$H$4+'Global Assumptions'!$D$24*$H$5 -> 1,576 | K56: =IF(A56<$H$7,A56*'Global Assumptions'!$D$25/1000*$H$6*1.08*12,$H$7*'Global Assumptions'!$D$25/1000*$H$6*1.08*12) -> 44 | L56: ='Global Assumptions'!$D$26 -> 281 | M56: =+$A56*M$11 -> 900 | N56: 50 | O56: 1 | P56: 0 | Q56: 86
A57: 25,000 | B57: 45.58% | C57: 11,395 | D57: =IF((A57+K57)<'Global Assumptions'!$D$7,((A57+K57)-'Global Assumptions'!$D$9)*'Global Assumptions'!$D$10,(('Global Assumptions'!$D$7-'Global Assumptions'!$D$9)*'Global Assumptions'!$D$10)+IF((A57+K57)<'Global Assumptions'!$D$8,((A57+K57)-'Global Assumptions'!$D$7)*'Global Assumptions'!$D$11,('Global Assumptions'!$D$8-'Global Assumptions'!$D$7)*'Global Assumptions'!$D$11)) -> 1,153 | E57: =IF(A57<'Global Assumptions'!$D$12,A57*'Global Assumptions'!$D$13*$H$3,'Global Assumptions'!$D$12*'Global Assumptions'!$D$13*$H$3) -> 491 | F57: =(A57+K57)*'Global Assumptions'!$D$14 -> 489 | G57: =IF(A57<'Global Assumptions'!$D$16,A57*'Global Assumptions'!$D$15,'Global Assumptions'!$D$16*'Global Assumptions'!$D$15) -> 90 | H57: =IF(A57<'Global Assumptions'!$D$7,A57*$D$11,IF(A57<$F$11,(A57-'Global Assumptions'!$D$7)*$E$11+'Global Assumptions'!$D$7*$D$11,($F$11-'Global Assumptions'!$D$7)*$E$11+'Global Assumptions'!$D$7*$D$11))*$G$11 -> 3,500 | I57: =+'Global Assumptions'!$D$21*$H$4+'Global Assumptions'!$D$22*$H$5 -> 2,465 | J57: =+'Global Assumptions'!$D$23*$H$4+'Global Assumptions'!$D$24*$H$5 -> 1,576 | K57: =IF(A57<$H$7,A57*'Global Assumptions'!$D$25/1000*$H$6*1.08*12,$H$7*'Global Assumptions'!$D$25/1000*$H$6*1.08*12) -> 54 | L57: ='Global Assumptions'!$D$26 -> 281 | M57: 1,125 | N57: 63 | O57: 1 | P57: 0 | Q57: 108
A58: 30,000 | B58: 42.82% | C58: 12,847 | D58: =IF((A58+K58)<'Global Assumptions'!$D$7,((A58+K58)-'Global Assumptions'!$D$9)*'Global Assumptions'!$D$10,(('Global Assumptions'!$D$7-'Global Assumptions'!$D$9)*'Global Assumptions'!$D$10)+IF((A58+K58)<'Global Assumptions'!$D$8,((A58+K58)-'Global Assumptions'!$D$7)*'Global Assumptions'!$D$11,('Global Assumptions'!$D$8-'Global Assumptions'!$D$7)*'Global Assumptions'!$D$11)) -> 1,421 | E58: =IF(A58<'Global Assumptions'!$D$12,A58*'Global Assumptions'!$D$13*$H$3,'Global Assumptions'!$D$12*'Global Assumptions'!$D$13*$H$3) -> 589 | F58: =(A58+K58)*'Global Assumptions'!$D$14 -> 586 | G58: =IF(A58<'Global Assumptions'!$D$16,A58*'Global Assumptions'!$D$15,'Global Assumptions'!$D$16*'Global Assumptions'!$D$15) -> 108 | H58: =IF(A58<'Global Assumptions'!$D$7,A58*$D$11,IF(A58<$F$11,(A58-'Global Assumptions'!$D$7)*$E$11+'Global Assumptions'!$D$7*$D$11,($F$11-'Global Assumptions'!$D$7)*$E$11+'Global Assumptions'!$D$7*$D$11))*$G$11 -> 4,200 | I58: =+'Global Assumptions'!$D$21*$H$4+'Global Assumptions'!$D$22*$H$5 -> 2,465 | J58: =+'Global Assumptions'!$D$23*$H$4+'Global Assumptions'!$D$24*$H$5 -> 1,576 | K58: =IF(A58<$H$7,A58*'Global Assumptions'!$D$25/1000*$H$6*1.08*12,$H$7*'Global Assumptions'!$D$25/1000*$H$6*1.08*12) -> 65 | L58: ='Global Assumptions'!$D$26 -> 281 | M58: 1,350 | N58: 75 | O58: 2 | P58: 0 | Q58: 129
A59: 35,000 | B59: 40.86% | C59: 14,299 | D59: =IF((A59+K59)<'Global Assumptions'!$D$7,((A59+K59)-'Global Assumptions'!$D$9)*'Global Assumptions'!$D$10,(('Global Assumptions'!$D$7-'Global Assumptions'!$D$9)*'Global Assumptions'!$D$10)+IF((A59+K59)<'Global Assumptions'!$D$8,((A59+K59)-'Global Assumptions'!$D$7)*'Global Assumptions'!$D$11,('Global Assumptions'!$D$8-'Global Assumptions'!$D$7)*'Global Assumptions'!$D$11)) -> 1,689 | E59: =IF(A59<'Global Assumptions'!$D$12,A59*'Global Assumptions'!$D$13*$H$3,'Global Assumptions'!$D$12*'Global Assumptions'!$D$13*$H$3) -> 687 | F59: =(A59+K59)*'Global Assumptions'!$D$14 -> 684 | G59: =IF(A59<'Global Assumptions'!$D$16,A59*'Global Assumptions'!$D$15,'Global Assumptions'!$D$16*'Global Assumptions'!$D$15) -> 126 | H59: =IF(A59<'Global Assumptions'!$D$7,A59*$D$11,IF(A59<$F$11,(A59-'Global Assumptions'!$D$7)*$E$11+'Global Assumptions'!$D$7*$D$11,($F$11-'Global Assumptions'!$D$7)*$E$11+'Global Assumptions'!$D$7*$D$11))*$G$11 -> 4,900 | I59: =+'Global Assumptions'!$D$21*$H$4+'Global Assumptions'!$D$22*$H$5 -> 2,465 | J59: =+'Global Assumptions'!$D$23*$H$4+'Global Assumptions'!$D$24*$H$5 -> 1,576 | K59: =IF(A59<$H$7,A59*'Global Assumptions'!$D$25/1000*$H$6*1.08*12,$H$7*'Global Assumptions'!$D$25/1000*$H$6*1.08*12) -> 76 | L59: ='Global Assumptions'!$D$26 -> 281 | M59: 1,575 | N59: 88 | O59: 2 | P59: 0 | Q59: 151
A60: 40,000 | B60: 39.38% | C60: 15,751 | D60: =IF((A60+K60)<'Global Assumptions'!$D$7,((A60+K60)-'Global Assumptions'!$D$9)*'Global Assumptions'!$D$10,(('Global Assumptions'!$D$7-'Global Assumptions'!$D$9)*'Global Assumptions'!$D$10)+IF((A60+K60)<'Global Assumptions'!$D$8,((A60+K60)-'Global Assumptions'!$D$7)*'Global Assumptions'!$D$11,('Global Assumptions'!$D$8-'Global Assumptions'!$D$7)*'Global Assumptions'!$D$11)) -> 1,957 | E60: =IF(A60<'Global Assumptions'!$D$12,A60*'Global Assumptions'!$D$13*$H$3,'Global Assumptions'!$D$12*'Global Assumptions'!$D$13*$H$3) -> 786 | F60: =(A60+K60)*'Global Assumptions'!$D$14 -> 782 | G60: =IF(A60<'Global Assumptions'!$D$16,A60*'Global Assumptions'!$D$15,'Global Assumptions'!$D$16*'Global Assumptions'!$D$15) -> 144 | H60: =IF(A60<'Global Assumptions'!$D$7,A60*$D$11,IF(A60<$F$11,(A60-'Global Assumptions'!$D$7)*$E$11+'Global Assumptions'!$D$7*$D$11,($F$11-'Global Assumptions'!$D$7)*$E$11+'Global Assumptions'!$D$7*$D$11))*$G$11 -> 5,600 | I60: =+'Global Assumptions'!$D$21*$H$4+'Global Assumptions'!$D$22*$H$5 -> 2,465 | J60: =+'Global Assumptions'!$D$23*$H$4+'Global Assumptions'!$D$24*$H$5 -> 1,576 | K60: =IF(A60<$H$7,A60*'Global Assumptions'!$D$25/1000*$H$6*1.08*12,$H$7*'Global Assumptions'!$D$25/1000*$H$6*1.08*12) -> 87 | L60: ='Global Assumptions'!$D$26 -> 281 | M60: 1,800 | N60: 100 | O60: 2 | P60: 0 | Q60: 172
A61: 45,000 | B61: 38.23% | C61: 17,204 | D61: =IF((A61+K61)<'Global Assumptions'!$D$7,((A61+K61)-'Global Assumptions'!$D$9)*'Global Assumptions'!$D$10,(('Global Assumptions'!$D$7-'Global Assumptions'!$D$9)*'Global Assumptions'!$D$10)+IF((A61+K61)<'Global Assumptions'!$D$8,((A61+K61)-'Global Assumptions'!$D$7)*'Global Assumptions'!$D$11,('Global Assumptions'!$D$8-'Global Assumptions'!$D$7)*'Global Assumptions'!$D$11)) -> 2,225 | E61: =IF(A61<'Global Assumptions'!$D$12,A61*'Global Assumptions'!$D$13*$H$3,'Global Assumptions'!$D$12*'Global Assumptions'!$D$13*$H$3) -> 884 | F61: =(A61+K61)*'Global Assumptions'!$D$14 -> 879 | G61: =IF(A61<'Global Assumptions'!$D$16,A61*'Global Assumptions'!$D$15,'Global Assumptions'!$D$16*'Global Assumptions'!$D$15) -> 162 | H61: =IF(A61<'Global Assumptions'!$D$7,A61*$D$11,IF(A61<$F$11,(A61-'Global Assumptions'!$D$7)*$E$11+'Global Assumptions'!$D$7*$D$11,($F$11-'Global Assumptions'!$D$7)*$E$11+'Global Assumptions'!$D$7*$D$11))*$G$11 -> 6,300 | I61: =+'Global Assumptions'!$D$21*$H$4+'Global Assumptions'!$D$22*$H$5 -> 2,465 | J61: =+'Global Assumptions'!$D$23*$H$4+'Global Assumptions'!$D$24*$H$5 -> 1,576 | K61: =IF(A61<$H$7,A61*'Global Assumptions'!$D$25/1000*$H$6*1.08*12,$H$7*'Global Assumptions'!$D$25/1000*$H$6*1.08*12) -> 98 | L61: ='Global Assumptions'!$D$26 -> 281 | M61: 2,025 | N61: 113 | O61: 2 | P61: 0 | Q61: 194
A62: 50,000 | B62: 37.31% | C62: 18,656 | D62: =IF((A62+K62)<'Global Assumptions'!$D$7,((A62+K62)-'Global Assumptions'!$D$9)*'Global Assumptions'!$D$10,(('Global Assumptions'!$D$7-'Global Assumptions'!$D$9)*'Global Assumptions'!$D$10)+IF((A62+K62)<'Global Assumptions'!$D$8,((A62+K62)-'Global Assumptions'!$D$7)*'Global Assumptions'!$D$11,('Global Assumptions'!$D$8-'Global Assumptions'!$D$7)*'Global Assumptions'!$D$11)) -> 2,494 | E62: =IF(A62<'Global Assumptions'!$D$12,A62*'Global Assumptions'!$D$13*$H$3,'Global Assumptions'!$D$12*'Global Assumptions'!$D$13*$H$3) -> 982 | F62: =(A62+K62)*'Global Assumptions'!$D$14 -> 977 | G62: =IF(A62<'Global Assumptions'!$D$16,A62*'Global Assumptions'!$D$15,'Global Assumptions'!$D$16*'Global Assumptions'!$D$15) -> 180 | H62: =IF(A62<'Global Assumptions'!$D$7,A62*$D$11,IF(A62<$F$11,(A62-'Global Assumptions'!$D$7)*$E$11+'Global Assumptions'!$D$7*$D$11,($F$11-'Global Assumptions'!$D$7)*$E$11+'Global Assumptions'!$D$7*$D$11))*$G$11 -> 7,000 | I62: =+'Global Assumptions'!$D$21*$H$4+'Global Assumptions'!$D$22*$H$5 -> 2,465 | J62: =+'Global Assumptions'!$D$23*$H$4+'Global Assumptions'!$D$24*$H$5 -> 1,576 | K62: =IF(A62<$H$7,A62*'Global Assumptions'!$D$25/1000*$H$6*1.08*12,$H$7*'Global Assumptions'!$D$25/1000*$H$6*1.08*12) -> 109 | L62: ='Global Assumptions'!$D$26 -> 281 | M62: 2,250 | N62: 125 | O62: 3 | P62: 0 | Q62: 215
A63: 55,000 | B63: 36.46% | C63: 20,051 | D63: =IF((A63+K63)<'Global Assumptions'!$D$7,((A63+K63)-'Global Assumptions'!$D$9)*'Global Assumptions'!$D$10,(('Global Assumptions'!$D$7-'Global Assumptions'!$D$9)*'Global Assumptions'!$D$10)+IF((A63+K63)<'Global Assumptions'!$D$8,((A63+K63)-'Global Assumptions'!$D$7)*'Global Assumptions'!$D$11,('Global Assumptions'!$D$8-'Global Assumptions'!$D$7)*'Global Assumptions'!$D$11)) -> 2,762 | E63: =IF(A63<'Global Assumptions'!$D$12,A63*'Global Assumptions'!$D$13*$H$3,'Global Assumptions'!$D$12*'Global Assumptions'!$D$13*$H$3) -> 1,023 | F63: =(A63+K63)*'Global Assumptions'!$D$14 -> 1,075 | G63: =IF(A63<'Global Assumptions'!$D$16,A63*'Global Assumptions'!$D$15,'Global Assumptions'!$D$16*'Global Assumptions'!$D$15) -> 198 | H63: =IF(A63<'Global Assumptions'!$D$7,A63*$D$11,IF(A63<$F$11,(A63-'Global Assumptions'!$D$7)*$E$11+'Global Assumptions'!$D$7*$D$11,($F$11-'Global Assumptions'!$D$7)*$E$11+'Global Assumptions'!$D$7*$D$11))*$G$11 -> 7,700 | I63: =+'Global Assumptions'!$D$21*$H$4+'Global Assumptions'!$D$22*$H$5 -> 2,465 | J63: =+'Global Assumptions'!$D$23*$H$4+'Global Assumptions'!$D$24*$H$5 -> 1,576 | K63: =IF(A63<$H$7,A63*'Global Assumptions'!$D$25/1000*$H$6*1.08*12,$H$7*'Global Assumptions'!$D$25/1000*$H$6*1.08*12) -> 120 | L63: ='Global Assumptions'!$D$26 -> 281 | M63: 2,475 | N63: 138 | O63: 3 | P63: 0 | Q63: 237
A64: 60,000 | B64: 35.66% | C64: 21,394 | D64: =IF((A64+K64)<'Global Assumptions'!$D$7,((A64+K64)-'Global Assumptions'!$D$9)*'Global Assumptions'!$D$10,(('Global Assumptions'!$D$7-'Global Assumptions'!$D$9)*'Global Assumptions'!$D$10)+IF((A64+K64)<'Global Assumptions'!$D$8,((A64+K64)-'Global Assumptions'!$D$7)*'Global Assumptions'!$D$11,('Global Assumptions'!$D$8-'Global Assumptions'!$D$7)*'Global Assumptions'!$D$11)) -> 2,836 | E64: =IF(A64<'Global Assumptions'!$D$12,A64*'Global Assumptions'!$D$13*$H$3,'Global Assumptions'!$D$12*'Global Assumptions'!$D$13*$H$3) -> 1,023 | F64: =(A64+K64)*'Global Assumptions'!$D$14 -> 1,173 | G64: =IF(A64<'Global Assumptions'!$D$16,A64*'Global Assumptions'!$D$15,'Global Assumptions'!$D$16*'Global Assumptions'!$D$15) -> 216 | H64: =IF(A64<'Global Assumptions'!$D$7,A64*$D$11,IF(A64<$F$11,(A64-'Global Assumptions'!$D$7)*$E$11+'Global Assumptions'!$D$7*$D$11,($F$11-'Global Assumptions'!$D$7)*$E$11+'Global Assumptions'!$D$7*$D$11))*$G$11 -> 8,584 | I64: =+'Global Assumptions'!$D$21*$H$4+'Global Assumptions'!$D$22*$H$5 -> 2,465 | J64: =+'Global Assumptions'!$D$23*$H$4+'Global Assumptions'!$D$24*$H$5 -> 1,576 | K64: =IF(A64<$H$7,A64*'Global Assumptions'!$D$25/1000*$H$6*1.08*12,$H$7*'Global Assumptions'!$D$25/1000*$H$6*1.08*12) -> 131 | L64: ='Global Assumptions'!$D$26 -> 281 | M64: 2,700 | N64: 150 | O64: 3 | P64: 0 | Q64: 258
A65: 65,000 | B65: 34.99% | C65: 22,743 | D65: =IF((A65+K65)<'Global Assumptions'!$D$7,((A65+K65)-'Global Assumptions'!$D$9)*'Global Assumptions'!$D$10,(('Global Assumptions'!$D$7-'Global Assumptions'!$D$9)*'Global Assumptions'!$D$10)+IF((A65+K65)<'Global Assumptions'!$D$8,((A65+K65)-'Global Assumptions'!$D$7)*'Global Assumptions'!$D$11,('Global Assumptions'!$D$8-'Global Assumptions'!$D$7)*'Global Assumptions'!$D$11)) -> 2,836 | E65: =IF(A65<'Global Assumptions'!$D$12,A65*'Global Assumptions'!$D$13*$H$3,'Global Assumptions'!$D$12*'Global Assumptions'!$D$13*$H$3) -> 1,023 | F65: =(A65+K65)*'Global Assumptions'!$D$14 -> 1,270 | G65: =IF(A65<'Global Assumptions'!$D$16,A65*'Global Assumptions'!$D$15,'Global Assumptions'!$D$16*'Global Assumptions'!$D$15) -> 234 | H65: =IF(A65<'Global Assumptions'!$D$7,A65*$D$11,IF(A65<$F$11,(A65-'Global Assumptions'!$D$7)*$E$11+'Global Assumptions'!$D$7*$D$11,($F$11-'Global Assumptions'!$D$7)*$E$11+'Global Assumptions'!$D$7*$D$11))*$G$11 -> 9,546 | I65: =+'Global Assumptions'!$D$21*$H$4+'Global Assumptions'!$D$22*$H$5 -> 2,465 | J65: =+'Global Assumptions'!$D$23*$H$4+'Global Assumptions'!$D$24*$H$5 -> 1,576 | K65: =IF(A65<$H$7,A65*'Global Assumptions'!$D$25/1000*$H$6*1.08*12,$H$7*'Global Assumptions'!$D$25/1000*$H$6*1.08*12) -> 142 | L65: ='Global Assumptions'!$D$26 -> 281 | M65: 2,925 | N65: 163 | O65: 3 | P65: 0 | Q65: 280
A66: 70,000 | B66: 34.42% | C66: 24,091 | D66: =IF((A66+K66)<'Global Assumptions'!$D$7,((A66+K66)-'Global Assumptions'!$D$9)*'Global Assumptions'!$D$10,(('Global Assumptions'!$D$7-'Global Assumptions'!$D$9)*'Global Assumptions'!$D$10)+IF((A66+K66)<'Global Assumptions'!$D$8,((A66+K66)-'Global Assumptions'!$D$7)*'Global Assumptions'!$D$11,('Global Assumptions'!$D$8-'Global Assumptions'!$D$7)*'Global Assumptions'!$D$11)) -> 2,836 | E66: =IF(A66<'Global Assumptions'!$D$12,A66*'Global Assumptions'!$D$13*$H$3,'Global Assumptions'!$D$12*'Global Assumptions'!$D$13*$H$3) -> 1,023 | F66: =(A66+K66)*'Global Assumptions'!$D$14 -> 1,368 | G66: =IF(A66<'Global Assumptions'!$D$16,A66*'Global Assumptions'!$D$15,'Global Assumptions'!$D$16*'Global Assumptions'!$D$15) -> 252 | H66: =IF(A66<'Global Assumptions'!$D$7,A66*$D$11,IF(A66<$F$11,(A66-'Global Assumptions'!$D$7)*$E$11+'Global Assumptions'!$D$7*$D$11,($F$11-'Global Assumptions'!$D$7)*$E$11+'Global Assumptions'!$D$7*$D$11))*$G$11 -> 10,509 | I66: =+'Global Assumptions'!$D$21*$H$4+'Global Assumptions'!$D$22*$H$5 -> 2,465 | J66: =+'Global Assumptions'!$D$23*$H$4+'Global Assumptions'!$D$24*$H$5 -> 1,576 | K66: =IF(A66<$H$7,A66*'Global Assumptions'!$D$25/1000*$H$6*1.08*12,$H$7*'Global Assumptions'!$D$25/1000*$H$6*1.08*12) -> 152 | L66: ='Global Assumptions'!$D$26 -> 281 | M66: 3,150 | N66: 175 | O66: 4 | P66: 0 | Q66: 301
A67: 75,000 | B67: 33.92% | C67: 25,439 | D67: =IF((A67+K67)<'Global Assumptions'!$D$7,((A67+K67)-'Global Assumptions'!$D$9)*'Global Assumptions'!$D$10,(('Global Assumptions'!$D$7-'Global Assumptions'!$D$9)*'Global Assumptions'!$D$10)+IF((A67+K67)<'Global Assumptions'!$D$8,((A67+K67)-'Global Assumptions'!$D$7)*'Global Assumptions'!$D$11,('Global Assumptions'!$D$8-'Global Assumptions'!$D$7)*'Global Assumptions'!$D$11)) -> 2,836 | E67: =IF(A67<'Global Assumptions'!$D$12,A67*'Global Assumptions'!$D$13*$H$3,'Global Assumptions'!$D$12*'Global Assumptions'!$D$13*$H$3) -> 1,023 | F67: =(A67+K67)*'Global Assumptions'!$D$14 -> 1,466 | G67: =IF(A67<'Global Assumptions'!$D$16,A67*'Global Assumptions'!$D$15,'Global Assumptions'!$D$16*'Global Assumptions'!$D$15) -> 270 | H67: =IF(A67<'Global Assumptions'!$D$7,A67*$D$11,IF(A67<$F$11,(A67-'Global Assumptions'!$D$7)*$E$11+'Global Assumptions'!$D$7*$D$11,($F$11-'Global Assumptions'!$D$7)*$E$11+'Global Assumptions'!$D$7*$D$11))*$G$11 -> 11,471 | I67: =+'Global Assumptions'!$D$21*$H$4+'Global Assumptions'!$D$22*$H$5 -> 2,465 | J67: =+'Global Assumptions'!$D$23*$H$4+'Global Assumptions'!$D$24*$H$5 -> 1,576 | K67: =IF(A67<$H$7,A67*'Global Assumptions'!$D$25/1000*$H$6*1.08*12,$H$7*'Global Assumptions'!$D$25/1000*$H$6*1.08*12) -> 163 | L67: ='Global Assumptions'!$D$26 -> 281 | M67: 3,375 | N67: 188 | O67: 4 | P67: 0 | Q67: 323
A68: 80,000 | B68: 33.48% | C68: 26,788 | D68: =IF((A68+K68)<'Global Assumptions'!$D$7,((A68+K68)-'Global Assumptions'!$D$9)*'Global Assumptions'!$D$10,(('Global Assumptions'!$D$7-'Global Assumptions'!$D$9)*'Global Assumptions'!$D$10)+IF((A68+K68)<'Global Assumptions'!$D$8,((A68+K68)-'Global Assumptions'!$D$7)*'Global Assumptions'!$D$11,('Global Assumptions'!$D$8-'Global Assumptions'!$D$7)*'Global Assumptions'!$D$11)) -> 2,836 | E68: =IF(A68<'Global Assumptions'!$D$12,A68*'Global Assumptions'!$D$13*$H$3,'Global Assumptions'!$D$12*'Global Assumptions'!$D$13*$H$3) -> 1,023 | F68: =(A68+K68)*'Global Assumptions'!$D$14 -> 1,563 | G68: =IF(A68<'Global Assumptions'!$D$16,A68*'Global Assumptions'!$D$15,'Global Assumptions'!$D$16*'Global Assumptions'!$D$15) -> 288 | H68: =IF(A68<'Global Assumptions'!$D$7,A68*$D$11,IF(A68<$F$11,(A68-'Global Assumptions'!$D$7)*$E$11+'Global Assumptions'!$D$7*$D$11,($F$11-'Global Assumptions'!$D$7)*$E$11+'Global Assumptions'!$D$7*$D$11))*$G$11 -> 12,434 | I68: =+'Global Assumptions'!$D$21*$H$4+'Global Assumptions'!$D$22*$H$5 -> 2,465 | J68: =+'Global Assumptions'!$D$23*$H$4+'Global Assumptions'!$D$24*$H$5 -> 1,576 | K68: =IF(A68<$H$7,A68*'Global Assumptions'!$D$25/1000*$H$6*1.08*12,$H$7*'Global Assumptions'!$D$25/1000*$H$6*1.08*12) -> 174 | L68: ='Global Assumptions'!$D$26 -> 281 | M68: 3,600 | N68: 200 | O68: 4 | P68: 0 | Q68: 344
A69: 85,000 | B69: 33.10% | C69: 28,136 | D69: =IF((A69+K69)<'Global Assumptions'!$D$7,((A69+K69)-'Global Assumptions'!$D$9)*'Global Assumptions'!$D$10,(('Global Assumptions'!$D$7-'Global Assumptions'!$D$9)*'Global Assumptions'!$D$10)+IF((A69+K69)<'Global Assumptions'!$D$8,((A69+K69)-'Global Assumptions'!$D$7)*'Global Assumptions'!$D$11,('Global Assumptions'!$D$8-'Global Assumptions'!$D$7)*'Global Assumptions'!$D$11)) -> 2,836 | E69: =IF(A69<'Global Assumptions'!$D$12,A69*'Global Assumptions'!$D$13*$H$3,'Global Assumptions'!$D$12*'Global Assumptions'!$D$13*$H$3) -> 1,023 | F69: =(A69+K69)*'Global Assumptions'!$D$14 -> 1,661 | G69: =IF(A69<'Global Assumptions'!$D$16,A69*'Global Assumptions'!$D$15,'Global Assumptions'!$D$16*'Global Assumptions'!$D$15) -> 306 | H69: =IF(A69<'Global Assumptions'!$D$7,A69*$D$11,IF(A69<$F$11,(A69-'Global Assumptions'!$D$7)*$E$11+'Global Assumptions'!$D$7*$D$11,($F$11-'Global Assumptions'!$D$7)*$E$11+'Global Assumptions'!$D$7*$D$11))*$G$11 -> 13,396 | I69: =+'Global Assumptions'!$D$21*$H$4+'Global Assumptions'!$D$22*$H$5 -> 2,465 | J69: =+'Global Assumptions'!$D$23*$H$4+'Global Assumptions'!$D$24*$H$5 -> 1,576 | K69: =IF(A69<$H$7,A69*'Global Assumptions'!$D$25/1000*$H$6*1.08*12,$H$7*'Global Assumptions'!$D$25/1000*$H$6*1.08*12) -> 185 | L69: ='Global Assumptions'!$D$26 -> 281 | M69: 3,825 | N69: 213 | O69: 4 | P69: 0 | Q69: 366
A70: 90,000 | B70: 32.76% | C70: 29,484 | D70: =IF((A70+K70)<'Global Assumptions'!$D$7,((A70+K70)-'Global Assumptions'!$D$9)*'Global Assumptions'!$D$10,(('Global Assumptions'!$D$7-'Global Assumptions'!$D$9)*'Global Assumptions'!$D$10)+IF((A70+K70)<'Global Assumptions'!$D$8,((A70+K70)-'Global Assumptions'!$D$7)*'Global Assumptions'!$D$11,('Global Assumptions'!$D$8-'Global Assumptions'!$D$7)*'Global Assumptions'!$D$11)) -> 2,836 | E70: =IF(A70<'Global Assumptions'!$D$12,A70*'Global Assumptions'!$D$13*$H$3,'Global Assumptions'!$D$12*'Global Assumptions'!$D$13*$H$3) -> 1,023 | F70: =(A70+K70)*'Global Assumptions'!$D$14 -> 1,759 | G70: =IF(A70<'Global Assumptions'!$D$16,A70*'Global Assumptions'!$D$15,'Global Assumptions'!$D$16*'Global Assumptions'!$D$15) -> 324 | H70: =IF(A70<'Global Assumptions'!$D$7,A70*$D$11,IF(A70<$F$11,(A70-'Global Assumptions'!$D$7)*$E$11+'Global Assumptions'!$D$7*$D$11,($F$11-'Global Assumptions'!$D$7)*$E$11+'Global Assumptions'!$D$7*$D$11))*$G$11 -> 14,359 | I70: =+'Global Assumptions'!$D$21*$H$4+'Global Assumptions'!$D$22*$H$5 -> 2,465 | J70: =+'Global Assumptions'!$D$23*$H$4+'Global Assumptions'!$D$24*$H$5 -> 1,576 | K70: =IF(A70<$H$7,A70*'Global Assumptions'!$D$25/1000*$H$6*1.08*12,$H$7*'Global Assumptions'!$D$25/1000*$H$6*1.08*12) -> 196 | L70: ='Global Assumptions'!$D$26 -> 281 | M70: 4,050 | N70: 225 | O70: 5 | P70: 0 | Q70: 387
A71: 95,000 | B71: 32.44% | C71: 30,822 | D71: =IF((A71+K71)<'Global Assumptions'!$D$7,((A71+K71)-'Global Assumptions'!$D$9)*'Global Assumptions'!$D$10,(('Global Assumptions'!$D$7-'Global Assumptions'!$D$9)*'Global Assumptions'!$D$10)+IF((A71+K71)<'Global Assumptions'!$D$8,((A71+K71)-'Global Assumptions'!$D$7)*'Global Assumptions'!$D$11,('Global Assumptions'!$D$8-'Global Assumptions'!$D$7)*'Global Assumptions'!$D$11)) -> 2,836 | E71: =IF(A71<'Global Assumptions'!$D$12,A71*'Global Assumptions'!$D$13*$H$3,'Global Assumptions'!$D$12*'Global Assumptions'!$D$13*$H$3) -> 1,023 | F71: =(A71+K71)*'Global Assumptions'!$D$14 -> 1,857 | G71: =IF(A71<'Global Assumptions'!$D$16,A71*'Global Assumptions'!$D$15,'Global Assumptions'!$D$16*'Global Assumptions'!$D$15) -> 332 | H71: =IF(A71<'Global Assumptions'!$D$7,A71*$D$11,IF(A71<$F$11,(A71-'Global Assumptions'!$D$7)*$E$11+'Global Assumptions'!$D$7*$D$11,($F$11-'Global Assumptions'!$D$7)*$E$11+'Global Assumptions'!$D$7*$D$11))*$G$11 -> 15,321 | I71: =+'Global Assumptions'!$D$21*$H$4+'Global Assumptions'!$D$22*$H$5 -> 2,465 | J71: =+'Global Assumptions'!$D$23*$H$4+'Global Assumptions'!$D$24*$H$5 -> 1,576 | K71: =IF(A71<$H$7,A71*'Global Assumptions'!$D$25/1000*$H$6*1.08*12,$H$7*'Global Assumptions'!$D$25/1000*$H$6*1.08*12) -> 207 | L71: ='Global Assumptions'!$D$26 -> 281 | M71: 4,275 | N71: 238 | O71: 5 | P71: 0 | Q71: 409
A72: 100,000 | B72: 32.15% | C72: 32,153 | D72: =IF((A72+K72)<'Global Assumptions'!$D$7,((A72+K72)-'Global Assumptions'!$D$9)*'Global Assumptions'!$D$10,(('Global Assumptions'!$D$7-'Global Assumptions'!$D$9)*'Global Assumptions'!$D$10)+IF((A72+K72)<'Global Assumptions'!$D$8,((A72+K72)-'Global Assumptions'!$D$7)*'Global Assumptions'!$D$11,('Global Assumptions'!$D$8-'Global Assumptions'!$D$7)*'Global Assumptions'!$D$11)) -> 2,836 | E72: =IF(A72<'Global Assumptions'!$D$12,A72*'Global Assumptions'!$D$13*$H$3,'Global Assumptions'!$D$12*'Global Assumptions'!$D$13*$H$3) -> 1,023 | F72: =(A72+K72)*'Global Assumptions'!$D$14 -> 1,954 | G72: =IF(A72<'Global Assumptions'!$D$16,A72*'Global Assumptions'!$D$15,'Global Assumptions'!$D$16*'Global Assumptions'!$D$15) -> 332 | H72: =IF(A72<'Global Assumptions'!$D$7,A72*$D$11,IF(A72<$F$11,(A72-'Global Assumptions'!$D$7)*$E$11+'Global Assumptions'!$D$7*$D$11,($F$11-'Global Assumptions'!$D$7)*$E$11+'Global Assumptions'!$D$7*$D$11))*$G$11 -> 16,284 | I72: =+'Global Assumptions'!$D$21*$H$4+'Global Assumptions'!$D$22*$H$5 -> 2,465 | J72: =+'Global Assumptions'!$D$23*$H$4+'Global Assumptions'!$D$24*$H$5 -> 1,576 | K72: =IF(A72<$H$7,A72*'Global Assumptions'!$D$25/1000*$H$6*1.08*12,$H$7*'Global Assumptions'!$D$25/1000*$H$6*1.08*12) -> 218 | L72: ='Global Assumptions'!$D$26 -> 281 | M72: 4,500 | N72: 250 | O72: 5 | P72: 0 | Q72: 430
A73: 105,000 | B73: 31.88% | C73: 33,472 | D73: =IF((A73+K73)<'Global Assumptions'!$D$7,((A73+K73)-'Global Assumptions'!$D$9)*'Global Assumptions'!$D$10,(('Global Assumptions'!$D$7-'Global Assumptions'!$D$9)*'Global Assumptions'!$D$10)+IF((A73+K73)<'Global Assumptions'!$D$8,((A73+K73)-'Global Assumptions'!$D$7)*'Global Assumptions'!$D$11,('Global Assumptions'!$D$8-'Global Assumptions'!$D$7)*'Global Assumptions'!$D$11)) -> 2,836 | E73: =IF(A73<'Global Assumptions'!$D$12,A73*'Global Assumptions'!$D$13*$H$3,'Global Assumptions'!$D$12*'Global Assumptions'!$D$13*$H$3) -> 1,023 | F73: =(A73+K73)*'Global Assumptions'!$D$14 -> 2,052 | G73: =IF(A73<'Global Assumptions'!$D$16,A73*'Global Assumptions'!$D$15,'Global Assumptions'!$D$16*'Global Assumptions'!$D$15) -> 332 | H73: =IF(A73<'Global Assumptions'!$D$7,A73*$D$11,IF(A73<$F$11,(A73-'Global Assumptions'!$D$7)*$E$11+'Global Assumptions'!$D$7*$D$11,($F$11-'Global Assumptions'!$D$7)*$E$11+'Global Assumptions'!$D$7*$D$11))*$G$11 -> 17,246 | I73: =+'Global Assumptions'!$D$21*$H$4+'Global Assumptions'!$D$22*$H$5 -> 2,465 | J73: =+'Global Assumptions'!$D$23*$H$4+'Global Assumptions'!$D$24*$H$5 -> 1,576 | K73: =IF(A73<$H$7,A73*'Global Assumptions'!$D$25/1000*$H$6*1.08*12,$H$7*'Global Assumptions'!$D$25/1000*$H$6*1.08*12) -> 218 | L73: ='Global Assumptions'!$D$26 -> 281 | M73: 4,725 | N73: 263 | O73: 5 | P73: 0 | Q73: 452
A74: 110,000 | B74: 31.63% | C74: 34,791 | D74: =IF((A74+K74)<'Global Assumptions'!$D$7,((A74+K74)-'Global Assumptions'!$D$9)*'Global Assumptions'!$D$10,(('Global Assumptions'!$D$7-'Global Assumptions'!$D$9)*'Global Assumptions'!$D$10)+IF((A74+K74)<'Global Assumptions'!$D$8,((A74+K74)-'Global Assumptions'!$D$7)*'Global Assumptions'!$D$11,('Global Assumptions'!$D$8-'Global Assumptions'!$D$7)*'Global Assumptions'!$D$11)) -> 2,836 | E74: =IF(A74<'Global Assumptions'!$D$12,A74*'Global Assumptions'!$D$13*$H$3,'Global Assumptions'!$D$12*'Global Assumptions'!$D$13*$H$3) -> 1,023 | F74: =(A74+K74)*'Global Assumptions'!$D$14 -> 2,149 | G74: =IF(A74<'Global Assumptions'!$D$16,A74*'Global Assumptions'!$D$15,'Global Assumptions'!$D$16*'Global Assumptions'!$D$15) -> 332 | H74: =IF(A74<'Global Assumptions'!$D$7,A74*$D$11,IF(A74<$F$11,(A74-'Global Assumptions'!$D$7)*$E$11+'Global Assumptions'!$D$7*$D$11,($F$11-'Global Assumptions'!$D$7)*$E$11+'Global Assumptions'!$D$7*$D$11))*$G$11 -> 18,209 | I74: =+'Global Assumptions'!$D$21*$H$4+'Global Assumptions'!$D$22*$H$5 -> 2,465 | J74: =+'Global Assumptions'!$D$23*$H$4+'Global Assumptions'!$D$24*$H$5 -> 1,576 | K74: =IF(A74<$H$7,A74*'Global Assumptions'!$D$25/1000*$H$6*1.08*12,$H$7*'Global Assumptions'!$D$25/1000*$H$6*1.08*12) -> 218 | L74: ='Global Assumptions'!$D$26 -> 281 | M74: 4,950 | N74: 275 | O74: 6 | P74: 0 | Q74: 473
A75: 115,000 | B75: 31.40% | C75: 36,110 | D75: =IF((A75+K75)<'Global Assumptions'!$D$7,((A75+K75)-'Global Assumptions'!$D$9)*'Global Assumptions'!$D$10,(('Global Assumptions'!$D$7-'Global Assumptions'!$D$9)*'Global Assumptions'!$D$10)+IF((A75+K75)<'Global Assumptions'!$D$8,((A75+K75)-'Global Assumptions'!$D$7)*'Global Assumptions'!$D$11,('Global Assumptions'!$D$8-'Global Assumptions'!$D$7)*'Global Assumptions'!$D$11)) -> 2,836 | E75: =IF(A75<'Global Assumptions'!$D$12,A75*'Global Assumptions'!$D$13*$H$3,'Global Assumptions'!$D$12*'Global Assumptions'!$D$13*$H$3) -> 1,023 | F75: =(A75+K75)*'Global Assumptions'!$D$14 -> 2,247 | G75: =IF(A75<'Global Assumptions'!$D$16,A75*'Global Assumptions'!$D$15,'Global Assumptions'!$D$16*'Global Assumptions'!$D$15) -> 332 | H75: =IF(A75<'Global Assumptions'!$D$7,A75*$D$11,IF(A75<$F$11,(A75-'Global Assumptions'!$D$7)*$E$11+'Global Assumptions'!$D$7*$D$11,($F$11-'Global Assumptions'!$D$7)*$E$11+'Global Assumptions'!$D$7*$D$11))*$G$11 -> 19,171 | I75: =+'Global Assumptions'!$D$21*$H$4+'Global Assumptions'!$D$22*$H$5 -> 2,465 | J75: =+'Global Assumptions'!$D$23*$H$4+'Global Assumptions'!$D$24*$H$5 -> 1,576 | K75: =IF(A75<$H$7,A75*'Global Assumptions'!$D$25/1000*$H$6*1.08*12,$H$7*'Global Assumptions'!$D$25/1000*$H$6*1.08*12) -> 218 | L75: ='Global Assumptions'!$D$26 -> 281 | M75: 5,175 | N75: 288 | O75: 6 | P75: 0 | Q75: 495
A76: 120,000 | B76: 31.19% | C76: 37,430 | D76: =IF((A76+K76)<'Global Assumptions'!$D$7,((A76+K76)-'Global Assumptions'!$D$9)*'Global Assumptions'!$D$10,(('Global Assumptions'!$D$7-'Global Assumptions'!$D$9)*'Global Assumptions'!$D$10)+IF((A76+K76)<'Global Assumptions'!$D$8,((A76+K76)-'Global Assumptions'!$D$7)*'Global Assumptions'!$D$11,('Global Assumptions'!$D$8-'Global Assumptions'!$D$7)*'Global Assumptions'!$D$11)) -> 2,836 | E76: =IF(A76<'Global Assumptions'!$D$12,A76*'Global Assumptions'!$D$13*$H$3,'Global Assumptions'!$D$12*'Global Assumptions'!$D$13*$H$3) -> 1,023 | F76: =(A76+K76)*'Global Assumptions'!$D$14 -> 2,344 | G76: =IF(A76<'Global Assumptions'!$D$16,A76*'Global Assumptions'!$D$15,'Global Assumptions'!$D$16*'Global Assumptions'!$D$15) -> 332 | H76: =IF(A76<'Global Assumptions'!$D$7,A76*$D$11,IF(A76<$F$11,(A76-'Global Assumptions'!$D$7)*$E$11+'Global Assumptions'!$D$7*$D$11,($F$11-'Global Assumptions'!$D$7)*$E$11+'Global Assumptions'!$D$7*$D$11))*$G$11 -> 20,134 | I76: =+'Global Assumptions'!$D$21*$H$4+'Global Assumptions'!$D$22*$H$5 -> 2,465 | J76: =+'Global Assumptions'!$D$23*$H$4+'Global Assumptions'!$D$24*$H$5 -> 1,576 | K76: =IF(A76<$H$7,A76*'Global Assumptions'!$D$25/1000*$H$6*1.08*12,$H$7*'Global Assumptions'!$D$25/1000*$H$6*1.08*12) -> 218 | L76: ='Global Assumptions'!$D$26 -> 281 | M76: =+$A76*M$11 -> 5,400 | N76: 300 | O76: 6 | P76: 0 | Q76: 516
A77: 125,000 | B77: 31.00% | C77: 38,749 | D77: =IF((A77+K77)<'Global Assumptions'!$D$7,((A77+K77)-'Global Assumptions'!$D$9)*'Global Assumptions'!$D$10,(('Global Assumptions'!$D$7-'Global Assumptions'!$D$9)*'Global Assumptions'!$D$10)+IF((A77+K77)<'Global Assumptions'!$D$8,((A77+K77)-'Global Assumptions'!$D$7)*'Global Assumptions'!$D$11,('Global Assumptions'!$D$8-'Global Assumptions'!$D$7)*'Global Assumptions'!$D$11)) -> 2,836 | E77: =IF(A77<'Global Assumptions'!$D$12,A77*'Global Assumptions'!$D$13*$H$3,'Global Assumptions'!$D$12*'Global Assumptions'!$D$13*$H$3) -> 1,023 | F77: =(A77+K77)*'Global Assumptions'!$D$14 -> 2,442 | G77: =IF(A77<'Global Assumptions'!$D$16,A77*'Global Assumptions'!$D$15,'Global Assumptions'!$D$16*'Global Assumptions'!$D$15) -> 332 | H77: =IF(A77<'Global Assumptions'!$D$7,A77*$D$11,IF(A77<$F$11,(A77-'Global Assumptions'!$D$7)*$E$11+'Global Assumptions'!$D$7*$D$11,($F$11-'Global Assumptions'!$D$7)*$E$11+'Global Assumptions'!$D$7*$D$11))*$G$11 -> 21,096 | I77: =+'Global Assumptions'!$D$21*$H$4+'Global Assumptions'!$D$22*$H$5 -> 2,465 | J77: =+'Global Assumptions'!$D$23*$H$4+'Global Assumptions'!$D$24*$H$5 -> 1,576 | K77: =IF(A77<$H$7,A77*'Global Assumptions'!$D$25/1000*$H$6*1.08*12,$H$7*'Global Assumptions'!$D$25/1000*$H$6*1.08*12) -> 218 | L77: ='Global Assumptions'!$D$26 -> 281 | M77: 5,625 | N77: 313 | O77: 6 | P77: 0 | Q77: 538
A78: 130,000 | B78: 30.82% | C78: 40,068 | D78: =IF((A78+K78)<'Global Assumptions'!$D$7,((A78+K78)-'Global Assumptions'!$D$9)*'Global Assumptions'!$D$10,(('Global Assumptions'!$D$7-'Global Assumptions'!$D$9)*'Global Assumptions'!$D$10)+IF((A78+K78)<'Global Assumptions'!$D$8,((A78+K78)-'Global Assumptions'!$D$7)*'Global Assumptions'!$D$11,('Global Assumptions'!$D$8-'Global Assumptions'!$D$7)*'Global Assumptions'!$D$11)) -> 2,836 | E78: =IF(A78<'Global Assumptions'!$D$12,A78*'Global Assumptions'!$D$13*$H$3,'Global Assumptions'!$D$12*'Global Assumptions'!$D$13*$H$3) -> 1,023 | F78: =(A78+K78)*'Global Assumptions'!$D$14 -> 2,539 | G78: =IF(A78<'Global Assumptions'!$D$16,A78*'Global Assumptions'!$D$15,'Global Assumptions'!$D$16*'Global Assumptions'!$D$15) -> 332 | H78: =IF(A78<'Global Assumptions'!$D$7,A78*$D$11,IF(A78<$F$11,(A78-'Global Assumptions'!$D$7)*$E$11+'Global Assumptions'!$D$7*$D$11,($F$11-'Global Assumptions'!$D$7)*$E$11+'Global Assumptions'!$D$7*$D$11))*$G$11 -> 22,059 | I78: =+'Global Assumptions'!$D$21*$H$4+'Global Assumptions'!$D$22*$H$5 -> 2,465 | J78: =+'Global Assumptions'!$D$23*$H$4+'Global Assumptions'!$D$24*$H$5 -> 1,576 | K78: =IF(A78<$H$7,A78*'Global Assumptions'!$D$25/1000*$H$6*1.08*12,$H$7*'Global Assumptions'!$D$25/1000*$H$6*1.08*12) -> 218 | L78: ='Global Assumptions'!$D$26 -> 281 | M78: 5,850 | N78: 325 | O78: 7 | P78: 0 | Q78: 559
A79: 135,000 | B79: 30.66% | C79: 41,387 | D79: =IF((A79+K79)<'Global Assumptions'!$D$7,((A79+K79)-'Global Assumptions'!$D$9)*'Global Assumptions'!$D$10,(('Global Assumptions'!$D$7-'Global Assumptions'!$D$9)*'Global Assumptions'!$D$10)+IF((A79+K79)<'Global Assumptions'!$D$8,((A79+K79)-'Global Assumptions'!$D$7)*'Global Assumptions'!$D$11,('Global Assumptions'!$D$8-'Global Assumptions'!$D$7)*'Global Assumptions'!$D$11)) -> 2,836 | E79: =IF(A79<'Global Assumptions'!$D$12,A79*'Global Assumptions'!$D$13*$H$3,'Global Assumptions'!$D$12*'Global Assumptions'!$D$13*$H$3) -> 1,023 | F79: =(A79+K79)*'Global Assumptions'!$D$14 -> 2,637 | G79: =IF(A79<'Global Assumptions'!$D$16,A79*'Global Assumptions'!$D$15,'Global Assumptions'!$D$16*'Global Assumptions'!$D$15) -> 332 | H79: =IF(A79<'Global Assumptions'!$D$7,A79*$D$11,IF(A79<$F$11,(A79-'Global Assumptions'!$D$7)*$E$11+'Global Assumptions'!$D$7*$D$11,($F$11-'Global Assumptions'!$D$7)*$E$11+'Global Assumptions'!$D$7*$D$11))*$G$11 -> 23,021 | I79: =+'Global Assumptions'!$D$21*$H$4+'Global Assumptions'!$D$22*$H$5 -> 2,465 | J79: =+'Global Assumptions'!$D$23*$H$4+'Global Assumptions'!$D$24*$H$5 -> 1,576 | K79: =IF(A79<$H$7,A79*'Global Assumptions'!$D$25/1000*$H$6*1.08*12,$H$7*'Global Assumptions'!$D$25/1000*$H$6*1.08*12) -> 218 | L79: ='Global Assumptions'!$D$26 -> 281 | M79: 6,075 | N79: 338 | O79: 7 | P79: 0 | Q79: 581
A80: 140,000 | B80: 30.50% | C80: 42,707 | D80: =IF((A80+K80)<'Global Assumptions'!$D$7,((A80+K80)-'Global Assumptions'!$D$9)*'Global Assumptions'!$D$10,(('Global Assumptions'!$D$7-'Global Assumptions'!$D$9)*'Global Assumptions'!$D$10)+IF((A80+K80)<'Global Assumptions'!$D$8,((A80+K80)-'Global Assumptions'!$D$7)*'Global Assumptions'!$D$11,('Global Assumptions'!$D$8-'Global Assumptions'!$D$7)*'Global Assumptions'!$D$11)) -> 2,836 | E80: =IF(A80<'Global Assumptions'!$D$12,A80*'Global Assumptions'!$D$13*$H$3,'Global Assumptions'!$D$12*'Global Assumptions'!$D$13*$H$3) -> 1,023 | F80: =(A80+K80)*'Global Assumptions'!$D$14 -> 2,734 | G80: =IF(A80<'Global Assumptions'!$D$16,A80*'Global Assumptions'!$D$15,'Global Assumptions'!$D$16*'Global Assumptions'!$D$15) -> 332 | H80: =IF(A80<'Global Assumptions'!$D$7,A80*$D$11,IF(A80<$F$11,(A80-'Global Assumptions'!$D$7)*$E$11+'Global Assumptions'!$D$7*$D$11,($F$11-'Global Assumptions'!$D$7)*$E$11+'Global Assumptions'!$D$7*$D$11))*$G$11 -> 23,984 | I80: =+'Global Assumptions'!$D$21*$H$4+'Global Assumptions'!$D$22*$H$5 -> 2,465 | J80: =+'Global Assumptions'!$D$23*$H$4+'Global Assumptions'!$D$24*$H$5 -> 1,576 | K80: =IF(A80<$H$7,A80*'Global Assumptions'!$D$25/1000*$H$6*1.08*12,$H$7*'Global Assumptions'!$D$25/1000*$H$6*1.08*12) -> 218 | L80: ='Global Assumptions'!$D$26 -> 281 | M80: 6,300 | N80: 350 | O80: 7 | P80: 0 | Q80: 602
A81: 145,000 | B81: 30.36% | C81: 44,026 | D81: =IF((A81+K81)<'Global Assumptions'!$D$7,((A81+K81)-'Global Assumptions'!$D$9)*'Global Assumptions'!$D$10,(('Global Assumptions'!$D$7-'Global Assumptions'!$D$9)*'Global Assumptions'!$D$10)+IF((A81+K81)<'Global Assumptions'!$D$8,((A81+K81)-'Global Assumptions'!$D$7)*'Global Assumptions'!$D$11,('Global Assumptions'!$D$8-'Global Assumptions'!$D$7)*'Global Assumptions'!$D$11)) -> 2,836 | E81: =IF(A81<'Global Assumptions'!$D$12,A81*'Global Assumptions'!$D$13*$H$3,'Global Assumptions'!$D$12*'Global Assumptions'!$D$13*$H$3) -> 1,023 | F81: =(A81+K81)*'Global Assumptions'!$D$14 -> 2,832 | G81: =IF(A81<'Global Assumptions'!$D$16,A81*'Global Assumptions'!$D$15,'Global Assumptions'!$D$16*'Global Assumptions'!$D$15) -> 332 | H81: =IF(A81<'Global Assumptions'!$D$7,A81*$D$11,IF(A81<$F$11,(A81-'Global Assumptions'!$D$7)*$E$11+'Global Assumptions'!$D$7*$D$11,($F$11-'Global Assumptions'!$D$7)*$E$11+'Global Assumptions'!$D$7*$D$11))*$G$11 -> 24,946 | I81: =+'Global Assumptions'!$D$21*$H$4+'Global Assumptions'!$D$22*$H$5 -> 2,465 | J81: =+'Global Assumptions'!$D$23*$H$4+'Global Assumptions'!$D$24*$H$5 -> 1,576 | K81: =IF(A81<$H$7,A81*'Global Assumptions'!$D$25/1000*$H$6*1.08*12,$H$7*'Global Assumptions'!$D$25/1000*$H$6*1.08*12) -> 218 | L81: ='Global Assumptions'!$D$26 -> 281 | M81: 6,525 | N81: 363 | O81: 7 | P81: 0 | Q81: 624
A82: 150,000 | B82: 30.23% | C82: 45,345 | D82: =IF((A82+K82)<'Global Assumptions'!$D$7,((A82+K82)-'Global Assumptions'!$D$9)*'Global Assumptions'!$D$10,(('Global Assumptions'!$D$7-'Global Assumptions'!$D$9)*'Global Assumptions'!$D$10)+IF((A82+K82)<'Global Assumptions'!$D$8,((A82+K82)-'Global Assumptions'!$D$7)*'Global Assumptions'!$D$11,('Global Assumptions'!$D$8-'Global Assumptions'!$D$7)*'Global Assumptions'!$D$11)) -> 2,836 | E82: =IF(A82<'Global Assumptions'!$D$12,A82*'Global Assumptions'!$D$13*$H$3,'Global Assumptions'!$D$12*'Global Assumptions'!$D$13*$H$3) -> 1,023 | F82: =(A82+K82)*'Global Assumptions'!$D$14 -> 2,929 | G82: =IF(A82<'Global Assumptions'!$D$16,A82*'Global Assumptions'!$D$15,'Global Assumptions'!$D$16*'Global Assumptions'!$D$15) -> 332 | H82: =IF(A82<'Global Assumptions'!$D$7,A82*$D$11,IF(A82<$F$11,(A82-'Global Assumptions'!$D$7)*$E$11+'Global Assumptions'!$D$7*$D$11,($F$11-'Global Assumptions'!$D$7)*$E$11+'Global Assumptions'!$D$7*$D$11))*$G$11 -> 25,909 | I82: =+'Global Assumptions'!$D$21*$H$4+'Global Assumptions'!$D$22*$H$5 -> 2,465 | J82: =+'Global Assumptions'!$D$23*$H$4+'Global Assumptions'!$D$24*$H$5 -> 1,576 | K82: =IF(A82<$H$7,A82*'Global Assumptions'!$D$25/1000*$H$6*1.08*12,$H$7*'Global Assumptions'!$D$25/1000*$H$6*1.08*12) -> 218 | L82: ='Global Assumptions'!$D$26 -> 281 | M82: 6,750 | N82: 375 | O82: 8 | P82: 0 | Q82: 645
A83: 155,000 | B83: 30.11% | C83: 46,664 | D83: =IF((A83+K83)<'Global Assumptions'!$D$7,((A83+K83)-'Global Assumptions'!$D$9)*'Global Assumptions'!$D$10,(('Global Assumptions'!$D$7-'Global Assumptions'!$D$9)*'Global Assumptions'!$D$10)+IF((A83+K83)<'Global Assumptions'!$D$8,((A83+K83)-'Global Assumptions'!$D$7)*'Global Assumptions'!$D$11,('Global Assumptions'!$D$8-'Global Assumptions'!$D$7)*'Global Assumptions'!$D$11)) -> 2,836 | E83: =IF(A83<'Global Assumptions'!$D$12,A83*'Global Assumptions'!$D$13*$H$3,'Global Assumptions'!$D$12*'Global Assumptions'!$D$13*$H$3) -> 1,023 | F83: =(A83+K83)*'Global Assumptions'!$D$14 -> 3,027 | G83: =IF(A83<'Global Assumptions'!$D$16,A83*'Global Assumptions'!$D$15,'Global Assumptions'!$D$16*'Global Assumptions'!$D$15) -> 332 | H83: =IF(A83<'Global Assumptions'!$D$7,A83*$D$11,IF(A83<$F$11,(A83-'Global Assumptions'!$D$7)*$E$11+'Global Assumptions'!$D$7*$D$11,($F$11-'Global Assumptions'!$D$7)*$E$11+'Global Assumptions'!$D$7*$D$11))*$G$11 -> 26,871 | I83: =+'Global Assumptions'!$D$21*$H$4+'Global Assumptions'!$D$22*$H$5 -> 2,465 | J83: =+'Global Assumptions'!$D$23*$H$4+'Global Assumptions'!$D$24*$H$5 -> 1,576 | K83: =IF(A83<$H$7,A83*'Global Assumptions'!$D$25/1000*$H$6*1.08*12,$H$7*'Global Assumptions'!$D$25/1000*$H$6*1.08*12) -> 218 | L83: ='Global Assumptions'!$D$26 -> 281 | M83: 6,975 | N83: 388 | O83: 8 | P83: 0 | Q83: 667
A84: 160,000 | B84: 29.99% | C84: 47,984 | D84: =IF((A84+K84)<'Global Assumptions'!$D$7,((A84+K84)-'Global Assumptions'!$D$9)*'Global Assumptions'!$D$10,(('Global Assumptions'!$D$7-'Global Assumptions'!$D$9)*'Global Assumptions'!$D$10)+IF((A84+K84)<'Global Assumptions'!$D$8,((A84+K84)-'Global Assumptions'!$D$7)*'Global Assumptions'!$D$11,('Global Assumptions'!$D$8-'Global Assumptions'!$D$7)*'Global Assumptions'!$D$11)) -> 2,836 | E84: =IF(A84<'Global Assumptions'!$D$12,A84*'Global Assumptions'!$D$13*$H$3,'Global Assumptions'!$D$12*'Global Assumptions'!$D$13*$H$3) -> 1,023 | F84: =(A84+K84)*'Global Assumptions'!$D$14 -> 3,124 | G84: =IF(A84<'Global Assumptions'!$D$16,A84*'Global Assumptions'!$D$15,'Global Assumptions'!$D$16*'Global Assumptions'!$D$15) -> 332 | H84: =IF(A84<'Global Assumptions'!$D$7,A84*$D$11,IF(A84<$F$11,(A84-'Global Assumptions'!$D$7)*$E$11+'Global Assumptions'!$D$7*$D$11,($F$11-'Global Assumptions'!$D$7)*$E$11+'Global Assumptions'!$D$7*$D$11))*$G$11 -> 27,834 | I84: =+'Global Assumptions'!$D$21*$H$4+'Global Assumptions'!$D$22*$H$5 -> 2,465 | J84: =+'Global Assumptions'!$D$23*$H$4+'Global Assumptions'!$D$24*$H$5 -> 1,576 | K84: =IF(A84<$H$7,A84*'Global Assumptions'!$D$25/1000*$H$6*1.08*12,$H$7*'Global Assumptions'!$D$25/1000*$H$6*1.08*12) -> 218 | L84: ='Global Assumptions'!$D$26 -> 281 | M84: 7,200 | N84: 400 | O84: 8 | P84: 0 | Q84: 688
A85: 165,000 | B85: 29.88% | C85: 49,303 | D85: =IF((A85+K85)<'Global Assumptions'!$D$7,((A85+K85)-'Global Assumptions'!$D$9)*'Global Assumptions'!$D$10,(('Global Assumptions'!$D$7-'Global Assumptions'!$D$9)*'Global Assumptions'!$D$10)+IF((A85+K85)<'Global Assumptions'!$D$8,((A85+K85)-'Global Assumptions'!$D$7)*'Global Assumptions'!$D$11,('Global Assumptions'!$D$8-'Global Assumptions'!$D$7)*'Global Assumptions'!$D$11)) -> 2,836 | E85: =IF(A85<'Global Assumptions'!$D$12,A85*'Global Assumptions'!$D$13*$H$3,'Global Assumptions'!$D$12*'Global Assumptions'!$D$13*$H$3) -> 1,023 | F85: =(A85+K85)*'Global Assumptions'!$D$14 -> 3,222 | G85: =IF(A85<'Global Assumptions'!$D$16,A85*'Global Assumptions'!$D$15,'Global Assumptions'!$D$16*'Global Assumptions'!$D$15) -> 332 | H85: =IF(A85<'Global Assumptions'!$D$7,A85*$D$11,IF(A85<$F$11,(A85-'Global Assumptions'!$D$7)*$E$11+'Global Assumptions'!$D$7*$D$11,($F$11-'Global Assumptions'!$D$7)*$E$11+'Global Assumptions'!$D$7*$D$11))*$G$11 -> 28,796 | I85: =+'Global Assumptions'!$D$21*$H$4+'Global Assumptions'!$D$22*$H$5 -> 2,465 | J85: =+'Global Assumptions'!$D$23*$H$4+'Global Assumptions'!$D$24*$H$5 -> 1,576 | K85: =IF(A85<$H$7,A85*'Global Assumptions'!$D$25/1000*$H$6*1.08*12,$H$7*'Global Assumptions'!$D$25/1000*$H$6*1.08*12) -> 218 | L85: ='Global Assumptions'!$D$26 -> 281 | M85: 7,425 | N85: 413 | O85: 8 | P85: 0 | Q85: 710
A86: 170,000 | B86: 29.30% | C86: 49,814 | D86: =IF((A86+K86)<'Global Assumptions'!$D$7,((A86+K86)-'Global Assumptions'!$D$9)*'Global Assumptions'!$D$10,(('Global Assumptions'!$D$7-'Global Assumptions'!$D$9)*'Global Assumptions'!$D$10)+IF((A86+K86)<'Global Assumptions'!$D$8,((A86+K86)-'Global Assumptions'!$D$7)*'Global Assumptions'!$D$11,('Global Assumptions'!$D$8-'Global Assumptions'!$D$7)*'Global Assumptions'!$D$11)) -> 2,836 | E86: =IF(A86<'Global Assumptions'!$D$12,A86*'Global Assumptions'!$D$13*$H$3,'Global Assumptions'!$D$12*'Global Assumptions'!$D$13*$H$3) -> 1,023 | F86: =(A86+K86)*'Global Assumptions'!$D$14 -> 3,319 | G86: =IF(A86<'Global Assumptions'!$D$16,A86*'Global Assumptions'!$D$15,'Global Assumptions'!$D$16*'Global Assumptions'!$D$15) -> 332 | H86: =IF(A86<'Global Assumptions'!$D$7,A86*$D$11,IF(A86<$F$11,(A86-'Global Assumptions'!$D$7)*$E$11+'Global Assumptions'!$D$7*$D$11,($F$11-'Global Assumptions'!$D$7)*$E$11+'Global Assumptions'!$D$7*$D$11))*$G$11 -> 28,950 | I86: =+'Global Assumptions'!$D$21*$H$4+'Global Assumptions'!$D$22*$H$5 -> 2,465 | J86: =+'Global Assumptions'!$D$23*$H$4+'Global Assumptions'!$D$24*$H$5 -> 1,576 | K86: =IF(A86<$H$7,A86*'Global Assumptions'!$D$25/1000*$H$6*1.08*12,$H$7*'Global Assumptions'!$D$25/1000*$H$6*1.08*12) -> 218 | L86: ='Global Assumptions'!$D$26 -> 281 | M86: 7,650 | N86: 425 | O86: 9 | P86: 0 | Q86: 731
A87: 175,000 | B87: 28.67% | C87: 50,170 | D87: =IF((A87+K87)<'Global Assumptions'!$D$7,((A87+K87)-'Global Assumptions'!$D$9)*'Global Assumptions'!$D$10,(('Global Assumptions'!$D$7-'Global Assumptions'!$D$9)*'Global Assumptions'!$D$10)+IF((A87+K87)<'Global Assumptions'!$D$8,((A87+K87)-'Global Assumptions'!$D$7)*'Global Assumptions'!$D$11,('Global Assumptions'!$D$8-'Global Assumptions'!$D$7)*'Global Assumptions'!$D$11)) -> 2,836 | E87: =IF(A87<'Global Assumptions'!$D$12,A87*'Global Assumptions'!$D$13*$H$3,'Global Assumptions'!$D$12*'Global Assumptions'!$D$13*$H$3) -> 1,023 | F87: =(A87+K87)*'Global Assumptions'!$D$14 -> 3,417 | G87: =IF(A87<'Global Assumptions'!$D$16,A87*'Global Assumptions'!$D$15,'Global Assumptions'!$D$16*'Global Assumptions'!$D$15) -> 332 | H87: =IF(A87<'Global Assumptions'!$D$7,A87*$D$11,IF(A87<$F$11,(A87-'Global Assumptions'!$D$7)*$E$11+'Global Assumptions'!$D$7*$D$11,($F$11-'Global Assumptions'!$D$7)*$E$11+'Global Assumptions'!$D$7*$D$11))*$G$11 -> 28,950 | I87: =+'Global Assumptions'!$D$21*$H$4+'Global Assumptions'!$D$22*$H$5 -> 2,465 | J87: =+'Global Assumptions'!$D$23*$H$4+'Global Assumptions'!$D$24*$H$5 -> 1,576 | K87: =IF(A87<$H$7,A87*'Global Assumptions'!$D$25/1000*$H$6*1.08*12,$H$7*'Global Assumptions'!$D$25/1000*$H$6*1.08*12) -> 218 | L87: ='Global Assumptions'!$D$26 -> 281 | M87: 7,875 | N87: 438 | O87: 9 | P87: 0 | Q87: 753
A88: 180,000 | B88: 28.07% | C88: 50,527 | D88: =IF((A88+K88)<'Global Assumptions'!$D$7,((A88+K88)-'Global Assumptions'!$D$9)*'Global Assumptions'!$D$10,(('Global Assumptions'!$D$7-'Global Assumptions'!$D$9)*'Global Assumptions'!$D$10)+IF((A88+K88)<'Global Assumptions'!$D$8,((A88+K88)-'Global Assumptions'!$D$7)*'Global Assumptions'!$D$11,('Global Assumptions'!$D$8-'Global Assumptions'!$D$7)*'Global Assumptions'!$D$11)) -> 2,836 | E88: =IF(A88<'Global Assumptions'!$D$12,A88*'Global Assumptions'!$D$13*$H$3,'Global Assumptions'!$D$12*'Global Assumptions'!$D$13*$H$3) -> 1,023 | F88: =(A88+K88)*'Global Assumptions'!$D$14 -> 3,514 | G88: =IF(A88<'Global Assumptions'!$D$16,A88*'Global Assumptions'!$D$15,'Global Assumptions'!$D$16*'Global Assumptions'!$D$15) -> 332 | H88: =IF(A88<'Global Assumptions'!$D$7,A88*$D$11,IF(A88<$F$11,(A88-'Global Assumptions'!$D$7)*$E$11+'Global Assumptions'!$D$7*$D$11,($F$11-'Global Assumptions'!$D$7)*$E$11+'Global Assumptions'!$D$7*$D$11))*$G$11 -> 28,950 | I88: =+'Global Assumptions'!$D$21*$H$4+'Global Assumptions'!$D$22*$H$5 -> 2,465 | J88: =+'Global Assumptions'!$D$23*$H$4+'Global Assumptions'!$D$24*$H$5 -> 1,576 | K88: =IF(A88<$H$7,A88*'Global Assumptions'!$D$25/1000*$H$6*1.08*12,$H$7*'Global Assumptions'!$D$25/1000*$H$6*1.08*12) -> 218 | L88: ='Global Assumptions'!$D$26 -> 281 | M88: 8,100 | N88: 450 | O88: 9 | P88: 0 | Q88: 774
A89: 185,000 | B89: 27.50% | C89: 50,884 | D89: =IF((A89+K89)<'Global Assumptions'!$D$7,((A89+K89)-'Global Assumptions'!$D$9)*'Global Assumptions'!$D$10,(('Global Assumptions'!$D$7-'Global Assumptions'!$D$9)*'Global Assumptions'!$D$10)+IF((A89+K89)<'Global Assumptions'!$D$8,((A89+K89)-'Global Assumptions'!$D$7)*'Global Assumptions'!$D$11,('Global Assumptions'!$D$8-'Global Assumptions'!$D$7)*'Global Assumptions'!$D$11)) -> 2,836 | E89: =IF(A89<'Global Assumptions'!$D$12,A89*'Global Assumptions'!$D$13*$H$3,'Global Assumptions'!$D$12*'Global Assumptions'!$D$13*$H$3) -> 1,023 | F89: =(A89+K89)*'Global Assumptions'!$D$14 -> 3,612 | G89: =IF(A89<'Global Assumptions'!$D$16,A89*'Global Assumptions'!$D$15,'Global Assumptions'!$D$16*'Global Assumptions'!$D$15) -> 332 | H89: =IF(A89<'Global Assumptions'!$D$7,A89*$D$11,IF(A89<$F$11,(A89-'Global Assumptions'!$D$7)*$E$11+'Global Assumptions'!$D$7*$D$11,($F$11-'Global Assumptions'!$D$7)*$E$11+'Global Assumptions'!$D$7*$D$11))*$G$11 -> 28,950 | I89: =+'Global Assumptions'!$D$21*$H$4+'Global Assumptions'!$D$22*$H$5 -> 2,465 | J89: =+'Global Assumptions'!$D$23*$H$4+'Global Assumptions'!$D$24*$H$5 -> 1,576 | K89: =IF(A89<$H$7,A89*'Global Assumptions'!$D$25/1000*$H$6*1.08*12,$H$7*'Global Assumptions'!$D$25/1000*$H$6*1.08*12) -> 218 | L89: ='Global Assumptions'!$D$26 -> 281 | M89: 8,325 | N89: 463 | O89: 9 | P89: 0 | Q89: 796
A90: 190,000 | B90: 26.97% | C90: 51,241 | D90: =IF((A90+K90)<'Global Assumptions'!$D$7,((A90+K90)-'Global Assumptions'!$D$9)*'Global Assumptions'!$D$10,(('Global Assumptions'!$D$7-'Global Assumptions'!$D$9)*'Global Assumptions'!$D$10)+IF((A90+K90)<'Global Assumptions'!$D$8,((A90+K90)-'Global Assumptions'!$D$7)*'Global Assumptions'!$D$11,('Global Assumptions'!$D$8-'Global Assumptions'!$D$7)*'Global Assumptions'!$D$11)) -> 2,836 | E90: =IF(A90<'Global Assumptions'!$D$12,A90*'Global Assumptions'!$D$13*$H$3,'Global Assumptions'!$D$12*'Global Assumptions'!$D$13*$H$3) -> 1,023 | F90: =(A90+K90)*'Global Assumptions'!$D$14 -> 3,709 | G90: =IF(A90<'Global Assumptions'!$D$16,A90*'Global Assumptions'!$D$15,'Global Assumptions'!$D$16*'Global Assumptions'!$D$15) -> 332 | H90: =IF(A90<'Global Assumptions'!$D$7,A90*$D$11,IF(A90<$F$11,(A90-'Global Assumptions'!$D$7)*$E$11+'Global Assumptions'!$D$7*$D$11,($F$11-'Global Assumptions'!$D$7)*$E$11+'Global Assumptions'!$D$7*$D$11))*$G$11 -> 28,950 | I90: =+'Global Assumptions'!$D$21*$H$4+'Global Assumptions'!$D$22*$H$5 -> 2,465 | J90: =+'Global Assumptions'!$D$23*$H$4+'Global Assumptions'!$D$24*$H$5 -> 1,576 | K90: =IF(A90<$H$7,A90*'Global Assumptions'!$D$25/1000*$H$6*1.08*12,$H$7*'Global Assumptions'!$D$25/1000*$H$6*1.08*12) -> 218 | L90: ='Global Assumptions'!$D$26 -> 281 | M90: 8,550 | N90: 475 | O90: 10 | P90: 0 | Q90: 817
A91: 195,000 | B91: 26.46% | C91: 51,597 | D91: =IF((A91+K91)<'Global Assumptions'!$D$7,((A91+K91)-'Global Assumptions'!$D$9)*'Global Assumptions'!$D$10,(('Global Assumptions'!$D$7-'Global Assumptions'!$D$9)*'Global Assumptions'!$D$10)+IF((A91+K91)<'Global Assumptions'!$D$8,((A91+K91)-'Global Assumptions'!$D$7)*'Global Assumptions'!$D$11,('Global Assumptions'!$D$8-'Global Assumptions'!$D$7)*'Global Assumptions'!$D$11)) -> 2,836 | E91: =IF(A91<'Global Assumptions'!$D$12,A91*'Global Assumptions'!$D$13*$H$3,'Global Assumptions'!$D$12*'Global Assumptions'!$D$13*$H$3) -> 1,023 | F91: =(A91+K91)*'Global Assumptions'!$D$14 -> 3,807 | G91: =IF(A91<'Global Assumptions'!$D$16,A91*'Global Assumptions'!$D$15,'Global Assumptions'!$D$16*'Global Assumptions'!$D$15) -> 332 | H91: =IF(A91<'Global Assumptions'!$D$7,A91*$D$11,IF(A91<$F$11,(A91-'Global Assumptions'!$D$7)*$E$11+'Global Assumptions'!$D$7*$D$11,($F$11-'Global Assumptions'!$D$7)*$E$11+'Global Assumptions'!$D$7*$D$11))*$G$11 -> 28,950 | I91: =+'Global Assumptions'!$D$21*$H$4+'Global Assumptions'!$D$22*$H$5 -> 2,465 | J91: =+'Global Assumptions'!$D$23*$H$4+'Global Assumptions'!$D$24*$H$5 -> 1,576 | K91: =IF(A91<$H$7,A91*'Global Assumptions'!$D$25/1000*$H$6*1.08*12,$H$7*'Global Assumptions'!$D$25/1000*$H$6*1.08*12) -> 218 | L91: ='Global Assumptions'!$D$26 -> 281 | M91: 8,775 | N91: 488 | O91: 10 | P91: 0 | Q91: 839
A92: 200,000 | B92: 25.98% | C92: 51,954 | D92: =IF((A92+K92)<'Global Assumptions'!$D$7,((A92+K92)-'Global Assumptions'!$D$9)*'Global Assumptions'!$D$10,(('Global Assumptions'!$D$7-'Global Assumptions'!$D$9)*'Global Assumptions'!$D$10)+IF((A92+K92)<'Global Assumptions'!$D$8,((A92+K92)-'Global Assumptions'!$D$7)*'Global Assumptions'!$D$11,('Global Assumptions'!$D$8-'Global Assumptions'!$D$7)*'Global Assumptions'!$D$11)) -> 2,836 | E92: =IF(A92<'Global Assumptions'!$D$12,A92*'Global Assumptions'!$D$13*$H$3,'Global Assumptions'!$D$12*'Global Assumptions'!$D$13*$H$3) -> 1,023 | F92: =(A92+K92)*'Global Assumptions'!$D$14 -> 3,904 | G92: =IF(A92<'Global Assumptions'!$D$16,A92*'Global Assumptions'!$D$15,'Global Assumptions'!$D$16*'Global Assumptions'!$D$15) -> 332 | H92: =IF(A92<'Global Assumptions'!$D$7,A92*$D$11,IF(A92<$F$11,(A92-'Global Assumptions'!$D$7)*$E$11+'Global Assumptions'!$D$7*$D$11,($F$11-'Global Assumptions'!$D$7)*$E$11+'Global Assumptions'!$D$7*$D$11))*$G$11 -> 28,950 | I92: =+'Global Assumptions'!$D$21*$H$4+'Global Assumptions'!$D$22*$H$5 -> 2,465 | J92: =+'Global Assumptions'!$D$23*$H$4+'Global Assumptions'!$D$24*$H$5 -> 1,576 | K92: =IF(A92<$H$7,A92*'Global Assumptions'!$D$25/1000*$H$6*1.08*12,$H$7*'Global Assumptions'!$D$25/1000*$H$6*1.08*12) -> 218 | L92: ='Global Assumptions'!$D$26 -> 281 | M92: 9,000 | N92: 500 | O92: 10 | P92: 0 | Q92: 860
A94: =+'Global Assumptions'!E4 -> FY21 Plan
A95: 20,000 | B95: =+C95/A95 -> 50.49% | C95: =SUM(D95:Q95) -> 10,097 | D95: =IF((A95+K95)<'Global Assumptions'!$E$7,((A95+K95)-'Global Assumptions'!$E$9)*'Global Assumptions'!$E$10,(('Global Assumptions'!$E$7-'Global Assumptions'!$E$9)*'Global Assumptions'!$E$10)+IF((A95+K95)<'Global Assumptions'!$E$8,((A95+K95)-'Global Assumptions'!$E$7)*'Global Assumptions'!$E$11,('Global Assumptions'!$E$8-'Global Assumptions'!$E$7)*'Global Assumptions'!$E$11)) -> 918 | E95: =IF(A95<'Global Assumptions'!$E$12,A95*'Global Assumptions'!$E$13*$H$3,'Global Assumptions'!$E$12*'Global Assumptions'!$E$13*$H$3) -> 393 | F95: =(A95+K95)*'Global Assumptions'!$E$14 -> 391 | G95: =IF(A95<'Global Assumptions'!$E$16,A95*'Global Assumptions'!$E$15,'Global Assumptions'!$E$16*'Global Assumptions'!$E$15) -> 72 | H95: =IF(A95<'Global Assumptions'!$E$7,A95*$D$12,IF(A95<$F$12,(A95-'Global Assumptions'!$E$7)*$E$12+'Global Assumptions'!$E$7*$D$12,($F$12-'Global Assumptions'!$E$7)*$E$12+'Global Assumptions'!$E$7*$D$12))*$G$12 -> 2,800 | I95: =+'Global Assumptions'!$E$21*$H$4+'Global Assumptions'!$E$22*$H$5 -> 2,539 | J95: =+'Global Assumptions'!$E$23*$H$4+'Global Assumptions'!$E$24*$H$5 -> 1,623 | K95: =IF(A95<$H$7,A95*'Global Assumptions'!$E$25/1000*$H$6*1.08*12,$H$7*'Global Assumptions'!$E$25/1000*$H$6*1.08*12) -> 44 | L95: ='Global Assumptions'!$E$26 -> 281 | M95: =+$A95*M$12 -> 900 | N95: 50 | O95: 1 | P95: 0 | Q95: 86
A96: 25,000 | B96: 46.24% | C96: 11,559 | D96: =IF((A96+K96)<'Global Assumptions'!$E$7,((A96+K96)-'Global Assumptions'!$E$9)*'Global Assumptions'!$E$10,(('Global Assumptions'!$E$7-'Global Assumptions'!$E$9)*'Global Assumptions'!$E$10)+IF((A96+K96)<'Global Assumptions'!$E$8,((A96+K96)-'Global Assumptions'!$E$7)*'Global Assumptions'!$E$11,('Global Assumptions'!$E$8-'Global Assumptions'!$E$7)*'Global Assumptions'!$E$11)) -> 1,196 | E96: =IF(A96<'Global Assumptions'!$E$12,A96*'Global Assumptions'!$E$13*$H$3,'Global Assumptions'!$E$12*'Global Assumptions'!$E$13*$H$3) -> 491 | F96: =(A96+K96)*'Global Assumptions'!$E$14 -> 489 | G96: =IF(A96<'Global Assumptions'!$E$16,A96*'Global Assumptions'!$E$15,'Global Assumptions'!$E$16*'Global Assumptions'!$E$15) -> 90 | H96: =IF(A96<'Global Assumptions'!$E$7,A96*$D$12,IF(A96<$F$12,(A96-'Global Assumptions'!$E$7)*$E$12+'Global Assumptions'!$E$7*$D$12,($F$12-'Global Assumptions'!$E$7)*$E$12+'Global Assumptions'!$E$7*$D$12))*$G$12 -> 3,500 | I96: =+'Global Assumptions'!$E$21*$H$4+'Global Assumptions'!$E$22*$H$5 -> 2,539 | J96: =+'Global Assumptions'!$E$23*$H$4+'Global Assumptions'!$E$24*$H$5 -> 1,623 | K96: =IF(A96<$H$7,A96*'Global Assumptions'!$E$25/1000*$H$6*1.08*12,$H$7*'Global Assumptions'!$E$25/1000*$H$6*1.08*12) -> 54 | L96: ='Global Assumptions'!$E$26 -> 281 | M96: 1,125 | N96: 63 | O96: 1 | P96: 0 | Q96: 108
A97: 30,000 | B97: 43.41% | C97: 13,022 | D97: =IF((A97+K97)<'Global Assumptions'!$E$7,((A97+K97)-'Global Assumptions'!$E$9)*'Global Assumptions'!$E$10,(('Global Assumptions'!$E$7-'Global Assumptions'!$E$9)*'Global Assumptions'!$E$10)+IF((A97+K97)<'Global Assumptions'!$E$8,((A97+K97)-'Global Assumptions'!$E$7)*'Global Assumptions'!$E$11,('Global Assumptions'!$E$8-'Global Assumptions'!$E$7)*'Global Assumptions'!$E$11)) -> 1,474 | E97: =IF(A97<'Global Assumptions'!$E$12,A97*'Global Assumptions'!$E$13*$H$3,'Global Assumptions'!$E$12*'Global Assumptions'!$E$13*$H$3) -> 589 | F97: =(A97+K97)*'Global Assumptions'!$E$14 -> 586 | G97: =IF(A97<'Global Assumptions'!$E$16,A97*'Global Assumptions'!$E$15,'Global Assumptions'!$E$16*'Global Assumptions'!$E$15) -> 108 | H97: =IF(A97<'Global Assumptions'!$E$7,A97*$D$12,IF(A97<$F$12,(A97-'Global Assumptions'!$E$7)*$E$12+'Global Assumptions'!$E$7*$D$12,($F$12-'Global Assumptions'!$E$7)*$E$12+'Global Assumptions'!$E$7*$D$12))*$G$12 -> 4,200 | I97: =+'Global Assumptions'!$E$21*$H$4+'Global Assumptions'!$E$22*$H$5 -> 2,539 | J97: =+'Global Assumptions'!$E$23*$H$4+'Global Assumptions'!$E$24*$H$5 -> 1,623 | K97: =IF(A97<$H$7,A97*'Global Assumptions'!$E$25/1000*$H$6*1.08*12,$H$7*'Global Assumptions'!$E$25/1000*$H$6*1.08*12) -> 65 | L97: ='Global Assumptions'!$E$26 -> 281 | M97: 1,350 | N97: 75 | O97: 2 | P97: 0 | Q97: 129
A98: 35,000 | B98: 41.38% | C98: 14,484 | D98: =IF((A98+K98)<'Global Assumptions'!$E$7,((A98+K98)-'Global Assumptions'!$E$9)*'Global Assumptions'!$E$10,(('Global Assumptions'!$E$7-'Global Assumptions'!$E$9)*'Global Assumptions'!$E$10)+IF((A98+K98)<'Global Assumptions'!$E$8,((A98+K98)-'Global Assumptions'!$E$7)*'Global Assumptions'!$E$11,('Global Assumptions'!$E$8-'Global Assumptions'!$E$7)*'Global Assumptions'!$E$11)) -> 1,752 | E98: =IF(A98<'Global Assumptions'!$E$12,A98*'Global Assumptions'!$E$13*$H$3,'Global Assumptions'!$E$12*'Global Assumptions'!$E$13*$H$3) -> 687 | F98: =(A98+K98)*'Global Assumptions'!$E$14 -> 684 | G98: =IF(A98<'Global Assumptions'!$E$16,A98*'Global Assumptions'!$E$15,'Global Assumptions'!$E$16*'Global Assumptions'!$E$15) -> 126 | H98: =IF(A98<'Global Assumptions'!$E$7,A98*$D$12,IF(A98<$F$12,(A98-'Global Assumptions'!$E$7)*$E$12+'Global Assumptions'!$E$7*$D$12,($F$12-'Global Assumptions'!$E$7)*$E$12+'Global Assumptions'!$E$7*$D$12))*$G$12 -> 4,900 | I98: =+'Global Assumptions'!$E$21*$H$4+'Global Assumptions'!$E$22*$H$5 -> 2,539 | J98: =+'Global Assumptions'!$E$23*$H$4+'Global Assumptions'!$E$24*$H$5 -> 1,623 | K98: =IF(A98<$H$7,A98*'Global Assumptions'!$E$25/1000*$H$6*1.08*12,$H$7*'Global Assumptions'!$E$25/1000*$H$6*1.08*12) -> 76 | L98: ='Global Assumptions'!$E$26 -> 281 | M98: 1,575 | N98: 88 | O98: 2 | P98: 0 | Q98: 151
A99: 40,000 | B99: 39.86% | C99: 15,946 | D99: =IF((A99+K99)<'Global Assumptions'!$E$7,((A99+K99)-'Global Assumptions'!$E$9)*'Global Assumptions'!$E$10,(('Global Assumptions'!$E$7-'Global Assumptions'!$E$9)*'Global Assumptions'!$E$10)+IF((A99+K99)<'Global Assumptions'!$E$8,((A99+K99)-'Global Assumptions'!$E$7)*'Global Assumptions'!$E$11,('Global Assumptions'!$E$8-'Global Assumptions'!$E$7)*'Global Assumptions'!$E$11)) -> 2,031 | E99: =IF(A99<'Global Assumptions'!$E$12,A99*'Global Assumptions'!$E$13*$H$3,'Global Assumptions'!$E$12*'Global Assumptions'!$E$13*$H$3) -> 786 | F99: =(A99+K99)*'Global Assumptions'!$E$14 -> 782 | G99: =IF(A99<'Global Assumptions'!$E$16,A99*'Global Assumptions'!$E$15,'Global Assumptions'!$E$16*'Global Assumptions'!$E$15) -> 144 | H99: =IF(A99<'Global Assumptions'!$E$7,A99*$D$12,IF(A99<$F$12,(A99-'Global Assumptions'!$E$7)*$E$12+'Global Assumptions'!$E$7*$D$12,($F$12-'Global Assumptions'!$E$7)*$E$12+'Global Assumptions'!$E$7*$D$12))*$G$12 -> 5,600 | I99: =+'Global Assumptions'!$E$21*$H$4+'Global Assumptions'!$E$22*$H$5 -> 2,539 | J99: =+'Global Assumptions'!$E$23*$H$4+'Global Assumptions'!$E$24*$H$5 -> 1,623 | K99: =IF(A99<$H$7,A99*'Global Assumptions'!$E$25/1000*$H$6*1.08*12,$H$7*'Global Assumptions'!$E$25/1000*$H$6*1.08*12) -> 87 | L99: ='Global Assumptions'!$E$26 -> 281 | M99: 1,800 | N99: 100 | O99: 2 | P99: 0 | Q99: 172
A100: 45,000 | B100: 38.68% | C100: 17,408 | D100: =IF((A100+K100)<'Global Assumptions'!$E$7,((A100+K100)-'Global Assumptions'!$E$9)*'Global Assumptions'!$E$10,(('Global Assumptions'!$E$7-'Global Assumptions'!$E$9)*'Global Assumptions'!$E$10)+IF((A100+K100)<'Global Assumptions'!$E$8,((A100+K100)-'Global Assumptions'!$E$7)*'Global Assumptions'!$E$11,('Global Assumptions'!$E$8-'Global Assumptions'!$E$7)*'Global Assumptions'!$E$11)) -> 2,309 | E100: =IF(A100<'Global Assumptions'!$E$12,A100*'Global Assumptions'!$E$13*$H$3,'Global Assumptions'!$E$12*'Global Assumptions'!$E$13*$H$3) -> 884 | F100: =(A100+K100)*'Global Assumptions'!$E$14 -> 879 | G100: =IF(A100<'Global Assumptions'!$E$16,A100*'Global Assumptions'!$E$15,'Global Assumptions'!$E$16*'Global Assumptions'!$E$15) -> 162 | H100: =IF(A100<'Global Assumptions'!$E$7,A100*$D$12,IF(A100<$F$12,(A100-'Global Assumptions'!$E$7)*$E$12+'Global Assumptions'!$E$7*$D$12,($F$12-'Global Assumptions'!$E$7)*$E$12+'Global Assumptions'!$E$7*$D$12))*$G$12 -> 6,300 | I100: =+'Global Assumptions'!$E$21*$H$4+'Global Assumptions'!$E$22*$H$5 -> 2,539 | J100: =+'Global Assumptions'!$E$23*$H$4+'Global Assumptions'!$E$24*$H$5 -> 1,623 | K100: =IF(A100<$H$7,A100*'Global Assumptions'!$E$25/1000*$H$6*1.08*12,$H$7*'Global Assumptions'!$E$25/1000*$H$6*1.08*12) -> 98 | L100: ='Global Assumptions'!$E$26 -> 281 | M100: 2,025 | N100: 113 | O100: 2 | P100: 0 | Q100: 194
A101: 50,000 | B101: 37.74% | C101: 18,870 | D101: =IF((A101+K101)<'Global Assumptions'!$E$7,((A101+K101)-'Global Assumptions'!$E$9)*'Global Assumptions'!$E$10,(('Global Assumptions'!$E$7-'Global Assumptions'!$E$9)*'Global Assumptions'!$E$10)+IF((A101+K101)<'Global Assumptions'!$E$8,((A101+K101)-'Global Assumptions'!$E$7)*'Global Assumptions'!$E$11,('Global Assumptions'!$E$8-'Global Assumptions'!$E$7)*'Global Assumptions'!$E$11)) -> 2,587 | E101: =IF(A101<'Global Assumptions'!$E$12,A101*'Global Assumptions'!$E$13*$H$3,'Global Assumptions'!$E$12*'Global Assumptions'!$E$13*$H$3) -> 982 | F101: =(A101+K101)*'Global Assumptions'!$E$14 -> 977 | G101: =IF(A101<'Global Assumptions'!$E$16,A101*'Global Assumptions'!$E$15,'Global Assumptions'!$E$16*'Global Assumptions'!$E$15) -> 180 | H101: =IF(A101<'Global Assumptions'!$E$7,A101*$D$12,IF(A101<$F$12,(A101-'Global Assumptions'!$E$7)*$E$12+'Global Assumptions'!$E$7*$D$12,($F$12-'Global Assumptions'!$E$7)*$E$12+'Global Assumptions'!$E$7*$D$12))*$G$12 -> 7,000 | I101: =+'Global Assumptions'!$E$21*$H$4+'Global Assumptions'!$E$22*$H$5 -> 2,539 | J101: =+'Global Assumptions'!$E$23*$H$4+'Global Assumptions'!$E$24*$H$5 -> 1,623 | K101: =IF(A101<$H$7,A101*'Global Assumptions'!$E$25/1000*$H$6*1.08*12,$H$7*'Global Assumptions'!$E$25/1000*$H$6*1.08*12) -> 109 | L101: ='Global Assumptions'!$E$26 -> 281 | M101: 2,250 | N101: 125 | O101: 3 | P101: 0 | Q101: 215
A102: 55,000 | B102: 36.88% | C102: 20,283 | D102: =IF((A102+K102)<'Global Assumptions'!$E$7,((A102+K102)-'Global Assumptions'!$E$9)*'Global Assumptions'!$E$10,(('Global Assumptions'!$E$7-'Global Assumptions'!$E$9)*'Global Assumptions'!$E$10)+IF((A102+K102)<'Global Assumptions'!$E$8,((A102+K102)-'Global Assumptions'!$E$7)*'Global Assumptions'!$E$11,('Global Assumptions'!$E$8-'Global Assumptions'!$E$7)*'Global Assumptions'!$E$11)) -> 2,865 | E102: =IF(A102<'Global Assumptions'!$E$12,A102*'Global Assumptions'!$E$13*$H$3,'Global Assumptions'!$E$12*'Global Assumptions'!$E$13*$H$3) -> 1,031 | F102: =(A102+K102)*'Global Assumptions'!$E$14 -> 1,075 | G102: =IF(A102<'Global Assumptions'!$E$16,A102*'Global Assumptions'!$E$15,'Global Assumptions'!$E$16*'Global Assumptions'!$E$15) -> 198 | H102: =IF(A102<'Global Assumptions'!$E$7,A102*$D$12,IF(A102<$F$12,(A102-'Global Assumptions'!$E$7)*$E$12+'Global Assumptions'!$E$7*$D$12,($F$12-'Global Assumptions'!$E$7)*$E$12+'Global Assumptions'!$E$7*$D$12))*$G$12 -> 7,700 | I102: =+'Global Assumptions'!$E$21*$H$4+'Global Assumptions'!$E$22*$H$5 -> 2,539 | J102: =+'Global Assumptions'!$E$23*$H$4+'Global Assumptions'!$E$24*$H$5 -> 1,623 | K102: =IF(A102<$H$7,A102*'Global Assumptions'!$E$25/1000*$H$6*1.08*12,$H$7*'Global Assumptions'!$E$25/1000*$H$6*1.08*12) -> 120 | L102: ='Global Assumptions'!$E$26 -> 281 | M102: 2,475 | N102: 138 | O102: 3 | P102: 0 | Q102: 237
A103: 60,000 | B103: 36.05% | C103: 21,631 | D103: =IF((A103+K103)<'Global Assumptions'!$E$7,((A103+K103)-'Global Assumptions'!$E$9)*'Global Assumptions'!$E$10,(('Global Assumptions'!$E$7-'Global Assumptions'!$E$9)*'Global Assumptions'!$E$10)+IF((A103+K103)<'Global Assumptions'!$E$8,((A103+K103)-'Global Assumptions'!$E$7)*'Global Assumptions'!$E$11,('Global Assumptions'!$E$8-'Global Assumptions'!$E$7)*'Global Assumptions'!$E$11)) -> 2,975 | E103: =IF(A103<'Global Assumptions'!$E$12,A103*'Global Assumptions'!$E$13*$H$3,'Global Assumptions'!$E$12*'Global Assumptions'!$E$13*$H$3) -> 1,031 | F103: =(A103+K103)*'Global Assumptions'!$E$14 -> 1,173 | G103: =IF(A103<'Global Assumptions'!$E$16,A103*'Global Assumptions'!$E$15,'Global Assumptions'!$E$16*'Global Assumptions'!$E$15) -> 216 | H103: =IF(A103<'Global Assumptions'!$E$7,A103*$D$12,IF(A103<$F$12,(A103-'Global Assumptions'!$E$7)*$E$12+'Global Assumptions'!$E$7*$D$12,($F$12-'Global Assumptions'!$E$7)*$E$12+'Global Assumptions'!$E$7*$D$12))*$G$12 -> 8,552 | I103: =+'Global Assumptions'!$E$21*$H$4+'Global Assumptions'!$E$22*$H$5 -> 2,539 | J103: =+'Global Assumptions'!$E$23*$H$4+'Global Assumptions'!$E$24*$H$5 -> 1,623 | K103: =IF(A103<$H$7,A103*'Global Assumptions'!$E$25/1000*$H$6*1.08*12,$H$7*'Global Assumptions'!$E$25/1000*$H$6*1.08*12) -> 131 | L103: ='Global Assumptions'!$E$26 -> 281 | M103: 2,700 | N103: 150 | O103: 3 | P103: 0 | Q103: 258
A104: 65,000 | B104: 35.35% | C104: 22,979 | D104: =IF((A104+K104)<'Global Assumptions'!$E$7,((A104+K104)-'Global Assumptions'!$E$9)*'Global Assumptions'!$E$10,(('Global Assumptions'!$E$7-'Global Assumptions'!$E$9)*'Global Assumptions'!$E$10)+IF((A104+K104)<'Global Assumptions'!$E$8,((A104+K104)-'Global Assumptions'!$E$7)*'Global Assumptions'!$E$11,('Global Assumptions'!$E$8-'Global Assumptions'!$E$7)*'Global Assumptions'!$E$11)) -> 2,975 | E104: =IF(A104<'Global Assumptions'!$E$12,A104*'Global Assumptions'!$E$13*$H$3,'Global Assumptions'!$E$12*'Global Assumptions'!$E$13*$H$3) -> 1,031 | F104: =(A104+K104)*'Global Assumptions'!$E$14 -> 1,270 | G104: =IF(A104<'Global Assumptions'!$E$16,A104*'Global Assumptions'!$E$15,'Global Assumptions'!$E$16*'Global Assumptions'!$E$15) -> 234 | H104: =IF(A104<'Global Assumptions'!$E$7,A104*$D$12,IF(A104<$F$12,(A104-'Global Assumptions'!$E$7)*$E$12+'Global Assumptions'!$E$7*$D$12,($F$12-'Global Assumptions'!$E$7)*$E$12+'Global Assumptions'!$E$7*$D$12))*$G$12 -> 9,515 | I104: =+'Global Assumptions'!$E$21*$H$4+'Global Assumptions'!$E$22*$H$5 -> 2,539 | J104: =+'Global Assumptions'!$E$23*$H$4+'Global Assumptions'!$E$24*$H$5 -> 1,623 | K104: =IF(A104<$H$7,A104*'Global Assumptions'!$E$25/1000*$H$6*1.08*12,$H$7*'Global Assumptions'!$E$25/1000*$H$6*1.08*12) -> 142 | L104: ='Global Assumptions'!$E$26 -> 281 | M104: 2,925 | N104: 163 | O104: 3 | P104: 0 | Q104: 280
A105: 70,000 | B105: 34.75% | C105: 24,328 | D105: =IF((A105+K105)<'Global Assumptions'!$E$7,((A105+K105)-'Global Assumptions'!$E$9)*'Global Assumptions'!$E$10,(('Global Assumptions'!$E$7-'Global Assumptions'!$E$9)*'Global Assumptions'!$E$10)+IF((A105+K105)<'Global Assumptions'!$E$8,((A105+K105)-'Global Assumptions'!$E$7)*'Global Assumptions'!$E$11,('Global Assumptions'!$E$8-'Global Assumptions'!$E$7)*'Global Assumptions'!$E$11)) -> 2,975 | E105: =IF(A105<'Global Assumptions'!$E$12,A105*'Global Assumptions'!$E$13*$H$3,'Global Assumptions'!$E$12*'Global Assumptions'!$E$13*$H$3) -> 1,031 | F105: =(A105+K105)*'Global Assumptions'!$E$14 -> 1,368 | G105: =IF(A105<'Global Assumptions'!$E$16,A105*'Global Assumptions'!$E$15,'Global Assumptions'!$E$16*'Global Assumptions'!$E$15) -> 252 | H105: =IF(A105<'Global Assumptions'!$E$7,A105*$D$12,IF(A105<$F$12,(A105-'Global Assumptions'!$E$7)*$E$12+'Global Assumptions'!$E$7*$D$12,($F$12-'Global Assumptions'!$E$7)*$E$12+'Global Assumptions'!$E$7*$D$12))*$G$12 -> 10,477 | I105: =+'Global Assumptions'!$E$21*$H$4+'Global Assumptions'!$E$22*$H$5 -> 2,539 | J105: =+'Global Assumptions'!$E$23*$H$4+'Global Assumptions'!$E$24*$H$5 -> 1,623 | K105: =IF(A105<$H$7,A105*'Global Assumptions'!$E$25/1000*$H$6*1.08*12,$H$7*'Global Assumptions'!$E$25/1000*$H$6*1.08*12) -> 152 | L105: ='Global Assumptions'!$E$26 -> 281 | M105: 3,150 | N105: 175 | O105: 4 | P105: 0 | Q105: 301
A106: 75,000 | B106: 34.23% | C106: 25,676 | D106: =IF((A106+K106)<'Global Assumptions'!$E$7,((A106+K106)-'Global Assumptions'!$E$9)*'Global Assumptions'!$E$10,(('Global Assumptions'!$E$7-'Global Assumptions'!$E$9)*'Global Assumptions'!$E$10)+IF((A106+K106)<'Global Assumptions'!$E$8,((A106+K106)-'Global Assumptions'!$E$7)*'Global Assumptions'!$E$11,('Global Assumptions'!$E$8-'Global Assumptions'!$E$7)*'Global Assumptions'!$E$11)) -> 2,975 | E106: =IF(A106<'Global Assumptions'!$E$12,A106*'Global Assumptions'!$E$13*$H$3,'Global Assumptions'!$E$12*'Global Assumptions'!$E$13*$H$3) -> 1,031 | F106: =(A106+K106)*'Global Assumptions'!$E$14 -> 1,466 | G106: =IF(A106<'Global Assumptions'!$E$16,A106*'Global Assumptions'!$E$15,'Global Assumptions'!$E$16*'Global Assumptions'!$E$15) -> 270 | H106: =IF(A106<'Global Assumptions'!$E$7,A106*$D$12,IF(A106<$F$12,(A106-'Global Assumptions'!$E$7)*$E$12+'Global Assumptions'!$E$7*$D$12,($F$12-'Global Assumptions'!$E$7)*$E$12+'Global Assumptions'!$E$7*$D$12))*$G$12 -> 11,440 | I106: =+'Global Assumptions'!$E$21*$H$4+'Global Assumptions'!$E$22*$H$5 -> 2,539 | J106: =+'Global Assumptions'!$E$23*$H$4+'Global Assumptions'!$E$24*$H$5 -> 1,623 | K106: =IF(A106<$H$7,A106*'Global Assumptions'!$E$25/1000*$H$6*1.08*12,$H$7*'Global Assumptions'!$E$25/1000*$H$6*1.08*12) -> 163 | L106: ='Global Assumptions'!$E$26 -> 281 | M106: 3,375 | N106: 188 | O106: 4 | P106: 0 | Q106: 323
A107: 80,000 | B107: 33.78% | C107: 27,025 | D107: =IF((A107+K107)<'Global Assumptions'!$E$7,((A107+K107)-'Global Assumptions'!$E$9)*'Global Assumptions'!$E$10,(('Global Assumptions'!$E$7-'Global Assumptions'!$E$9)*'Global Assumptions'!$E$10)+IF((A107+K107)<'Global Assumptions'!$E$8,((A107+K107)-'Global Assumptions'!$E$7)*'Global Assumptions'!$E$11,('Global Assumptions'!$E$8-'Global Assumptions'!$E$7)*'Global Assumptions'!$E$11)) -> 2,975 | E107: =IF(A107<'Global Assumptions'!$E$12,A107*'Global Assumptions'!$E$13*$H$3,'Global Assumptions'!$E$12*'Global Assumptions'!$E$13*$H$3) -> 1,031 | F107: =(A107+K107)*'Global Assumptions'!$E$14 -> 1,563 | G107: =IF(A107<'Global Assumptions'!$E$16,A107*'Global Assumptions'!$E$15,'Global Assumptions'!$E$16*'Global Assumptions'!$E$15) -> 288 | H107: =IF(A107<'Global Assumptions'!$E$7,A107*$D$12,IF(A107<$F$12,(A107-'Global Assumptions'!$E$7)*$E$12+'Global Assumptions'!$E$7*$D$12,($F$12-'Global Assumptions'!$E$7)*$E$12+'Global Assumptions'!$E$7*$D$12))*$G$12 -> 12,402 | I107: =+'Global Assumptions'!$E$21*$H$4+'Global Assumptions'!$E$22*$H$5 -> 2,539 | J107: =+'Global Assumptions'!$E$23*$H$4+'Global Assumptions'!$E$24*$H$5 -> 1,623 | K107: =IF(A107<$H$7,A107*'Global Assumptions'!$E$25/1000*$H$6*1.08*12,$H$7*'Global Assumptions'!$E$25/1000*$H$6*1.08*12) -> 174 | L107: ='Global Assumptions'!$E$26 -> 281 | M107: 3,600 | N107: 200 | O107: 4 | P107: 0 | Q107: 344
A108: 85,000 | B108: 33.38% | C108: 28,373 | D108: =IF((A108+K108)<'Global Assumptions'!$E$7,((A108+K108)-'Global Assumptions'!$E$9)*'Global Assumptions'!$E$10,(('Global Assumptions'!$E$7-'Global Assumptions'!$E$9)*'Global Assumptions'!$E$10)+IF((A108+K108)<'Global Assumptions'!$E$8,((A108+K108)-'Global Assumptions'!$E$7)*'Global Assumptions'!$E$11,('Global Assumptions'!$E$8-'Global Assumptions'!$E$7)*'Global Assumptions'!$E$11)) -> 2,975 | E108: =IF(A108<'Global Assumptions'!$E$12,A108*'Global Assumptions'!$E$13*$H$3,'Global Assumptions'!$E$12*'Global Assumptions'!$E$13*$H$3) -> 1,031 | F108: =(A108+K108)*'Global Assumptions'!$E$14 -> 1,661 | G108: =IF(A108<'Global Assumptions'!$E$16,A108*'Global Assumptions'!$E$15,'Global Assumptions'!$E$16*'Global Assumptions'!$E$15) -> 306 | H108: =IF(A108<'Global Assumptions'!$E$7,A108*$D$12,IF(A108<$F$12,(A108-'Global Assumptions'!$E$7)*$E$12+'Global Assumptions'!$E$7*$D$12,($F$12-'Global Assumptions'!$E$7)*$E$12+'Global Assumptions'!$E$7*$D$12))*$G$12 -> 13,365 | I108: =+'Global Assumptions'!$E$21*$H$4+'Global Assumptions'!$E$22*$H$5 -> 2,539 | J108: =+'Global Assumptions'!$E$23*$H$4+'Global Assumptions'!$E$24*$H$5 -> 1,623 | K108: =IF(A108<$H$7,A108*'Global Assumptions'!$E$25/1000*$H$6*1.08*12,$H$7*'Global Assumptions'!$E$25/1000*$H$6*1.08*12) -> 185 | L108: ='Global Assumptions'!$E$26 -> 281 | M108: 3,825 | N108: 213 | O108: 4 | P108: 0 | Q108: 366
A109: 90,000 | B109: 33.02% | C109: 29,721 | D109: =IF((A109+K109)<'Global Assumptions'!$E$7,((A109+K109)-'Global Assumptions'!$E$9)*'Global Assumptions'!$E$10,(('Global Assumptions'!$E$7-'Global Assumptions'!$E$9)*'Global Assumptions'!$E$10)+IF((A109+K109)<'Global Assumptions'!$E$8,((A109+K109)-'Global Assumptions'!$E$7)*'Global Assumptions'!$E$11,('Global Assumptions'!$E$8-'Global Assumptions'!$E$7)*'Global Assumptions'!$E$11)) -> 2,975 | E109: =IF(A109<'Global Assumptions'!$E$12,A109*'Global Assumptions'!$E$13*$H$3,'Global Assumptions'!$E$12*'Global Assumptions'!$E$13*$H$3) -> 1,031 | F109: =(A109+K109)*'Global Assumptions'!$E$14 -> 1,759 | G109: =IF(A109<'Global Assumptions'!$E$16,A109*'Global Assumptions'!$E$15,'Global Assumptions'!$E$16*'Global Assumptions'!$E$15) -> 324 | H109: =IF(A109<'Global Assumptions'!$E$7,A109*$D$12,IF(A109<$F$12,(A109-'Global Assumptions'!$E$7)*$E$12+'Global Assumptions'!$E$7*$D$12,($F$12-'Global Assumptions'!$E$7)*$E$12+'Global Assumptions'!$E$7*$D$12))*$G$12 -> 14,327 | I109: =+'Global Assumptions'!$E$21*$H$4+'Global Assumptions'!$E$22*$H$5 -> 2,539 | J109: =+'Global Assumptions'!$E$23*$H$4+'Global Assumptions'!$E$24*$H$5 -> 1,623 | K109: =IF(A109<$H$7,A109*'Global Assumptions'!$E$25/1000*$H$6*1.08*12,$H$7*'Global Assumptions'!$E$25/1000*$H$6*1.08*12) -> 196 | L109: ='Global Assumptions'!$E$26 -> 281 | M109: 4,050 | N109: 225 | O109: 5 | P109: 0 | Q109: 387
A110: 95,000 | B110: 32.70% | C110: 31,066 | D110: =IF((A110+K110)<'Global Assumptions'!$E$7,((A110+K110)-'Global Assumptions'!$E$9)*'Global Assumptions'!$E$10,(('Global Assumptions'!$E$7-'Global Assumptions'!$E$9)*'Global Assumptions'!$E$10)+IF((A110+K110)<'Global Assumptions'!$E$8,((A110+K110)-'Global Assumptions'!$E$7)*'Global Assumptions'!$E$11,('Global Assumptions'!$E$8-'Global Assumptions'!$E$7)*'Global Assumptions'!$E$11)) -> 2,975 | E110: =IF(A110<'Global Assumptions'!$E$12,A110*'Global Assumptions'!$E$13*$H$3,'Global Assumptions'!$E$12*'Global Assumptions'!$E$13*$H$3) -> 1,031 | F110: =(A110+K110)*'Global Assumptions'!$E$14 -> 1,857 | G110: =IF(A110<'Global Assumptions'!$E$16,A110*'Global Assumptions'!$E$15,'Global Assumptions'!$E$16*'Global Assumptions'!$E$15) -> 338 | H110: =IF(A110<'Global Assumptions'!$E$7,A110*$D$12,IF(A110<$F$12,(A110-'Global Assumptions'!$E$7)*$E$12+'Global Assumptions'!$E$7*$D$12,($F$12-'Global Assumptions'!$E$7)*$E$12+'Global Assumptions'!$E$7*$D$12))*$G$12 -> 15,290 | I110: =+'Global Assumptions'!$E$21*$H$4+'Global Assumptions'!$E$22*$H$5 -> 2,539 | J110: =+'Global Assumptions'!$E$23*$H$4+'Global Assumptions'!$E$24*$H$5 -> 1,623 | K110: =IF(A110<$H$7,A110*'Global Assumptions'!$E$25/1000*$H$6*1.08*12,$H$7*'Global Assumptions'!$E$25/1000*$H$6*1.08*12) -> 207 | L110: ='Global Assumptions'!$E$26 -> 281 | M110: 4,275 | N110: 238 | O110: 5 | P110: 0 | Q110: 409
A111: 100,000 | B111: 32.40% | C111: 32,396 | D111: =IF((A111+K111)<'Global Assumptions'!$E$7,((A111+K111)-'Global Assumptions'!$E$9)*'Global Assumptions'!$E$10,(('Global Assumptions'!$E$7-'Global Assumptions'!$E$9)*'Global Assumptions'!$E$10)+IF((A111+K111)<'Global Assumptions'!$E$8,((A111+K111)-'Global Assumptions'!$E$7)*'Global Assumptions'!$E$11,('Global Assumptions'!$E$8-'Global Assumptions'!$E$7)*'Global Assumptions'!$E$11)) -> 2,975 | E111: =IF(A111<'Global Assumptions'!$E$12,A111*'Global Assumptions'!$E$13*$H$3,'Global Assumptions'!$E$12*'Global Assumptions'!$E$13*$H$3) -> 1,031 | F111: =(A111+K111)*'Global Assumptions'!$E$14 -> 1,954 | G111: =IF(A111<'Global Assumptions'!$E$16,A111*'Global Assumptions'!$E$15,'Global Assumptions'!$E$16*'Global Assumptions'!$E$15) -> 338 | H111: =IF(A111<'Global Assumptions'!$E$7,A111*$D$12,IF(A111<$F$12,(A111-'Global Assumptions'!$E$7)*$E$12+'Global Assumptions'!$E$7*$D$12,($F$12-'Global Assumptions'!$E$7)*$E$12+'Global Assumptions'!$E$7*$D$12))*$G$12 -> 16,252 | I111: =+'Global Assumptions'!$E$21*$H$4+'Global Assumptions'!$E$22*$H$5 -> 2,539 | J111: =+'Global Assumptions'!$E$23*$H$4+'Global Assumptions'!$E$24*$H$5 -> 1,623 | K111: =IF(A111<$H$7,A111*'Global Assumptions'!$E$25/1000*$H$6*1.08*12,$H$7*'Global Assumptions'!$E$25/1000*$H$6*1.08*12) -> 218 | L111: ='Global Assumptions'!$E$26 -> 281 | M111: 4,500 | N111: 250 | O111: 5 | P111: 0 | Q111: 430
A112: 105,000 | B112: 32.11% | C112: 33,715 | D112: =IF((A112+K112)<'Global Assumptions'!$E$7,((A112+K112)-'Global Assumptions'!$E$9)*'Global Assumptions'!$E$10,(('Global Assumptions'!$E$7-'Global Assumptions'!$E$9)*'Global Assumptions'!$E$10)+IF((A112+K112)<'Global Assumptions'!$E$8,((A112+K112)-'Global Assumptions'!$E$7)*'Global Assumptions'!$E$11,('Global Assumptions'!$E$8-'Global Assumptions'!$E$7)*'Global Assumptions'!$E$11)) -> 2,975 | E112: =IF(A112<'Global Assumptions'!$E$12,A112*'Global Assumptions'!$E$13*$H$3,'Global Assumptions'!$E$12*'Global Assumptions'!$E$13*$H$3) -> 1,031 | F112: =(A112+K112)*'Global Assumptions'!$E$14 -> 2,052 | G112: =IF(A112<'Global Assumptions'!$E$16,A112*'Global Assumptions'!$E$15,'Global Assumptions'!$E$16*'Global Assumptions'!$E$15) -> 338 | H112: =IF(A112<'Global Assumptions'!$E$7,A112*$D$12,IF(A112<$F$12,(A112-'Global Assumptions'!$E$7)*$E$12+'Global Assumptions'!$E$7*$D$12,($F$12-'Global Assumptions'!$E$7)*$E$12+'Global Assumptions'!$E$7*$D$12))*$G$12 -> 17,215 | I112: =+'Global Assumptions'!$E$21*$H$4+'Global Assumptions'!$E$22*$H$5 -> 2,539 | J112: =+'Global Assumptions'!$E$23*$H$4+'Global Assumptions'!$E$24*$H$5 -> 1,623 | K112: =IF(A112<$H$7,A112*'Global Assumptions'!$E$25/1000*$H$6*1.08*12,$H$7*'Global Assumptions'!$E$25/1000*$H$6*1.08*12) -> 218 | L112: ='Global Assumptions'!$E$26 -> 281 | M112: 4,725 | N112: 263 | O112: 5 | P112: 0 | Q112: 452
A113: 110,000 | B113: 31.85% | C113: 35,034 | D113: =IF((A113+K113)<'Global Assumptions'!$E$7,((A113+K113)-'Global Assumptions'!$E$9)*'Global Assumptions'!$E$10,(('Global Assumptions'!$E$7-'Global Assumptions'!$E$9)*'Global Assumptions'!$E$10)+IF((A113+K113)<'Global Assumptions'!$E$8,((A113+K113)-'Global Assumptions'!$E$7)*'Global Assumptions'!$E$11,('Global Assumptions'!$E$8-'Global Assumptions'!$E$7)*'Global Assumptions'!$E$11)) -> 2,975 | E113: =IF(A113<'Global Assumptions'!$E$12,A113*'Global Assumptions'!$E$13*$H$3,'Global Assumptions'!$E$12*'Global Assumptions'!$E$13*$H$3) -> 1,031 | F113: =(A113+K113)*'Global Assumptions'!$E$14 -> 2,149 | G113: =IF(A113<'Global Assumptions'!$E$16,A113*'Global Assumptions'!$E$15,'Global Assumptions'!$E$16*'Global Assumptions'!$E$15) -> 338 | H113: =IF(A113<'Global Assumptions'!$E$7,A113*$D$12,IF(A113<$F$12,(A113-'Global Assumptions'!$E$7)*$E$12+'Global Assumptions'!$E$7*$D$12,($F$12-'Global Assumptions'!$E$7)*$E$12+'Global Assumptions'!$E$7*$D$12))*$G$12 -> 18,177 | I113: =+'Global Assumptions'!$E$21*$H$4+'Global Assumptions'!$E$22*$H$5 -> 2,539 | J113: =+'Global Assumptions'!$E$23*$H$4+'Global Assumptions'!$E$24*$H$5 -> 1,623 | K113: =IF(A113<$H$7,A113*'Global Assumptions'!$E$25/1000*$H$6*1.08*12,$H$7*'Global Assumptions'!$E$25/1000*$H$6*1.08*12) -> 218 | L113: ='Global Assumptions'!$E$26 -> 281 | M113: 4,950 | N113: 275 | O113: 6 | P113: 0 | Q113: 473
A114: 115,000 | B114: 31.61% | C114: 36,354 | D114: =IF((A114+K114)<'Global Assumptions'!$E$7,((A114+K114)-'Global Assumptions'!$E$9)*'Global Assumptions'!$E$10,(('Global Assumptions'!$E$7-'Global Assumptions'!$E$9)*'Global Assumptions'!$E$10)+IF((A114+K114)<'Global Assumptions'!$E$8,((A114+K114)-'Global Assumptions'!$E$7)*'Global Assumptions'!$E$11,('Global Assumptions'!$E$8-'Global Assumptions'!$E$7)*'Global Assumptions'!$E$11)) -> 2,975 | E114: =IF(A114<'Global Assumptions'!$E$12,A114*'Global Assumptions'!$E$13*$H$3,'Global Assumptions'!$E$12*'Global Assumptions'!$E$13*$H$3) -> 1,031 | F114: =(A114+K114)*'Global Assumptions'!$E$14 -> 2,247 | G114: =IF(A114<'Global Assumptions'!$E$16,A114*'Global Assumptions'!$E$15,'Global Assumptions'!$E$16*'Global Assumptions'!$E$15) -> 338 | H114: =IF(A114<'Global Assumptions'!$E$7,A114*$D$12,IF(A114<$F$12,(A114-'Global Assumptions'!$E$7)*$E$12+'Global Assumptions'!$E$7*$D$12,($F$12-'Global Assumptions'!$E$7)*$E$12+'Global Assumptions'!$E$7*$D$12))*$G$12 -> 19,140 | I114: =+'Global Assumptions'!$E$21*$H$4+'Global Assumptions'!$E$22*$H$5 -> 2,539 | J114: =+'Global Assumptions'!$E$23*$H$4+'Global Assumptions'!$E$24*$H$5 -> 1,623 | K114: =IF(A114<$H$7,A114*'Global Assumptions'!$E$25/1000*$H$6*1.08*12,$H$7*'Global Assumptions'!$E$25/1000*$H$6*1.08*12) -> 218 | L114: ='Global Assumptions'!$E$26 -> 281 | M114: 5,175 | N114: 288 | O114: 6 | P114: 0 | Q114: 495
A115: 120,000 | B115: 31.39% | C115: 37,673 | D115: =IF((A115+K115)<'Global Assumptions'!$E$7,((A115+K115)-'Global Assumptions'!$E$9)*'Global Assumptions'!$E$10,(('Global Assumptions'!$E$7-'Global Assumptions'!$E$9)*'Global Assumptions'!$E$10)+IF((A115+K115)<'Global Assumptions'!$E$8,((A115+K115)-'Global Assumptions'!$E$7)*'Global Assumptions'!$E$11,('Global Assumptions'!$E$8-'Global Assumptions'!$E$7)*'Global Assumptions'!$E$11)) -> 2,975 | E115: =IF(A115<'Global Assumptions'!$E$12,A115*'Global Assumptions'!$E$13*$H$3,'Global Assumptions'!$E$12*'Global Assumptions'!$E$13*$H$3) -> 1,031 | F115: =(A115+K115)*'Global Assumptions'!$E$14 -> 2,344 | G115: =IF(A115<'Global Assumptions'!$E$16,A115*'Global Assumptions'!$E$15,'Global Assumptions'!$E$16*'Global Assumptions'!$E$15) -> 338 | H115: =IF(A115<'Global Assumptions'!$E$7,A115*$D$12,IF(A115<$F$12,(A115-'Global Assumptions'!$E$7)*$E$12+'Global Assumptions'!$E$7*$D$12,($F$12-'Global Assumptions'!$E$7)*$E$12+'Global Assumptions'!$E$7*$D$12))*$G$12 -> 20,102 | I115: =+'Global Assumptions'!$E$21*$H$4+'Global Assumptions'!$E$22*$H$5 -> 2,539 | J115: =+'Global Assumptions'!$E$23*$H$4+'Global Assumptions'!$E$24*$H$5 -> 1,623 | K115: =IF(A115<$H$7,A115*'Global Assumptions'!$E$25/1000*$H$6*1.08*12,$H$7*'Global Assumptions'!$E$25/1000*$H$6*1.08*12) -> 218 | L115: ='Global Assumptions'!$E$26 -> 281 | M115: =+$A115*M$12 -> 5,400 | N115: 300 | O115: 6 | P115: 0 | Q115: 516
A116: 125,000 | B116: 31.19% | C116: 38,992 | D116: =IF((A116+K116)<'Global Assumptions'!$E$7,((A116+K116)-'Global Assumptions'!$E$9)*'Global Assumptions'!$E$10,(('Global Assumptions'!$E$7-'Global Assumptions'!$E$9)*'Global Assumptions'!$E$10)+IF((A116+K116)<'Global Assumptions'!$E$8,((A116+K116)-'Global Assumptions'!$E$7)*'Global Assumptions'!$E$11,('Global Assumptions'!$E$8-'Global Assumptions'!$E$7)*'Global Assumptions'!$E$11)) -> 2,975 | E116: =IF(A116<'Global Assumptions'!$E$12,A116*'Global Assumptions'!$E$13*$H$3,'Global Assumptions'!$E$12*'Global Assumptions'!$E$13*$H$3) -> 1,031 | F116: =(A116+K116)*'Global Assumptions'!$E$14 -> 2,442 | G116: =IF(A116<'Global Assumptions'!$E$16,A116*'Global Assumptions'!$E$15,'Global Assumptions'!$E$16*'Global Assumptions'!$E$15) -> 338 | H116: =IF(A116<'Global Assumptions'!$E$7,A116*$D$12,IF(A116<$F$12,(A116-'Global Assumptions'!$E$7)*$E$12+'Global Assumptions'!$E$7*$D$12,($F$12-'Global Assumptions'!$E$7)*$E$12+'Global Assumptions'!$E$7*$D$12))*$G$12 -> 21,065 | I116: =+'Global Assumptions'!$E$21*$H$4+'Global Assumptions'!$E$22*$H$5 -> 2,539 | J116: =+'Global Assumptions'!$E$23*$H$4+'Global Assumptions'!$E$24*$H$5 -> 1,623 | K116: =IF(A116<$H$7,A116*'Global Assumptions'!$E$25/1000*$H$6*1.08*12,$H$7*'Global Assumptions'!$E$25/1000*$H$6*1.08*12) -> 218 | L116: ='Global Assumptions'!$E$26 -> 281 | M116: 5,625 | N116: 313 | O116: 6 | P116: 0 | Q116: 538
A117: 130,000 | B117: 31.01% | C117: 40,311 | D117: =IF((A117+K117)<'Global Assumptions'!$E$7,((A117+K117)-'Global Assumptions'!$E$9)*'Global Assumptions'!$E$10,(('Global Assumptions'!$E$7-'Global Assumptions'!$E$9)*'Global Assumptions'!$E$10)+IF((A117+K117)<'Global Assumptions'!$E$8,((A117+K117)-'Global Assumptions'!$E$7)*'Global Assumptions'!$E$11,('Global Assumptions'!$E$8-'Global Assumptions'!$E$7)*'Global Assumptions'!$E$11)) -> 2,975 | E117: =IF(A117<'Global Assumptions'!$E$12,A117*'Global Assumptions'!$E$13*$H$3,'Global Assumptions'!$E$12*'Global Assumptions'!$E$13*$H$3) -> 1,031 | F117: =(A117+K117)*'Global Assumptions'!$E$14 -> 2,539 | G117: =IF(A117<'Global Assumptions'!$E$16,A117*'Global Assumptions'!$E$15,'Global Assumptions'!$E$16*'Global Assumptions'!$E$15) -> 338 | H117: =IF(A117<'Global Assumptions'!$E$7,A117*$D$12,IF(A117<$F$12,(A117-'Global Assumptions'!$E$7)*$E$12+'Global Assumptions'!$E$7*$D$12,($F$12-'Global Assumptions'!$E$7)*$E$12+'Global Assumptions'!$E$7*$D$12))*$G$12 -> 22,027 | I117: =+'Global Assumptions'!$E$21*$H$4+'Global Assumptions'!$E$22*$H$5 -> 2,539 | J117: =+'Global Assumptions'!$E$23*$H$4+'Global Assumptions'!$E$24*$H$5 -> 1,623 | K117: =IF(A117<$H$7,A117*'Global Assumptions'!$E$25/1000*$H$6*1.08*12,$H$7*'Global Assumptions'!$E$25/1000*$H$6*1.08*12) -> 218 | L117: ='Global Assumptions'!$E$26 -> 281 | M117: 5,850 | N117: 325 | O117: 7 | P117: 0 | Q117: 559
A118: 135,000 | B118: 30.84% | C118: 41,631 | D118: =IF((A118+K118)<'Global Assumptions'!$E$7,((A118+K118)-'Global Assumptions'!$E$9)*'Global Assumptions'!$E$10,(('Global Assumptions'!$E$7-'Global Assumptions'!$E$9)*'Global Assumptions'!$E$10)+IF((A118+K118)<'Global Assumptions'!$E$8,((A118+K118)-'Global Assumptions'!$E$7)*'Global Assumptions'!$E$11,('Global Assumptions'!$E$8-'Global Assumptions'!$E$7)*'Global Assumptions'!$E$11)) -> 2,975 | E118: =IF(A118<'Global Assumptions'!$E$12,A118*'Global Assumptions'!$E$13*$H$3,'Global Assumptions'!$E$12*'Global Assumptions'!$E$13*$H$3) -> 1,031 | F118: =(A118+K118)*'Global Assumptions'!$E$14 -> 2,637 | G118: =IF(A118<'Global Assumptions'!$E$16,A118*'Global Assumptions'!$E$15,'Global Assumptions'!$E$16*'Global Assumptions'!$E$15) -> 338 | H118: =IF(A118<'Global Assumptions'!$E$7,A118*$D$12,IF(A118<$F$12,(A118-'Global Assumptions'!$E$7)*$E$12+'Global Assumptions'!$E$7*$D$12,($F$12-'Global Assumptions'!$E$7)*$E$12+'Global Assumptions'!$E$7*$D$12))*$G$12 -> 22,990 | I118: =+'Global Assumptions'!$E$21*$H$4+'Global Assumptions'!$E$22*$H$5 -> 2,539 | J118: =+'Global Assumptions'!$E$23*$H$4+'Global Assumptions'!$E$24*$H$5 -> 1,623 | K118: =IF(A118<$H$7,A118*'Global Assumptions'!$E$25/1000*$H$6*1.08*12,$H$7*'Global Assumptions'!$E$25/1000*$H$6*1.08*12) -> 218 | L118: ='Global Assumptions'!$E$26 -> 281 | M118: 6,075 | N118: 338 | O118: 7 | P118: 0 | Q118: 581
A119: 140,000 | B119: 30.68% | C119: 42,950 | D119: =IF((A119+K119)<'Global Assumptions'!$E$7,((A119+K119)-'Global Assumptions'!$E$9)*'Global Assumptions'!$E$10,(('Global Assumptions'!$E$7-'Global Assumptions'!$E$9)*'Global Assumptions'!$E$10)+IF((A119+K119)<'Global Assumptions'!$E$8,((A119+K119)-'Global Assumptions'!$E$7)*'Global Assumptions'!$E$11,('Global Assumptions'!$E$8-'Global Assumptions'!$E$7)*'Global Assumptions'!$E$11)) -> 2,975 | E119: =IF(A119<'Global Assumptions'!$E$12,A119*'Global Assumptions'!$E$13*$H$3,'Global Assumptions'!$E$12*'Global Assumptions'!$E$13*$H$3) -> 1,031 | F119: =(A119+K119)*'Global Assumptions'!$E$14 -> 2,734 | G119: =IF(A119<'Global Assumptions'!$E$16,A119*'Global Assumptions'!$E$15,'Global Assumptions'!$E$16*'Global Assumptions'!$E$15) -> 338 | H119: =IF(A119<'Global Assumptions'!$E$7,A119*$D$12,IF(A119<$F$12,(A119-'Global Assumptions'!$E$7)*$E$12+'Global Assumptions'!$E$7*$D$12,($F$12-'Global Assumptions'!$E$7)*$E$12+'Global Assumptions'!$E$7*$D$12))*$G$12 -> 23,952 | I119: =+'Global Assumptions'!$E$21*$H$4+'Global Assumptions'!$E$22*$H$5 -> 2,539 | J119: =+'Global Assumptions'!$E$23*$H$4+'Global Assumptions'!$E$24*$H$5 -> 1,623 | K119: =IF(A119<$H$7,A119*'Global Assumptions'!$E$25/1000*$H$6*1.08*12,$H$7*'Global Assumptions'!$E$25/1000*$H$6*1.08*12) -> 218 | L119: ='Global Assumptions'!$E$26 -> 281 | M119: 6,300 | N119: 350 | O119: 7 | P119: 0 | Q119: 602
A120: 145,000 | B120: 30.53% | C120: 44,269 | D120: =IF((A120+K120)<'Global Assumptions'!$E$7,((A120+K120)-'Global Assumptions'!$E$9)*'Global Assumptions'!$E$10,(('Global Assumptions'!$E$7-'Global Assumptions'!$E$9)*'Global Assumptions'!$E$10)+IF((A120+K120)<'Global Assumptions'!$E$8,((A120+K120)-'Global Assumptions'!$E$7)*'Global Assumptions'!$E$11,('Global Assumptions'!$E$8-'Global Assumptions'!$E$7)*'Global Assumptions'!$E$11)) -> 2,975 | E120: =IF(A120<'Global Assumptions'!$E$12,A120*'Global Assumptions'!$E$13*$H$3,'Global Assumptions'!$E$12*'Global Assumptions'!$E$13*$H$3) -> 1,031 | F120: =(A120+K120)*'Global Assumptions'!$E$14 -> 2,832 | G120: =IF(A120<'Global Assumptions'!$E$16,A120*'Global Assumptions'!$E$15,'Global Assumptions'!$E$16*'Global Assumptions'!$E$15) -> 338 | H120: =IF(A120<'Global Assumptions'!$E$7,A120*$D$12,IF(A120<$F$12,(A120-'Global Assumptions'!$E$7)*$E$12+'Global Assumptions'!$E$7*$D$12,($F$12-'Global Assumptions'!$E$7)*$E$12+'Global Assumptions'!$E$7*$D$12))*$G$12 -> 24,915 | I120: =+'Global Assumptions'!$E$21*$H$4+'Global Assumptions'!$E$22*$H$5 -> 2,539 | J120: =+'Global Assumptions'!$E$23*$H$4+'Global Assumptions'!$E$24*$H$5 -> 1,623 | K120: =IF(A120<$H$7,A120*'Global Assumptions'!$E$25/1000*$H$6*1.08*12,$H$7*'Global Assumptions'!$E$25/1000*$H$6*1.08*12) -> 218 | L120: ='Global Assumptions'!$E$26 -> 281 | M120: 6,525 | N120: 363 | O120: 7 | P120: 0 | Q120: 624
A121: 150,000 | B121: 30.39% | C121: 45,588 | D121: =IF((A121+K121)<'Global Assumptions'!$E$7,((A121+K121)-'Global Assumptions'!$E$9)*'Global Assumptions'!$E$10,(('Global Assumptions'!$E$7-'Global Assumptions'!$E$9)*'Global Assumptions'!$E$10)+IF((A121+K121)<'Global Assumptions'!$E$8,((A121+K121)-'Global Assumptions'!$E$7)*'Global Assumptions'!$E$11,('Global Assumptions'!$E$8-'Global Assumptions'!$E$7)*'Global Assumptions'!$E$11)) -> 2,975 | E121: =IF(A121<'Global Assumptions'!$E$12,A121*'Global Assumptions'!$E$13*$H$3,'Global Assumptions'!$E$12*'Global Assumptions'!$E$13*$H$3) -> 1,031 | F121: =(A121+K121)*'Global Assumptions'!$E$14 -> 2,929 | G121: =IF(A121<'Global Assumptions'!$E$16,A121*'Global Assumptions'!$E$15,'Global Assumptions'!$E$16*'Global Assumptions'!$E$15) -> 338 | H121: =IF(A121<'Global Assumptions'!$E$7,A121*$D$12,IF(A121<$F$12,(A121-'Global Assumptions'!$E$7)*$E$12+'Global Assumptions'!$E$7*$D$12,($F$12-'Global Assumptions'!$E$7)*$E$12+'Global Assumptions'!$E$7*$D$12))*$G$12 -> 25,877 | I121: =+'Global Assumptions'!$E$21*$H$4+'Global Assumptions'!$E$22*$H$5 -> 2,539 | J121: =+'Global Assumptions'!$E$23*$H$4+'Global Assumptions'!$E$24*$H$5 -> 1,623 | K121: =IF(A121<$H$7,A121*'Global Assumptions'!$E$25/1000*$H$6*1.08*12,$H$7*'Global Assumptions'!$E$25/1000*$H$6*1.08*12) -> 218 | L121: ='Global Assumptions'!$E$26 -> 281 | M121: 6,750 | N121: 375 | O121: 8 | P121: 0 | Q121: 645
A122: 155,000 | B122: 30.26% | C122: 46,908 | D122: =IF((A122+K122)<'Global Assumptions'!$E$7,((A122+K122)-'Global Assumptions'!$E$9)*'Global Assumptions'!$E$10,(('Global Assumptions'!$E$7-'Global Assumptions'!$E$9)*'Global Assumptions'!$E$10)+IF((A122+K122)<'Global Assumptions'!$E$8,((A122+K122)-'Global Assumptions'!$E$7)*'Global Assumptions'!$E$11,('Global Assumptions'!$E$8-'Global Assumptions'!$E$7)*'Global Assumptions'!$E$11)) -> 2,975 | E122: =IF(A122<'Global Assumptions'!$E$12,A122*'Global Assumptions'!$E$13*$H$3,'Global Assumptions'!$E$12*'Global Assumptions'!$E$13*$H$3) -> 1,031 | F122: =(A122+K122)*'Global Assumptions'!$E$14 -> 3,027 | G122: =IF(A122<'Global Assumptions'!$E$16,A122*'Global Assumptions'!$E$15,'Global Assumptions'!$E$16*'Global Assumptions'!$E$15) -> 338 | H122: =IF(A122<'Global Assumptions'!$E$7,A122*$D$12,IF(A122<$F$12,(A122-'Global Assumptions'!$E$7)*$E$12+'Global Assumptions'!$E$7*$D$12,($F$12-'Global Assumptions'!$E$7)*$E$12+'Global Assumptions'!$E$7*$D$12))*$G$12 -> 26,840 | I122: =+'Global Assumptions'!$E$21*$H$4+'Global Assumptions'!$E$22*$H$5 -> 2,539 | J122: =+'Global Assumptions'!$E$23*$H$4+'Global Assumptions'!$E$24*$H$5 -> 1,623 | K122: =IF(A122<$H$7,A122*'Global Assumptions'!$E$25/1000*$H$6*1.08*12,$H$7*'Global Assumptions'!$E$25/1000*$H$6*1.08*12) -> 218 | L122: ='Global Assumptions'!$E$26 -> 281 | M122: 6,975 | N122: 388 | O122: 8 | P122: 0 | Q122: 667
A123: 160,000 | B123: 30.14% | C123: 48,227 | D123: =IF((A123+K123)<'Global Assumptions'!$E$7,((A123+K123)-'Global Assumptions'!$E$9)*'Global Assumptions'!$E$10,(('Global Assumptions'!$E$7-'Global Assumptions'!$E$9)*'Global Assumptions'!$E$10)+IF((A123+K123)<'Global Assumptions'!$E$8,((A123+K123)-'Global Assumptions'!$E$7)*'Global Assumptions'!$E$11,('Global Assumptions'!$E$8-'Global Assumptions'!$E$7)*'Global Assumptions'!$E$11)) -> 2,975 | E123: =IF(A123<'Global Assumptions'!$E$12,A123*'Global Assumptions'!$E$13*$H$3,'Global Assumptions'!$E$12*'Global Assumptions'!$E$13*$H$3) -> 1,031 | F123: =(A123+K123)*'Global Assumptions'!$E$14 -> 3,124 | G123: =IF(A123<'Global Assumptions'!$E$16,A123*'Global Assumptions'!$E$15,'Global Assumptions'!$E$16*'Global Assumptions'!$E$15) -> 338 | H123: =IF(A123<'Global Assumptions'!$E$7,A123*$D$12,IF(A123<$F$12,(A123-'Global Assumptions'!$E$7)*$E$12+'Global Assumptions'!$E$7*$D$12,($F$12-'Global Assumptions'!$E$7)*$E$12+'Global Assumptions'!$E$7*$D$12))*$G$12 -> 27,802 | I123: =+'Global Assumptions'!$E$21*$H$4+'Global Assumptions'!$E$22*$H$5 -> 2,539 | J123: =+'Global Assumptions'!$E$23*$H$4+'Global Assumptions'!$E$24*$H$5 -> 1,623 | K123: =IF(A123<$H$7,A123*'Global Assumptions'!$E$25/1000*$H$6*1.08*12,$H$7*'Global Assumptions'!$E$25/1000*$H$6*1.08*12) -> 218 | L123: ='Global Assumptions'!$E$26 -> 281 | M123: 7,200 | N123: 400 | O123: 8 | P123: 0 | Q123: 688
A124: 165,000 | B124: 30.03% | C124: 49,546 | D124: =IF((A124+K124)<'Global Assumptions'!$E$7,((A124+K124)-'Global Assumptions'!$E$9)*'Global Assumptions'!$E$10,(('Global Assumptions'!$E$7-'Global Assumptions'!$E$9)*'Global Assumptions'!$E$10)+IF((A124+K124)<'Global Assumptions'!$E$8,((A124+K124)-'Global Assumptions'!$E$7)*'Global Assumptions'!$E$11,('Global Assumptions'!$E$8-'Global Assumptions'!$E$7)*'Global Assumptions'!$E$11)) -> 2,975 | E124: =IF(A124<'Global Assumptions'!$E$12,A124*'Global Assumptions'!$E$13*$H$3,'Global Assumptions'!$E$12*'Global Assumptions'!$E$13*$H$3) -> 1,031 | F124: =(A124+K124)*'Global Assumptions'!$E$14 -> 3,222 | G124: =IF(A124<'Global Assumptions'!$E$16,A124*'Global Assumptions'!$E$15,'Global Assumptions'!$E$16*'Global Assumptions'!$E$15) -> 338 | H124: =IF(A124<'Global Assumptions'!$E$7,A124*$D$12,IF(A124<$F$12,(A124-'Global Assumptions'!$E$7)*$E$12+'Global Assumptions'!$E$7*$D$12,($F$12-'Global Assumptions'!$E$7)*$E$12+'Global Assumptions'!$E$7*$D$12))*$G$12 -> 28,765 | I124: =+'Global Assumptions'!$E$21*$H$4+'Global Assumptions'!$E$22*$H$5 -> 2,539 | J124: =+'Global Assumptions'!$E$23*$H$4+'Global Assumptions'!$E$24*$H$5 -> 1,623 | K124: =IF(A124<$H$7,A124*'Global Assumptions'!$E$25/1000*$H$6*1.08*12,$H$7*'Global Assumptions'!$E$25/1000*$H$6*1.08*12) -> 218 | L124: ='Global Assumptions'!$E$26 -> 281 | M124: 7,425 | N124: 413 | O124: 8 | P124: 0 | Q124: 710
A125: 170,000 | B125: 29.65% | C125: 50,403 | D125: =IF((A125+K125)<'Global Assumptions'!$E$7,((A125+K125)-'Global Assumptions'!$E$9)*'Global Assumptions'!$E$10,(('Global Assumptions'!$E$7-'Global Assumptions'!$E$9)*'Global Assumptions'!$E$10)+IF((A125+K125)<'Global Assumptions'!$E$8,((A125+K125)-'Global Assumptions'!$E$7)*'Global Assumptions'!$E$11,('Global Assumptions'!$E$8-'Global Assumptions'!$E$7)*'Global Assumptions'!$E$11)) -> 2,975 | E125: =IF(A125<'Global Assumptions'!$E$12,A125*'Global Assumptions'!$E$13*$H$3,'Global Assumptions'!$E$12*'Global Assumptions'!$E$13*$H$3) -> 1,031 | F125: =(A125+K125)*'Global Assumptions'!$E$14 -> 3,319 | G125: =IF(A125<'Global Assumptions'!$E$16,A125*'Global Assumptions'!$E$15,'Global Assumptions'!$E$16*'Global Assumptions'!$E$15) -> 338 | H125: =IF(A125<'Global Assumptions'!$E$7,A125*$D$12,IF(A125<$F$12,(A125-'Global Assumptions'!$E$7)*$E$12+'Global Assumptions'!$E$7*$D$12,($F$12-'Global Assumptions'!$E$7)*$E$12+'Global Assumptions'!$E$7*$D$12))*$G$12 -> 29,265 | I125: =+'Global Assumptions'!$E$21*$H$4+'Global Assumptions'!$E$22*$H$5 -> 2,539 | J125: =+'Global Assumptions'!$E$23*$H$4+'Global Assumptions'!$E$24*$H$5 -> 1,623 | K125: =IF(A125<$H$7,A125*'Global Assumptions'!$E$25/1000*$H$6*1.08*12,$H$7*'Global Assumptions'!$E$25/1000*$H$6*1.08*12) -> 218 | L125: ='Global Assumptions'!$E$26 -> 281 | M125: 7,650 | N125: 425 | O125: 9 | P125: 0 | Q125: 731
A126: 175,000 | B126: 29.01% | C126: 50,760 | D126: =IF((A126+K126)<'Global Assumptions'!$E$7,((A126+K126)-'Global Assumptions'!$E$9)*'Global Assumptions'!$E$10,(('Global Assumptions'!$E$7-'Global Assumptions'!$E$9)*'Global Assumptions'!$E$10)+IF((A126+K126)<'Global Assumptions'!$E$8,((A126+K126)-'Global Assumptions'!$E$7)*'Global Assumptions'!$E$11,('Global Assumptions'!$E$8-'Global Assumptions'!$E$7)*'Global Assumptions'!$E$11)) -> 2,975 | E126: =IF(A126<'Global Assumptions'!$E$12,A126*'Global Assumptions'!$E$13*$H$3,'Global Assumptions'!$E$12*'Global Assumptions'!$E$13*$H$3) -> 1,031 | F126: =(A126+K126)*'Global Assumptions'!$E$14 -> 3,417 | G126: =IF(A126<'Global Assumptions'!$E$16,A126*'Global Assumptions'!$E$15,'Global Assumptions'!$E$16*'Global Assumptions'!$E$15) -> 338 | H126: =IF(A126<'Global Assumptions'!$E$7,A126*$D$12,IF(A126<$F$12,(A126-'Global Assumptions'!$E$7)*$E$12+'Global Assumptions'!$E$7*$D$12,($F$12-'Global Assumptions'!$E$7)*$E$12+'Global Assumptions'!$E$7*$D$12))*$G$12 -> 29,265 | I126: =+'Global Assumptions'!$E$21*$H$4+'Global Assumptions'!$E$22*$H$5 -> 2,539 | J126: =+'Global Assumptions'!$E$23*$H$4+'Global Assumptions'!$E$24*$H$5 -> 1,623 | K126: =IF(A126<$H$7,A126*'Global Assumptions'!$E$25/1000*$H$6*1.08*12,$H$7*'Global Assumptions'!$E$25/1000*$H$6*1.08*12) -> 218 | L126: ='Global Assumptions'!$E$26 -> 281 | M126: 7,875 | N126: 438 | O126: 9 | P126: 0 | Q126: 753
A127: 180,000 | B127: 28.40% | C127: 51,117 | D127: =IF((A127+K127)<'Global Assumptions'!$E$7,((A127+K127)-'Global Assumptions'!$E$9)*'Global Assumptions'!$E$10,(('Global Assumptions'!$E$7-'Global Assumptions'!$E$9)*'Global Assumptions'!$E$10)+IF((A127+K127)<'Global Assumptions'!$E$8,((A127+K127)-'Global Assumptions'!$E$7)*'Global Assumptions'!$E$11,('Global Assumptions'!$E$8-'Global Assumptions'!$E$7)*'Global Assumptions'!$E$11)) -> 2,975 | E127: =IF(A127<'Global Assumptions'!$E$12,A127*'Global Assumptions'!$E$13*$H$3,'Global Assumptions'!$E$12*'Global Assumptions'!$E$13*$H$3) -> 1,031 | F127: =(A127+K127)*'Global Assumptions'!$E$14 -> 3,514 | G127: =IF(A127<'Global Assumptions'!$E$16,A127*'Global Assumptions'!$E$15,'Global Assumptions'!$E$16*'Global Assumptions'!$E$15) -> 338 | H127: =IF(A127<'Global Assumptions'!$E$7,A127*$D$12,IF(A127<$F$12,(A127-'Global Assumptions'!$E$7)*$E$12+'Global Assumptions'!$E$7*$D$12,($F$12-'Global Assumptions'!$E$7)*$E$12+'Global Assumptions'!$E$7*$D$12))*$G$12 -> 29,265 | I127: =+'Global Assumptions'!$E$21*$H$4+'Global Assumptions'!$E$22*$H$5 -> 2,539 | J127: =+'Global Assumptions'!$E$23*$H$4+'Global Assumptions'!$E$24*$H$5 -> 1,623 | K127: =IF(A127<$H$7,A127*'Global Assumptions'!$E$25/1000*$H$6*1.08*12,$H$7*'Global Assumptions'!$E$25/1000*$H$6*1.08*12) -> 218 | L127: ='Global Assumptions'!$E$26 -> 281 | M127: 8,100 | N127: 450 | O127: 9 | P127: 0 | Q127: 774
A128: 185,000 | B128: 27.82% | C128: 51,474 | D128: =IF((A128+K128)<'Global Assumptions'!$E$7,((A128+K128)-'Global Assumptions'!$E$9)*'Global Assumptions'!$E$10,(('Global Assumptions'!$E$7-'Global Assumptions'!$E$9)*'Global Assumptions'!$E$10)+IF((A128+K128)<'Global Assumptions'!$E$8,((A128+K128)-'Global Assumptions'!$E$7)*'Global Assumptions'!$E$11,('Global Assumptions'!$E$8-'Global Assumptions'!$E$7)*'Global Assumptions'!$E$11)) -> 2,975 | E128: =IF(A128<'Global Assumptions'!$E$12,A128*'Global Assumptions'!$E$13*$H$3,'Global Assumptions'!$E$12*'Global Assumptions'!$E$13*$H$3) -> 1,031 | F128: =(A128+K128)*'Global Assumptions'!$E$14 -> 3,612 | G128: =IF(A128<'Global Assumptions'!$E$16,A128*'Global Assumptions'!$E$15,'Global Assumptions'!$E$16*'Global Assumptions'!$E$15) -> 338 | H128: =IF(A128<'Global Assumptions'!$E$7,A128*$D$12,IF(A128<$F$12,(A128-'Global Assumptions'!$E$7)*$E$12+'Global Assumptions'!$E$7*$D$12,($F$12-'Global Assumptions'!$E$7)*$E$12+'Global Assumptions'!$E$7*$D$12))*$G$12 -> 29,265 | I128: =+'Global Assumptions'!$E$21*$H$4+'Global Assumptions'!$E$22*$H$5 -> 2,539 | J128: =+'Global Assumptions'!$E$23*$H$4+'Global Assumptions'!$E$24*$H$5 -> 1,623 | K128: =IF(A128<$H$7,A128*'Global Assumptions'!$E$25/1000*$H$6*1.08*12,$H$7*'Global Assumptions'!$E$25/1000*$H$6*1.08*12) -> 218 | L128: ='Global Assumptions'!$E$26 -> 281 | M128: 8,325 | N128: 463 | O128: 9 | P128: 0 | Q128: 796
A129: 190,000 | B129: 27.28% | C129: 51,830 | D129: =IF((A129+K129)<'Global Assumptions'!$E$7,((A129+K129)-'Global Assumptions'!$E$9)*'Global Assumptions'!$E$10,(('Global Assumptions'!$E$7-'Global Assumptions'!$E$9)*'Global Assumptions'!$E$10)+IF((A129+K129)<'Global Assumptions'!$E$8,((A129+K129)-'Global Assumptions'!$E$7)*'Global Assumptions'!$E$11,('Global Assumptions'!$E$8-'Global Assumptions'!$E$7)*'Global Assumptions'!$E$11)) -> 2,975 | E129: =IF(A129<'Global Assumptions'!$E$12,A129*'Global Assumptions'!$E$13*$H$3,'Global Assumptions'!$E$12*'Global Assumptions'!$E$13*$H$3) -> 1,031 | F129: =(A129+K129)*'Global Assumptions'!$E$14 -> 3,709 | G129: =IF(A129<'Global Assumptions'!$E$16,A129*'Global Assumptions'!$E$15,'Global Assumptions'!$E$16*'Global Assumptions'!$E$15) -> 338 | H129: =IF(A129<'Global Assumptions'!$E$7,A129*$D$12,IF(A129<$F$12,(A129-'Global Assumptions'!$E$7)*$E$12+'Global Assumptions'!$E$7*$D$12,($F$12-'Global Assumptions'!$E$7)*$E$12+'Global Assumptions'!$E$7*$D$12))*$G$12 -> 29,265 | I129: =+'Global Assumptions'!$E$21*$H$4+'Global Assumptions'!$E$22*$H$5 -> 2,539 | J129: =+'Global Assumptions'!$E$23*$H$4+'Global Assumptions'!$E$24*$H$5 -> 1,623 | K129: =IF(A129<$H$7,A129*'Global Assumptions'!$E$25/1000*$H$6*1.08*12,$H$7*'Global Assumptions'!$E$25/1000*$H$6*1.08*12) -> 218 | L129: ='Global Assumptions'!$E$26 -> 281 | M129: 8,550 | N129: 475 | O129: 10 | P129: 0 | Q129: 817
A130: 195,000 | B130: 26.76% | C130: 52,187 | D130: =IF((A130+K130)<'Global Assumptions'!$E$7,((A130+K130)-'Global Assumptions'!$E$9)*'Global Assumptions'!$E$10,(('Global Assumptions'!$E$7-'Global Assumptions'!$E$9)*'Global Assumptions'!$E$10)+IF((A130+K130)<'Global Assumptions'!$E$8,((A130+K130)-'Global Assumptions'!$E$7)*'Global Assumptions'!$E$11,('Global Assumptions'!$E$8-'Global Assumptions'!$E$7)*'Global Assumptions'!$E$11)) -> 2,975 | E130: =IF(A130<'Global Assumptions'!$E$12,A130*'Global Assumptions'!$E$13*$H$3,'Global Assumptions'!$E$12*'Global Assumptions'!$E$13*$H$3) -> 1,031 | F130: =(A130+K130)*'Global Assumptions'!$E$14 -> 3,807 | G130: =IF(A130<'Global Assumptions'!$E$16,A130*'Global Assumptions'!$E$15,'Global Assumptions'!$E$16*'Global Assumptions'!$E$15) -> 338 | H130: =IF(A130<'Global Assumptions'!$E$7,A130*$D$12,IF(A130<$F$12,(A130-'Global Assumptions'!$E$7)*$E$12+'Global Assumptions'!$E$7*$D$12,($F$12-'Global Assumptions'!$E$7)*$E$12+'Global Assumptions'!$E$7*$D$12))*$G$12 -> 29,265 | I130: =+'Global Assumptions'!$E$21*$H$4+'Global Assumptions'!$E$22*$H$5 -> 2,539 | J130: =+'Global Assumptions'!$E$23*$H$4+'Global Assumptions'!$E$24*$H$5 -> 1,623 | K130: =IF(A130<$H$7,A130*'Global Assumptions'!$E$25/1000*$H$6*1.08*12,$H$7*'Global Assumptions'!$E$25/1000*$H$6*1.08*12) -> 218 | L130: ='Global Assumptions'!$E$26 -> 281 | M130: 8,775 | N130: 488 | O130: 10 | P130: 0 | Q130: 839
A131: 200,000 | B131: 26.27% | C131: 52,544 | D131: =IF((A131+K131)<'Global Assumptions'!$E$7,((A131+K131)-'Global Assumptions'!$E$9)*'Global Assumptions'!$E$10,(('Global Assumptions'!$E$7-'Global Assumptions'!$E$9)*'Global Assumptions'!$E$10)+IF((A131+K131)<'Global Assumptions'!$E$8,((A131+K131)-'Global Assumptions'!$E$7)*'Global Assumptions'!$E$11,('Global Assumptions'!$E$8-'Global Assumptions'!$E$7)*'Global Assumptions'!$E$11)) -> 2,975 | E131: =IF(A131<'Global Assumptions'!$E$12,A131*'Global Assumptions'!$E$13*$H$3,'Global Assumptions'!$E$12*'Global Assumptions'!$E$13*$H$3) -> 1,031 | F131: =(A131+K131)*'Global Assumptions'!$E$14 -> 3,904 | G131: =IF(A131<'Global Assumptions'!$E$16,A131*'Global Assumptions'!$E$15,'Global Assumptions'!$E$16*'Global Assumptions'!$E$15) -> 338 | H131: =IF(A131<'Global Assumptions'!$E$7,A131*$D$12,IF(A131<$F$12,(A131-'Global Assumptions'!$E$7)*$E$12+'Global Assumptions'!$E$7*$D$12,($F$12-'Global Assumptions'!$E$7)*$E$12+'Global Assumptions'!$E$7*$D$12))*$G$12 -> 29,265 | I131: =+'Global Assumptions'!$E$21*$H$4+'Global Assumptions'!$E$22*$H$5 -> 2,539 | J131: =+'Global Assumptions'!$E$23*$H$4+'Global Assumptions'!$E$24*$H$5 -> 1,623 | K131: =IF(A131<$H$7,A131*'Global Assumptions'!$E$25/1000*$H$6*1.08*12,$H$7*'Global Assumptions'!$E$25/1000*$H$6*1.08*12) -> 218 | L131: ='Global Assumptions'!$E$26 -> 281 | M131: 9,000 | N131: 500 | O131: 10 | P131: 0 | Q131: 860
A133: =+'Global Assumptions'!F4 -> FY22 Plan
A134: 20,000 | B134: =+C134/A134 -> 51.53% | C134: =SUM(D134:Q134) -> 10,305 | D134: =IF((A134+K134)<'Global Assumptions'!$F$7,((A134+K134)-'Global Assumptions'!$F$9)*'Global Assumptions'!$F$10,(('Global Assumptions'!$F$7-'Global Assumptions'!$F$9)*'Global Assumptions'!$F$10)+IF((A134+K134)<'Global Assumptions'!$F$8,((A134+K134)-'Global Assumptions'!$F$7)*'Global Assumptions'!$F$11,('Global Assumptions'!$F$8-'Global Assumptions'!$F$7)*'Global Assumptions'!$F$11)) -> 951 | E134: =IF(A134<'Global Assumptions'!$F$12,A134*'Global Assumptions'!$F$13*$H$3,'Global Assumptions'!$F$12*'Global Assumptions'!$F$13*$H$3) -> 393 | F134: =(A134+K134)*'Global Assumptions'!$F$14 -> 391 | G134: =IF(A134<'Global Assumptions'!$F$16,A134*'Global Assumptions'!$F$15,'Global Assumptions'!$F$16*'Global Assumptions'!$F$15) -> 72 | H134: =IF(A134<'Global Assumptions'!$F$7,A134*$D$13,IF(A134<$F$13,(A134-'Global Assumptions'!$F$7)*$E$13+'Global Assumptions'!$F$7*$D$13,($F$13-'Global Assumptions'!$F$7)*$E$13+'Global Assumptions'!$F$7*$D$13))*$G$13 -> 2,800 | I134: =+'Global Assumptions'!$F$21*$H$4+'Global Assumptions'!$F$22*$H$5 -> 2,615 | J134: =+'Global Assumptions'!$F$23*$H$4+'Global Assumptions'!$F$24*$H$5 -> 1,672 | K134: =IF(A134<$H$7,A134*'Global Assumptions'!$F$25/1000*$H$6*1.08*12,$H$7*'Global Assumptions'!$F$25/1000*$H$6*1.08*12) -> 44 | L134: ='Global Assumptions'!$F$26 -> 281 | M134: =+$A134*M$13 -> 950 | N134: 50 | O134: 1 | P134: 0 | Q134: 86
A135: 25,000 | B135: 47.16% | C135: 11,790 | D135: =IF((A135+K135)<'Global Assumptions'!$F$7,((A135+K135)-'Global Assumptions'!$F$9)*'Global Assumptions'!$F$10,(('Global Assumptions'!$F$7-'Global Assumptions'!$F$9)*'Global Assumptions'!$F$10)+IF((A135+K135)<'Global Assumptions'!$F$8,((A135+K135)-'Global Assumptions'!$F$7)*'Global Assumptions'!$F$11,('Global Assumptions'!$F$8-'Global Assumptions'!$F$7)*'Global Assumptions'!$F$11)) -> 1,239 | E135: =IF(A135<'Global Assumptions'!$F$12,A135*'Global Assumptions'!$F$13*$H$3,'Global Assumptions'!$F$12*'Global Assumptions'!$F$13*$H$3) -> 491 | F135: =(A135+K135)*'Global Assumptions'!$F$14 -> 489 | G135: =IF(A135<'Global Assumptions'!$F$16,A135*'Global Assumptions'!$F$15,'Global Assumptions'!$F$16*'Global Assumptions'!$F$15) -> 90 | H135: =IF(A135<'Global Assumptions'!$F$7,A135*$D$13,IF(A135<$F$13,(A135-'Global Assumptions'!$F$7)*$E$13+'Global Assumptions'!$F$7*$D$13,($F$13-'Global Assumptions'!$F$7)*$E$13+'Global Assumptions'!$F$7*$D$13))*$G$13 -> 3,500 | I135: =+'Global Assumptions'!$F$21*$H$4+'Global Assumptions'!$F$22*$H$5 -> 2,615 | J135: =+'Global Assumptions'!$F$23*$H$4+'Global Assumptions'!$F$24*$H$5 -> 1,672 | K135: =IF(A135<$H$7,A135*'Global Assumptions'!$F$25/1000*$H$6*1.08*12,$H$7*'Global Assumptions'!$F$25/1000*$H$6*1.08*12) -> 54 | L135: ='Global Assumptions'!$F$26 -> 281 | M135: 1,188 | N135: 63 | O135: 1 | P135: 0 | Q135: 108
A136: 30,000 | B136: 44.25% | C136: 13,274 | D136: =IF((A136+K136)<'Global Assumptions'!$F$7,((A136+K136)-'Global Assumptions'!$F$9)*'Global Assumptions'!$F$10,(('Global Assumptions'!$F$7-'Global Assumptions'!$F$9)*'Global Assumptions'!$F$10)+IF((A136+K136)<'Global Assumptions'!$F$8,((A136+K136)-'Global Assumptions'!$F$7)*'Global Assumptions'!$F$11,('Global Assumptions'!$F$8-'Global Assumptions'!$F$7)*'Global Assumptions'!$F$11)) -> 1,528 | E136: =IF(A136<'Global Assumptions'!$F$12,A136*'Global Assumptions'!$F$13*$H$3,'Global Assumptions'!$F$12*'Global Assumptions'!$F$13*$H$3) -> 589 | F136: =(A136+K136)*'Global Assumptions'!$F$14 -> 586 | G136: =IF(A136<'Global Assumptions'!$F$16,A136*'Global Assumptions'!$F$15,'Global Assumptions'!$F$16*'Global Assumptions'!$F$15) -> 108 | H136: =IF(A136<'Global Assumptions'!$F$7,A136*$D$13,IF(A136<$F$13,(A136-'Global Assumptions'!$F$7)*$E$13+'Global Assumptions'!$F$7*$D$13,($F$13-'Global Assumptions'!$F$7)*$E$13+'Global Assumptions'!$F$7*$D$13))*$G$13 -> 4,200 | I136: =+'Global Assumptions'!$F$21*$H$4+'Global Assumptions'!$F$22*$H$5 -> 2,615 | J136: =+'Global Assumptions'!$F$23*$H$4+'Global Assumptions'!$F$24*$H$5 -> 1,672 | K136: =IF(A136<$H$7,A136*'Global Assumptions'!$F$25/1000*$H$6*1.08*12,$H$7*'Global Assumptions'!$F$25/1000*$H$6*1.08*12) -> 65 | L136: ='Global Assumptions'!$F$26 -> 281 | M136: 1,425 | N136: 75 | O136: 2 | P136: 0 | Q136: 129
A137: 35,000 | B137: 42.17% | C137: 14,759 | D137: =IF((A137+K137)<'Global Assumptions'!$F$7,((A137+K137)-'Global Assumptions'!$F$9)*'Global Assumptions'!$F$10,(('Global Assumptions'!$F$7-'Global Assumptions'!$F$9)*'Global Assumptions'!$F$10)+IF((A137+K137)<'Global Assumptions'!$F$8,((A137+K137)-'Global Assumptions'!$F$7)*'Global Assumptions'!$F$11,('Global Assumptions'!$F$8-'Global Assumptions'!$F$7)*'Global Assumptions'!$F$11)) -> 1,816 | E137: =IF(A137<'Global Assumptions'!$F$12,A137*'Global Assumptions'!$F$13*$H$3,'Global Assumptions'!$F$12*'Global Assumptions'!$F$13*$H$3) -> 687 | F137: =(A137+K137)*'Global Assumptions'!$F$14 -> 684 | G137: =IF(A137<'Global Assumptions'!$F$16,A137*'Global Assumptions'!$F$15,'Global Assumptions'!$F$16*'Global Assumptions'!$F$15) -> 126 | H137: =IF(A137<'Global Assumptions'!$F$7,A137*$D$13,IF(A137<$F$13,(A137-'Global Assumptions'!$F$7)*$E$13+'Global Assumptions'!$F$7*$D$13,($F$13-'Global Assumptions'!$F$7)*$E$13+'Global Assumptions'!$F$7*$D$13))*$G$13 -> 4,900 | I137: =+'Global Assumptions'!$F$21*$H$4+'Global Assumptions'!$F$22*$H$5 -> 2,615 | J137: =+'Global Assumptions'!$F$23*$H$4+'Global Assumptions'!$F$24*$H$5 -> 1,672 | K137: =IF(A137<$H$7,A137*'Global Assumptions'!$F$25/1000*$H$6*1.08*12,$H$7*'Global Assumptions'!$F$25/1000*$H$6*1.08*12) -> 76 | L137: ='Global Assumptions'!$F$26 -> 281 | M137: 1,663 | N137: 88 | O137: 2 | P137: 0 | Q137: 151
A138: 40,000 | B138: 40.61% | C138: 16,244 | D138: =IF((A138+K138)<'Global Assumptions'!$F$7,((A138+K138)-'Global Assumptions'!$F$9)*'Global Assumptions'!$F$10,(('Global Assumptions'!$F$7-'Global Assumptions'!$F$9)*'Global Assumptions'!$F$10)+IF((A138+K138)<'Global Assumptions'!$F$8,((A138+K138)-'Global Assumptions'!$F$7)*'Global Assumptions'!$F$11,('Global Assumptions'!$F$8-'Global Assumptions'!$F$7)*'Global Assumptions'!$F$11)) -> 2,104 | E138: =IF(A138<'Global Assumptions'!$F$12,A138*'Global Assumptions'!$F$13*$H$3,'Global Assumptions'!$F$12*'Global Assumptions'!$F$13*$H$3) -> 786 | F138: =(A138+K138)*'Global Assumptions'!$F$14 -> 782 | G138: =IF(A138<'Global Assumptions'!$F$16,A138*'Global Assumptions'!$F$15,'Global Assumptions'!$F$16*'Global Assumptions'!$F$15) -> 144 | H138: =IF(A138<'Global Assumptions'!$F$7,A138*$D$13,IF(A138<$F$13,(A138-'Global Assumptions'!$F$7)*$E$13+'Global Assumptions'!$F$7*$D$13,($F$13-'Global Assumptions'!$F$7)*$E$13+'Global Assumptions'!$F$7*$D$13))*$G$13 -> 5,600 | I138: =+'Global Assumptions'!$F$21*$H$4+'Global Assumptions'!$F$22*$H$5 -> 2,615 | J138: =+'Global Assumptions'!$F$23*$H$4+'Global Assumptions'!$F$24*$H$5 -> 1,672 | K138: =IF(A138<$H$7,A138*'Global Assumptions'!$F$25/1000*$H$6*1.08*12,$H$7*'Global Assumptions'!$F$25/1000*$H$6*1.08*12) -> 87 | L138: ='Global Assumptions'!$F$26 -> 281 | M138: 1,900 | N138: 100 | O138: 2 | P138: 0 | Q138: 172
A139: 45,000 | B139: 39.40% | C139: 17,728 | D139: =IF((A139+K139)<'Global Assumptions'!$F$7,((A139+K139)-'Global Assumptions'!$F$9)*'Global Assumptions'!$F$10,(('Global Assumptions'!$F$7-'Global Assumptions'!$F$9)*'Global Assumptions'!$F$10)+IF((A139+K139)<'Global Assumptions'!$F$8,((A139+K139)-'Global Assumptions'!$F$7)*'Global Assumptions'!$F$11,('Global Assumptions'!$F$8-'Global Assumptions'!$F$7)*'Global Assumptions'!$F$11)) -> 2,392 | E139: =IF(A139<'Global Assumptions'!$F$12,A139*'Global Assumptions'!$F$13*$H$3,'Global Assumptions'!$F$12*'Global Assumptions'!$F$13*$H$3) -> 884 | F139: =(A139+K139)*'Global Assumptions'!$F$14 -> 879 | G139: =IF(A139<'Global Assumptions'!$F$16,A139*'Global Assumptions'!$F$15,'Global Assumptions'!$F$16*'Global Assumptions'!$F$15) -> 162 | H139: =IF(A139<'Global Assumptions'!$F$7,A139*$D$13,IF(A139<$F$13,(A139-'Global Assumptions'!$F$7)*$E$13+'Global Assumptions'!$F$7*$D$13,($F$13-'Global Assumptions'!$F$7)*$E$13+'Global Assumptions'!$F$7*$D$13))*$G$13 -> 6,300 | I139: =+'Global Assumptions'!$F$21*$H$4+'Global Assumptions'!$F$22*$H$5 -> 2,615 | J139: =+'Global Assumptions'!$F$23*$H$4+'Global Assumptions'!$F$24*$H$5 -> 1,672 | K139: =IF(A139<$H$7,A139*'Global Assumptions'!$F$25/1000*$H$6*1.08*12,$H$7*'Global Assumptions'!$F$25/1000*$H$6*1.08*12) -> 98 | L139: ='Global Assumptions'!$F$26 -> 281 | M139: 2,138 | N139: 113 | O139: 2 | P139: 0 | Q139: 194
A140: 50,000 | B140: 38.43% | C140: 19,213 | D140: =IF((A140+K140)<'Global Assumptions'!$F$7,((A140+K140)-'Global Assumptions'!$F$9)*'Global Assumptions'!$F$10,(('Global Assumptions'!$F$7-'Global Assumptions'!$F$9)*'Global Assumptions'!$F$10)+IF((A140+K140)<'Global Assumptions'!$F$8,((A140+K140)-'Global Assumptions'!$F$7)*'Global Assumptions'!$F$11,('Global Assumptions'!$F$8-'Global Assumptions'!$F$7)*'Global Assumptions'!$F$11)) -> 2,680 | E140: =IF(A140<'Global Assumptions'!$F$12,A140*'Global Assumptions'!$F$13*$H$3,'Global Assumptions'!$F$12*'Global Assumptions'!$F$13*$H$3) -> 982 | F140: =(A140+K140)*'Global Assumptions'!$F$14 -> 977 | G140: =IF(A140<'Global Assumptions'!$F$16,A140*'Global Assumptions'!$F$15,'Global Assumptions'!$F$16*'Global Assumptions'!$F$15) -> 180 | H140: =IF(A140<'Global Assumptions'!$F$7,A140*$D$13,IF(A140<$F$13,(A140-'Global Assumptions'!$F$7)*$E$13+'Global Assumptions'!$F$7*$D$13,($F$13-'Global Assumptions'!$F$7)*$E$13+'Global Assumptions'!$F$7*$D$13))*$G$13 -> 7,000 | I140: =+'Global Assumptions'!$F$21*$H$4+'Global Assumptions'!$F$22*$H$5 -> 2,615 | J140: =+'Global Assumptions'!$F$23*$H$4+'Global Assumptions'!$F$24*$H$5 -> 1,672 | K140: =IF(A140<$H$7,A140*'Global Assumptions'!$F$25/1000*$H$6*1.08*12,$H$7*'Global Assumptions'!$F$25/1000*$H$6*1.08*12) -> 109 | L140: ='Global Assumptions'!$F$26 -> 281 | M140: 2,375 | N140: 125 | O140: 3 | P140: 0 | Q140: 215
A141: 55,000 | B141: 37.56% | C141: 20,657 | D141: =IF((A141+K141)<'Global Assumptions'!$F$7,((A141+K141)-'Global Assumptions'!$F$9)*'Global Assumptions'!$F$10,(('Global Assumptions'!$F$7-'Global Assumptions'!$F$9)*'Global Assumptions'!$F$10)+IF((A141+K141)<'Global Assumptions'!$F$8,((A141+K141)-'Global Assumptions'!$F$7)*'Global Assumptions'!$F$11,('Global Assumptions'!$F$8-'Global Assumptions'!$F$7)*'Global Assumptions'!$F$11)) -> 2,968 | E141: =IF(A141<'Global Assumptions'!$F$12,A141*'Global Assumptions'!$F$13*$H$3,'Global Assumptions'!$F$12*'Global Assumptions'!$F$13*$H$3) -> 1,039 | F141: =(A141+K141)*'Global Assumptions'!$F$14 -> 1,075 | G141: =IF(A141<'Global Assumptions'!$F$16,A141*'Global Assumptions'!$F$15,'Global Assumptions'!$F$16*'Global Assumptions'!$F$15) -> 198 | H141: =IF(A141<'Global Assumptions'!$F$7,A141*$D$13,IF(A141<$F$13,(A141-'Global Assumptions'!$F$7)*$E$13+'Global Assumptions'!$F$7*$D$13,($F$13-'Global Assumptions'!$F$7)*$E$13+'Global Assumptions'!$F$7*$D$13))*$G$13 -> 7,700 | I141: =+'Global Assumptions'!$F$21*$H$4+'Global Assumptions'!$F$22*$H$5 -> 2,615 | J141: =+'Global Assumptions'!$F$23*$H$4+'Global Assumptions'!$F$24*$H$5 -> 1,672 | K141: =IF(A141<$H$7,A141*'Global Assumptions'!$F$25/1000*$H$6*1.08*12,$H$7*'Global Assumptions'!$F$25/1000*$H$6*1.08*12) -> 120 | L141: ='Global Assumptions'!$F$26 -> 281 | M141: 2,613 | N141: 138 | O141: 3 | P141: 0 | Q141: 237
A142: 60,000 | B142: 36.71% | C142: 22,024 | D142: =IF((A142+K142)<'Global Assumptions'!$F$7,((A142+K142)-'Global Assumptions'!$F$9)*'Global Assumptions'!$F$10,(('Global Assumptions'!$F$7-'Global Assumptions'!$F$9)*'Global Assumptions'!$F$10)+IF((A142+K142)<'Global Assumptions'!$F$8,((A142+K142)-'Global Assumptions'!$F$7)*'Global Assumptions'!$F$11,('Global Assumptions'!$F$8-'Global Assumptions'!$F$7)*'Global Assumptions'!$F$11)) -> 3,117 | E142: =IF(A142<'Global Assumptions'!$F$12,A142*'Global Assumptions'!$F$13*$H$3,'Global Assumptions'!$F$12*'Global Assumptions'!$F$13*$H$3) -> 1,039 | F142: =(A142+K142)*'Global Assumptions'!$F$14 -> 1,173 | G142: =IF(A142<'Global Assumptions'!$F$16,A142*'Global Assumptions'!$F$15,'Global Assumptions'!$F$16*'Global Assumptions'!$F$15) -> 216 | H142: =IF(A142<'Global Assumptions'!$F$7,A142*$D$13,IF(A142<$F$13,(A142-'Global Assumptions'!$F$7)*$E$13+'Global Assumptions'!$F$7*$D$13,($F$13-'Global Assumptions'!$F$7)*$E$13+'Global Assumptions'!$F$7*$D$13))*$G$13 -> 8,521 | I142: =+'Global Assumptions'!$F$21*$H$4+'Global Assumptions'!$F$22*$H$5 -> 2,615 | J142: =+'Global Assumptions'!$F$23*$H$4+'Global Assumptions'!$F$24*$H$5 -> 1,672 | K142: =IF(A142<$H$7,A142*'Global Assumptions'!$F$25/1000*$H$6*1.08*12,$H$7*'Global Assumptions'!$F$25/1000*$H$6*1.08*12) -> 131 | L142: ='Global Assumptions'!$F$26 -> 281 | M142: 2,850 | N142: 150 | O142: 3 | P142: 0 | Q142: 258
A143: 65,000 | B143: 35.98% | C143: 23,385 | D143: =IF((A143+K143)<'Global Assumptions'!$F$7,((A143+K143)-'Global Assumptions'!$F$9)*'Global Assumptions'!$F$10,(('Global Assumptions'!$F$7-'Global Assumptions'!$F$9)*'Global Assumptions'!$F$10)+IF((A143+K143)<'Global Assumptions'!$F$8,((A143+K143)-'Global Assumptions'!$F$7)*'Global Assumptions'!$F$11,('Global Assumptions'!$F$8-'Global Assumptions'!$F$7)*'Global Assumptions'!$F$11)) -> 3,117 | E143: =IF(A143<'Global Assumptions'!$F$12,A143*'Global Assumptions'!$F$13*$H$3,'Global Assumptions'!$F$12*'Global Assumptions'!$F$13*$H$3) -> 1,039 | F143: =(A143+K143)*'Global Assumptions'!$F$14 -> 1,270 | G143: =IF(A143<'Global Assumptions'!$F$16,A143*'Global Assumptions'!$F$15,'Global Assumptions'!$F$16*'Global Assumptions'!$F$15) -> 234 | H143: =IF(A143<'Global Assumptions'!$F$7,A143*$D$13,IF(A143<$F$13,(A143-'Global Assumptions'!$F$7)*$E$13+'Global Assumptions'!$F$7*$D$13,($F$13-'Global Assumptions'!$F$7)*$E$13+'Global Assumptions'!$F$7*$D$13))*$G$13 -> 9,483 | I143: =+'Global Assumptions'!$F$21*$H$4+'Global Assumptions'!$F$22*$H$5 -> 2,615 | J143: =+'Global Assumptions'!$F$23*$H$4+'Global Assumptions'!$F$24*$H$5 -> 1,672 | K143: =IF(A143<$H$7,A143*'Global Assumptions'!$F$25/1000*$H$6*1.08*12,$H$7*'Global Assumptions'!$F$25/1000*$H$6*1.08*12) -> 142 | L143: ='Global Assumptions'!$F$26 -> 281 | M143: 3,088 | N143: 163 | O143: 3 | P143: 0 | Q143: 280
A144: 70,000 | B144: 35.35% | C144: 24,746 | D144: =IF((A144+K144)<'Global Assumptions'!$F$7,((A144+K144)-'Global Assumptions'!$F$9)*'Global Assumptions'!$F$10,(('Global Assumptions'!$F$7-'Global Assumptions'!$F$9)*'Global Assumptions'!$F$10)+IF((A144+K144)<'Global Assumptions'!$F$8,((A144+K144)-'Global Assumptions'!$F$7)*'Global Assumptions'!$F$11,('Global Assumptions'!$F$8-'Global Assumptions'!$F$7)*'Global Assumptions'!$F$11)) -> 3,117 | E144: =IF(A144<'Global Assumptions'!$F$12,A144*'Global Assumptions'!$F$13*$H$3,'Global Assumptions'!$F$12*'Global Assumptions'!$F$13*$H$3) -> 1,039 | F144: =(A144+K144)*'Global Assumptions'!$F$14 -> 1,368 | G144: =IF(A144<'Global Assumptions'!$F$16,A144*'Global Assumptions'!$F$15,'Global Assumptions'!$F$16*'Global Assumptions'!$F$15) -> 252 | H144: =IF(A144<'Global Assumptions'!$F$7,A144*$D$13,IF(A144<$F$13,(A144-'Global Assumptions'!$F$7)*$E$13+'Global Assumptions'!$F$7*$D$13,($F$13-'Global Assumptions'!$F$7)*$E$13+'Global Assumptions'!$F$7*$D$13))*$G$13 -> 10,446 | I144: =+'Global Assumptions'!$F$21*$H$4+'Global Assumptions'!$F$22*$H$5 -> 2,615 | J144: =+'Global Assumptions'!$F$23*$H$4+'Global Assumptions'!$F$24*$H$5 -> 1,672 | K144: =IF(A144<$H$7,A144*'Global Assumptions'!$F$25/1000*$H$6*1.08*12,$H$7*'Global Assumptions'!$F$25/1000*$H$6*1.08*12) -> 152 | L144: ='Global Assumptions'!$F$26 -> 281 | M144: 3,325 | N144: 175 | O144: 4 | P144: 0 | Q144: 301
A145: 75,000 | B145: 34.81% | C145: 26,107 | D145: =IF((A145+K145)<'Global Assumptions'!$F$7,((A145+K145)-'Global Assumptions'!$F$9)*'Global Assumptions'!$F$10,(('Global Assumptions'!$F$7-'Global Assumptions'!$F$9)*'Global Assumptions'!$F$10)+IF((A145+K145)<'Global Assumptions'!$F$8,((A145+K145)-'Global Assumptions'!$F$7)*'Global Assumptions'!$F$11,('Global Assumptions'!$F$8-'Global Assumptions'!$F$7)*'Global Assumptions'!$F$11)) -> 3,117 | E145: =IF(A145<'Global Assumptions'!$F$12,A145*'Global Assumptions'!$F$13*$H$3,'Global Assumptions'!$F$12*'Global Assumptions'!$F$13*$H$3) -> 1,039 | F145: =(A145+K145)*'Global Assumptions'!$F$14 -> 1,466 | G145: =IF(A145<'Global Assumptions'!$F$16,A145*'Global Assumptions'!$F$15,'Global Assumptions'!$F$16*'Global Assumptions'!$F$15) -> 270 | H145: =IF(A145<'Global Assumptions'!$F$7,A145*$D$13,IF(A145<$F$13,(A145-'Global Assumptions'!$F$7)*$E$13+'Global Assumptions'!$F$7*$D$13,($F$13-'Global Assumptions'!$F$7)*$E$13+'Global Assumptions'!$F$7*$D$13))*$G$13 -> 11,408 | I145: =+'Global Assumptions'!$F$21*$H$4+'Global Assumptions'!$F$22*$H$5 -> 2,615 | J145: =+'Global Assumptions'!$F$23*$H$4+'Global Assumptions'!$F$24*$H$5 -> 1,672 | K145: =IF(A145<$H$7,A145*'Global Assumptions'!$F$25/1000*$H$6*1.08*12,$H$7*'Global Assumptions'!$F$25/1000*$H$6*1.08*12) -> 163 | L145: ='Global Assumptions'!$F$26 -> 281 | M145: 3,563 | N145: 188 | O145: 4 | P145: 0 | Q145: 323
A146: 80,000 | B146: 34.33% | C146: 27,467 | D146: =IF((A146+K146)<'Global Assumptions'!$F$7,((A146+K146)-'Global Assumptions'!$F$9)*'Global Assumptions'!$F$10,(('Global Assumptions'!$F$7-'Global Assumptions'!$F$9)*'Global Assumptions'!$F$10)+IF((A146+K146)<'Global Assumptions'!$F$8,((A146+K146)-'Global Assumptions'!$F$7)*'Global Assumptions'!$F$11,('Global Assumptions'!$F$8-'Global Assumptions'!$F$7)*'Global Assumptions'!$F$11)) -> 3,117 | E146: =IF(A146<'Global Assumptions'!$F$12,A146*'Global Assumptions'!$F$13*$H$3,'Global Assumptions'!$F$12*'Global Assumptions'!$F$13*$H$3) -> 1,039 | F146: =(A146+K146)*'Global Assumptions'!$F$14 -> 1,563 | G146: =IF(A146<'Global Assumptions'!$F$16,A146*'Global Assumptions'!$F$15,'Global Assumptions'!$F$16*'Global Assumptions'!$F$15) -> 288 | H146: =IF(A146<'Global Assumptions'!$F$7,A146*$D$13,IF(A146<$F$13,(A146-'Global Assumptions'!$F$7)*$E$13+'Global Assumptions'!$F$7*$D$13,($F$13-'Global Assumptions'!$F$7)*$E$13+'Global Assumptions'!$F$7*$D$13))*$G$13 -> 12,371 | I146: =+'Global Assumptions'!$F$21*$H$4+'Global Assumptions'!$F$22*$H$5 -> 2,615 | J146: =+'Global Assumptions'!$F$23*$H$4+'Global Assumptions'!$F$24*$H$5 -> 1,672 | K146: =IF(A146<$H$7,A146*'Global Assumptions'!$F$25/1000*$H$6*1.08*12,$H$7*'Global Assumptions'!$F$25/1000*$H$6*1.08*12) -> 174 | L146: ='Global Assumptions'!$F$26 -> 281 | M146: 3,800 | N146: 200 | O146: 4 | P146: 0 | Q146: 344
A147: 85,000 | B147: 33.92% | C147: 28,828 | D147: =IF((A147+K147)<'Global Assumptions'!$F$7,((A147+K147)-'Global Assumptions'!$F$9)*'Global Assumptions'!$F$10,(('Global Assumptions'!$F$7-'Global Assumptions'!$F$9)*'Global Assumptions'!$F$10)+IF((A147+K147)<'Global Assumptions'!$F$8,((A147+K147)-'Global Assumptions'!$F$7)*'Global Assumptions'!$F$11,('Global Assumptions'!$F$8-'Global Assumptions'!$F$7)*'Global Assumptions'!$F$11)) -> 3,117 | E147: =IF(A147<'Global Assumptions'!$F$12,A147*'Global Assumptions'!$F$13*$H$3,'Global Assumptions'!$F$12*'Global Assumptions'!$F$13*$H$3) -> 1,039 | F147: =(A147+K147)*'Global Assumptions'!$F$14 -> 1,661 | G147: =IF(A147<'Global Assumptions'!$F$16,A147*'Global Assumptions'!$F$15,'Global Assumptions'!$F$16*'Global Assumptions'!$F$15) -> 306 | H147: =IF(A147<'Global Assumptions'!$F$7,A147*$D$13,IF(A147<$F$13,(A147-'Global Assumptions'!$F$7)*$E$13+'Global Assumptions'!$F$7*$D$13,($F$13-'Global Assumptions'!$F$7)*$E$13+'Global Assumptions'!$F$7*$D$13))*$G$13 -> 13,333 | I147: =+'Global Assumptions'!$F$21*$H$4+'Global Assumptions'!$F$22*$H$5 -> 2,615 | J147: =+'Global Assumptions'!$F$23*$H$4+'Global Assumptions'!$F$24*$H$5 -> 1,672 | K147: =IF(A147<$H$7,A147*'Global Assumptions'!$F$25/1000*$H$6*1.08*12,$H$7*'Global Assumptions'!$F$25/1000*$H$6*1.08*12) -> 185 | L147: ='Global Assumptions'!$F$26 -> 281 | M147: 4,038 | N147: 213 | O147: 4 | P147: 0 | Q147: 366
A148: 90,000 | B148: 33.54% | C148: 30,189 | D148: =IF((A148+K148)<'Global Assumptions'!$F$7,((A148+K148)-'Global Assumptions'!$F$9)*'Global Assumptions'!$F$10,(('Global Assumptions'!$F$7-'Global Assumptions'!$F$9)*'Global Assumptions'!$F$10)+IF((A148+K148)<'Global Assumptions'!$F$8,((A148+K148)-'Global Assumptions'!$F$7)*'Global Assumptions'!$F$11,('Global Assumptions'!$F$8-'Global Assumptions'!$F$7)*'Global Assumptions'!$F$11)) -> 3,117 | E148: =IF(A148<'Global Assumptions'!$F$12,A148*'Global Assumptions'!$F$13*$H$3,'Global Assumptions'!$F$12*'Global Assumptions'!$F$13*$H$3) -> 1,039 | F148: =(A148+K148)*'Global Assumptions'!$F$14 -> 1,759 | G148: =IF(A148<'Global Assumptions'!$F$16,A148*'Global Assumptions'!$F$15,'Global Assumptions'!$F$16*'Global Assumptions'!$F$15) -> 324 | H148: =IF(A148<'Global Assumptions'!$F$7,A148*$D$13,IF(A148<$F$13,(A148-'Global Assumptions'!$F$7)*$E$13+'Global Assumptions'!$F$7*$D$13,($F$13-'Global Assumptions'!$F$7)*$E$13+'Global Assumptions'!$F$7*$D$13))*$G$13 -> 14,296 | I148: =+'Global Assumptions'!$F$21*$H$4+'Global Assumptions'!$F$22*$H$5 -> 2,615 | J148: =+'Global Assumptions'!$F$23*$H$4+'Global Assumptions'!$F$24*$H$5 -> 1,672 | K148: =IF(A148<$H$7,A148*'Global Assumptions'!$F$25/1000*$H$6*1.08*12,$H$7*'Global Assumptions'!$F$25/1000*$H$6*1.08*12) -> 196 | L148: ='Global Assumptions'!$F$26 -> 281 | M148: 4,275 | N148: 225 | O148: 5 | P148: 0 | Q148: 387
A149: 95,000 | B149: 33.21% | C149: 31,550 | D149: =IF((A149+K149)<'Global Assumptions'!$F$7,((A149+K149)-'Global Assumptions'!$F$9)*'Global Assumptions'!$F$10,(('Global Assumptions'!$F$7-'Global Assumptions'!$F$9)*'Global Assumptions'!$F$10)+IF((A149+K149)<'Global Assumptions'!$F$8,((A149+K149)-'Global Assumptions'!$F$7)*'Global Assumptions'!$F$11,('Global Assumptions'!$F$8-'Global Assumptions'!$F$7)*'Global Assumptions'!$F$11)) -> 3,117 | E149: =IF(A149<'Global Assumptions'!$F$12,A149*'Global Assumptions'!$F$13*$H$3,'Global Assumptions'!$F$12*'Global Assumptions'!$F$13*$H$3) -> 1,039 | F149: =(A149+K149)*'Global Assumptions'!$F$14 -> 1,857 | G149: =IF(A149<'Global Assumptions'!$F$16,A149*'Global Assumptions'!$F$15,'Global Assumptions'!$F$16*'Global Assumptions'!$F$15) -> 342 | H149: =IF(A149<'Global Assumptions'!$F$7,A149*$D$13,IF(A149<$F$13,(A149-'Global Assumptions'!$F$7)*$E$13+'Global Assumptions'!$F$7*$D$13,($F$13-'Global Assumptions'!$F$7)*$E$13+'Global Assumptions'!$F$7*$D$13))*$G$13 -> 15,258 | I149: =+'Global Assumptions'!$F$21*$H$4+'Global Assumptions'!$F$22*$H$5 -> 2,615 | J149: =+'Global Assumptions'!$F$23*$H$4+'Global Assumptions'!$F$24*$H$5 -> 1,672 | K149: =IF(A149<$H$7,A149*'Global Assumptions'!$F$25/1000*$H$6*1.08*12,$H$7*'Global Assumptions'!$F$25/1000*$H$6*1.08*12) -> 207 | L149: ='Global Assumptions'!$F$26 -> 281 | M149: 4,513 | N149: 238 | O149: 5 | P149: 0 | Q149: 409
A150: 100,000 | B150: 32.90% | C150: 32,895 | D150: =IF((A150+K150)<'Global Assumptions'!$F$7,((A150+K150)-'Global Assumptions'!$F$9)*'Global Assumptions'!$F$10,(('Global Assumptions'!$F$7-'Global Assumptions'!$F$9)*'Global Assumptions'!$F$10)+IF((A150+K150)<'Global Assumptions'!$F$8,((A150+K150)-'Global Assumptions'!$F$7)*'Global Assumptions'!$F$11,('Global Assumptions'!$F$8-'Global Assumptions'!$F$7)*'Global Assumptions'!$F$11)) -> 3,117 | E150: =IF(A150<'Global Assumptions'!$F$12,A150*'Global Assumptions'!$F$13*$H$3,'Global Assumptions'!$F$12*'Global Assumptions'!$F$13*$H$3) -> 1,039 | F150: =(A150+K150)*'Global Assumptions'!$F$14 -> 1,954 | G150: =IF(A150<'Global Assumptions'!$F$16,A150*'Global Assumptions'!$F$15,'Global Assumptions'!$F$16*'Global Assumptions'!$F$15) -> 345 | H150: =IF(A150<'Global Assumptions'!$F$7,A150*$D$13,IF(A150<$F$13,(A150-'Global Assumptions'!$F$7)*$E$13+'Global Assumptions'!$F$7*$D$13,($F$13-'Global Assumptions'!$F$7)*$E$13+'Global Assumptions'!$F$7*$D$13))*$G$13 -> 16,221 | I150: =+'Global Assumptions'!$F$21*$H$4+'Global Assumptions'!$F$22*$H$5 -> 2,615 | J150: =+'Global Assumptions'!$F$23*$H$4+'Global Assumptions'!$F$24*$H$5 -> 1,672 | K150: =IF(A150<$H$7,A150*'Global Assumptions'!$F$25/1000*$H$6*1.08*12,$H$7*'Global Assumptions'!$F$25/1000*$H$6*1.08*12) -> 218 | L150: ='Global Assumptions'!$F$26 -> 281 | M150: 4,750 | N150: 250 | O150: 5 | P150: 0 | Q150: 430
A151: 105,000 | B151: 32.60% | C151: 34,227 | D151: =IF((A151+K151)<'Global Assumptions'!$F$7,((A151+K151)-'Global Assumptions'!$F$9)*'Global Assumptions'!$F$10,(('Global Assumptions'!$F$7-'Global Assumptions'!$F$9)*'Global Assumptions'!$F$10)+IF((A151+K151)<'Global Assumptions'!$F$8,((A151+K151)-'Global Assumptions'!$F$7)*'Global Assumptions'!$F$11,('Global Assumptions'!$F$8-'Global Assumptions'!$F$7)*'Global Assumptions'!$F$11)) -> 3,117 | E151: =IF(A151<'Global Assumptions'!$F$12,A151*'Global Assumptions'!$F$13*$H$3,'Global Assumptions'!$F$12*'Global Assumptions'!$F$13*$H$3) -> 1,039 | F151: =(A151+K151)*'Global Assumptions'!$F$14 -> 2,052 | G151: =IF(A151<'Global Assumptions'!$F$16,A151*'Global Assumptions'!$F$15,'Global Assumptions'!$F$16*'Global Assumptions'!$F$15) -> 345 | H151: =IF(A151<'Global Assumptions'!$F$7,A151*$D$13,IF(A151<$F$13,(A151-'Global Assumptions'!$F$7)*$E$13+'Global Assumptions'!$F$7*$D$13,($F$13-'Global Assumptions'!$F$7)*$E$13+'Global Assumptions'!$F$7*$D$13))*$G$13 -> 17,183 | I151: =+'Global Assumptions'!$F$21*$H$4+'Global Assumptions'!$F$22*$H$5 -> 2,615 | J151: =+'Global Assumptions'!$F$23*$H$4+'Global Assumptions'!$F$24*$H$5 -> 1,672 | K151: =IF(A151<$H$7,A151*'Global Assumptions'!$F$25/1000*$H$6*1.08*12,$H$7*'Global Assumptions'!$F$25/1000*$H$6*1.08*12) -> 218 | L151: ='Global Assumptions'!$F$26 -> 281 | M151: 4,988 | N151: 263 | O151: 5 | P151: 0 | Q151: 452
A152: 110,000 | B152: 32.33% | C152: 35,559 | D152: =IF((A152+K152)<'Global Assumptions'!$F$7,((A152+K152)-'Global Assumptions'!$F$9)*'Global Assumptions'!$F$10,(('Global Assumptions'!$F$7-'Global Assumptions'!$F$9)*'Global Assumptions'!$F$10)+IF((A152+K152)<'Global Assumptions'!$F$8,((A152+K152)-'Global Assumptions'!$F$7)*'Global Assumptions'!$F$11,('Global Assumptions'!$F$8-'Global Assumptions'!$F$7)*'Global Assumptions'!$F$11)) -> 3,117 | E152: =IF(A152<'Global Assumptions'!$F$12,A152*'Global Assumptions'!$F$13*$H$3,'Global Assumptions'!$F$12*'Global Assumptions'!$F$13*$H$3) -> 1,039 | F152: =(A152+K152)*'Global Assumptions'!$F$14 -> 2,149 | G152: =IF(A152<'Global Assumptions'!$F$16,A152*'Global Assumptions'!$F$15,'Global Assumptions'!$F$16*'Global Assumptions'!$F$15) -> 345 | H152: =IF(A152<'Global Assumptions'!$F$7,A152*$D$13,IF(A152<$F$13,(A152-'Global Assumptions'!$F$7)*$E$13+'Global Assumptions'!$F$7*$D$13,($F$13-'Global Assumptions'!$F$7)*$E$13+'Global Assumptions'!$F$7*$D$13))*$G$13 -> 18,146 | I152: =+'Global Assumptions'!$F$21*$H$4+'Global Assumptions'!$F$22*$H$5 -> 2,615 | J152: =+'Global Assumptions'!$F$23*$H$4+'Global Assumptions'!$F$24*$H$5 -> 1,672 | K152: =IF(A152<$H$7,A152*'Global Assumptions'!$F$25/1000*$H$6*1.08*12,$H$7*'Global Assumptions'!$F$25/1000*$H$6*1.08*12) -> 218 | L152: ='Global Assumptions'!$F$26 -> 281 | M152: 5,225 | N152: 275 | O152: 6 | P152: 0 | Q152: 473
A153: 115,000 | B153: 32.08% | C153: 36,891 | D153: =IF((A153+K153)<'Global Assumptions'!$F$7,((A153+K153)-'Global Assumptions'!$F$9)*'Global Assumptions'!$F$10,(('Global Assumptions'!$F$7-'Global Assumptions'!$F$9)*'Global Assumptions'!$F$10)+IF((A153+K153)<'Global Assumptions'!$F$8,((A153+K153)-'Global Assumptions'!$F$7)*'Global Assumptions'!$F$11,('Global Assumptions'!$F$8-'Global Assumptions'!$F$7)*'Global Assumptions'!$F$11)) -> 3,117 | E153: =IF(A153<'Global Assumptions'!$F$12,A153*'Global Assumptions'!$F$13*$H$3,'Global Assumptions'!$F$12*'Global Assumptions'!$F$13*$H$3) -> 1,039 | F153: =(A153+K153)*'Global Assumptions'!$F$14 -> 2,247 | G153: =IF(A153<'Global Assumptions'!$F$16,A153*'Global Assumptions'!$F$15,'Global Assumptions'!$F$16*'Global Assumptions'!$F$15) -> 345 | H153: =IF(A153<'Global Assumptions'!$F$7,A153*$D$13,IF(A153<$F$13,(A153-'Global Assumptions'!$F$7)*$E$13+'Global Assumptions'!$F$7*$D$13,($F$13-'Global Assumptions'!$F$7)*$E$13+'Global Assumptions'!$F$7*$D$13))*$G$13 -> 19,108 | I153: =+'Global Assumptions'!$F$21*$H$4+'Global Assumptions'!$F$22*$H$5 -> 2,615 | J153: =+'Global Assumptions'!$F$23*$H$4+'Global Assumptions'!$F$24*$H$5 -> 1,672 | K153: =IF(A153<$H$7,A153*'Global Assumptions'!$F$25/1000*$H$6*1.08*12,$H$7*'Global Assumptions'!$F$25/1000*$H$6*1.08*12) -> 218 | L153: ='Global Assumptions'!$F$26 -> 281 | M153: 5,463 | N153: 288 | O153: 6 | P153: 0 | Q153: 495
A154: 120,000 | B154: 31.85% | C154: 38,222 | D154: =IF((A154+K154)<'Global Assumptions'!$F$7,((A154+K154)-'Global Assumptions'!$F$9)*'Global Assumptions'!$F$10,(('Global Assumptions'!$F$7-'Global Assumptions'!$F$9)*'Global Assumptions'!$F$10)+IF((A154+K154)<'Global Assumptions'!$F$8,((A154+K154)-'Global Assumptions'!$F$7)*'Global Assumptions'!$F$11,('Global Assumptions'!$F$8-'Global Assumptions'!$F$7)*'Global Assumptions'!$F$11)) -> 3,117 | E154: =IF(A154<'Global Assumptions'!$F$12,A154*'Global Assumptions'!$F$13*$H$3,'Global Assumptions'!$F$12*'Global Assumptions'!$F$13*$H$3) -> 1,039 | F154: =(A154+K154)*'Global Assumptions'!$F$14 -> 2,344 | G154: =IF(A154<'Global Assumptions'!$F$16,A154*'Global Assumptions'!$F$15,'Global Assumptions'!$F$16*'Global Assumptions'!$F$15) -> 345 | H154: =IF(A154<'Global Assumptions'!$F$7,A154*$D$13,IF(A154<$F$13,(A154-'Global Assumptions'!$F$7)*$E$13+'Global Assumptions'!$F$7*$D$13,($F$13-'Global Assumptions'!$F$7)*$E$13+'Global Assumptions'!$F$7*$D$13))*$G$13 -> 20,071 | I154: =+'Global Assumptions'!$F$21*$H$4+'Global Assumptions'!$F$22*$H$5 -> 2,615 | J154: =+'Global Assumptions'!$F$23*$H$4+'Global Assumptions'!$F$24*$H$5 -> 1,672 | K154: =IF(A154<$H$7,A154*'Global Assumptions'!$F$25/1000*$H$6*1.08*12,$H$7*'Global Assumptions'!$F$25/1000*$H$6*1.08*12) -> 218 | L154: ='Global Assumptions'!$F$26 -> 281 | M154: =+$A154*M$13 -> 5,700 | N154: 300 | O154: 6 | P154: 0 | Q154: 516
A155: 125,000 | B155: 31.64% | C155: 39,554 | D155: =IF((A155+K155)<'Global Assumptions'!$F$7,((A155+K155)-'Global Assumptions'!$F$9)*'Global Assumptions'!$F$10,(('Global Assumptions'!$F$7-'Global Assumptions'!$F$9)*'Global Assumptions'!$F$10)+IF((A155+K155)<'Global Assumptions'!$F$8,((A155+K155)-'Global Assumptions'!$F$7)*'Global Assumptions'!$F$11,('Global Assumptions'!$F$8-'Global Assumptions'!$F$7)*'Global Assumptions'!$F$11)) -> 3,117 | E155: =IF(A155<'Global Assumptions'!$F$12,A155*'Global Assumptions'!$F$13*$H$3,'Global Assumptions'!$F$12*'Global Assumptions'!$F$13*$H$3) -> 1,039 | F155: =(A155+K155)*'Global Assumptions'!$F$14 -> 2,442 | G155: =IF(A155<'Global Assumptions'!$F$16,A155*'Global Assumptions'!$F$15,'Global Assumptions'!$F$16*'Global Assumptions'!$F$15) -> 345 | H155: =IF(A155<'Global Assumptions'!$F$7,A155*$D$13,IF(A155<$F$13,(A155-'Global Assumptions'!$F$7)*$E$13+'Global Assumptions'!$F$7*$D$13,($F$13-'Global Assumptions'!$F$7)*$E$13+'Global Assumptions'!$F$7*$D$13))*$G$13 -> 21,033 | I155: =+'Global Assumptions'!$F$21*$H$4+'Global Assumptions'!$F$22*$H$5 -> 2,615 | J155: =+'Global Assumptions'!$F$23*$H$4+'Global Assumptions'!$F$24*$H$5 -> 1,672 | K155: =IF(A155<$H$7,A155*'Global Assumptions'!$F$25/1000*$H$6*1.08*12,$H$7*'Global Assumptions'!$F$25/1000*$H$6*1.08*12) -> 218 | L155: ='Global Assumptions'!$F$26 -> 281 | M155: 5,938 | N155: 313 | O155: 6 | P155: 0 | Q155: 538
A156: 130,000 | B156: 31.45% | C156: 40,886 | D156: =IF((A156+K156)<'Global Assumptions'!$F$7,((A156+K156)-'Global Assumptions'!$F$9)*'Global Assumptions'!$F$10,(('Global Assumptions'!$F$7-'Global Assumptions'!$F$9)*'Global Assumptions'!$F$10)+IF((A156+K156)<'Global Assumptions'!$F$8,((A156+K156)-'Global Assumptions'!$F$7)*'Global Assumptions'!$F$11,('Global Assumptions'!$F$8-'Global Assumptions'!$F$7)*'Global Assumptions'!$F$11)) -> 3,117 | E156: =IF(A156<'Global Assumptions'!$F$12,A156*'Global Assumptions'!$F$13*$H$3,'Global Assumptions'!$F$12*'Global Assumptions'!$F$13*$H$3) -> 1,039 | F156: =(A156+K156)*'Global Assumptions'!$F$14 -> 2,539 | G156: =IF(A156<'Global Assumptions'!$F$16,A156*'Global Assumptions'!$F$15,'Global Assumptions'!$F$16*'Global Assumptions'!$F$15) -> 345 | H156: =IF(A156<'Global Assumptions'!$F$7,A156*$D$13,IF(A156<$F$13,(A156-'Global Assumptions'!$F$7)*$E$13+'Global Assumptions'!$F$7*$D$13,($F$13-'Global Assumptions'!$F$7)*$E$13+'Global Assumptions'!$F$7*$D$13))*$G$13 -> 21,996 | I156: =+'Global Assumptions'!$F$21*$H$4+'Global Assumptions'!$F$22*$H$5 -> 2,615 | J156: =+'Global Assumptions'!$F$23*$H$4+'Global Assumptions'!$F$24*$H$5 -> 1,672 | K156: =IF(A156<$H$7,A156*'Global Assumptions'!$F$25/1000*$H$6*1.08*12,$H$7*'Global Assumptions'!$F$25/1000*$H$6*1.08*12) -> 218 | L156: ='Global Assumptions'!$F$26 -> 281 | M156: 6,175 | N156: 325 | O156: 7 | P156: 0 | Q156: 559
A157: 135,000 | B157: 31.27% | C157: 42,218 | D157: =IF((A157+K157)<'Global Assumptions'!$F$7,((A157+K157)-'Global Assumptions'!$F$9)*'Global Assumptions'!$F$10,(('Global Assumptions'!$F$7-'Global Assumptions'!$F$9)*'Global Assumptions'!$F$10)+IF((A157+K157)<'Global Assumptions'!$F$8,((A157+K157)-'Global Assumptions'!$F$7)*'Global Assumptions'!$F$11,('Global Assumptions'!$F$8-'Global Assumptions'!$F$7)*'Global Assumptions'!$F$11)) -> 3,117 | E157: =IF(A157<'Global Assumptions'!$F$12,A157*'Global Assumptions'!$F$13*$H$3,'Global Assumptions'!$F$12*'Global Assumptions'!$F$13*$H$3) -> 1,039 | F157: =(A157+K157)*'Global Assumptions'!$F$14 -> 2,637 | G157: =IF(A157<'Global Assumptions'!$F$16,A157*'Global Assumptions'!$F$15,'Global Assumptions'!$F$16*'Global Assumptions'!$F$15) -> 345 | H157: =IF(A157<'Global Assumptions'!$F$7,A157*$D$13,IF(A157<$F$13,(A157-'Global Assumptions'!$F$7)*$E$13+'Global Assumptions'!$F$7*$D$13,($F$13-'Global Assumptions'!$F$7)*$E$13+'Global Assumptions'!$F$7*$D$13))*$G$13 -> 22,958 | I157: =+'Global Assumptions'!$F$21*$H$4+'Global Assumptions'!$F$22*$H$5 -> 2,615 | J157: =+'Global Assumptions'!$F$23*$H$4+'Global Assumptions'!$F$24*$H$5 -> 1,672 | K157: =IF(A157<$H$7,A157*'Global Assumptions'!$F$25/1000*$H$6*1.08*12,$H$7*'Global Assumptions'!$F$25/1000*$H$6*1.08*12) -> 218 | L157: ='Global Assumptions'!$F$26 -> 281 | M157: 6,413 | N157: 338 | O157: 7 | P157: 0 | Q157: 581
A158: 140,000 | B158: 31.11% | C158: 43,549 | D158: =IF((A158+K158)<'Global Assumptions'!$F$7,((A158+K158)-'Global Assumptions'!$F$9)*'Global Assumptions'!$F$10,(('Global Assumptions'!$F$7-'Global Assumptions'!$F$9)*'Global Assumptions'!$F$10)+IF((A158+K158)<'Global Assumptions'!$F$8,((A158+K158)-'Global Assumptions'!$F$7)*'Global Assumptions'!$F$11,('Global Assumptions'!$F$8-'Global Assumptions'!$F$7)*'Global Assumptions'!$F$11)) -> 3,117 | E158: =IF(A158<'Global Assumptions'!$F$12,A158*'Global Assumptions'!$F$13*$H$3,'Global Assumptions'!$F$12*'Global Assumptions'!$F$13*$H$3) -> 1,039 | F158: =(A158+K158)*'Global Assumptions'!$F$14 -> 2,734 | G158: =IF(A158<'Global Assumptions'!$F$16,A158*'Global Assumptions'!$F$15,'Global Assumptions'!$F$16*'Global Assumptions'!$F$15) -> 345 | H158: =IF(A158<'Global Assumptions'!$F$7,A158*$D$13,IF(A158<$F$13,(A158-'Global Assumptions'!$F$7)*$E$13+'Global Assumptions'!$F$7*$D$13,($F$13-'Global Assumptions'!$F$7)*$E$13+'Global Assumptions'!$F$7*$D$13))*$G$13 -> 23,921 | I158: =+'Global Assumptions'!$F$21*$H$4+'Global Assumptions'!$F$22*$H$5 -> 2,615 | J158: =+'Global Assumptions'!$F$23*$H$4+'Global Assumptions'!$F$24*$H$5 -> 1,672 | K158: =IF(A158<$H$7,A158*'Global Assumptions'!$F$25/1000*$H$6*1.08*12,$H$7*'Global Assumptions'!$F$25/1000*$H$6*1.08*12) -> 218 | L158: ='Global Assumptions'!$F$26 -> 281 | M158: 6,650 | N158: 350 | O158: 7 | P158: 0 | Q158: 602
A159: 145,000 | B159: 30.95% | C159: 44,881 | D159: =IF((A159+K159)<'Global Assumptions'!$F$7,((A159+K159)-'Global Assumptions'!$F$9)*'Global Assumptions'!$F$10,(('Global Assumptions'!$F$7-'Global Assumptions'!$F$9)*'Global Assumptions'!$F$10)+IF((A159+K159)<'Global Assumptions'!$F$8,((A159+K159)-'Global Assumptions'!$F$7)*'Global Assumptions'!$F$11,('Global Assumptions'!$F$8-'Global Assumptions'!$F$7)*'Global Assumptions'!$F$11)) -> 3,117 | E159: =IF(A159<'Global Assumptions'!$F$12,A159*'Global Assumptions'!$F$13*$H$3,'Global Assumptions'!$F$12*'Global Assumptions'!$F$13*$H$3) -> 1,039 | F159: =(A159+K159)*'Global Assumptions'!$F$14 -> 2,832 | G159: =IF(A159<'Global Assumptions'!$F$16,A159*'Global Assumptions'!$F$15,'Global Assumptions'!$F$16*'Global Assumptions'!$F$15) -> 345 | H159: =IF(A159<'Global Assumptions'!$F$7,A159*$D$13,IF(A159<$F$13,(A159-'Global Assumptions'!$F$7)*$E$13+'Global Assumptions'!$F$7*$D$13,($F$13-'Global Assumptions'!$F$7)*$E$13+'Global Assumptions'!$F$7*$D$13))*$G$13 -> 24,883 | I159: =+'Global Assumptions'!$F$21*$H$4+'Global Assumptions'!$F$22*$H$5 -> 2,615 | J159: =+'Global Assumptions'!$F$23*$H$4+'Global Assumptions'!$F$24*$H$5 -> 1,672 | K159: =IF(A159<$H$7,A159*'Global Assumptions'!$F$25/1000*$H$6*1.08*12,$H$7*'Global Assumptions'!$F$25/1000*$H$6*1.08*12) -> 218 | L159: ='Global Assumptions'!$F$26 -> 281 | M159: 6,888 | N159: 363 | O159: 7 | P159: 0 | Q159: 624
A160: 150,000 | B160: 30.81% | C160: 46,213 | D160: =IF((A160+K160)<'Global Assumptions'!$F$7,((A160+K160)-'Global Assumptions'!$F$9)*'Global Assumptions'!$F$10,(('Global Assumptions'!$F$7-'Global Assumptions'!$F$9)*'Global Assumptions'!$F$10)+IF((A160+K160)<'Global Assumptions'!$F$8,((A160+K160)-'Global Assumptions'!$F$7)*'Global Assumptions'!$F$11,('Global Assumptions'!$F$8-'Global Assumptions'!$F$7)*'Global Assumptions'!$F$11)) -> 3,117 | E160: =IF(A160<'Global Assumptions'!$F$12,A160*'Global Assumptions'!$F$13*$H$3,'Global Assumptions'!$F$12*'Global Assumptions'!$F$13*$H$3) -> 1,039 | F160: =(A160+K160)*'Global Assumptions'!$F$14 -> 2,929 | G160: =IF(A160<'Global Assumptions'!$F$16,A160*'Global Assumptions'!$F$15,'Global Assumptions'!$F$16*'Global Assumptions'!$F$15) -> 345 | H160: =IF(A160<'Global Assumptions'!$F$7,A160*$D$13,IF(A160<$F$13,(A160-'Global Assumptions'!$F$7)*$E$13+'Global Assumptions'!$F$7*$D$13,($F$13-'Global Assumptions'!$F$7)*$E$13+'Global Assumptions'!$F$7*$D$13))*$G$13 -> 25,846 | I160: =+'Global Assumptions'!$F$21*$H$4+'Global Assumptions'!$F$22*$H$5 -> 2,615 | J160: =+'Global Assumptions'!$F$23*$H$4+'Global Assumptions'!$F$24*$H$5 -> 1,672 | K160: =IF(A160<$H$7,A160*'Global Assumptions'!$F$25/1000*$H$6*1.08*12,$H$7*'Global Assumptions'!$F$25/1000*$H$6*1.08*12) -> 218 | L160: ='Global Assumptions'!$F$26 -> 281 | M160: 7,125 | N160: 375 | O160: 8 | P160: 0 | Q160: 645
A161: 155,000 | B161: 30.67% | C161: 47,545 | D161: =IF((A161+K161)<'Global Assumptions'!$F$7,((A161+K161)-'Global Assumptions'!$F$9)*'Global Assumptions'!$F$10,(('Global Assumptions'!$F$7-'Global Assumptions'!$F$9)*'Global Assumptions'!$F$10)+IF((A161+K161)<'Global Assumptions'!$F$8,((A161+K161)-'Global Assumptions'!$F$7)*'Global Assumptions'!$F$11,('Global Assumptions'!$F$8-'Global Assumptions'!$F$7)*'Global Assumptions'!$F$11)) -> 3,117 | E161: =IF(A161<'Global Assumptions'!$F$12,A161*'Global Assumptions'!$F$13*$H$3,'Global Assumptions'!$F$12*'Global Assumptions'!$F$13*$H$3) -> 1,039 | F161: =(A161+K161)*'Global Assumptions'!$F$14 -> 3,027 | G161: =IF(A161<'Global Assumptions'!$F$16,A161*'Global Assumptions'!$F$15,'Global Assumptions'!$F$16*'Global Assumptions'!$F$15) -> 345 | H161: =IF(A161<'Global Assumptions'!$F$7,A161*$D$13,IF(A161<$F$13,(A161-'Global Assumptions'!$F$7)*$E$13+'Global Assumptions'!$F$7*$D$13,($F$13-'Global Assumptions'!$F$7)*$E$13+'Global Assumptions'!$F$7*$D$13))*$G$13 -> 26,808 | I161: =+'Global Assumptions'!$F$21*$H$4+'Global Assumptions'!$F$22*$H$5 -> 2,615 | J161: =+'Global Assumptions'!$F$23*$H$4+'Global Assumptions'!$F$24*$H$5 -> 1,672 | K161: =IF(A161<$H$7,A161*'Global Assumptions'!$F$25/1000*$H$6*1.08*12,$H$7*'Global Assumptions'!$F$25/1000*$H$6*1.08*12) -> 218 | L161: ='Global Assumptions'!$F$26 -> 281 | M161: 7,363 | N161: 388 | O161: 8 | P161: 0 | Q161: 667
A162: 160,000 | B162: 30.55% | C162: 48,876 | D162: =IF((A162+K162)<'Global Assumptions'!$F$7,((A162+K162)-'Global Assumptions'!$F$9)*'Global Assumptions'!$F$10,(('Global Assumptions'!$F$7-'Global Assumptions'!$F$9)*'Global Assumptions'!$F$10)+IF((A162+K162)<'Global Assumptions'!$F$8,((A162+K162)-'Global Assumptions'!$F$7)*'Global Assumptions'!$F$11,('Global Assumptions'!$F$8-'Global Assumptions'!$F$7)*'Global Assumptions'!$F$11)) -> 3,117 | E162: =IF(A162<'Global Assumptions'!$F$12,A162*'Global Assumptions'!$F$13*$H$3,'Global Assumptions'!$F$12*'Global Assumptions'!$F$13*$H$3) -> 1,039 | F162: =(A162+K162)*'Global Assumptions'!$F$14 -> 3,124 | G162: =IF(A162<'Global Assumptions'!$F$16,A162*'Global Assumptions'!$F$15,'Global Assumptions'!$F$16*'Global Assumptions'!$F$15) -> 345 | H162: =IF(A162<'Global Assumptions'!$F$7,A162*$D$13,IF(A162<$F$13,(A162-'Global Assumptions'!$F$7)*$E$13+'Global Assumptions'!$F$7*$D$13,($F$13-'Global Assumptions'!$F$7)*$E$13+'Global Assumptions'!$F$7*$D$13))*$G$13 -> 27,771 | I162: =+'Global Assumptions'!$F$21*$H$4+'Global Assumptions'!$F$22*$H$5 -> 2,615 | J162: =+'Global Assumptions'!$F$23*$H$4+'Global Assumptions'!$F$24*$H$5 -> 1,672 | K162: =IF(A162<$H$7,A162*'Global Assumptions'!$F$25/1000*$H$6*1.08*12,$H$7*'Global Assumptions'!$F$25/1000*$H$6*1.08*12) -> 218 | L162: ='Global Assumptions'!$F$26 -> 281 | M162: 7,600 | N162: 400 | O162: 8 | P162: 0 | Q162: 688
A163: 165,000 | B163: 30.43% | C163: 50,208 | D163: =IF((A163+K163)<'Global Assumptions'!$F$7,((A163+K163)-'Global Assumptions'!$F$9)*'Global Assumptions'!$F$10,(('Global Assumptions'!$F$7-'Global Assumptions'!$F$9)*'Global Assumptions'!$F$10)+IF((A163+K163)<'Global Assumptions'!$F$8,((A163+K163)-'Global Assumptions'!$F$7)*'Global Assumptions'!$F$11,('Global Assumptions'!$F$8-'Global Assumptions'!$F$7)*'Global Assumptions'!$F$11)) -> 3,117 | E163: =IF(A163<'Global Assumptions'!$F$12,A163*'Global Assumptions'!$F$13*$H$3,'Global Assumptions'!$F$12*'Global Assumptions'!$F$13*$H$3) -> 1,039 | F163: =(A163+K163)*'Global Assumptions'!$F$14 -> 3,222 | G163: =IF(A163<'Global Assumptions'!$F$16,A163*'Global Assumptions'!$F$15,'Global Assumptions'!$F$16*'Global Assumptions'!$F$15) -> 345 | H163: =IF(A163<'Global Assumptions'!$F$7,A163*$D$13,IF(A163<$F$13,(A163-'Global Assumptions'!$F$7)*$E$13+'Global Assumptions'!$F$7*$D$13,($F$13-'Global Assumptions'!$F$7)*$E$13+'Global Assumptions'!$F$7*$D$13))*$G$13 -> 28,733 | I163: =+'Global Assumptions'!$F$21*$H$4+'Global Assumptions'!$F$22*$H$5 -> 2,615 | J163: =+'Global Assumptions'!$F$23*$H$4+'Global Assumptions'!$F$24*$H$5 -> 1,672 | K163: =IF(A163<$H$7,A163*'Global Assumptions'!$F$25/1000*$H$6*1.08*12,$H$7*'Global Assumptions'!$F$25/1000*$H$6*1.08*12) -> 218 | L163: ='Global Assumptions'!$F$26 -> 281 | M163: 7,838 | N163: 413 | O163: 8 | P163: 0 | Q163: 710
A164: 170,000 | B164: 30.25% | C164: 51,424 | D164: =IF((A164+K164)<'Global Assumptions'!$F$7,((A164+K164)-'Global Assumptions'!$F$9)*'Global Assumptions'!$F$10,(('Global Assumptions'!$F$7-'Global Assumptions'!$F$9)*'Global Assumptions'!$F$10)+IF((A164+K164)<'Global Assumptions'!$F$8,((A164+K164)-'Global Assumptions'!$F$7)*'Global Assumptions'!$F$11,('Global Assumptions'!$F$8-'Global Assumptions'!$F$7)*'Global Assumptions'!$F$11)) -> 3,117 | E164: =IF(A164<'Global Assumptions'!$F$12,A164*'Global Assumptions'!$F$13*$H$3,'Global Assumptions'!$F$12*'Global Assumptions'!$F$13*$H$3) -> 1,039 | F164: =(A164+K164)*'Global Assumptions'!$F$14 -> 3,319 | G164: =IF(A164<'Global Assumptions'!$F$16,A164*'Global Assumptions'!$F$15,'Global Assumptions'!$F$16*'Global Assumptions'!$F$15) -> 345 | H164: =IF(A164<'Global Assumptions'!$F$7,A164*$D$13,IF(A164<$F$13,(A164-'Global Assumptions'!$F$7)*$E$13+'Global Assumptions'!$F$7*$D$13,($F$13-'Global Assumptions'!$F$7)*$E$13+'Global Assumptions'!$F$7*$D$13))*$G$13 -> 29,580 | I164: =+'Global Assumptions'!$F$21*$H$4+'Global Assumptions'!$F$22*$H$5 -> 2,615 | J164: =+'Global Assumptions'!$F$23*$H$4+'Global Assumptions'!$F$24*$H$5 -> 1,672 | K164: =IF(A164<$H$7,A164*'Global Assumptions'!$F$25/1000*$H$6*1.08*12,$H$7*'Global Assumptions'!$F$25/1000*$H$6*1.08*12) -> 218 | L164: ='Global Assumptions'!$F$26 -> 281 | M164: 8,075 | N164: 425 | O164: 9 | P164: 0 | Q164: 731
A165: 175,000 | B165: 29.60% | C165: 51,794 | D165: =IF((A165+K165)<'Global Assumptions'!$F$7,((A165+K165)-'Global Assumptions'!$F$9)*'Global Assumptions'!$F$10,(('Global Assumptions'!$F$7-'Global Assumptions'!$F$9)*'Global Assumptions'!$F$10)+IF((A165+K165)<'Global Assumptions'!$F$8,((A165+K165)-'Global Assumptions'!$F$7)*'Global Assumptions'!$F$11,('Global Assumptions'!$F$8-'Global Assumptions'!$F$7)*'Global Assumptions'!$F$11)) -> 3,117 | E165: =IF(A165<'Global Assumptions'!$F$12,A165*'Global Assumptions'!$F$13*$H$3,'Global Assumptions'!$F$12*'Global Assumptions'!$F$13*$H$3) -> 1,039 | F165: =(A165+K165)*'Global Assumptions'!$F$14 -> 3,417 | G165: =IF(A165<'Global Assumptions'!$F$16,A165*'Global Assumptions'!$F$15,'Global Assumptions'!$F$16*'Global Assumptions'!$F$15) -> 345 | H165: =IF(A165<'Global Assumptions'!$F$7,A165*$D$13,IF(A165<$F$13,(A165-'Global Assumptions'!$F$7)*$E$13+'Global Assumptions'!$F$7*$D$13,($F$13-'Global Assumptions'!$F$7)*$E$13+'Global Assumptions'!$F$7*$D$13))*$G$13 -> 29,580 | I165: =+'Global Assumptions'!$F$21*$H$4+'Global Assumptions'!$F$22*$H$5 -> 2,615 | J165: =+'Global Assumptions'!$F$23*$H$4+'Global Assumptions'!$F$24*$H$5 -> 1,672 | K165: =IF(A165<$H$7,A165*'Global Assumptions'!$F$25/1000*$H$6*1.08*12,$H$7*'Global Assumptions'!$F$25/1000*$H$6*1.08*12) -> 218 | L165: ='Global Assumptions'!$F$26 -> 281 | M165: 8,313 | N165: 438 | O165: 9 | P165: 0 | Q165: 753
A166: 180,000 | B166: 28.98% | C166: 52,163 | D166: =IF((A166+K166)<'Global Assumptions'!$F$7,((A166+K166)-'Global Assumptions'!$F$9)*'Global Assumptions'!$F$10,(('Global Assumptions'!$F$7-'Global Assumptions'!$F$9)*'Global Assumptions'!$F$10)+IF((A166+K166)<'Global Assumptions'!$F$8,((A166+K166)-'Global Assumptions'!$F$7)*'Global Assumptions'!$F$11,('Global Assumptions'!$F$8-'Global Assumptions'!$F$7)*'Global Assumptions'!$F$11)) -> 3,117 | E166: =IF(A166<'Global Assumptions'!$F$12,A166*'Global Assumptions'!$F$13*$H$3,'Global Assumptions'!$F$12*'Global Assumptions'!$F$13*$H$3) -> 1,039 | F166: =(A166+K166)*'Global Assumptions'!$F$14 -> 3,514 | G166: =IF(A166<'Global Assumptions'!$F$16,A166*'Global Assumptions'!$F$15,'Global Assumptions'!$F$16*'Global Assumptions'!$F$15) -> 345 | H166: =IF(A166<'Global Assumptions'!$F$7,A166*$D$13,IF(A166<$F$13,(A166-'Global Assumptions'!$F$7)*$E$13+'Global Assumptions'!$F$7*$D$13,($F$13-'Global Assumptions'!$F$7)*$E$13+'Global Assumptions'!$F$7*$D$13))*$G$13 -> 29,580 | I166: =+'Global Assumptions'!$F$21*$H$4+'Global Assumptions'!$F$22*$H$5 -> 2,615 | J166: =+'Global Assumptions'!$F$23*$H$4+'Global Assumptions'!$F$24*$H$5 -> 1,672 | K166: =IF(A166<$H$7,A166*'Global Assumptions'!$F$25/1000*$H$6*1.08*12,$H$7*'Global Assumptions'!$F$25/1000*$H$6*1.08*12) -> 218 | L166: ='Global Assumptions'!$F$26 -> 281 | M166: 8,550 | N166: 450 | O166: 9 | P166: 0 | Q166: 774
A167: 185,000 | B167: 28.40% | C167: 52,532 | D167: =IF((A167+K167)<'Global Assumptions'!$F$7,((A167+K167)-'Global Assumptions'!$F$9)*'Global Assumptions'!$F$10,(('Global Assumptions'!$F$7-'Global Assumptions'!$F$9)*'Global Assumptions'!$F$10)+IF((A167+K167)<'Global Assumptions'!$F$8,((A167+K167)-'Global Assumptions'!$F$7)*'Global Assumptions'!$F$11,('Global Assumptions'!$F$8-'Global Assumptions'!$F$7)*'Global Assumptions'!$F$11)) -> 3,117 | E167: =IF(A167<'Global Assumptions'!$F$12,A167*'Global Assumptions'!$F$13*$H$3,'Global Assumptions'!$F$12*'Global Assumptions'!$F$13*$H$3) -> 1,039 | F167: =(A167+K167)*'Global Assumptions'!$F$14 -> 3,612 | G167: =IF(A167<'Global Assumptions'!$F$16,A167*'Global Assumptions'!$F$15,'Global Assumptions'!$F$16*'Global Assumptions'!$F$15) -> 345 | H167: =IF(A167<'Global Assumptions'!$F$7,A167*$D$13,IF(A167<$F$13,(A167-'Global Assumptions'!$F$7)*$E$13+'Global Assumptions'!$F$7*$D$13,($F$13-'Global Assumptions'!$F$7)*$E$13+'Global Assumptions'!$F$7*$D$13))*$G$13 -> 29,580 | I167: =+'Global Assumptions'!$F$21*$H$4+'Global Assumptions'!$F$22*$H$5 -> 2,615 | J167: =+'Global Assumptions'!$F$23*$H$4+'Global Assumptions'!$F$24*$H$5 -> 1,672 | K167: =IF(A167<$H$7,A167*'Global Assumptions'!$F$25/1000*$H$6*1.08*12,$H$7*'Global Assumptions'!$F$25/1000*$H$6*1.08*12) -> 218 | L167: ='Global Assumptions'!$F$26 -> 281 | M167: 8,788 | N167: 463 | O167: 9 | P167: 0 | Q167: 796
A168: 190,000 | B168: 27.84% | C168: 52,901 | D168: =IF((A168+K168)<'Global Assumptions'!$F$7,((A168+K168)-'Global Assumptions'!$F$9)*'Global Assumptions'!$F$10,(('Global Assumptions'!$F$7-'Global Assumptions'!$F$9)*'Global Assumptions'!$F$10)+IF((A168+K168)<'Global Assumptions'!$F$8,((A168+K168)-'Global Assumptions'!$F$7)*'Global Assumptions'!$F$11,('Global Assumptions'!$F$8-'Global Assumptions'!$F$7)*'Global Assumptions'!$F$11)) -> 3,117 | E168: =IF(A168<'Global Assumptions'!$F$12,A168*'Global Assumptions'!$F$13*$H$3,'Global Assumptions'!$F$12*'Global Assumptions'!$F$13*$H$3) -> 1,039 | F168: =(A168+K168)*'Global Assumptions'!$F$14 -> 3,709 | G168: =IF(A168<'Global Assumptions'!$F$16,A168*'Global Assumptions'!$F$15,'Global Assumptions'!$F$16*'Global Assumptions'!$F$15) -> 345 | H168: =IF(A168<'Global Assumptions'!$F$7,A168*$D$13,IF(A168<$F$13,(A168-'Global Assumptions'!$F$7)*$E$13+'Global Assumptions'!$F$7*$D$13,($F$13-'Global Assumptions'!$F$7)*$E$13+'Global Assumptions'!$F$7*$D$13))*$G$13 -> 29,580 | I168: =+'Global Assumptions'!$F$21*$H$4+'Global Assumptions'!$F$22*$H$5 -> 2,615 | J168: =+'Global Assumptions'!$F$23*$H$4+'Global Assumptions'!$F$24*$H$5 -> 1,672 | K168: =IF(A168<$H$7,A168*'Global Assumptions'!$F$25/1000*$H$6*1.08*12,$H$7*'Global Assumptions'!$F$25/1000*$H$6*1.08*12) -> 218 | L168: ='Global Assumptions'!$F$26 -> 281 | M168: 9,025 | N168: 475 | O168: 10 | P168: 0 | Q168: 817
A169: 195,000 | B169: 27.32% | C169: 53,271 | D169: =IF((A169+K169)<'Global Assumptions'!$F$7,((A169+K169)-'Global Assumptions'!$F$9)*'Global Assumptions'!$F$10,(('Global Assumptions'!$F$7-'Global Assumptions'!$F$9)*'Global Assumptions'!$F$10)+IF((A169+K169)<'Global Assumptions'!$F$8,((A169+K169)-'Global Assumptions'!$F$7)*'Global Assumptions'!$F$11,('Global Assumptions'!$F$8-'Global Assumptions'!$F$7)*'Global Assumptions'!$F$11)) -> 3,117 | E169: =IF(A169<'Global Assumptions'!$F$12,A169*'Global Assumptions'!$F$13*$H$3,'Global Assumptions'!$F$12*'Global Assumptions'!$F$13*$H$3) -> 1,039 | F169: =(A169+K169)*'Global Assumptions'!$F$14 -> 3,807 | G169: =IF(A169<'Global Assumptions'!$F$16,A169*'Global Assumptions'!$F$15,'Global Assumptions'!$F$16*'Global Assumptions'!$F$15) -> 345 | H169: =IF(A169<'Global Assumptions'!$F$7,A169*$D$13,IF(A169<$F$13,(A169-'Global Assumptions'!$F$7)*$E$13+'Global Assumptions'!$F$7*$D$13,($F$13-'Global Assumptions'!$F$7)*$E$13+'Global Assumptions'!$F$7*$D$13))*$G$13 -> 29,580 | I169: =+'Global Assumptions'!$F$21*$H$4+'Global Assumptions'!$F$22*$H$5 -> 2,615 | J169: =+'Global Assumptions'!$F$23*$H$4+'Global Assumptions'!$F$24*$H$5 -> 1,672 | K169: =IF(A169<$H$7,A169*'Global Assumptions'!$F$25/1000*$H$6*1.08*12,$H$7*'Global Assumptions'!$F$25/1000*$H$6*1.08*12) -> 218 | L169: ='Global Assumptions'!$F$26 -> 281 | M169: 9,263 | N169: 488 | O169: 10 | P169: 0 | Q169: 839
A170: 200,000 | B170: 26.82% | C170: 53,640 | D170: =IF((A170+K170)<'Global Assumptions'!$F$7,((A170+K170)-'Global Assumptions'!$F$9)*'Global Assumptions'!$F$10,(('Global Assumptions'!$F$7-'Global Assumptions'!$F$9)*'Global Assumptions'!$F$10)+IF((A170+K170)<'Global Assumptions'!$F$8,((A170+K170)-'Global Assumptions'!$F$7)*'Global Assumptions'!$F$11,('Global Assumptions'!$F$8-'Global Assumptions'!$F$7)*'Global Assumptions'!$F$11)) -> 3,117 | E170: =IF(A170<'Global Assumptions'!$F$12,A170*'Global Assumptions'!$F$13*$H$3,'Global Assumptions'!$F$12*'Global Assumptions'!$F$13*$H$3) -> 1,039 | F170: =(A170+K170)*'Global Assumptions'!$F$14 -> 3,904 | G170: =IF(A170<'Global Assumptions'!$F$16,A170*'Global Assumptions'!$F$15,'Global Assumptions'!$F$16*'Global Assumptions'!$F$15) -> 345 | H170: =IF(A170<'Global Assumptions'!$F$7,A170*$D$13,IF(A170<$F$13,(A170-'Global Assumptions'!$F$7)*$E$13+'Global Assumptions'!$F$7*$D$13,($F$13-'Global Assumptions'!$F$7)*$E$13+'Global Assumptions'!$F$7*$D$13))*$G$13 -> 29,580 | I170: =+'Global Assumptions'!$F$21*$H$4+'Global Assumptions'!$F$22*$H$5 -> 2,615 | J170: =+'Global Assumptions'!$F$23*$H$4+'Global Assumptions'!$F$24*$H$5 -> 1,672 | K170: =IF(A170<$H$7,A170*'Global Assumptions'!$F$25/1000*$H$6*1.08*12,$H$7*'Global Assumptions'!$F$25/1000*$H$6*1.08*12) -> 218 | L170: ='Global Assumptions'!$F$26 -> 281 | M170: 9,500 | N170: 500 | O170: 10 | P170: 0 | Q170: 860

Sheet MFF 30
A1: MUFA Faculty (MFF)
A2: Fund 30
C3: Employee group assumptions | D3: Employer EI rate: | H3: 1.183
D4: Health & Dental participation: | G4: Family | H4: =797/916 -> 87%
G5: Single | H5: =1-H4 -> 13%
D6: Life insurance coverage (x earnings): | H6: 1.75
D7: Life insurance maximum insured earnings: | H7: 100,000
D8: Employer pension contributions:
D9: Pension contribution to YMPE | E9: Pension contribution to ITA max | F9: ITA max | G9: Employer contribution rate | M9: Benefits Surcharge | N9: PRB Surcharge | O9: WSIB NEER Surcharge | P9: Salary Continuance | Q9: MUFA Daycare surcharge
C10: =+'Global Assumptions'!C4 -> FY19 Projection | D10: =0.07*2/12+0.08*10/12 -> 7.83% | E10: =0.1*2/12+0.11*10/12 -> 10.83% | F10: =+'Global Assumptions'!$C$17 -> 163,992 | G10: 175% | M10: 3.50% | N10: 0.25% | O10: 0.015% | P10: 0.00% | Q10: 0.00%
C11: =+'Global Assumptions'!D4 -> FY20 Budget | D11: 8.00% | E11: 11.00% | F11: =+'Global Assumptions'!$D$17 -> 165,800 | G11: 175% | M11: 4.50% | N11: 0.25% | O11: 0.005% | P11: 0.00% | Q11: 0.43%
C12: =+'Global Assumptions'!E4 -> FY21 Plan | D12: 8.00% | E12: 11.00% | F12: =+'Global Assumptions'!$E$17 -> 167,600 | G12: 175% | M12: 4.50% | N12: 0.25% | O12: 0.005% | P12: 0.00% | Q12: 0.43%
C13: =+'Global Assumptions'!F4 -> FY22 Plan | D13: 8.00% | E13: 11.00% | F13: =+'Global Assumptions'!$F$17 -> 169,400 | G13: 175% | M13: 4.75% | N13: 0.25% | O13: 0.005% | P13: 0.00% | Q13: 0.43%
A14: Back to Index
A15: Annual Salary | B15: Rate | C15: Total Cost | D15: CPP | E15: EI | F15: EHT | G15: WSIB | H15: Pension | I15: Major Medical | J15: Dental | K15: Life Insurance | L15: Travel Insurance | M15: Benefits Surcharge | N15: PRB Surcharge | O15: WSIB NEER Surcharge | P15: Salary Continuance | Q15: MUFA Daycare surcharge
A16: =+'Global Assumptions'!C4 -> FY19 Projection
A17: 20,000 | B17: =+C17/A17 -> 47.25% | C17: =SUM(D17:Q17) -> 9,449 | D17: =IF((A17+K17)<'Global Assumptions'!$C$7,((A17+K17)-'Global Assumptions'!$C$9)*'Global Assumptions'!$C$10,(('Global Assumptions'!$C$7-'Global Assumptions'!$C$9)*'Global Assumptions'!$C$10)+IF((A17+K17)<'Global Assumptions'!$C$8,((A17+K17)-'Global Assumptions'!$C$7)*'Global Assumptions'!$C$11,('Global Assumptions'!$C$8-'Global Assumptions'!$C$7)*'Global Assumptions'!$C$11)) -> 852 | E17: =IF(A17<'Global Assumptions'!$C$12,A17*'Global Assumptions'!$C$13*$H$3,'Global Assumptions'!$C$12*'Global Assumptions'!$C$13*$H$3) -> 393 | F17: =(A17+K17)*'Global Assumptions'!$C$14 -> 391 | G17: =IF(A17<'Global Assumptions'!$C$16,A17*'Global Assumptions'!$C$15,'Global Assumptions'!$C$16*'Global Assumptions'!$C$15) -> 72 | H17: =IF(A17<'Global Assumptions'!$C$7,A17*$D$10,IF(A17<$F$10,(A17-'Global Assumptions'!$C$7)*$E$10+'Global Assumptions'!$C$7*$D$10,($F$10-'Global Assumptions'!$C$7)*$E$10+'Global Assumptions'!$C$7*$D$10))*$G$10 -> 2,742 | I17: =+'Global Assumptions'!$C$21*$H$4+'Global Assumptions'!$C$22*$H$5 -> 2,393 | J17: =+'Global Assumptions'!$C$23*$H$4+'Global Assumptions'!$C$24*$H$5 -> 1,530 | K17: =IF(A17<$H$7,A17*'Global Assumptions'!$C$25/1000*$H$6*1.08*12,$H$7*'Global Assumptions'!$C$25/1000*$H$6*1.08*12) -> 44 | L17: ='Global Assumptions'!$C$26 -> 281 | M17: =+$A17*M$10 -> 700 | N17: 50 | O17: 3 | P17: 0 | Q17: 0
A18: 25,000 | B18: 43.22% | C18: =SUM(D18:Q18) -> 10,806 | D18: =IF((A18+K18)<'Global Assumptions'!$C$7,((A18+K18)-'Global Assumptions'!$C$9)*'Global Assumptions'!$C$10,(('Global Assumptions'!$C$7-'Global Assumptions'!$C$9)*'Global Assumptions'!$C$10)+IF((A18+K18)<'Global Assumptions'!$C$8,((A18+K18)-'Global Assumptions'!$C$7)*'Global Assumptions'!$C$11,('Global Assumptions'!$C$8-'Global Assumptions'!$C$7)*'Global Assumptions'!$C$11)) -> 1,110 | E18: =IF(A18<'Global Assumptions'!$C$12,A18*'Global Assumptions'!$C$13*$H$3,'Global Assumptions'!$C$12*'Global Assumptions'!$C$13*$H$3) -> 491 | F18: =(A18+K18)*'Global Assumptions'!$C$14 -> 489 | G18: =IF(A18<'Global Assumptions'!$C$16,A18*'Global Assumptions'!$C$15,'Global Assumptions'!$C$16*'Global Assumptions'!$C$15) -> 90 | H18: =IF(A18<'Global Assumptions'!$C$7,A18*$D$10,IF(A18<$F$10,(A18-'Global Assumptions'!$C$7)*$E$10+'Global Assumptions'!$C$7*$D$10,($F$10-'Global Assumptions'!$C$7)*$E$10+'Global Assumptions'!$C$7*$D$10))*$G$10 -> 3,427 | I18: =+'Global Assumptions'!$C$21*$H$4+'Global Assumptions'!$C$22*$H$5 -> 2,393 | J18: =+'Global Assumptions'!$C$23*$H$4+'Global Assumptions'!$C$24*$H$5 -> 1,530 | K18: =IF(A18<$H$7,A18*'Global Assumptions'!$C$25/1000*$H$6*1.08*12,$H$7*'Global Assumptions'!$C$25/1000*$H$6*1.08*12) -> 54 | L18: ='Global Assumptions'!$C$26 -> 281 | M18: 875 | N18: 63 | O18: 4 | P18: 0 | Q18: 0
A19: 30,000 | B19: 40.54% | C19: 12,162 | D19: =IF((A19+K19)<'Global Assumptions'!$C$7,((A19+K19)-'Global Assumptions'!$C$9)*'Global Assumptions'!$C$10,(('Global Assumptions'!$C$7-'Global Assumptions'!$C$9)*'Global Assumptions'!$C$10)+IF((A19+K19)<'Global Assumptions'!$C$8,((A19+K19)-'Global Assumptions'!$C$7)*'Global Assumptions'!$C$11,('Global Assumptions'!$C$8-'Global Assumptions'!$C$7)*'Global Assumptions'!$C$11)) -> 1,368 | E19: =IF(A19<'Global Assumptions'!$C$12,A19*'Global Assumptions'!$C$13*$H$3,'Global Assumptions'!$C$12*'Global Assumptions'!$C$13*$H$3) -> 589 | F19: =(A19+K19)*'Global Assumptions'!$C$14 -> 586 | G19: =IF(A19<'Global Assumptions'!$C$16,A19*'Global Assumptions'!$C$15,'Global Assumptions'!$C$16*'Global Assumptions'!$C$15) -> 108 | H19: =IF(A19<'Global Assumptions'!$C$7,A19*$D$10,IF(A19<$F$10,(A19-'Global Assumptions'!$C$7)*$E$10+'Global Assumptions'!$C$7*$D$10,($F$10-'Global Assumptions'!$C$7)*$E$10+'Global Assumptions'!$C$7*$D$10))*$G$10 -> 4,113 | I19: =+'Global Assumptions'!$C$21*$H$4+'Global Assumptions'!$C$22*$H$5 -> 2,393 | J19: =+'Global Assumptions'!$C$23*$H$4+'Global Assumptions'!$C$24*$H$5 -> 1,530 | K19: =IF(A19<$H$7,A19*'Global Assumptions'!$C$25/1000*$H$6*1.08*12,$H$7*'Global Assumptions'!$C$25/1000*$H$6*1.08*12) -> 65 | L19: ='Global Assumptions'!$C$26 -> 281 | M19: 1,050 | N19: 75 | O19: 5 | P19: 0 | Q19: 0
A20: 35,000 | B20: 38.63% | C20: 13,519 | D20: =IF((A20+K20)<'Global Assumptions'!$C$7,((A20+K20)-'Global Assumptions'!$C$9)*'Global Assumptions'!$C$10,(('Global Assumptions'!$C$7-'Global Assumptions'!$C$9)*'Global Assumptions'!$C$10)+IF((A20+K20)<'Global Assumptions'!$C$8,((A20+K20)-'Global Assumptions'!$C$7)*'Global Assumptions'!$C$11,('Global Assumptions'!$C$8-'Global Assumptions'!$C$7)*'Global Assumptions'!$C$11)) -> 1,626 | E20: =IF(A20<'Global Assumptions'!$C$12,A20*'Global Assumptions'!$C$13*$H$3,'Global Assumptions'!$C$12*'Global Assumptions'!$C$13*$H$3) -> 687 | F20: =(A20+K20)*'Global Assumptions'!$C$14 -> 684 | G20: =IF(A20<'Global Assumptions'!$C$16,A20*'Global Assumptions'!$C$15,'Global Assumptions'!$C$16*'Global Assumptions'!$C$15) -> 126 | H20: =IF(A20<'Global Assumptions'!$C$7,A20*$D$10,IF(A20<$F$10,(A20-'Global Assumptions'!$C$7)*$E$10+'Global Assumptions'!$C$7*$D$10,($F$10-'Global Assumptions'!$C$7)*$E$10+'Global Assumptions'!$C$7*$D$10))*$G$10 -> 4,798 | I20: =+'Global Assumptions'!$C$21*$H$4+'Global Assumptions'!$C$22*$H$5 -> 2,393 | J20: =+'Global Assumptions'!$C$23*$H$4+'Global Assumptions'!$C$24*$H$5 -> 1,530 | K20: =IF(A20<$H$7,A20*'Global Assumptions'!$C$25/1000*$H$6*1.08*12,$H$7*'Global Assumptions'!$C$25/1000*$H$6*1.08*12) -> 76 | L20: ='Global Assumptions'!$C$26 -> 281 | M20: 1,225 | N20: 88 | O20: 5 | P20: 0 | Q20: 0
A21: 40,000 | B21: 37.19% | C21: 14,875 | D21: =IF((A21+K21)<'Global Assumptions'!$C$7,((A21+K21)-'Global Assumptions'!$C$9)*'Global Assumptions'!$C$10,(('Global Assumptions'!$C$7-'Global Assumptions'!$C$9)*'Global Assumptions'!$C$10)+IF((A21+K21)<'Global Assumptions'!$C$8,((A21+K21)-'Global Assumptions'!$C$7)*'Global Assumptions'!$C$11,('Global Assumptions'!$C$8-'Global Assumptions'!$C$7)*'Global Assumptions'!$C$11)) -> 1,884 | E21: =IF(A21<'Global Assumptions'!$C$12,A21*'Global Assumptions'!$C$13*$H$3,'Global Assumptions'!$C$12*'Global Assumptions'!$C$13*$H$3) -> 786 | F21: =(A21+K21)*'Global Assumptions'!$C$14 -> 782 | G21: =IF(A21<'Global Assumptions'!$C$16,A21*'Global Assumptions'!$C$15,'Global Assumptions'!$C$16*'Global Assumptions'!$C$15) -> 144 | H21: =IF(A21<'Global Assumptions'!$C$7,A21*$D$10,IF(A21<$F$10,(A21-'Global Assumptions'!$C$7)*$E$10+'Global Assumptions'!$C$7*$D$10,($F$10-'Global Assumptions'!$C$7)*$E$10+'Global Assumptions'!$C$7*$D$10))*$G$10 -> 5,483 | I21: =+'Global Assumptions'!$C$21*$H$4+'Global Assumptions'!$C$22*$H$5 -> 2,393 | J21: =+'Global Assumptions'!$C$23*$H$4+'Global Assumptions'!$C$24*$H$5 -> 1,530 | K21: =IF(A21<$H$7,A21*'Global Assumptions'!$C$25/1000*$H$6*1.08*12,$H$7*'Global Assumptions'!$C$25/1000*$H$6*1.08*12) -> 87 | L21: ='Global Assumptions'!$C$26 -> 281 | M21: 1,400 | N21: 100 | O21: 6 | P21: 0 | Q21: 0
A22: 45,000 | B22: 36.07% | C22: 16,232 | D22: =IF((A22+K22)<'Global Assumptions'!$C$7,((A22+K22)-'Global Assumptions'!$C$9)*'Global Assumptions'!$C$10,(('Global Assumptions'!$C$7-'Global Assumptions'!$C$9)*'Global Assumptions'!$C$10)+IF((A22+K22)<'Global Assumptions'!$C$8,((A22+K22)-'Global Assumptions'!$C$7)*'Global Assumptions'!$C$11,('Global Assumptions'!$C$8-'Global Assumptions'!$C$7)*'Global Assumptions'!$C$11)) -> 2,142 | E22: =IF(A22<'Global Assumptions'!$C$12,A22*'Global Assumptions'!$C$13*$H$3,'Global Assumptions'!$C$12*'Global Assumptions'!$C$13*$H$3) -> 884 | F22: =(A22+K22)*'Global Assumptions'!$C$14 -> 879 | G22: =IF(A22<'Global Assumptions'!$C$16,A22*'Global Assumptions'!$C$15,'Global Assumptions'!$C$16*'Global Assumptions'!$C$15) -> 162 | H22: =IF(A22<'Global Assumptions'!$C$7,A22*$D$10,IF(A22<$F$10,(A22-'Global Assumptions'!$C$7)*$E$10+'Global Assumptions'!$C$7*$D$10,($F$10-'Global Assumptions'!$C$7)*$E$10+'Global Assumptions'!$C$7*$D$10))*$G$10 -> 6,169 | I22: =+'Global Assumptions'!$C$21*$H$4+'Global Assumptions'!$C$22*$H$5 -> 2,393 | J22: =+'Global Assumptions'!$C$23*$H$4+'Global Assumptions'!$C$24*$H$5 -> 1,530 | K22: =IF(A22<$H$7,A22*'Global Assumptions'!$C$25/1000*$H$6*1.08*12,$H$7*'Global Assumptions'!$C$25/1000*$H$6*1.08*12) -> 98 | L22: ='Global Assumptions'!$C$26 -> 281 | M22: 1,575 | N22: 113 | O22: 7 | P22: 0 | Q22: 0
A23: 50,000 | B23: 35.18% | C23: 17,588 | D23: =IF((A23+K23)<'Global Assumptions'!$C$7,((A23+K23)-'Global Assumptions'!$C$9)*'Global Assumptions'!$C$10,(('Global Assumptions'!$C$7-'Global Assumptions'!$C$9)*'Global Assumptions'!$C$10)+IF((A23+K23)<'Global Assumptions'!$C$8,((A23+K23)-'Global Assumptions'!$C$7)*'Global Assumptions'!$C$11,('Global Assumptions'!$C$8-'Global Assumptions'!$C$7)*'Global Assumptions'!$C$11)) -> 2,400 | E23: =IF(A23<'Global Assumptions'!$C$12,A23*'Global Assumptions'!$C$13*$H$3,'Global Assumptions'!$C$12*'Global Assumptions'!$C$13*$H$3) -> 982 | F23: =(A23+K23)*'Global Assumptions'!$C$14 -> 977 | G23: =IF(A23<'Global Assumptions'!$C$16,A23*'Global Assumptions'!$C$15,'Global Assumptions'!$C$16*'Global Assumptions'!$C$15) -> 180 | H23: =IF(A23<'Global Assumptions'!$C$7,A23*$D$10,IF(A23<$F$10,(A23-'Global Assumptions'!$C$7)*$E$10+'Global Assumptions'!$C$7*$D$10,($F$10-'Global Assumptions'!$C$7)*$E$10+'Global Assumptions'!$C$7*$D$10))*$G$10 -> 6,854 | I23: =+'Global Assumptions'!$C$21*$H$4+'Global Assumptions'!$C$22*$H$5 -> 2,393 | J23: =+'Global Assumptions'!$C$23*$H$4+'Global Assumptions'!$C$24*$H$5 -> 1,530 | K23: =IF(A23<$H$7,A23*'Global Assumptions'!$C$25/1000*$H$6*1.08*12,$H$7*'Global Assumptions'!$C$25/1000*$H$6*1.08*12) -> 109 | L23: ='Global Assumptions'!$C$26 -> 281 | M23: 1,750 | N23: 125 | O23: 8 | P23: 0 | Q23: 0
A24: 55,000 | B24: 34.33% | C24: 18,880 | D24: =IF((A24+K24)<'Global Assumptions'!$C$7,((A24+K24)-'Global Assumptions'!$C$9)*'Global Assumptions'!$C$10,(('Global Assumptions'!$C$7-'Global Assumptions'!$C$9)*'Global Assumptions'!$C$10)+IF((A24+K24)<'Global Assumptions'!$C$8,((A24+K24)-'Global Assumptions'!$C$7)*'Global Assumptions'!$C$11,('Global Assumptions'!$C$8-'Global Assumptions'!$C$7)*'Global Assumptions'!$C$11)) -> 2,658 | E24: =IF(A24<'Global Assumptions'!$C$12,A24*'Global Assumptions'!$C$13*$H$3,'Global Assumptions'!$C$12*'Global Assumptions'!$C$13*$H$3) -> 1,015 | F24: =(A24+K24)*'Global Assumptions'!$C$14 -> 1,075 | G24: =IF(A24<'Global Assumptions'!$C$16,A24*'Global Assumptions'!$C$15,'Global Assumptions'!$C$16*'Global Assumptions'!$C$15) -> 198 | H24: =IF(A24<'Global Assumptions'!$C$7,A24*$D$10,IF(A24<$F$10,(A24-'Global Assumptions'!$C$7)*$E$10+'Global Assumptions'!$C$7*$D$10,($F$10-'Global Assumptions'!$C$7)*$E$10+'Global Assumptions'!$C$7*$D$10))*$G$10 -> 7,540 | I24: =+'Global Assumptions'!$C$21*$H$4+'Global Assumptions'!$C$22*$H$5 -> 2,393 | J24: =+'Global Assumptions'!$C$23*$H$4+'Global Assumptions'!$C$24*$H$5 -> 1,530 | K24: =IF(A24<$H$7,A24*'Global Assumptions'!$C$25/1000*$H$6*1.08*12,$H$7*'Global Assumptions'!$C$25/1000*$H$6*1.08*12) -> 120 | L24: ='Global Assumptions'!$C$26 -> 281 | M24: 1,925 | N24: 138 | O24: 8 | P24: 0 | Q24: 0
A25: 60,000 | B25: 33.56% | C25: 20,136 | D25: =IF((A25+K25)<'Global Assumptions'!$C$7,((A25+K25)-'Global Assumptions'!$C$9)*'Global Assumptions'!$C$10,(('Global Assumptions'!$C$7-'Global Assumptions'!$C$9)*'Global Assumptions'!$C$10)+IF((A25+K25)<'Global Assumptions'!$C$8,((A25+K25)-'Global Assumptions'!$C$7)*'Global Assumptions'!$C$11,('Global Assumptions'!$C$8-'Global Assumptions'!$C$7)*'Global Assumptions'!$C$11)) -> 2,699 | E25: =IF(A25<'Global Assumptions'!$C$12,A25*'Global Assumptions'!$C$13*$H$3,'Global Assumptions'!$C$12*'Global Assumptions'!$C$13*$H$3) -> 1,015 | F25: =(A25+K25)*'Global Assumptions'!$C$14 -> 1,173 | G25: =IF(A25<'Global Assumptions'!$C$16,A25*'Global Assumptions'!$C$15,'Global Assumptions'!$C$16*'Global Assumptions'!$C$15) -> 216 | H25: =IF(A25<'Global Assumptions'!$C$7,A25*$D$10,IF(A25<$F$10,(A25-'Global Assumptions'!$C$7)*$E$10+'Global Assumptions'!$C$7*$D$10,($F$10-'Global Assumptions'!$C$7)*$E$10+'Global Assumptions'!$C$7*$D$10))*$G$10 -> 8,440 | I25: =+'Global Assumptions'!$C$21*$H$4+'Global Assumptions'!$C$22*$H$5 -> 2,393 | J25: =+'Global Assumptions'!$C$23*$H$4+'Global Assumptions'!$C$24*$H$5 -> 1,530 | K25: =IF(A25<$H$7,A25*'Global Assumptions'!$C$25/1000*$H$6*1.08*12,$H$7*'Global Assumptions'!$C$25/1000*$H$6*1.08*12) -> 131 | L25: ='Global Assumptions'!$C$26 -> 281 | M25: 2,100 | N25: 150 | O25: 9 | P25: 0 | Q25: 0
A26: 65,000 | B26: 32.92% | C26: 21,399 | D26: =IF((A26+K26)<'Global Assumptions'!$C$7,((A26+K26)-'Global Assumptions'!$C$9)*'Global Assumptions'!$C$10,(('Global Assumptions'!$C$7-'Global Assumptions'!$C$9)*'Global Assumptions'!$C$10)+IF((A26+K26)<'Global Assumptions'!$C$8,((A26+K26)-'Global Assumptions'!$C$7)*'Global Assumptions'!$C$11,('Global Assumptions'!$C$8-'Global Assumptions'!$C$7)*'Global Assumptions'!$C$11)) -> 2,699 | E26: =IF(A26<'Global Assumptions'!$C$12,A26*'Global Assumptions'!$C$13*$H$3,'Global Assumptions'!$C$12*'Global Assumptions'!$C$13*$H$3) -> 1,015 | F26: =(A26+K26)*'Global Assumptions'!$C$14 -> 1,270 | G26: =IF(A26<'Global Assumptions'!$C$16,A26*'Global Assumptions'!$C$15,'Global Assumptions'!$C$16*'Global Assumptions'!$C$15) -> 234 | H26: =IF(A26<'Global Assumptions'!$C$7,A26*$D$10,IF(A26<$F$10,(A26-'Global Assumptions'!$C$7)*$E$10+'Global Assumptions'!$C$7*$D$10,($F$10-'Global Assumptions'!$C$7)*$E$10+'Global Assumptions'!$C$7*$D$10))*$G$10 -> 9,388 | I26: =+'Global Assumptions'!$C$21*$H$4+'Global Assumptions'!$C$22*$H$5 -> 2,393 | J26: =+'Global Assumptions'!$C$23*$H$4+'Global Assumptions'!$C$24*$H$5 -> 1,530 | K26: =IF(A26<$H$7,A26*'Global Assumptions'!$C$25/1000*$H$6*1.08*12,$H$7*'Global Assumptions'!$C$25/1000*$H$6*1.08*12) -> 142 | L26: ='Global Assumptions'!$C$26 -> 281 | M26: 2,275 | N26: 163 | O26: 10 | P26: 0 | Q26: 0
A27: 70,000 | B27: 32.37% | C27: 22,661 | D27: =IF((A27+K27)<'Global Assumptions'!$C$7,((A27+K27)-'Global Assumptions'!$C$9)*'Global Assumptions'!$C$10,(('Global Assumptions'!$C$7-'Global Assumptions'!$C$9)*'Global Assumptions'!$C$10)+IF((A27+K27)<'Global Assumptions'!$C$8,((A27+K27)-'Global Assumptions'!$C$7)*'Global Assumptions'!$C$11,('Global Assumptions'!$C$8-'Global Assumptions'!$C$7)*'Global Assumptions'!$C$11)) -> 2,699 | E27: =IF(A27<'Global Assumptions'!$C$12,A27*'Global Assumptions'!$C$13*$H$3,'Global Assumptions'!$C$12*'Global Assumptions'!$C$13*$H$3) -> 1,015 | F27: =(A27+K27)*'Global Assumptions'!$C$14 -> 1,368 | G27: =IF(A27<'Global Assumptions'!$C$16,A27*'Global Assumptions'!$C$15,'Global Assumptions'!$C$16*'Global Assumptions'!$C$15) -> 252 | H27: =IF(A27<'Global Assumptions'!$C$7,A27*$D$10,IF(A27<$F$10,(A27-'Global Assumptions'!$C$7)*$E$10+'Global Assumptions'!$C$7*$D$10,($F$10-'Global Assumptions'!$C$7)*$E$10+'Global Assumptions'!$C$7*$D$10))*$G$10 -> 10,336 | I27: =+'Global Assumptions'!$C$21*$H$4+'Global Assumptions'!$C$22*$H$5 -> 2,393 | J27: =+'Global Assumptions'!$C$23*$H$4+'Global Assumptions'!$C$24*$H$5 -> 1,530 | K27: =IF(A27<$H$7,A27*'Global Assumptions'!$C$25/1000*$H$6*1.08*12,$H$7*'Global Assumptions'!$C$25/1000*$H$6*1.08*12) -> 152 | L27: ='Global Assumptions'!$C$26 -> 281 | M27: 2,450 | N27: 175 | O27: 11 | P27: 0 | Q27: 0
A28: 75,000 | B28: 31.90% | C28: 23,924 | D28: =IF((A28+K28)<'Global Assumptions'!$C$7,((A28+K28)-'Global Assumptions'!$C$9)*'Global Assumptions'!$C$10,(('Global Assumptions'!$C$7-'Global Assumptions'!$C$9)*'Global Assumptions'!$C$10)+IF((A28+K28)<'Global Assumptions'!$C$8,((A28+K28)-'Global Assumptions'!$C$7)*'Global Assumptions'!$C$11,('Global Assumptions'!$C$8-'Global Assumptions'!$C$7)*'Global Assumptions'!$C$11)) -> 2,699 | E28: =IF(A28<'Global Assumptions'!$C$12,A28*'Global Assumptions'!$C$13*$H$3,'Global Assumptions'!$C$12*'Global Assumptions'!$C$13*$H$3) -> 1,015 | F28: =(A28+K28)*'Global Assumptions'!$C$14 -> 1,466 | G28: =IF(A28<'Global Assumptions'!$C$16,A28*'Global Assumptions'!$C$15,'Global Assumptions'!$C$16*'Global Assumptions'!$C$15) -> 270 | H28: =IF(A28<'Global Assumptions'!$C$7,A28*$D$10,IF(A28<$F$10,(A28-'Global Assumptions'!$C$7)*$E$10+'Global Assumptions'!$C$7*$D$10,($F$10-'Global Assumptions'!$C$7)*$E$10+'Global Assumptions'!$C$7*$D$10))*$G$10 -> 11,284 | I28: =+'Global Assumptions'!$C$21*$H$4+'Global Assumptions'!$C$22*$H$5 -> 2,393 | J28: =+'Global Assumptions'!$C$23*$H$4+'Global Assumptions'!$C$24*$H$5 -> 1,530 | K28: =IF(A28<$H$7,A28*'Global Assumptions'!$C$25/1000*$H$6*1.08*12,$H$7*'Global Assumptions'!$C$25/1000*$H$6*1.08*12) -> 163 | L28: ='Global Assumptions'!$C$26 -> 281 | M28: 2,625 | N28: 188 | O28: 11 | P28: 0 | Q28: 0
A29: 80,000 | B29: 31.48% | C29: 25,187 | D29: =IF((A29+K29)<'Global Assumptions'!$C$7,((A29+K29)-'Global Assumptions'!$C$9)*'Global Assumptions'!$C$10,(('Global Assumptions'!$C$7-'Global Assumptions'!$C$9)*'Global Assumptions'!$C$10)+IF((A29+K29)<'Global Assumptions'!$C$8,((A29+K29)-'Global Assumptions'!$C$7)*'Global Assumptions'!$C$11,('Global Assumptions'!$C$8-'Global Assumptions'!$C$7)*'Global Assumptions'!$C$11)) -> 2,699 | E29: =IF(A29<'Global Assumptions'!$C$12,A29*'Global Assumptions'!$C$13*$H$3,'Global Assumptions'!$C$12*'Global Assumptions'!$C$13*$H$3) -> 1,015 | F29: =(A29+K29)*'Global Assumptions'!$C$14 -> 1,563 | G29: =IF(A29<'Global Assumptions'!$C$16,A29*'Global Assumptions'!$C$15,'Global Assumptions'!$C$16*'Global Assumptions'!$C$15) -> 288 | H29: =IF(A29<'Global Assumptions'!$C$7,A29*$D$10,IF(A29<$F$10,(A29-'Global Assumptions'!$C$7)*$E$10+'Global Assumptions'!$C$7*$D$10,($F$10-'Global Assumptions'!$C$7)*$E$10+'Global Assumptions'!$C$7*$D$10))*$G$10 -> 12,232 | I29: =+'Global Assumptions'!$C$21*$H$4+'Global Assumptions'!$C$22*$H$5 -> 2,393 | J29: =+'Global Assumptions'!$C$23*$H$4+'Global Assumptions'!$C$24*$H$5 -> 1,530 | K29: =IF(A29<$H$7,A29*'Global Assumptions'!$C$25/1000*$H$6*1.08*12,$H$7*'Global Assumptions'!$C$25/1000*$H$6*1.08*12) -> 174 | L29: ='Global Assumptions'!$C$26 -> 281 | M29: 2,800 | N29: 200 | O29: 12 | P29: 0 | Q29: 0
A30: 85,000 | B30: 31.12% | C30: 26,450 | D30: =IF((A30+K30)<'Global Assumptions'!$C$7,((A30+K30)-'Global Assumptions'!$C$9)*'Global Assumptions'!$C$10,(('Global Assumptions'!$C$7-'Global Assumptions'!$C$9)*'Global Assumptions'!$C$10)+IF((A30+K30)<'Global Assumptions'!$C$8,((A30+K30)-'Global Assumptions'!$C$7)*'Global Assumptions'!$C$11,('Global Assumptions'!$C$8-'Global Assumptions'!$C$7)*'Global Assumptions'!$C$11)) -> 2,699 | E30: =IF(A30<'Global Assumptions'!$C$12,A30*'Global Assumptions'!$C$13*$H$3,'Global Assumptions'!$C$12*'Global Assumptions'!$C$13*$H$3) -> 1,015 | F30: =(A30+K30)*'Global Assumptions'!$C$14 -> 1,661 | G30: =IF(A30<'Global Assumptions'!$C$16,A30*'Global Assumptions'!$C$15,'Global Assumptions'!$C$16*'Global Assumptions'!$C$15) -> 306 | H30: =IF(A30<'Global Assumptions'!$C$7,A30*$D$10,IF(A30<$F$10,(A30-'Global Assumptions'!$C$7)*$E$10+'Global Assumptions'!$C$7*$D$10,($F$10-'Global Assumptions'!$C$7)*$E$10+'Global Assumptions'!$C$7*$D$10))*$G$10 -> 13,180 | I30: =+'Global Assumptions'!$C$21*$H$4+'Global Assumptions'!$C$22*$H$5 -> 2,393 | J30: =+'Global Assumptions'!$C$23*$H$4+'Global Assumptions'!$C$24*$H$5 -> 1,530 | K30: =IF(A30<$H$7,A30*'Global Assumptions'!$C$25/1000*$H$6*1.08*12,$H$7*'Global Assumptions'!$C$25/1000*$H$6*1.08*12) -> 185 | L30: ='Global Assumptions'!$C$26 -> 281 | M30: 2,975 | N30: 213 | O30: 13 | P30: 0 | Q30: 0
A31: 90,000 | B31: 30.79% | C31: 27,712 | D31: =IF((A31+K31)<'Global Assumptions'!$C$7,((A31+K31)-'Global Assumptions'!$C$9)*'Global Assumptions'!$C$10,(('Global Assumptions'!$C$7-'Global Assumptions'!$C$9)*'Global Assumptions'!$C$10)+IF((A31+K31)<'Global Assumptions'!$C$8,((A31+K31)-'Global Assumptions'!$C$7)*'Global Assumptions'!$C$11,('Global Assumptions'!$C$8-'Global Assumptions'!$C$7)*'Global Assumptions'!$C$11)) -> 2,699 | E31: =IF(A31<'Global Assumptions'!$C$12,A31*'Global Assumptions'!$C$13*$H$3,'Global Assumptions'!$C$12*'Global Assumptions'!$C$13*$H$3) -> 1,015 | F31: =(A31+K31)*'Global Assumptions'!$C$14 -> 1,759 | G31: =IF(A31<'Global Assumptions'!$C$16,A31*'Global Assumptions'!$C$15,'Global Assumptions'!$C$16*'Global Assumptions'!$C$15) -> 324 | H31: =IF(A31<'Global Assumptions'!$C$7,A31*$D$10,IF(A31<$F$10,(A31-'Global Assumptions'!$C$7)*$E$10+'Global Assumptions'!$C$7*$D$10,($F$10-'Global Assumptions'!$C$7)*$E$10+'Global Assumptions'!$C$7*$D$10))*$G$10 -> 14,128 | I31: =+'Global Assumptions'!$C$21*$H$4+'Global Assumptions'!$C$22*$H$5 -> 2,393 | J31: =+'Global Assumptions'!$C$23*$H$4+'Global Assumptions'!$C$24*$H$5 -> 1,530 | K31: =IF(A31<$H$7,A31*'Global Assumptions'!$C$25/1000*$H$6*1.08*12,$H$7*'Global Assumptions'!$C$25/1000*$H$6*1.08*12) -> 196 | L31: ='Global Assumptions'!$C$26 -> 281 | M31: 3,150 | N31: 225 | O31: 14 | P31: 0 | Q31: 0
A32: 95,000 | B32: 30.48% | C32: 28,958 | D32: =IF((A32+K32)<'Global Assumptions'!$C$7,((A32+K32)-'Global Assumptions'!$C$9)*'Global Assumptions'!$C$10,(('Global Assumptions'!$C$7-'Global Assumptions'!$C$9)*'Global Assumptions'!$C$10)+IF((A32+K32)<'Global Assumptions'!$C$8,((A32+K32)-'Global Assumptions'!$C$7)*'Global Assumptions'!$C$11,('Global Assumptions'!$C$8-'Global Assumptions'!$C$7)*'Global Assumptions'!$C$11)) -> 2,699 | E32: =IF(A32<'Global Assumptions'!$C$12,A32*'Global Assumptions'!$C$13*$H$3,'Global Assumptions'!$C$12*'Global Assumptions'!$C$13*$H$3) -> 1,015 | F32: =(A32+K32)*'Global Assumptions'!$C$14 -> 1,857 | G32: =IF(A32<'Global Assumptions'!$C$16,A32*'Global Assumptions'!$C$15,'Global Assumptions'!$C$16*'Global Assumptions'!$C$15) -> 325 | H32: =IF(A32<'Global Assumptions'!$C$7,A32*$D$10,IF(A32<$F$10,(A32-'Global Assumptions'!$C$7)*$E$10+'Global Assumptions'!$C$7*$D$10,($F$10-'Global Assumptions'!$C$7)*$E$10+'Global Assumptions'!$C$7*$D$10))*$G$10 -> 15,076 | I32: =+'Global Assumptions'!$C$21*$H$4+'Global Assumptions'!$C$22*$H$5 -> 2,393 | J32: =+'Global Assumptions'!$C$23*$H$4+'Global Assumptions'!$C$24*$H$5 -> 1,530 | K32: =IF(A32<$H$7,A32*'Global Assumptions'!$C$25/1000*$H$6*1.08*12,$H$7*'Global Assumptions'!$C$25/1000*$H$6*1.08*12) -> 207 | L32: ='Global Assumptions'!$C$26 -> 281 | M32: 3,325 | N32: 238 | O32: 14 | P32: 0 | Q32: 0
A33: 100,000 | B33: 30.20% | C33: 30,203 | D33: =IF((A33+K33)<'Global Assumptions'!$C$7,((A33+K33)-'Global Assumptions'!$C$9)*'Global Assumptions'!$C$10,(('Global Assumptions'!$C$7-'Global Assumptions'!$C$9)*'Global Assumptions'!$C$10)+IF((A33+K33)<'Global Assumptions'!$C$8,((A33+K33)-'Global Assumptions'!$C$7)*'Global Assumptions'!$C$11,('Global Assumptions'!$C$8-'Global Assumptions'!$C$7)*'Global Assumptions'!$C$11)) -> 2,699 | E33: =IF(A33<'Global Assumptions'!$C$12,A33*'Global Assumptions'!$C$13*$H$3,'Global Assumptions'!$C$12*'Global Assumptions'!$C$13*$H$3) -> 1,015 | F33: =(A33+K33)*'Global Assumptions'!$C$14 -> 1,954 | G33: =IF(A33<'Global Assumptions'!$C$16,A33*'Global Assumptions'!$C$15,'Global Assumptions'!$C$16*'Global Assumptions'!$C$15) -> 325 | H33: =IF(A33<'Global Assumptions'!$C$7,A33*$D$10,IF(A33<$F$10,(A33-'Global Assumptions'!$C$7)*$E$10+'Global Assumptions'!$C$7*$D$10,($F$10-'Global Assumptions'!$C$7)*$E$10+'Global Assumptions'!$C$7*$D$10))*$G$10 -> 16,024 | I33: =+'Global Assumptions'!$C$21*$H$4+'Global Assumptions'!$C$22*$H$5 -> 2,393 | J33: =+'Global Assumptions'!$C$23*$H$4+'Global Assumptions'!$C$24*$H$5 -> 1,530 | K33: =IF(A33<$H$7,A33*'Global Assumptions'!$C$25/1000*$H$6*1.08*12,$H$7*'Global Assumptions'!$C$25/1000*$H$6*1.08*12) -> 218 | L33: ='Global Assumptions'!$C$26 -> 281 | M33: 3,500 | N33: 250 | O33: 15 | P33: 0 | Q33: 0
A34: 105,000 | B34: 29.94% | C34: 31,437 | D34: =IF((A34+K34)<'Global Assumptions'!$C$7,((A34+K34)-'Global Assumptions'!$C$9)*'Global Assumptions'!$C$10,(('Global Assumptions'!$C$7-'Global Assumptions'!$C$9)*'Global Assumptions'!$C$10)+IF((A34+K34)<'Global Assumptions'!$C$8,((A34+K34)-'Global Assumptions'!$C$7)*'Global Assumptions'!$C$11,('Global Assumptions'!$C$8-'Global Assumptions'!$C$7)*'Global Assumptions'!$C$11)) -> 2,699 | E34: =IF(A34<'Global Assumptions'!$C$12,A34*'Global Assumptions'!$C$13*$H$3,'Global Assumptions'!$C$12*'Global Assumptions'!$C$13*$H$3) -> 1,015 | F34: =(A34+K34)*'Global Assumptions'!$C$14 -> 2,052 | G34: =IF(A34<'Global Assumptions'!$C$16,A34*'Global Assumptions'!$C$15,'Global Assumptions'!$C$16*'Global Assumptions'!$C$15) -> 325 | H34: =IF(A34<'Global Assumptions'!$C$7,A34*$D$10,IF(A34<$F$10,(A34-'Global Assumptions'!$C$7)*$E$10+'Global Assumptions'!$C$7*$D$10,($F$10-'Global Assumptions'!$C$7)*$E$10+'Global Assumptions'!$C$7*$D$10))*$G$10 -> 16,972 | I34: =+'Global Assumptions'!$C$21*$H$4+'Global Assumptions'!$C$22*$H$5 -> 2,393 | J34: =+'Global Assumptions'!$C$23*$H$4+'Global Assumptions'!$C$24*$H$5 -> 1,530 | K34: =IF(A34<$H$7,A34*'Global Assumptions'!$C$25/1000*$H$6*1.08*12,$H$7*'Global Assumptions'!$C$25/1000*$H$6*1.08*12) -> 218 | L34: ='Global Assumptions'!$C$26 -> 281 | M34: 3,675 | N34: 263 | O34: 16 | P34: 0 | Q34: 0
A35: 110,000 | B35: 29.70% | C35: 32,670 | D35: =IF((A35+K35)<'Global Assumptions'!$C$7,((A35+K35)-'Global Assumptions'!$C$9)*'Global Assumptions'!$C$10,(('Global Assumptions'!$C$7-'Global Assumptions'!$C$9)*'Global Assumptions'!$C$10)+IF((A35+K35)<'Global Assumptions'!$C$8,((A35+K35)-'Global Assumptions'!$C$7)*'Global Assumptions'!$C$11,('Global Assumptions'!$C$8-'Global Assumptions'!$C$7)*'Global Assumptions'!$C$11)) -> 2,699 | E35: =IF(A35<'Global Assumptions'!$C$12,A35*'Global Assumptions'!$C$13*$H$3,'Global Assumptions'!$C$12*'Global Assumptions'!$C$13*$H$3) -> 1,015 | F35: =(A35+K35)*'Global Assumptions'!$C$14 -> 2,149 | G35: =IF(A35<'Global Assumptions'!$C$16,A35*'Global Assumptions'!$C$15,'Global Assumptions'!$C$16*'Global Assumptions'!$C$15) -> 325 | H35: =IF(A35<'Global Assumptions'!$C$7,A35*$D$10,IF(A35<$F$10,(A35-'Global Assumptions'!$C$7)*$E$10+'Global Assumptions'!$C$7*$D$10,($F$10-'Global Assumptions'!$C$7)*$E$10+'Global Assumptions'!$C$7*$D$10))*$G$10 -> 17,919 | I35: =+'Global Assumptions'!$C$21*$H$4+'Global Assumptions'!$C$22*$H$5 -> 2,393 | J35: =+'Global Assumptions'!$C$23*$H$4+'Global Assumptions'!$C$24*$H$5 -> 1,530 | K35: =IF(A35<$H$7,A35*'Global Assumptions'!$C$25/1000*$H$6*1.08*12,$H$7*'Global Assumptions'!$C$25/1000*$H$6*1.08*12) -> 218 | L35: ='Global Assumptions'!$C$26 -> 281 | M35: 3,850 | N35: 275 | O35: 17 | P35: 0 | Q35: 0
A36: 115,000 | B36: 29.48% | C36: 33,904 | D36: =IF((A36+K36)<'Global Assumptions'!$C$7,((A36+K36)-'Global Assumptions'!$C$9)*'Global Assumptions'!$C$10,(('Global Assumptions'!$C$7-'Global Assumptions'!$C$9)*'Global Assumptions'!$C$10)+IF((A36+K36)<'Global Assumptions'!$C$8,((A36+K36)-'Global Assumptions'!$C$7)*'Global Assumptions'!$C$11,('Global Assumptions'!$C$8-'Global Assumptions'!$C$7)*'Global Assumptions'!$C$11)) -> 2,699 | E36: =IF(A36<'Global Assumptions'!$C$12,A36*'Global Assumptions'!$C$13*$H$3,'Global Assumptions'!$C$12*'Global Assumptions'!$C$13*$H$3) -> 1,015 | F36: =(A36+K36)*'Global Assumptions'!$C$14 -> 2,247 | G36: =IF(A36<'Global Assumptions'!$C$16,A36*'Global Assumptions'!$C$15,'Global Assumptions'!$C$16*'Global Assumptions'!$C$15) -> 325 | H36: =IF(A36<'Global Assumptions'!$C$7,A36*$D$10,IF(A36<$F$10,(A36-'Global Assumptions'!$C$7)*$E$10+'Global Assumptions'!$C$7*$D$10,($F$10-'Global Assumptions'!$C$7)*$E$10+'Global Assumptions'!$C$7*$D$10))*$G$10 -> 18,867 | I36: =+'Global Assumptions'!$C$21*$H$4+'Global Assumptions'!$C$22*$H$5 -> 2,393 | J36: =+'Global Assumptions'!$C$23*$H$4+'Global Assumptions'!$C$24*$H$5 -> 1,530 | K36: =IF(A36<$H$7,A36*'Global Assumptions'!$C$25/1000*$H$6*1.08*12,$H$7*'Global Assumptions'!$C$25/1000*$H$6*1.08*12) -> 218 | L36: ='Global Assumptions'!$C$26 -> 281 | M36: 4,025 | N36: 288 | O36: 17 | P36: 0 | Q36: 0
A37: 120,000 | B37: 29.28% | C37: 35,138 | D37: =IF((A37+K37)<'Global Assumptions'!$C$7,((A37+K37)-'Global Assumptions'!$C$9)*'Global Assumptions'!$C$10,(('Global Assumptions'!$C$7-'Global Assumptions'!$C$9)*'Global Assumptions'!$C$10)+IF((A37+K37)<'Global Assumptions'!$C$8,((A37+K37)-'Global Assumptions'!$C$7)*'Global Assumptions'!$C$11,('Global Assumptions'!$C$8-'Global Assumptions'!$C$7)*'Global Assumptions'!$C$11)) -> 2,699 | E37: =IF(A37<'Global Assumptions'!$C$12,A37*'Global Assumptions'!$C$13*$H$3,'Global Assumptions'!$C$12*'Global Assumptions'!$C$13*$H$3) -> 1,015 | F37: =(A37+K37)*'Global Assumptions'!$C$14 -> 2,344 | G37: =IF(A37<'Global Assumptions'!$C$16,A37*'Global Assumptions'!$C$15,'Global Assumptions'!$C$16*'Global Assumptions'!$C$15) -> 325 | H37: =IF(A37<'Global Assumptions'!$C$7,A37*$D$10,IF(A37<$F$10,(A37-'Global Assumptions'!$C$7)*$E$10+'Global Assumptions'!$C$7*$D$10,($F$10-'Global Assumptions'!$C$7)*$E$10+'Global Assumptions'!$C$7*$D$10))*$G$10 -> 19,815 | I37: =+'Global Assumptions'!$C$21*$H$4+'Global Assumptions'!$C$22*$H$5 -> 2,393 | J37: =+'Global Assumptions'!$C$23*$H$4+'Global Assumptions'!$C$24*$H$5 -> 1,530 | K37: =IF(A37<$H$7,A37*'Global Assumptions'!$C$25/1000*$H$6*1.08*12,$H$7*'Global Assumptions'!$C$25/1000*$H$6*1.08*12) -> 218 | L37: ='Global Assumptions'!$C$26 -> 281 | M37: =+$A37*M$10 -> 4,200 | N37: 300 | O37: 18 | P37: 0 | Q37: 0
A38: 125,000 | B38: 29.10% | C38: 36,371 | D38: =IF((A38+K38)<'Global Assumptions'!$C$7,((A38+K38)-'Global Assumptions'!$C$9)*'Global Assumptions'!$C$10,(('Global Assumptions'!$C$7-'Global Assumptions'!$C$9)*'Global Assumptions'!$C$10)+IF((A38+K38)<'Global Assumptions'!$C$8,((A38+K38)-'Global Assumptions'!$C$7)*'Global Assumptions'!$C$11,('Global Assumptions'!$C$8-'Global Assumptions'!$C$7)*'Global Assumptions'!$C$11)) -> 2,699 | E38: =IF(A38<'Global Assumptions'!$C$12,A38*'Global Assumptions'!$C$13*$H$3,'Global Assumptions'!$C$12*'Global Assumptions'!$C$13*$H$3) -> 1,015 | F38: =(A38+K38)*'Global Assumptions'!$C$14 -> 2,442 | G38: =IF(A38<'Global Assumptions'!$C$16,A38*'Global Assumptions'!$C$15,'Global Assumptions'!$C$16*'Global Assumptions'!$C$15) -> 325 | H38: =IF(A38<'Global Assumptions'!$C$7,A38*$D$10,IF(A38<$F$10,(A38-'Global Assumptions'!$C$7)*$E$10+'Global Assumptions'!$C$7*$D$10,($F$10-'Global Assumptions'!$C$7)*$E$10+'Global Assumptions'!$C$7*$D$10))*$G$10 -> 20,763 | I38: =+'Global Assumptions'!$C$21*$H$4+'Global Assumptions'!$C$22*$H$5 -> 2,393 | J38: =+'Global Assumptions'!$C$23*$H$4+'Global Assumptions'!$C$24*$H$5 -> 1,530 | K38: =IF(A38<$H$7,A38*'Global Assumptions'!$C$25/1000*$H$6*1.08*12,$H$7*'Global Assumptions'!$C$25/1000*$H$6*1.08*12) -> 218 | L38: ='Global Assumptions'!$C$26 -> 281 | M38: 4,375 | N38: 313 | O38: 19 | P38: 0 | Q38: 0
A39: 130,000 | B39: 28.93% | C39: 37,605 | D39: =IF((A39+K39)<'Global Assumptions'!$C$7,((A39+K39)-'Global Assumptions'!$C$9)*'Global Assumptions'!$C$10,(('Global Assumptions'!$C$7-'Global Assumptions'!$C$9)*'Global Assumptions'!$C$10)+IF((A39+K39)<'Global Assumptions'!$C$8,((A39+K39)-'Global Assumptions'!$C$7)*'Global Assumptions'!$C$11,('Global Assumptions'!$C$8-'Global Assumptions'!$C$7)*'Global Assumptions'!$C$11)) -> 2,699 | E39: =IF(A39<'Global Assumptions'!$C$12,A39*'Global Assumptions'!$C$13*$H$3,'Global Assumptions'!$C$12*'Global Assumptions'!$C$13*$H$3) -> 1,015 | F39: =(A39+K39)*'Global Assumptions'!$C$14 -> 2,539 | G39: =IF(A39<'Global Assumptions'!$C$16,A39*'Global Assumptions'!$C$15,'Global Assumptions'!$C$16*'Global Assumptions'!$C$15) -> 325 | H39: =IF(A39<'Global Assumptions'!$C$7,A39*$D$10,IF(A39<$F$10,(A39-'Global Assumptions'!$C$7)*$E$10+'Global Assumptions'!$C$7*$D$10,($F$10-'Global Assumptions'!$C$7)*$E$10+'Global Assumptions'!$C$7*$D$10))*$G$10 -> 21,711 | I39: =+'Global Assumptions'!$C$21*$H$4+'Global Assumptions'!$C$22*$H$5 -> 2,393 | J39: =+'Global Assumptions'!$C$23*$H$4+'Global Assumptions'!$C$24*$H$5 -> 1,530 | K39: =IF(A39<$H$7,A39*'Global Assumptions'!$C$25/1000*$H$6*1.08*12,$H$7*'Global Assumptions'!$C$25/1000*$H$6*1.08*12) -> 218 | L39: ='Global Assumptions'!$C$26 -> 281 | M39: 4,550 | N39: 325 | O39: 20 | P39: 0 | Q39: 0
A40: 135,000 | B40: 28.77% | C40: 38,839 | D40: =IF((A40+K40)<'Global Assumptions'!$C$7,((A40+K40)-'Global Assumptions'!$C$9)*'Global Assumptions'!$C$10,(('Global Assumptions'!$C$7-'Global Assumptions'!$C$9)*'Global Assumptions'!$C$10)+IF((A40+K40)<'Global Assumptions'!$C$8,((A40+K40)-'Global Assumptions'!$C$7)*'Global Assumptions'!$C$11,('Global Assumptions'!$C$8-'Global Assumptions'!$C$7)*'Global Assumptions'!$C$11)) -> 2,699 | E40: =IF(A40<'Global Assumptions'!$C$12,A40*'Global Assumptions'!$C$13*$H$3,'Global Assumptions'!$C$12*'Global Assumptions'!$C$13*$H$3) -> 1,015 | F40: =(A40+K40)*'Global Assumptions'!$C$14 -> 2,637 | G40: =IF(A40<'Global Assumptions'!$C$16,A40*'Global Assumptions'!$C$15,'Global Assumptions'!$C$16*'Global Assumptions'!$C$15) -> 325 | H40: =IF(A40<'Global Assumptions'!$C$7,A40*$D$10,IF(A40<$F$10,(A40-'Global Assumptions'!$C$7)*$E$10+'Global Assumptions'!$C$7*$D$10,($F$10-'Global Assumptions'!$C$7)*$E$10+'Global Assumptions'!$C$7*$D$10))*$G$10 -> 22,659 | I40: =+'Global Assumptions'!$C$21*$H$4+'Global Assumptions'!$C$22*$H$5 -> 2,393 | J40: =+'Global Assumptions'!$C$23*$H$4+'Global Assumptions'!$C$24*$H$5 -> 1,530 | K40: =IF(A40<$H$7,A40*'Global Assumptions'!$C$25/1000*$H$6*1.08*12,$H$7*'Global Assumptions'!$C$25/1000*$H$6*1.08*12) -> 218 | L40: ='Global Assumptions'!$C$26 -> 281 | M40: 4,725 | N40: 338 | O40: 20 | P40: 0 | Q40: 0
A41: 140,000 | B41: 28.62% | C41: 40,072 | D41: =IF((A41+K41)<'Global Assumptions'!$C$7,((A41+K41)-'Global Assumptions'!$C$9)*'Global Assumptions'!$C$10,(('Global Assumptions'!$C$7-'Global Assumptions'!$C$9)*'Global Assumptions'!$C$10)+IF((A41+K41)<'Global Assumptions'!$C$8,((A41+K41)-'Global Assumptions'!$C$7)*'Global Assumptions'!$C$11,('Global Assumptions'!$C$8-'Global Assumptions'!$C$7)*'Global Assumptions'!$C$11)) -> 2,699 | E41: =IF(A41<'Global Assumptions'!$C$12,A41*'Global Assumptions'!$C$13*$H$3,'Global Assumptions'!$C$12*'Global Assumptions'!$C$13*$H$3) -> 1,015 | F41: =(A41+K41)*'Global Assumptions'!$C$14 -> 2,734 | G41: =IF(A41<'Global Assumptions'!$C$16,A41*'Global Assumptions'!$C$15,'Global Assumptions'!$C$16*'Global Assumptions'!$C$15) -> 325 | H41: =IF(A41<'Global Assumptions'!$C$7,A41*$D$10,IF(A41<$F$10,(A41-'Global Assumptions'!$C$7)*$E$10+'Global Assumptions'!$C$7*$D$10,($F$10-'Global Assumptions'!$C$7)*$E$10+'Global Assumptions'!$C$7*$D$10))*$G$10 -> 23,607 | I41: =+'Global Assumptions'!$C$21*$H$4+'Global Assumptions'!$C$22*$H$5 -> 2,393 | J41: =+'Global Assumptions'!$C$23*$H$4+'Global Assumptions'!$C$24*$H$5 -> 1,530 | K41: =IF(A41<$H$7,A41*'Global Assumptions'!$C$25/1000*$H$6*1.08*12,$H$7*'Global Assumptions'!$C$25/1000*$H$6*1.08*12) -> 218 | L41: ='Global Assumptions'!$C$26 -> 281 | M41: 4,900 | N41: 350 | O41: 21 | P41: 0 | Q41: 0
A42: 145,000 | B42: 28.49% | C42: 41,306 | D42: =IF((A42+K42)<'Global Assumptions'!$C$7,((A42+K42)-'Global Assumptions'!$C$9)*'Global Assumptions'!$C$10,(('Global Assumptions'!$C$7-'Global Assumptions'!$C$9)*'Global Assumptions'!$C$10)+IF((A42+K42)<'Global Assumptions'!$C$8,((A42+K42)-'Global Assumptions'!$C$7)*'Global Assumptions'!$C$11,('Global Assumptions'!$C$8-'Global Assumptions'!$C$7)*'Global Assumptions'!$C$11)) -> 2,699 | E42: =IF(A42<'Global Assumptions'!$C$12,A42*'Global Assumptions'!$C$13*$H$3,'Global Assumptions'!$C$12*'Global Assumptions'!$C$13*$H$3) -> 1,015 | F42: =(A42+K42)*'Global Assumptions'!$C$14 -> 2,832 | G42: =IF(A42<'Global Assumptions'!$C$16,A42*'Global Assumptions'!$C$15,'Global Assumptions'!$C$16*'Global Assumptions'!$C$15) -> 325 | H42: =IF(A42<'Global Assumptions'!$C$7,A42*$D$10,IF(A42<$F$10,(A42-'Global Assumptions'!$C$7)*$E$10+'Global Assumptions'!$C$7*$D$10,($F$10-'Global Assumptions'!$C$7)*$E$10+'Global Assumptions'!$C$7*$D$10))*$G$10 -> 24,555 | I42: =+'Global Assumptions'!$C$21*$H$4+'Global Assumptions'!$C$22*$H$5 -> 2,393 | J42: =+'Global Assumptions'!$C$23*$H$4+'Global Assumptions'!$C$24*$H$5 -> 1,530 | K42: =IF(A42<$H$7,A42*'Global Assumptions'!$C$25/1000*$H$6*1.08*12,$H$7*'Global Assumptions'!$C$25/1000*$H$6*1.08*12) -> 218 | L42: ='Global Assumptions'!$C$26 -> 281 | M42: 5,075 | N42: 363 | O42: 22 | P42: 0 | Q42: 0
A43: 150,000 | B43: 28.36% | C43: 42,540 | D43: =IF((A43+K43)<'Global Assumptions'!$C$7,((A43+K43)-'Global Assumptions'!$C$9)*'Global Assumptions'!$C$10,(('Global Assumptions'!$C$7-'Global Assumptions'!$C$9)*'Global Assumptions'!$C$10)+IF((A43+K43)<'Global Assumptions'!$C$8,((A43+K43)-'Global Assumptions'!$C$7)*'Global Assumptions'!$C$11,('Global Assumptions'!$C$8-'Global Assumptions'!$C$7)*'Global Assumptions'!$C$11)) -> 2,699 | E43: =IF(A43<'Global Assumptions'!$C$12,A43*'Global Assumptions'!$C$13*$H$3,'Global Assumptions'!$C$12*'Global Assumptions'!$C$13*$H$3) -> 1,015 | F43: =(A43+K43)*'Global Assumptions'!$C$14 -> 2,929 | G43: =IF(A43<'Global Assumptions'!$C$16,A43*'Global Assumptions'!$C$15,'Global Assumptions'!$C$16*'Global Assumptions'!$C$15) -> 325 | H43: =IF(A43<'Global Assumptions'!$C$7,A43*$D$10,IF(A43<$F$10,(A43-'Global Assumptions'!$C$7)*$E$10+'Global Assumptions'!$C$7*$D$10,($F$10-'Global Assumptions'!$C$7)*$E$10+'Global Assumptions'!$C$7*$D$10))*$G$10 -> 25,503 | I43: =+'Global Assumptions'!$C$21*$H$4+'Global Assumptions'!$C$22*$H$5 -> 2,393 | J43: =+'Global Assumptions'!$C$23*$H$4+'Global Assumptions'!$C$24*$H$5 -> 1,530 | K43: =IF(A43<$H$7,A43*'Global Assumptions'!$C$25/1000*$H$6*1.08*12,$H$7*'Global Assumptions'!$C$25/1000*$H$6*1.08*12) -> 218 | L43: ='Global Assumptions'!$C$26 -> 281 | M43: 5,250 | N43: 375 | O43: 23 | P43: 0 | Q43: 0
A44: 155,000 | B44: 28.24% | C44: 43,773 | D44: =IF((A44+K44)<'Global Assumptions'!$C$7,((A44+K44)-'Global Assumptions'!$C$9)*'Global Assumptions'!$C$10,(('Global Assumptions'!$C$7-'Global Assumptions'!$C$9)*'Global Assumptions'!$C$10)+IF((A44+K44)<'Global Assumptions'!$C$8,((A44+K44)-'Global Assumptions'!$C$7)*'Global Assumptions'!$C$11,('Global Assumptions'!$C$8-'Global Assumptions'!$C$7)*'Global Assumptions'!$C$11)) -> 2,699 | E44: =IF(A44<'Global Assumptions'!$C$12,A44*'Global Assumptions'!$C$13*$H$3,'Global Assumptions'!$C$12*'Global Assumptions'!$C$13*$H$3) -> 1,015 | F44: =(A44+K44)*'Global Assumptions'!$C$14 -> 3,027 | G44: =IF(A44<'Global Assumptions'!$C$16,A44*'Global Assumptions'!$C$15,'Global Assumptions'!$C$16*'Global Assumptions'!$C$15) -> 325 | H44: =IF(A44<'Global Assumptions'!$C$7,A44*$D$10,IF(A44<$F$10,(A44-'Global Assumptions'!$C$7)*$E$10+'Global Assumptions'!$C$7*$D$10,($F$10-'Global Assumptions'!$C$7)*$E$10+'Global Assumptions'!$C$7*$D$10))*$G$10 -> 26,451 | I44: =+'Global Assumptions'!$C$21*$H$4+'Global Assumptions'!$C$22*$H$5 -> 2,393 | J44: =+'Global Assumptions'!$C$23*$H$4+'Global Assumptions'!$C$24*$H$5 -> 1,530 | K44: =IF(A44<$H$7,A44*'Global Assumptions'!$C$25/1000*$H$6*1.08*12,$H$7*'Global Assumptions'!$C$25/1000*$H$6*1.08*12) -> 218 | L44: ='Global Assumptions'!$C$26 -> 281 | M44: 5,425 | N44: 388 | O44: 23 | P44: 0 | Q44: 0
A45: 160,000 | B45: 28.13% | C45: 45,007 | D45: =IF((A45+K45)<'Global Assumptions'!$C$7,((A45+K45)-'Global Assumptions'!$C$9)*'Global Assumptions'!$C$10,(('Global Assumptions'!$C$7-'Global Assumptions'!$C$9)*'Global Assumptions'!$C$10)+IF((A45+K45)<'Global Assumptions'!$C$8,((A45+K45)-'Global Assumptions'!$C$7)*'Global Assumptions'!$C$11,('Global Assumptions'!$C$8-'Global Assumptions'!$C$7)*'Global Assumptions'!$C$11)) -> 2,699 | E45: =IF(A45<'Global Assumptions'!$C$12,A45*'Global Assumptions'!$C$13*$H$3,'Global Assumptions'!$C$12*'Global Assumptions'!$C$13*$H$3) -> 1,015 | F45: =(A45+K45)*'Global Assumptions'!$C$14 -> 3,124 | G45: =IF(A45<'Global Assumptions'!$C$16,A45*'Global Assumptions'!$C$15,'Global Assumptions'!$C$16*'Global Assumptions'!$C$15) -> 325 | H45: =IF(A45<'Global Assumptions'!$C$7,A45*$D$10,IF(A45<$F$10,(A45-'Global Assumptions'!$C$7)*$E$10+'Global Assumptions'!$C$7*$D$10,($F$10-'Global Assumptions'!$C$7)*$E$10+'Global Assumptions'!$C$7*$D$10))*$G$10 -> 27,399 | I45: =+'Global Assumptions'!$C$21*$H$4+'Global Assumptions'!$C$22*$H$5 -> 2,393 | J45: =+'Global Assumptions'!$C$23*$H$4+'Global Assumptions'!$C$24*$H$5 -> 1,530 | K45: =IF(A45<$H$7,A45*'Global Assumptions'!$C$25/1000*$H$6*1.08*12,$H$7*'Global Assumptions'!$C$25/1000*$H$6*1.08*12) -> 218 | L45: ='Global Assumptions'!$C$26 -> 281 | M45: 5,600 | N45: 400 | O45: 24 | P45: 0 | Q45: 0
A46: 165,000 | B46: 27.91% | C46: 46,050 | D46: =IF((A46+K46)<'Global Assumptions'!$C$7,((A46+K46)-'Global Assumptions'!$C$9)*'Global Assumptions'!$C$10,(('Global Assumptions'!$C$7-'Global Assumptions'!$C$9)*'Global Assumptions'!$C$10)+IF((A46+K46)<'Global Assumptions'!$C$8,((A46+K46)-'Global Assumptions'!$C$7)*'Global Assumptions'!$C$11,('Global Assumptions'!$C$8-'Global Assumptions'!$C$7)*'Global Assumptions'!$C$11)) -> 2,699 | E46: =IF(A46<'Global Assumptions'!$C$12,A46*'Global Assumptions'!$C$13*$H$3,'Global Assumptions'!$C$12*'Global Assumptions'!$C$13*$H$3) -> 1,015 | F46: =(A46+K46)*'Global Assumptions'!$C$14 -> 3,222 | G46: =IF(A46<'Global Assumptions'!$C$16,A46*'Global Assumptions'!$C$15,'Global Assumptions'!$C$16*'Global Assumptions'!$C$15) -> 325 | H46: =IF(A46<'Global Assumptions'!$C$7,A46*$D$10,IF(A46<$F$10,(A46-'Global Assumptions'!$C$7)*$E$10+'Global Assumptions'!$C$7*$D$10,($F$10-'Global Assumptions'!$C$7)*$E$10+'Global Assumptions'!$C$7*$D$10))*$G$10 -> 28,155 | I46: =+'Global Assumptions'!$C$21*$H$4+'Global Assumptions'!$C$22*$H$5 -> 2,393 | J46: =+'Global Assumptions'!$C$23*$H$4+'Global Assumptions'!$C$24*$H$5 -> 1,530 | K46: =IF(A46<$H$7,A46*'Global Assumptions'!$C$25/1000*$H$6*1.08*12,$H$7*'Global Assumptions'!$C$25/1000*$H$6*1.08*12) -> 218 | L46: ='Global Assumptions'!$C$26 -> 281 | M46: 5,775 | N46: 413 | O46: 25 | P46: 0 | Q46: 0
A47: 170,000 | B47: 27.26% | C47: 46,335 | D47: =IF((A47+K47)<'Global Assumptions'!$C$7,((A47+K47)-'Global Assumptions'!$C$9)*'Global Assumptions'!$C$10,(('Global Assumptions'!$C$7-'Global Assumptions'!$C$9)*'Global Assumptions'!$C$10)+IF((A47+K47)<'Global Assumptions'!$C$8,((A47+K47)-'Global Assumptions'!$C$7)*'Global Assumptions'!$C$11,('Global Assumptions'!$C$8-'Global Assumptions'!$C$7)*'Global Assumptions'!$C$11)) -> 2,699 | E47: =IF(A47<'Global Assumptions'!$C$12,A47*'Global Assumptions'!$C$13*$H$3,'Global Assumptions'!$C$12*'Global Assumptions'!$C$13*$H$3) -> 1,015 | F47: =(A47+K47)*'Global Assumptions'!$C$14 -> 3,319 | G47: =IF(A47<'Global Assumptions'!$C$16,A47*'Global Assumptions'!$C$15,'Global Assumptions'!$C$16*'Global Assumptions'!$C$15) -> 325 | H47: =IF(A47<'Global Assumptions'!$C$7,A47*$D$10,IF(A47<$F$10,(A47-'Global Assumptions'!$C$7)*$E$10+'Global Assumptions'!$C$7*$D$10,($F$10-'Global Assumptions'!$C$7)*$E$10+'Global Assumptions'!$C$7*$D$10))*$G$10 -> 28,155 | I47: =+'Global Assumptions'!$C$21*$H$4+'Global Assumptions'!$C$22*$H$5 -> 2,393 | J47: =+'Global Assumptions'!$C$23*$H$4+'Global Assumptions'!$C$24*$H$5 -> 1,530 | K47: =IF(A47<$H$7,A47*'Global Assumptions'!$C$25/1000*$H$6*1.08*12,$H$7*'Global Assumptions'!$C$25/1000*$H$6*1.08*12) -> 218 | L47: ='Global Assumptions'!$C$26 -> 281 | M47: 5,950 | N47: 425 | O47: 26 | P47: 0 | Q47: 0
A48: 175,000 | B48: 26.64% | C48: 46,621 | D48: =IF((A48+K48)<'Global Assumptions'!$C$7,((A48+K48)-'Global Assumptions'!$C$9)*'Global Assumptions'!$C$10,(('Global Assumptions'!$C$7-'Global Assumptions'!$C$9)*'Global Assumptions'!$C$10)+IF((A48+K48)<'Global Assumptions'!$C$8,((A48+K48)-'Global Assumptions'!$C$7)*'Global Assumptions'!$C$11,('Global Assumptions'!$C$8-'Global Assumptions'!$C$7)*'Global Assumptions'!$C$11)) -> 2,699 | E48: =IF(A48<'Global Assumptions'!$C$12,A48*'Global Assumptions'!$C$13*$H$3,'Global Assumptions'!$C$12*'Global Assumptions'!$C$13*$H$3) -> 1,015 | F48: =(A48+K48)*'Global Assumptions'!$C$14 -> 3,417 | G48: =IF(A48<'Global Assumptions'!$C$16,A48*'Global Assumptions'!$C$15,'Global Assumptions'!$C$16*'Global Assumptions'!$C$15) -> 325 | H48: =IF(A48<'Global Assumptions'!$C$7,A48*$D$10,IF(A48<$F$10,(A48-'Global Assumptions'!$C$7)*$E$10+'Global Assumptions'!$C$7*$D$10,($F$10-'Global Assumptions'!$C$7)*$E$10+'Global Assumptions'!$C$7*$D$10))*$G$10 -> 28,155 | I48: =+'Global Assumptions'!$C$21*$H$4+'Global Assumptions'!$C$22*$H$5 -> 2,393 | J48: =+'Global Assumptions'!$C$23*$H$4+'Global Assumptions'!$C$24*$H$5 -> 1,530 | K48: =IF(A48<$H$7,A48*'Global Assumptions'!$C$25/1000*$H$6*1.08*12,$H$7*'Global Assumptions'!$C$25/1000*$H$6*1.08*12) -> 218 | L48: ='Global Assumptions'!$C$26 -> 281 | M48: 6,125 | N48: 438 | O48: 26 | P48: 0 | Q48: 0
A49: 180,000 | B49: 26.06% | C49: 46,907 | D49: =IF((A49+K49)<'Global Assumptions'!$C$7,((A49+K49)-'Global Assumptions'!$C$9)*'Global Assumptions'!$C$10,(('Global Assumptions'!$C$7-'Global Assumptions'!$C$9)*'Global Assumptions'!$C$10)+IF((A49+K49)<'Global Assumptions'!$C$8,((A49+K49)-'Global Assumptions'!$C$7)*'Global Assumptions'!$C$11,('Global Assumptions'!$C$8-'Global Assumptions'!$C$7)*'Global Assumptions'!$C$11)) -> 2,699 | E49: =IF(A49<'Global Assumptions'!$C$12,A49*'Global Assumptions'!$C$13*$H$3,'Global Assumptions'!$C$12*'Global Assumptions'!$C$13*$H$3) -> 1,015 | F49: =(A49+K49)*'Global Assumptions'!$C$14 -> 3,514 | G49: =IF(A49<'Global Assumptions'!$C$16,A49*'Global Assumptions'!$C$15,'Global Assumptions'!$C$16*'Global Assumptions'!$C$15) -> 325 | H49: =IF(A49<'Global Assumptions'!$C$7,A49*$D$10,IF(A49<$F$10,(A49-'Global Assumptions'!$C$7)*$E$10+'Global Assumptions'!$C$7*$D$10,($F$10-'Global Assumptions'!$C$7)*$E$10+'Global Assumptions'!$C$7*$D$10))*$G$10 -> 28,155 | I49: =+'Global Assumptions'!$C$21*$H$4+'Global Assumptions'!$C$22*$H$5 -> 2,393 | J49: =+'Global Assumptions'!$C$23*$H$4+'Global Assumptions'!$C$24*$H$5 -> 1,530 | K49: =IF(A49<$H$7,A49*'Global Assumptions'!$C$25/1000*$H$6*1.08*12,$H$7*'Global Assumptions'!$C$25/1000*$H$6*1.08*12) -> 218 | L49: ='Global Assumptions'!$C$26 -> 281 | M49: 6,300 | N49: 450 | O49: 27 | P49: 0 | Q49: 0
A50: 185,000 | B50: 25.51% | C50: 47,193 | D50: =IF((A50+K50)<'Global Assumptions'!$C$7,((A50+K50)-'Global Assumptions'!$C$9)*'Global Assumptions'!$C$10,(('Global Assumptions'!$C$7-'Global Assumptions'!$C$9)*'Global Assumptions'!$C$10)+IF((A50+K50)<'Global Assumptions'!$C$8,((A50+K50)-'Global Assumptions'!$C$7)*'Global Assumptions'!$C$11,('Global Assumptions'!$C$8-'Global Assumptions'!$C$7)*'Global Assumptions'!$C$11)) -> 2,699 | E50: =IF(A50<'Global Assumptions'!$C$12,A50*'Global Assumptions'!$C$13*$H$3,'Global Assumptions'!$C$12*'Global Assumptions'!$C$13*$H$3) -> 1,015 | F50: =(A50+K50)*'Global Assumptions'!$C$14 -> 3,612 | G50: =IF(A50<'Global Assumptions'!$C$16,A50*'Global Assumptions'!$C$15,'Global Assumptions'!$C$16*'Global Assumptions'!$C$15) -> 325 | H50: =IF(A50<'Global Assumptions'!$C$7,A50*$D$10,IF(A50<$F$10,(A50-'Global Assumptions'!$C$7)*$E$10+'Global Assumptions'!$C$7*$D$10,($F$10-'Global Assumptions'!$C$7)*$E$10+'Global Assumptions'!$C$7*$D$10))*$G$10 -> 28,155 | I50: =+'Global Assumptions'!$C$21*$H$4+'Global Assumptions'!$C$22*$H$5 -> 2,393 | J50: =+'Global Assumptions'!$C$23*$H$4+'Global Assumptions'!$C$24*$H$5 -> 1,530 | K50: =IF(A50<$H$7,A50*'Global Assumptions'!$C$25/1000*$H$6*1.08*12,$H$7*'Global Assumptions'!$C$25/1000*$H$6*1.08*12) -> 218 | L50: ='Global Assumptions'!$C$26 -> 281 | M50: 6,475 | N50: 463 | O50: 28 | P50: 0 | Q50: 0
A51: 190,000 | B51: 24.99% | C51: 47,478 | D51: =IF((A51+K51)<'Global Assumptions'!$C$7,((A51+K51)-'Global Assumptions'!$C$9)*'Global Assumptions'!$C$10,(('Global Assumptions'!$C$7-'Global Assumptions'!$C$9)*'Global Assumptions'!$C$10)+IF((A51+K51)<'Global Assumptions'!$C$8,((A51+K51)-'Global Assumptions'!$C$7)*'Global Assumptions'!$C$11,('Global Assumptions'!$C$8-'Global Assumptions'!$C$7)*'Global Assumptions'!$C$11)) -> 2,699 | E51: =IF(A51<'Global Assumptions'!$C$12,A51*'Global Assumptions'!$C$13*$H$3,'Global Assumptions'!$C$12*'Global Assumptions'!$C$13*$H$3) -> 1,015 | F51: =(A51+K51)*'Global Assumptions'!$C$14 -> 3,709 | G51: =IF(A51<'Global Assumptions'!$C$16,A51*'Global Assumptions'!$C$15,'Global Assumptions'!$C$16*'Global Assumptions'!$C$15) -> 325 | H51: =IF(A51<'Global Assumptions'!$C$7,A51*$D$10,IF(A51<$F$10,(A51-'Global Assumptions'!$C$7)*$E$10+'Global Assumptions'!$C$7*$D$10,($F$10-'Global Assumptions'!$C$7)*$E$10+'Global Assumptions'!$C$7*$D$10))*$G$10 -> 28,155 | I51: =+'Global Assumptions'!$C$21*$H$4+'Global Assumptions'!$C$22*$H$5 -> 2,393 | J51: =+'Global Assumptions'!$C$23*$H$4+'Global Assumptions'!$C$24*$H$5 -> 1,530 | K51: =IF(A51<$H$7,A51*'Global Assumptions'!$C$25/1000*$H$6*1.08*12,$H$7*'Global Assumptions'!$C$25/1000*$H$6*1.08*12) -> 218 | L51: ='Global Assumptions'!$C$26 -> 281 | M51: 6,650 | N51: 475 | O51: 29 | P51: 0 | Q51: 0
A52: 195,000 | B52: 24.49% | C52: 47,764 | D52: =IF((A52+K52)<'Global Assumptions'!$C$7,((A52+K52)-'Global Assumptions'!$C$9)*'Global Assumptions'!$C$10,(('Global Assumptions'!$C$7-'Global Assumptions'!$C$9)*'Global Assumptions'!$C$10)+IF((A52+K52)<'Global Assumptions'!$C$8,((A52+K52)-'Global Assumptions'!$C$7)*'Global Assumptions'!$C$11,('Global Assumptions'!$C$8-'Global Assumptions'!$C$7)*'Global Assumptions'!$C$11)) -> 2,699 | E52: =IF(A52<'Global Assumptions'!$C$12,A52*'Global Assumptions'!$C$13*$H$3,'Global Assumptions'!$C$12*'Global Assumptions'!$C$13*$H$3) -> 1,015 | F52: =(A52+K52)*'Global Assumptions'!$C$14 -> 3,807 | G52: =IF(A52<'Global Assumptions'!$C$16,A52*'Global Assumptions'!$C$15,'Global Assumptions'!$C$16*'Global Assumptions'!$C$15) -> 325 | H52: =IF(A52<'Global Assumptions'!$C$7,A52*$D$10,IF(A52<$F$10,(A52-'Global Assumptions'!$C$7)*$E$10+'Global Assumptions'!$C$7*$D$10,($F$10-'Global Assumptions'!$C$7)*$E$10+'Global Assumptions'!$C$7*$D$10))*$G$10 -> 28,155 | I52: =+'Global Assumptions'!$C$21*$H$4+'Global Assumptions'!$C$22*$H$5 -> 2,393 | J52: =+'Global Assumptions'!$C$23*$H$4+'Global Assumptions'!$C$24*$H$5 -> 1,530 | K52: =IF(A52<$H$7,A52*'Global Assumptions'!$C$25/1000*$H$6*1.08*12,$H$7*'Global Assumptions'!$C$25/1000*$H$6*1.08*12) -> 218 | L52: ='Global Assumptions'!$C$26 -> 281 | M52: 6,825 | N52: 488 | O52: 29 | P52: 0 | Q52: 0
A53: 200,000 | B53: 24.02% | C53: 48,050 | D53: =IF((A53+K53)<'Global Assumptions'!$C$7,((A53+K53)-'Global Assumptions'!$C$9)*'Global Assumptions'!$C$10,(('Global Assumptions'!$C$7-'Global Assumptions'!$C$9)*'Global Assumptions'!$C$10)+IF((A53+K53)<'Global Assumptions'!$C$8,((A53+K53)-'Global Assumptions'!$C$7)*'Global Assumptions'!$C$11,('Global Assumptions'!$C$8-'Global Assumptions'!$C$7)*'Global Assumptions'!$C$11)) -> 2,699 | E53: =IF(A53<'Global Assumptions'!$C$12,A53*'Global Assumptions'!$C$13*$H$3,'Global Assumptions'!$C$12*'Global Assumptions'!$C$13*$H$3) -> 1,015 | F53: =(A53+K53)*'Global Assumptions'!$C$14 -> 3,904 | G53: =IF(A53<'Global Assumptions'!$C$16,A53*'Global Assumptions'!$C$15,'Global Assumptions'!$C$16*'Global Assumptions'!$C$15) -> 325 | H53: =IF(A53<'Global Assumptions'!$C$7,A53*$D$10,IF(A53<$F$10,(A53-'Global Assumptions'!$C$7)*$E$10+'Global Assumptions'!$C$7*$D$10,($F$10-'Global Assumptions'!$C$7)*$E$10+'Global Assumptions'!$C$7*$D$10))*$G$10 -> 28,155 | I53: =+'Global Assumptions'!$C$21*$H$4+'Global Assumptions'!$C$22*$H$5 -> 2,393 | J53: =+'Global Assumptions'!$C$23*$H$4+'Global Assumptions'!$C$24*$H$5 -> 1,530 | K53: =IF(A53<$H$7,A53*'Global Assumptions'!$C$25/1000*$H$6*1.08*12,$H$7*'Global Assumptions'!$C$25/1000*$H$6*1.08*12) -> 218 | L53: ='Global Assumptions'!$C$26 -> 281 | M53: 7,000 | N53: 500 | O53: 30 | P53: 0 | Q53: 0
A55: =+'Global Assumptions'!D4 -> FY20 Budget
A56: 20,000 | B56: =+C56/A56 -> 49.71% | C56: =SUM(D56:Q56) -> 9,943 | D56: =IF((A56+K56)<'Global Assumptions'!$D$7,((A56+K56)-'Global Assumptions'!$D$9)*'Global Assumptions'!$D$10,(('Global Assumptions'!$D$7-'Global Assumptions'!$D$9)*'Global Assumptions'!$D$10)+IF((A56+K56)<'Global Assumptions'!$D$8,((A56+K56)-'Global Assumptions'!$D$7)*'Global Assumptions'!$D$11,('Global Assumptions'!$D$8-'Global Assumptions'!$D$7)*'Global Assumptions'!$D$11)) -> 885 | E56: =IF(A56<'Global Assumptions'!$D$12,A56*'Global Assumptions'!$D$13*$H$3,'Global Assumptions'!$D$12*'Global Assumptions'!$D$13*$H$3) -> 393 | F56: =(A56+K56)*'Global Assumptions'!$D$14 -> 391 | G56: =IF(A56<'Global Assumptions'!$D$16,A56*'Global Assumptions'!$D$15,'Global Assumptions'!$D$16*'Global Assumptions'!$D$15) -> 72 | H56: =IF(A56<'Global Assumptions'!$D$7,A56*$D$11,IF(A56<$F$11,(A56-'Global Assumptions'!$D$7)*$E$11+'Global Assumptions'!$D$7*$D$11,($F$11-'Global Assumptions'!$D$7)*$E$11+'Global Assumptions'!$D$7*$D$11))*$G$11 -> 2,800 | I56: =+'Global Assumptions'!$D$21*$H$4+'Global Assumptions'!$D$22*$H$5 -> 2,465 | J56: =+'Global Assumptions'!$D$23*$H$4+'Global Assumptions'!$D$24*$H$5 -> 1,576 | K56: =IF(A56<$H$7,A56*'Global Assumptions'!$D$25/1000*$H$6*1.08*12,$H$7*'Global Assumptions'!$D$25/1000*$H$6*1.08*12) -> 44 | L56: ='Global Assumptions'!$D$26 -> 281 | M56: =+$A56*M$11 -> 900 | N56: 50 | O56: 1 | P56: 0 | Q56: 86
A57: 25,000 | B57: 45.58% | C57: 11,395 | D57: =IF((A57+K57)<'Global Assumptions'!$D$7,((A57+K57)-'Global Assumptions'!$D$9)*'Global Assumptions'!$D$10,(('Global Assumptions'!$D$7-'Global Assumptions'!$D$9)*'Global Assumptions'!$D$10)+IF((A57+K57)<'Global Assumptions'!$D$8,((A57+K57)-'Global Assumptions'!$D$7)*'Global Assumptions'!$D$11,('Global Assumptions'!$D$8-'Global Assumptions'!$D$7)*'Global Assumptions'!$D$11)) -> 1,153 | E57: =IF(A57<'Global Assumptions'!$D$12,A57*'Global Assumptions'!$D$13*$H$3,'Global Assumptions'!$D$12*'Global Assumptions'!$D$13*$H$3) -> 491 | F57: =(A57+K57)*'Global Assumptions'!$D$14 -> 489 | G57: =IF(A57<'Global Assumptions'!$D$16,A57*'Global Assumptions'!$D$15,'Global Assumptions'!$D$16*'Global Assumptions'!$D$15) -> 90 | H57: =IF(A57<'Global Assumptions'!$D$7,A57*$D$11,IF(A57<$F$11,(A57-'Global Assumptions'!$D$7)*$E$11+'Global Assumptions'!$D$7*$D$11,($F$11-'Global Assumptions'!$D$7)*$E$11+'Global Assumptions'!$D$7*$D$11))*$G$11 -> 3,500 | I57: =+'Global Assumptions'!$D$21*$H$4+'Global Assumptions'!$D$22*$H$5 -> 2,465 | J57: =+'Global Assumptions'!$D$23*$H$4+'Global Assumptions'!$D$24*$H$5 -> 1,576 | K57: =IF(A57<$H$7,A57*'Global Assumptions'!$D$25/1000*$H$6*1.08*12,$H$7*'Global Assumptions'!$D$25/1000*$H$6*1.08*12) -> 54 | L57: ='Global Assumptions'!$D$26 -> 281 | M57: 1,125 | N57: 63 | O57: 1 | P57: 0 | Q57: 108
A58: 30,000 | B58: 42.82% | C58: 12,847 | D58: =IF((A58+K58)<'Global Assumptions'!$D$7,((A58+K58)-'Global Assumptions'!$D$9)*'Global Assumptions'!$D$10,(('Global Assumptions'!$D$7-'Global Assumptions'!$D$9)*'Global Assumptions'!$D$10)+IF((A58+K58)<'Global Assumptions'!$D$8,((A58+K58)-'Global Assumptions'!$D$7)*'Global Assumptions'!$D$11,('Global Assumptions'!$D$8-'Global Assumptions'!$D$7)*'Global Assumptions'!$D$11)) -> 1,421 | E58: =IF(A58<'Global Assumptions'!$D$12,A58*'Global Assumptions'!$D$13*$H$3,'Global Assumptions'!$D$12*'Global Assumptions'!$D$13*$H$3) -> 589 | F58: =(A58+K58)*'Global Assumptions'!$D$14 -> 586 | G58: =IF(A58<'Global Assumptions'!$D$16,A58*'Global Assumptions'!$D$15,'Global Assumptions'!$D$16*'Global Assumptions'!$D$15) -> 108 | H58: =IF(A58<'Global Assumptions'!$D$7,A58*$D$11,IF(A58<$F$11,(A58-'Global Assumptions'!$D$7)*$E$11+'Global Assumptions'!$D$7*$D$11,($F$11-'Global Assumptions'!$D$7)*$E$11+'Global Assumptions'!$D$7*$D$11))*$G$11 -> 4,200 | I58: =+'Global Assumptions'!$D$21*$H$4+'Global Assumptions'!$D$22*$H$5 -> 2,465 | J58: =+'Global Assumptions'!$D$23*$H$4+'Global Assumptions'!$D$24*$H$5 -> 1,576 | K58: =IF(A58<$H$7,A58*'Global Assumptions'!$D$25/1000*$H$6*1.08*12,$H$7*'Global Assumptions'!$D$25/1000*$H$6*1.08*12) -> 65 | L58: ='Global Assumptions'!$D$26 -> 281 | M58: 1,350 | N58: 75 | O58: 2 | P58: 0 | Q58: 129
A59: 35,000 | B59: 40.86% | C59: 14,299 | D59: =IF((A59+K59)<'Global Assumptions'!$D$7,((A59+K59)-'Global Assumptions'!$D$9)*'Global Assumptions'!$D$10,(('Global Assumptions'!$D$7-'Global Assumptions'!$D$9)*'Global Assumptions'!$D$10)+IF((A59+K59)<'Global Assumptions'!$D$8,((A59+K59)-'Global Assumptions'!$D$7)*'Global Assumptions'!$D$11,('Global Assumptions'!$D$8-'Global Assumptions'!$D$7)*'Global Assumptions'!$D$11)) -> 1,689 | E59: =IF(A59<'Global Assumptions'!$D$12,A59*'Global Assumptions'!$D$13*$H$3,'Global Assumptions'!$D$12*'Global Assumptions'!$D$13*$H$3) -> 687 | F59: =(A59+K59)*'Global Assumptions'!$D$14 -> 684 | G59: =IF(A59<'Global Assumptions'!$D$16,A59*'Global Assumptions'!$D$15,'Global Assumptions'!$D$16*'Global Assumptions'!$D$15) -> 126 | H59: =IF(A59<'Global Assumptions'!$D$7,A59*$D$11,IF(A59<$F$11,(A59-'Global Assumptions'!$D$7)*$E$11+'Global Assumptions'!$D$7*$D$11,($F$11-'Global Assumptions'!$D$7)*$E$11+'Global Assumptions'!$D$7*$D$11))*$G$11 -> 4,900 | I59: =+'Global Assumptions'!$D$21*$H$4+'Global Assumptions'!$D$22*$H$5 -> 2,465 | J59: =+'Global Assumptions'!$D$23*$H$4+'Global Assumptions'!$D$24*$H$5 -> 1,576 | K59: =IF(A59<$H$7,A59*'Global Assumptions'!$D$25/1000*$H$6*1.08*12,$H$7*'Global Assumptions'!$D$25/1000*$H$6*1.08*12) -> 76 | L59: ='Global Assumptions'!$D$26 -> 281 | M59: 1,575 | N59: 88 | O59: 2 | P59: 0 | Q59: 151
A60: 40,000 | B60: 39.38% | C60: 15,751 | D60: =IF((A60+K60)<'Global Assumptions'!$D$7,((A60+K60)-'Global Assumptions'!$D$9)*'Global Assumptions'!$D$10,(('Global Assumptions'!$D$7-'Global Assumptions'!$D$9)*'Global Assumptions'!$D$10)+IF((A60+K60)<'Global Assumptions'!$D$8,((A60+K60)-'Global Assumptions'!$D$7)*'Global Assumptions'!$D$11,('Global Assumptions'!$D$8-'Global Assumptions'!$D$7)*'Global Assumptions'!$D$11)) -> 1,957 | E60: =IF(A60<'Global Assumptions'!$D$12,A60*'Global Assumptions'!$D$13*$H$3,'Global Assumptions'!$D$12*'Global Assumptions'!$D$13*$H$3) -> 786 | F60: =(A60+K60)*'Global Assumptions'!$D$14 -> 782 | G60: =IF(A60<'Global Assumptions'!$D$16,A60*'Global Assumptions'!$D$15,'Global Assumptions'!$D$16*'Global Assumptions'!$D$15) -> 144 | H60: =IF(A60<'Global Assumptions'!$D$7,A60*$D$11,IF(A60<$F$11,(A60-'Global Assumptions'!$D$7)*$E$11+'Global Assumptions'!$D$7*$D$11,($F$11-'Global Assumptions'!$D$7)*$E$11+'Global Assumptions'!$D$7*$D$11))*$G$11 -> 5,600 | I60: =+'Global Assumptions'!$D$21*$H$4+'Global Assumptions'!$D$22*$H$5 -> 2,465 | J60: =+'Global Assumptions'!$D$23*$H$4+'Global Assumptions'!$D$24*$H$5 -> 1,576 | K60: =IF(A60<$H$7,A60*'Global Assumptions'!$D$25/1000*$H$6*1.08*12,$H$7*'Global Assumptions'!$D$25/1000*$H$6*1.08*12) -> 87 | L60: ='Global Assumptions'!$D$26 -> 281 | M60: 1,800 | N60: 100 | O60: 2 | P60: 0 | Q60: 172
A61: 45,000 | B61: 38.23% | C61: 17,204 | D61: =IF((A61+K61)<'Global Assumptions'!$D$7,((A61+K61)-'Global Assumptions'!$D$9)*'Global Assumptions'!$D$10,(('Global Assumptions'!$D$7-'Global Assumptions'!$D$9)*'Global Assumptions'!$D$10)+IF((A61+K61)<'Global Assumptions'!$D$8,((A61+K61)-'Global Assumptions'!$D$7)*'Global Assumptions'!$D$11,('Global Assumptions'!$D$8-'Global Assumptions'!$D$7)*'Global Assumptions'!$D$11)) -> 2,225 | E61: =IF(A61<'Global Assumptions'!$D$12,A61*'Global Assumptions'!$D$13*$H$3,'Global Assumptions'!$D$12*'Global Assumptions'!$D$13*$H$3) -> 884 | F61: =(A61+K61)*'Global Assumptions'!$D$14 -> 879 | G61: =IF(A61<'Global Assumptions'!$D$16,A61*'Global Assumptions'!$D$15,'Global Assumptions'!$D$16*'Global Assumptions'!$D$15) -> 162 | H61: =IF(A61<'Global Assumptions'!$D$7,A61*$D$11,IF(A61<$F$11,(A61-'Global Assumptions'!$D$7)*$E$11+'Global Assumptions'!$D$7*$D$11,($F$11-'Global Assumptions'!$D$7)*$E$11+'Global Assumptions'!$D$7*$D$11))*$G$11 -> 6,300 | I61: =+'Global Assumptions'!$D$21*$H$4+'Global Assumptions'!$D$22*$H$5 -> 2,465 | J61: =+'Global Assumptions'!$D$23*$H$4+'Global Assumptions'!$D$24*$H$5 -> 1,576 | K61: =IF(A61<$H$7,A61*'Global Assumptions'!$D$25/1000*$H$6*1.08*12,$H$7*'Global Assumptions'!$D$25/1000*$H$6*1.08*12) -> 98 | L61: ='Global Assumptions'!$D$26 -> 281 | M61: 2,025 | N61: 113 | O61: 2 | P61: 0 | Q61: 194
A62: 50,000 | B62: 37.31% | C62: 18,656 | D62: =IF((A62+K62)<'Global Assumptions'!$D$7,((A62+K62)-'Global Assumptions'!$D$9)*'Global Assumptions'!$D$10,(('Global Assumptions'!$D$7-'Global Assumptions'!$D$9)*'Global Assumptions'!$D$10)+IF((A62+K62)<'Global Assumptions'!$D$8,((A62+K62)-'Global Assumptions'!$D$7)*'Global Assumptions'!$D$11,('Global Assumptions'!$D$8-'Global Assumptions'!$D$7)*'Global Assumptions'!$D$11)) -> 2,494 | E62: =IF(A62<'Global Assumptions'!$D$12,A62*'Global Assumptions'!$D$13*$H$3,'Global Assumptions'!$D$12*'Global Assumptions'!$D$13*$H$3) -> 982 | F62: =(A62+K62)*'Global Assumptions'!$D$14 -> 977 | G62: =IF(A62<'Global Assumptions'!$D$16,A62*'Global Assumptions'!$D$15,'Global Assumptions'!$D$16*'Global Assumptions'!$D$15) -> 180 | H62: =IF(A62<'Global Assumptions'!$D$7,A62*$D$11,IF(A62<$F$11,(A62-'Global Assumptions'!$D$7)*$E$11+'Global Assumptions'!$D$7*$D$11,($F$11-'Global Assumptions'!$D$7)*$E$11+'Global Assumptions'!$D$7*$D$11))*$G$11 -> 7,000 | I62: =+'Global Assumptions'!$D$21*$H$4+'Global Assumptions'!$D$22*$H$5 -> 2,465 | J62: =+'Global Assumptions'!$D$23*$H$4+'Global Assumptions'!$D$24*$H$5 -> 1,576 | K62: =IF(A62<$H$7,A62*'Global Assumptions'!$D$25/1000*$H$6*1.08*12,$H$7*'Global Assumptions'!$D$25/1000*$H$6*1.08*12) -> 109 | L62: ='Global Assumptions'!$D$26 -> 281 | M62: 2,250 | N62: 125 | O62: 3 | P62: 0 | Q62: 215
A63: 55,000 | B63: 36.46% | C63: 20,051 | D63: =IF((A63+K63)<'Global Assumptions'!$D$7,((A63+K63)-'Global Assumptions'!$D$9)*'Global Assumptions'!$D$10,(('Global Assumptions'!$D$7-'Global Assumptions'!$D$9)*'Global Assumptions'!$D$10)+IF((A63+K63)<'Global Assumptions'!$D$8,((A63+K63)-'Global Assumptions'!$D$7)*'Global Assumptions'!$D$11,('Global Assumptions'!$D$8-'Global Assumptions'!$D$7)*'Global Assumptions'!$D$11)) -> 2,762 | E63: =IF(A63<'Global Assumptions'!$D$12,A63*'Global Assumptions'!$D$13*$H$3,'Global Assumptions'!$D$12*'Global Assumptions'!$D$13*$H$3) -> 1,023 | F63: =(A63+K63)*'Global Assumptions'!$D$14 -> 1,075 | G63: =IF(A63<'Global Assumptions'!$D$16,A63*'Global Assumptions'!$D$15,'Global Assumptions'!$D$16*'Global Assumptions'!$D$15) -> 198 | H63: =IF(A63<'Global Assumptions'!$D$7,A63*$D$11,IF(A63<$F$11,(A63-'Global Assumptions'!$D$7)*$E$11+'Global Assumptions'!$D$7*$D$11,($F$11-'Global Assumptions'!$D$7)*$E$11+'Global Assumptions'!$D$7*$D$11))*$G$11 -> 7,700 | I63: =+'Global Assumptions'!$D$21*$H$4+'Global Assumptions'!$D$22*$H$5 -> 2,465 | J63: =+'Global Assumptions'!$D$23*$H$4+'Global Assumptions'!$D$24*$H$5 -> 1,576 | K63: =IF(A63<$H$7,A63*'Global Assumptions'!$D$25/1000*$H$6*1.08*12,$H$7*'Global Assumptions'!$D$25/1000*$H$6*1.08*12) -> 120 | L63: ='Global Assumptions'!$D$26 -> 281 | M63: 2,475 | N63: 138 | O63: 3 | P63: 0 | Q63: 237
A64: 60,000 | B64: 35.66% | C64: 21,394 | D64: =IF((A64+K64)<'Global Assumptions'!$D$7,((A64+K64)-'Global Assumptions'!$D$9)*'Global Assumptions'!$D$10,(('Global Assumptions'!$D$7-'Global Assumptions'!$D$9)*'Global Assumptions'!$D$10)+IF((A64+K64)<'Global Assumptions'!$D$8,((A64+K64)-'Global Assumptions'!$D$7)*'Global Assumptions'!$D$11,('Global Assumptions'!$D$8-'Global Assumptions'!$D$7)*'Global Assumptions'!$D$11)) -> 2,836 | E64: =IF(A64<'Global Assumptions'!$D$12,A64*'Global Assumptions'!$D$13*$H$3,'Global Assumptions'!$D$12*'Global Assumptions'!$D$13*$H$3) -> 1,023 | F64: =(A64+K64)*'Global Assumptions'!$D$14 -> 1,173 | G64: =IF(A64<'Global Assumptions'!$D$16,A64*'Global Assumptions'!$D$15,'Global Assumptions'!$D$16*'Global Assumptions'!$D$15) -> 216 | H64: =IF(A64<'Global Assumptions'!$D$7,A64*$D$11,IF(A64<$F$11,(A64-'Global Assumptions'!$D$7)*$E$11+'Global Assumptions'!$D$7*$D$11,($F$11-'Global Assumptions'!$D$7)*$E$11+'Global Assumptions'!$D$7*$D$11))*$G$11 -> 8,584 | I64: =+'Global Assumptions'!$D$21*$H$4+'Global Assumptions'!$D$22*$H$5 -> 2,465 | J64: =+'Global Assumptions'!$D$23*$H$4+'Global Assumptions'!$D$24*$H$5 -> 1,576 | K64: =IF(A64<$H$7,A64*'Global Assumptions'!$D$25/1000*$H$6*1.08*12,$H$7*'Global Assumptions'!$D$25/1000*$H$6*1.08*12) -> 131 | L64: ='Global Assumptions'!$D$26 -> 281 | M64: 2,700 | N64: 150 | O64: 3 | P64: 0 | Q64: 258
A65: 65,000 | B65: 34.99% | C65: 22,743 | D65: =IF((A65+K65)<'Global Assumptions'!$D$7,((A65+K65)-'Global Assumptions'!$D$9)*'Global Assumptions'!$D$10,(('Global Assumptions'!$D$7-'Global Assumptions'!$D$9)*'Global Assumptions'!$D$10)+IF((A65+K65)<'Global Assumptions'!$D$8,((A65+K65)-'Global Assumptions'!$D$7)*'Global Assumptions'!$D$11,('Global Assumptions'!$D$8-'Global Assumptions'!$D$7)*'Global Assumptions'!$D$11)) -> 2,836 | E65: =IF(A65<'Global Assumptions'!$D$12,A65*'Global Assumptions'!$D$13*$H$3,'Global Assumptions'!$D$12*'Global Assumptions'!$D$13*$H$3) -> 1,023 | F65: =(A65+K65)*'Global Assumptions'!$D$14 -> 1,270 | G65: =IF(A65<'Global Assumptions'!$D$16,A65*'Global Assumptions'!$D$15,'Global Assumptions'!$D$16*'Global Assumptions'!$D$15) -> 234 | H65: =IF(A65<'Global Assumptions'!$D$7,A65*$D$11,IF(A65<$F$11,(A65-'Global Assumptions'!$D$7)*$E$11+'Global Assumptions'!$D$7*$D$11,($F$11-'Global Assumptions'!$D$7)*$E$11+'Global Assumptions'!$D$7*$D$11))*$G$11 -> 9,546 | I65: =+'Global Assumptions'!$D$21*$H$4+'Global Assumptions'!$D$22*$H$5 -> 2,465 | J65: =+'Global Assumptions'!$D$23*$H$4+'Global Assumptions'!$D$24*$H$5 -> 1,576 | K65: =IF(A65<$H$7,A65*'Global Assumptions'!$D$25/1000*$H$6*1.08*12,$H$7*'Global Assumptions'!$D$25/1000*$H$6*1.08*12) -> 142 | L65: ='Global Assumptions'!$D$26 -> 281 | M65: 2,925 | N65: 163 | O65: 3 | P65: 0 | Q65: 280
A66: 70,000 | B66: 34.42% | C66: 24,091 | D66: =IF((A66+K66)<'Global Assumptions'!$D$7,((A66+K66)-'Global Assumptions'!$D$9)*'Global Assumptions'!$D$10,(('Global Assumptions'!$D$7-'Global Assumptions'!$D$9)*'Global Assumptions'!$D$10)+IF((A66+K66)<'Global Assumptions'!$D$8,((A66+K66)-'Global Assumptions'!$D$7)*'Global Assumptions'!$D$11,('Global Assumptions'!$D$8-'Global Assumptions'!$D$7)*'Global Assumptions'!$D$11)) -> 2,836 | E66: =IF(A66<'Global Assumptions'!$D$12,A66*'Global Assumptions'!$D$13*$H$3,'Global Assumptions'!$D$12*'Global Assumptions'!$D$13*$H$3) -> 1,023 | F66: =(A66+K66)*'Global Assumptions'!$D$14 -> 1,368 | G66: =IF(A66<'Global Assumptions'!$D$16,A66*'Global Assumptions'!$D$15,'Global Assumptions'!$D$16*'Global Assumptions'!$D$15) -> 252 | H66: =IF(A66<'Global Assumptions'!$D$7,A66*$D$11,IF(A66<$F$11,(A66-'Global Assumptions'!$D$7)*$E$11+'Global Assumptions'!$D$7*$D$11,($F$11-'Global Assumptions'!$D$7)*$E$11+'Global Assumptions'!$D$7*$D$11))*$G$11 -> 10,509 | I66: =+'Global Assumptions'!$D$21*$H$4+'Global Assumptions'!$D$22*$H$5 -> 2,465 | J66: =+'Global Assumptions'!$D$23*$H$4+'Global Assumptions'!$D$24*$H$5 -> 1,576 | K66: =IF(A66<$H$7,A66*'Global Assumptions'!$D$25/1000*$H$6*1.08*12,$H$7*'Global Assumptions'!$D$25/1000*$H$6*1.08*12) -> 152 | L66: ='Global Assumptions'!$D$26 -> 281 | M66: 3,150 | N66: 175 | O66: 4 | P66: 0 | Q66: 301
A67: 75,000 | B67: 33.92% | C67: 25,439 | D67: =IF((A67+K67)<'Global Assumptions'!$D$7,((A67+K67)-'Global Assumptions'!$D$9)*'Global Assumptions'!$D$10,(('Global Assumptions'!$D$7-'Global Assumptions'!$D$9)*'Global Assumptions'!$D$10)+IF((A67+K67)<'Global Assumptions'!$D$8,((A67+K67)-'Global Assumptions'!$D$7)*'Global Assumptions'!$D$11,('Global Assumptions'!$D$8-'Global Assumptions'!$D$7)*'Global Assumptions'!$D$11)) -> 2,836 | E67: =IF(A67<'Global Assumptions'!$D$12,A67*'Global Assumptions'!$D$13*$H$3,'Global Assumptions'!$D$12*'Global Assumptions'!$D$13*$H$3) -> 1,023 | F67: =(A67+K67)*'Global Assumptions'!$D$14 -> 1,466 | G67: =IF(A67<'Global Assumptions'!$D$16,A67*'Global Assumptions'!$D$15,'Global Assumptions'!$D$16*'Global Assumptions'!$D$15) -> 270 | H67: =IF(A67<'Global Assumptions'!$D$7,A67*$D$11,IF(A67<$F$11,(A67-'Global Assumptions'!$D$7)*$E$11+'Global Assumptions'!$D$7*$D$11,($F$11-'Global Assumptions'!$D$7)*$E$11+'Global Assumptions'!$D$7*$D$11))*$G$11 -> 11,471 | I67: =+'Global Assumptions'!$D$21*$H$4+'Global Assumptions'!$D$22*$H$5 -> 2,465 | J67: =+'Global Assumptions'!$D$23*$H$4+'Global Assumptions'!$D$24*$H$5 -> 1,576 | K67: =IF(A67<$H$7,A67*'Global Assumptions'!$D$25/1000*$H$6*1.08*12,$H$7*'Global Assumptions'!$D$25/1000*$H$6*1.08*12) -> 163 | L67: ='Global Assumptions'!$D$26 -> 281 | M67: 3,375 | N67: 188 | O67: 4 | P67: 0 | Q67: 323
A68: 80,000 | B68: 33.48% | C68: 26,788 | D68: =IF((A68+K68)<'Global Assumptions'!$D$7,((A68+K68)-'Global Assumptions'!$D$9)*'Global Assumptions'!$D$10,(('Global Assumptions'!$D$7-'Global Assumptions'!$D$9)*'Global Assumptions'!$D$10)+IF((A68+K68)<'Global Assumptions'!$D$8,((A68+K68)-'Global Assumptions'!$D$7)*'Global Assumptions'!$D$11,('Global Assumptions'!$D$8-'Global Assumptions'!$D$7)*'Global Assumptions'!$D$11)) -> 2,836 | E68: =IF(A68<'Global Assumptions'!$D$12,A68*'Global Assumptions'!$D$13*$H$3,'Global Assumptions'!$D$12*'Global Assumptions'!$D$13*$H$3) -> 1,023 | F68: =(A68+K68)*'Global Assumptions'!$D$14 -> 1,563 | G68: =IF(A68<'Global Assumptions'!$D$16,A68*'Global Assumptions'!$D$15,'Global Assumptions'!$D$16*'Global Assumptions'!$D$15) -> 288 | H68: =IF(A68<'Global Assumptions'!$D$7,A68*$D$11,IF(A68<$F$11,(A68-'Global Assumptions'!$D$7)*$E$11+'Global Assumptions'!$D$7*$D$11,($F$11-'Global Assumptions'!$D$7)*$E$11+'Global Assumptions'!$D$7*$D$11))*$G$11 -> 12,434 | I68: =+'Global Assumptions'!$D$21*$H$4+'Global Assumptions'!$D$22*$H$5 -> 2,465 | J68: =+'Global Assumptions'!$D$23*$H$4+'Global Assumptions'!$D$24*$H$5 -> 1,576 | K68: =IF(A68<$H$7,A68*'Global Assumptions'!$D$25/1000*$H$6*1.08*12,$H$7*'Global Assumptions'!$D$25/1000*$H$6*1.08*12) -> 174 | L68: ='Global Assumptions'!$D$26 -> 281 | M68: 3,600 | N68: 200 | O68: 4 | P68: 0 | Q68: 344
A69: 85,000 | B69: 33.10% | C69: 28,136 | D69: =IF((A69+K69)<'Global Assumptions'!$D$7,((A69+K69)-'Global Assumptions'!$D$9)*'Global Assumptions'!$D$10,(('Global Assumptions'!$D$7-'Global Assumptions'!$D$9)*'Global Assumptions'!$D$10)+IF((A69+K69)<'Global Assumptions'!$D$8,((A69+K69)-'Global Assumptions'!$D$7)*'Global Assumptions'!$D$11,('Global Assumptions'!$D$8-'Global Assumptions'!$D$7)*'Global Assumptions'!$D$11)) -> 2,836 | E69: =IF(A69<'Global Assumptions'!$D$12,A69*'Global Assumptions'!$D$13*$H$3,'Global Assumptions'!$D$12*'Global Assumptions'!$D$13*$H$3) -> 1,023 | F69: =(A69+K69)*'Global Assumptions'!$D$14 -> 1,661 | G69: =IF(A69<'Global Assumptions'!$D$16,A69*'Global Assumptions'!$D$15,'Global Assumptions'!$D$16*'Global Assumptions'!$D$15) -> 306 | H69: =IF(A69<'Global Assumptions'!$D$7,A69*$D$11,IF(A69<$F$11,(A69-'Global Assumptions'!$D$7)*$E$11+'Global Assumptions'!$D$7*$D$11,($F$11-'Global Assumptions'!$D$7)*$E$11+'Global Assumptions'!$D$7*$D$11))*$G$11 -> 13,396 | I69: =+'Global Assumptions'!$D$21*$H$4+'Global Assumptions'!$D$22*$H$5 -> 2,465 | J69: =+'Global Assumptions'!$D$23*$H$4+'Global Assumptions'!$D$24*$H$5 -> 1,576 | K69: =IF(A69<$H$7,A69*'Global Assumptions'!$D$25/1000*$H$6*1.08*12,$H$7*'Global Assumptions'!$D$25/1000*$H$6*1.08*12) -> 185 | L69: ='Global Assumptions'!$D$26 -> 281 | M69: 3,825 | N69: 213 | O69: 4 | P69: 0 | Q69: 366
A70: 90,000 | B70: 32.76% | C70: 29,484 | D70: =IF((A70+K70)<'Global Assumptions'!$D$7,((A70+K70)-'Global Assumptions'!$D$9)*'Global Assumptions'!$D$10,(('Global Assumptions'!$D$7-'Global Assumptions'!$D$9)*'Global Assumptions'!$D$10)+IF((A70+K70)<'Global Assumptions'!$D$8,((A70+K70)-'Global Assumptions'!$D$7)*'Global Assumptions'!$D$11,('Global Assumptions'!$D$8-'Global Assumptions'!$D$7)*'Global Assumptions'!$D$11)) -> 2,836 | E70: =IF(A70<'Global Assumptions'!$D$12,A70*'Global Assumptions'!$D$13*$H$3,'Global Assumptions'!$D$12*'Global Assumptions'!$D$13*$H$3) -> 1,023 | F70: =(A70+K70)*'Global Assumptions'!$D$14 -> 1,759 | G70: =IF(A70<'Global Assumptions'!$D$16,A70*'Global Assumptions'!$D$15,'Global Assumptions'!$D$16*'Global Assumptions'!$D$15) -> 324 | H70: =IF(A70<'Global Assumptions'!$D$7,A70*$D$11,IF(A70<$F$11,(A70-'Global Assumptions'!$D$7)*$E$11+'Global Assumptions'!$D$7*$D$11,($F$11-'Global Assumptions'!$D$7)*$E$11+'Global Assumptions'!$D$7*$D$11))*$G$11 -> 14,359 | I70: =+'Global Assumptions'!$D$21*$H$4+'Global Assumptions'!$D$22*$H$5 -> 2,465 | J70: =+'Global Assumptions'!$D$23*$H$4+'Global Assumptions'!$D$24*$H$5 -> 1,576 | K70: =IF(A70<$H$7,A70*'Global Assumptions'!$D$25/1000*$H$6*1.08*12,$H$7*'Global Assumptions'!$D$25/1000*$H$6*1.08*12) -> 196 | L70: ='Global Assumptions'!$D$26 -> 281 | M70: 4,050 | N70: 225 | O70: 5 | P70: 0 | Q70: 387
